Workbook

Sheet 0-Tool Overview & Applicability
A1: WBSMT | M1: NCHRP Watershed-Based Stormwater
A2: =NOW() -> 2016-05-05T16:47:43.680 | M2: Mitigation Toolbox (WBSM) v1.2014.04
A3: STEP 0 - Tool Applicability
C5: Project Name: | D5: Route 66 Widening | I5: Watershed: | J5: My Watershed
A6: 1 | B6: PROJECT INFORMATION | C6: Description: | D6: Highway Lane Addition and Expansion | I6: Username: | J6: John Smith
B7: Project information to identify this project
O8: LEGEND
A9: 2 | B9: TOOL OVERVIEW | O9: User Input | P9: Light yellow cells accept user input
O10: Decorative | P10: Light green cells are decorative and informational
P11: White cells are locked labels and calculated cells
O12: Link | P12: Links are blue underlined text that will navigate to specified URL
O13: <-- Error | P13: Error messages are shown as red text
O14: Error | P14: Error messages also shown in red cells
A16: 3 | B16: TOOL APPLICABILITY | C16: TOOL APPLICABILITY CONSIDERATIONS

Sheet 1-Project Details
A1: WBSMT
A2: =NOW() -> 2016-05-05T16:47:43.720
A3: STEP 1 - Project Details
A4: 1 | B4: PROJECT INFO | C4: Project Information: | D4: ='0-Tool Overview & Applicability'!D5 &" "& '0-Tool Overview & Applicability'!J5 & " ( " &'0-Tool Overview & Applicability'!J6 & " )" -> Route 66 Widening My Watershed ( John Smith )
A8: 2 | B8: PROJECT DESCRIPTION | C8: PROJECT CHARACTERISTICS & VARIABLES | I8: UNITS | J8: VALUE | K8: % IMPERV
C9: ='Hide-Calculations'!A12 -> Project area | I9: ='Hide-Calculations'!B12 -> acres | J9: 10 | K9: NA
C10: ='Hide-Calculations'!A13 -> Annual average daily traffic (AADT) | I10: ='Hide-Calculations'!B13 -> NA | J10: 1 | K10: NA
C11: ='Hide-Calculations'!A14 -> Project area average hydrologic soil group | I11: ='Hide-Calculations'!B14 -> NA | J11: 3 | K11: NA
C12: ='Hide-Calculations'!A15 -> Highway replaced by project (includes existing highway) | I12: ='Hide-Calculations'!B15 -> acres | J12: 5 | K12: 0.9
C13: ='Hide-Calculations'!A16 -> Urban area replaced by project | I13: acres | J13: 1 | K13: 0.75
C14: ='Hide-Calculations'!A17 -> Natural land cover replaced by project | I14: acres | J14: 1 | K14: 0.01
C15: ='Hide-Calculations'!A18 -> Cropland replaced by project | I15: acres | J15: 1 | K15: 0.03
C16: ='Hide-Calculations'!A19 -> Pasture replaced by project | I16: acres | J16: 2 | K16: 0.02
C17: Sub area check (urban + natural land + cropland + pasture) | I17: acres | J17: ='Hide-Calculations'!C20 -> 10 | K17: ='Hide-Calculations'!D20 -> 0.533
C18: Sum of urban, natural land cover, cropland and pasture must not exceed total project area!
A19: 3 | B19: STORMWATER GOALS | C19: STORMWATER MANAGEMENT GOALS | I19: CATEGORY | J19: Y/N
C20: ='Hide-Calculations'!A23 -> Reduce downstream flooding
C21: ='Hide-Calculations'!A24 -> Reduce hydromodification impacts
C22: ='Hide-Calculations'!A25 -> Reduce downstream TSS and particulate bound pollutant loads and concentrations
C23: ='Hide-Calculations'!A26 -> Reduce downstream nutrient impacts
C24: ='Hide-Calculations'!A27 -> Improve/minimize downstream temperature impact

Sheet 2- Watershed Characteristics
A1: WBSMT
A2: =NOW() -> 2016-05-05T16:47:43.720
A3: STEP 2 - Watershed Characterization
A4: 1 | B4: PROJECT INFO | C4: Project Information: | D4: ='1-Project Details'!D4:K4 -> Route 66 Widening My Watershed ( John Smith )
C5: 1 - Select Region
A6: 2 | B6: LOCATION & WATERSHED CHARACTERIZATION
B8: Select a location on the map or use drop down menu to select a state and HUC-12 watershed. Research Watershed Characteristics using links.
E10: Selected HUC-12 ID | G10: ='Hide-Calculations'!D54 -> 171100190304
E11: Selected Rain Gage | G11: ='Hide-Calculations'!D49 -> 456114
C13: Surf Your Watershed Link: http://cfpub.epa.gov/surf/locate/index.cfm | E13: User Preferred HUC-12 ID
C14: HUC-12 ID Lookup Link: http://viewer.nationalmap.gov/viewer/nhd.html?p=nhd
C15: WATERSHED CHARACTERISTICS & VARIABLES | D15: UNITS | E15: DEFAULT VALUE | F15: USER VALUE | G15: LOOKUP (Source Link)
C16: ='Hide-Calculations'!A38 -> Watershed area | D16: ='Hide-Calculations'!B38 -> sq. miles | E16: ='Hide-Calculations'!C38 -> 40.8490414 | F16: 40.8490414 | G16: ='Hide-Calculations'!E38 -> NA
C17: ='Hide-Calculations'!A39 -> Average annual precipitation depth (HUC) | D17: ='Hide-Calculations'!B39 -> in | E17: ='Hide-Calculations'!C39 -> 40.9106 | F17: 40.9106 | G17: Link
C18: ='Hide-Calculations'!A55 -> Average annual precipitation depth (Rain Gage) | D18: ='Hide-Calculations'!B55 -> in | E18: ='Hide-Calculations'!K57 -> 46.16369212 | F18: 46.16369212 | G18: NA
C19: ='Hide-Calculations'!A40 -> Watershed area dominant or average hydrologic soil group | D19: ='Hide-Calculations'!B40 -> NA | E19: =VLOOKUP('Hide-Calculations'!C14,'Hide-DropDownLists'!N5:O8,2) -> C | G19: Link | I19: <-- Error Please select a hydrologic soil group
C20: ='Hide-Calculations'!A42 -> Percent urban area | D20: ='Hide-Calculations'!B42 -> % | E20: ='Hide-Calculations'!C42 -> 46.986 | F20: 46.986 | G20: Link
C21: ='Hide-Calculations'!A43 -> Percent natural land cover | D21: ='Hide-Calculations'!B43 -> % | E21: ='Hide-Calculations'!C43 -> 49.6274 | F21: 49.6274 | G21: Link
C22: ='Hide-Calculations'!A44 -> Percent cropland | D22: ='Hide-Calculations'!B44 -> % | E22: ='Hide-Calculations'!C44 -> 0.3058 | F22: 0.3058 | G22: Link
C23: ='Hide-Calculations'!A45 -> Percent pasture | D23: ='Hide-Calculations'!B45 -> % | E23: ='Hide-Calculations'!C45 -> 0.8273 | F23: 0.8273 | G23: Link | O23: .
C24: ='Hide-Calculations'!A46 -> Percent potentially restorable wetlands | D24: ='Hide-Calculations'!B46 -> % | E24: ='Hide-Calculations'!C46 -> 1 | F24: 1 | G24: Link
C25: ='Hide-Calculations'!A47 -> Percent natural land cover in buffer | D25: ='Hide-Calculations'!B47 -> % | E25: ='Hide-Calculations'!C47 -> 60.9634 | F25: 60.9634 | G25: Link
C26: ='Hide-Calculations'!A48 -> Percent of natural land cover that is disturbed (i.e., actively eroding areas in the watershed not associated with construction) | D26: % | E26: 0 | F26: 0 | G26: % natural land cover disturbed is not available to be filled in automatically. Please provide estimate if known. | I26: Warning: Runoff quality for percent of natural land cover in disturbed area is calculated base on RUSLE. Please update RUSLE factors in the "9-Advanced" worksheet
C27: Sub area check (urban + natural land + cropland + pasture) | D27: % | E27: =E20+E21+E22+E23 -> 97.7465 | F27: =F20+F21+F22+F23 -> 97.7465 | G27: Note: Sub area check does not always add up to 100.0
C28: Sum of %urban, %natural land cover, %cropland and %pasture must not exceed 100%

Sheet 3-Targets
A1: WBSMT
A2: =NOW() -> 2016-05-05T16:47:43.720
A3: STEP 3 - Targets
A4: 1 | B4: PROJECT INFO | C4: Project Information: | D4: ='2- Watershed Characteristics'!D4 -> Route 66 Widening My Watershed ( John Smith )
A6: 2 | B6: DESIGN TARGETS | C6: VOLUME AND LOAD REDUCTION TARGETS | D6: UNITS | E6: DEFAULT | F6: VALUE
C7: Volume reduction | D7: % | E7: ='Hide-Calculations'!C61 -> 20 | F7: 20 | G7: This value must not exceed 100
C8: TSS load reduction | D8: % | E8: ='Hide-Calculations'!C62 -> 80 | F8: 80 | G8: This value must not exceed 100
C9: TP load reduction | D9: % | E9: ='Hide-Calculations'!C63 -> 40 | F9: 40 | G9: This value must not exceed 100
C10: TN load reduction | D10: % | E10: ='Hide-Calculations'!C64 -> 20 | F10: 20 | G10: This value must not exceed 100
C11: At least one target needs to have a percent reduction and negative reductions are not allowed!
A14: 3 | B14: TARGET BMP PERFORMANCE | C14: ESTIMATED AVERAGE ANNUAL PERFORMANCE | D14: VOLUME | F14: TSS | H14: TP | J14: TN
D15: UNITS | E15: VALUE | F15: UNITS | G15: VALUE | H15: UNITS | I15: VALUE | J15: UNITS | K15: VALUE
C16: Project runoff load | D16: ft3 | E16: ='Hide-Calculations'!W44 -> 1060329.113 | F16: lbs | G16: ='Hide-Calculations'!X44 -> 2912.5441 | H16: lbs | I16: ='Hide-Calculations'!Y44 -> 7.94330209 | J16: lbs | K16: ='Hide-Calculations'!Z44 -> 68.18000961
C17: Target load reduction | D17: ft3 | E17: ='Hide-Calculations'!W39 -> 212065.8226 | F17: lbs | G17: ='Hide-Calculations'!X39 -> 2330.03528 | H17: lbs | I17: ='Hide-Calculations'!Y39 -> 3.177320836 | J17: lbs | K17: ='Hide-Calculations'!Z39 -> 13.63600192
C18: Project runoff load / unit impervious area | D18: ft3/ac | E18: ='Hide-Calculations'!W45 -> 106032.9113 | F18: lbs/ac | G18: ='Hide-Calculations'!X45 -> 291.25441 | H18: lbs/ac | I18: ='Hide-Calculations'!Y45 -> 0.794330209 | J18: lbs/ac | K18: ='Hide-Calculations'!Z45 -> 6.818000961

Sheet 4-In-Kind On-Site Options
A1: WBSMT
A2: =NOW() -> 2016-05-05T16:47:43.720
A3: STEP 4 - Conceptual In Kind On-Site Options
A4: 1 | B4: PROJECT INFO | C4: Project Information: | D4: ='2- Watershed Characteristics'!D4 -> Route 66 Widening My Watershed ( John Smith )
A6: 2 | B6: BMP DRAINAGE AREA | C6: ON-SITE BMP DRAINAGE AREA | D6: UNITS | E6: DEFAULT
C7: Drainage area | D7: ac | E7: ='Hide-Calculations'!C12 -> 10
C8: Percent imperviousness of drainage area | D8: % | E8: ='Hide-Calculations'!R16 -> 90
A10: 3 | B10: DESIGN BASIS | C10: STORMWATER DESIGN BASIS | D10: UNITS | E10: DEFAULT | F10: VALUE
C11: Average annual runoff capture | D11: % | E11: ='Hide-Calculations'!C68 -> 80 | F11: 80 | G11: This value must not exceed 100
C12: Average annual volume reduced | D12: % | E12: ='Hide-Calculations'!C69 -> 20 | F12: 20 | G12: This value must not exceed 100
C13: Note: volume reduced is a function of the volume captured and BMP infiltration rate.
A14: 4 | B14: PREFERRED ON-SITE BMP | C14: PREFERRED ON-SITE BMP CHARACTERISTICS | D14: UNITS | E14: VALUE
C15: BMP type | D15: NA | E15: ='Hide-Calculations'!C73 -> Bioretention
C16: BMP footprint to effective drainage area ratio | D16: NA | E16: ='Hide-Calculations'!C74 -> 0.08 | F16: 0.08
C17: BMP footprint area | D17: ac | E17: ='Hide-Calculations'!C75 -> 0.04 | F17: ='Hide-Calculations'!D75 -> 0.72
A20: Runoff capture and volume reduction can be estimated for a selected design storm using using a long-term, continuous simulation, hydrologic model, such as EPA SWMM, HSPF, or the
A21: NCHRP Report 792 BMP Evaluation Tools, which are available

Sheet 5-In-Kind Off-Site Options
A1: WBSMT
A2: =NOW() -> 2016-05-05T16:47:43.720
A3: STEP 5 - Conceptual In Kind Off-Site Options
A4: 1 | B4: PROJECT INFO | C4: Project Information: | D4: ='2- Watershed Characteristics'!D4 -> Route 66 Widening My Watershed ( John Smith )
A6: 2 | B6: BMP DRAINAGE AREA | C6: OFF-SITE BMP DRAINAGE AREA | D6: UNITS | E6: DEFAULTS FROM WATERSHED | F6: VALUE | G6: % IMPERV
C7: ='Hide-Calculations'!A80 -> Drainage area to proposed offsite BMP | D7: ac | E7: ='Hide-Calculations'!C80 -> NA | F7: 2 | G7: NA
C8: ='Hide-Calculations'!A81 -> Annual average daily traffic (AADT) | D8: NA | E8: NA | F8: 1 | G8: NA
C9: Drainage area hydrologic soil group | D9: ='Hide-Calculations'!B83 -> NA | E9: ='Hide-Calculations'!F40 -> C | F9: 3 | G9: NA
C10: Highway | D10: ='Hide-Calculations'!B84 -> ac | E10: ='Hide-Calculations'!C84 -> 0 | F10: 0 | G10: 0.9
C11: ='Hide-Calculations'!A85 -> Urban area | D11: ='Hide-Calculations'!B85 -> ac | E11: ='Hide-Calculations'!C85 -> 0.9613848066 | F11: 0.9613848066 | G11: 0.75
C12: ='Hide-Calculations'!A86 -> Natural land cover | D12: ='Hide-Calculations'!B86 -> ac | E12: ='Hide-Calculations'!C86 -> 1.015430732 | F12: 1.015430732 | G12: 0.01
C13: ='Hide-Calculations'!A87 -> Cropland | D13: ='Hide-Calculations'!B87 -> ac | E13: ='Hide-Calculations'!C87 -> 0.006257001529 | F13: 0.006257001529 | G13: 0.03
C14: ='Hide-Calculations'!A88 -> Pasture | D14: ='Hide-Calculations'!B88 -> ac | E14: ='Hide-Calculations'!C88 -> 0.01692746032 | F14: 0.01692746032 | G14: 0.02
C15: ='Hide-Calculations'!A89 -> Replaced project area sum check | D15: ='Hide-Calculations'!B89 -> ac | E15: ='Hide-Calculations'!C89 -> 2 | F15: ='Hide-Calculations'!D89 -> 2 | G15: =IF(F15=0,0,SUMPRODUCT(F10:F14,G10:G14)/F15) -> 0.3658595858
C16: Sum of highway, urban, natural land cover, cropland and pasture must equal total drainage area!
A18: 3 | B18: PREFERRED OFF-SITE BMP | C18: PREFERRED OFF-SITE BMP CHARACTERISTICS | D18: UNITS | E18: DEFAULT | F18: VALUE
C19: ='Hide-Calculations'!A97 -> BMP type | D19: ='Hide-Calculations'!B97 -> NA | E19: ='Hide-Calculations'!C97 -> Swale | F19: Wetland
C20: ='Hide-Calculations'!A98 -> BMP footprint to effective drainage area ratio | D20: ='Hide-Calculations'!B98 -> NA | E20: ='Hide-Calculations'!C98 -> 0.05 | F20: 0.05
C21: ='Hide-Calculations'!A99 -> BMP footprint area | D21: ='Hide-Calculations'!B99 -> ac | E21: ='Hide-Calculations'!C99 -> 0.1 | F21: 0.1
C22: ='Hide-Calculations'!A100 -> Off-site Load Reduction Adjustment Factor | D22: ='Hide-Calculations'!B100 -> - | E22: ='Hide-Calculations'!C100 -> 1 | F22: 1
A24: 4 | B24: DESIGN BASIS | C24: STORMWATER DESIGN BASIS | D24: UNITS | E24: DEFAULT | F24: VALUE
C25: Runoff capture | D25: % | E25: ='Hide-Calculations'!C92 -> 80 | F25: 80 | G25: This value must not exceed 100
C26: Volume reduction | D26: % | E26: ='Hide-Calculations'!C93 -> 20 | F26: 20 | G26: This value must not exceed 100
C27: Note: volume reduced is a function of the volume captured and BMP infiltration rate.
A28: Runoff capture and volume reduction can be estimated for a selected design storm using a long-term, continuous simulation, hydrologic model, such as EPA SWMM, HSPF, or the
A29: NCHRP Report 792 BMP Evaluation Tools, which are available

Sheet 6-Out-of-Kind Options
A1: WBSMT
A2: =NOW() -> 2016-05-05T16:47:43.720
A3: STEP 6 - Out-of-Kind Options
A4: 1 | B4: PROJECT INFO | C4: Project Information: | D4: ='2- Watershed Characteristics'!D4 -> Route 66 Widening My Watershed ( John Smith )
A6: 2 | B6: BENEFICIAL USES | C6: BENEFICIAL USE APPLICABILITY | D6: DEFAULT | E6: VALUE
C7: Aquatic life / warm and cold habitats | D7: ='Hide-Calculations'!B108 -> 1 | E7: 1
C8: Drinking water supply | D8: ='Hide-Calculations'!B109 -> 1 | E8: 1
C9: Primary and Secondary Contact recreation | D9: ='Hide-Calculations'!B110 -> 1 | E9: 1
C10: Fish Consumption (edible seafood) | D10: ='Hide-Calculations'!B111 -> 1 | E10: 1
C11: Aesthetics | D11: ='Hide-Calculations'!B112 -> 1 | E11: 1
C12: Industrial Uses | D12: ='Hide-Calculations'!B113 -> 1 | E12: 1
C13: Wildlife / terrestrial life | D13: ='Hide-Calculations'!B114 -> 1 | E13: 1
C14: Rare and endangered species | D14: ='Hide-Calculations'!B115 -> 1 | E14: 1
C15: Wetland Habitat | D15: ='Hide-Calculations'!B116 -> 1 | E15: 1
C16: Note: 0 - Beneficial use not applicable or important, 1 - Beneficial use applicable or important, 2-Benefical use applicable and impaired
A17: 3 | B17: ECOSYSTEM SERVICES | C17: WATERSHED ECOSYSTEM SERVICE RANKS | D17: DEFAULT PRIORITY SCORE (sums to 1.0) | E17: USER PRIORITY SCORE (sums to 1.0)
C18: Biodiversity Conservation | D18: ='10-Advanced Out-of-Kind Calcs'!N19 -> 0.2128831075 | E18: 0.2128831075
C19: Clean and Plentiful Water | D19: ='10-Advanced Out-of-Kind Calcs'!O19 -> 0.3026266972 | E19: 0.3026266972
C20: Food, Fuel, and Materials | D20: ='10-Advanced Out-of-Kind Calcs'!P19 -> 0.1490891773 | E20: 0.1490891773
C21: Natural Hazard Mitigation | D21: ='10-Advanced Out-of-Kind Calcs'!Q19 -> 0.1356492269 | E21: 0.1356492269
C22: Recreation, Culture, and Aesthetics | D22: ='10-Advanced Out-of-Kind Calcs'!R19 -> 0.1997517911 | E22: 0.1997517911
C23: Check Sum | D23: =SUM(D18:D22) -> 1 | E23: =SUM(E18:E22) -> 1
C24: Note: Higher priority score implies relatively higher need to improve ecosystem service within watershed
A26: 4 | B26: MITIGATION MEASURES | C26: MITIGATION MEASURES | D26: DEFAULT PRIORITY SCORE (sums to 1.0) | E26: USER PRIORITY SCORE (sums to 1.0) | F26: DEFAULT OPPORTUNITY SCORE (sums to 1.0) | G26: USER OPPORTUNITY SCORE (sums to 1.0)
C27: ='Hide-Calculations'!A129 -> Stream Improvement Techniques | D27: ='10-Advanced Out-of-Kind Calcs'!O106 -> 0.2133950933 | E27: 0.2133950933 | F27: ='10-Advanced Out-of-Kind Calcs'!Q106 -> 0.4444444444 | G27: 0.4444444444
C28: ='Hide-Calculations'!A130 -> Upland Stabilization | D28: ='10-Advanced Out-of-Kind Calcs'!O107 -> 0.1999143327 | E28: 0.1999143327 | F28: ='10-Advanced Out-of-Kind Calcs'!Q107 -> 0 | G28: 0
C29: ='Hide-Calculations'!A131 -> Reducing Impervious Surface Connectivity | D29: ='10-Advanced Out-of-Kind Calcs'!O108 -> 0.2495760145 | E29: 0.2495760145 | F29: ='10-Advanced Out-of-Kind Calcs'!Q108 -> 0.1111111111 | G29: 0.1111111111
C30: ='Hide-Calculations'!A132 -> Wetland Restoration / Creation | D30: ='10-Advanced Out-of-Kind Calcs'!O109 -> 0.3371145595 | E30: 0.3371145595 | F30: ='10-Advanced Out-of-Kind Calcs'!Q109 -> 0.4444444444 | G30: 0.4444444444
C31: Check Sum | D31: =SUM(D27:D30) -> 1 | E31: =SUM(E27:E30) -> 1 | F31: 1 | G31: 1
C32: Note: Score range is 0 - 1, Higher priority score implies relatively higher watershed need for the mitigation measure. Higher opportunity score implies higher opportunities for implementation of the mitigation measure
A34: 5 | B34: MITGATION RATIOS | C34: MITIGATION MEASURES | D34: FINAL SCORE | E34: DEFAULT FOOTPRINT RATIO | F34: USER FOOTPRINT RATIO
C35: Stream Improvement Techniques | D35: ='10-Advanced Out-of-Kind Calcs'!V106 -> 0.3481706971 | E35: ='Hide-Calculations'!W91 -> 0.1 | F35: 0.1
C36: Upland Stabilization | D36: ='10-Advanced Out-of-Kind Calcs'!V107 -> 0 | E36: ='Hide-Calculations'!W92 -> 0 | F36: 0
C37: Reducing Impervious Surface Connectivity | D37: ='10-Advanced Out-of-Kind Calcs'!V108 -> 0.1018006712 | E37: ='Hide-Calculations'!W93 -> 1 | F37: 1
C38: Wetland Restoration / Creation | D38: ='10-Advanced Out-of-Kind Calcs'!V109 -> 0.5500286317 | E38: ='Hide-Calculations'!W94 -> 0.05 | F38: 0.05
C39: Score range is 0 - 1, A higher final score implies a preference for that mitigation measure

Sheet 7-Analysis
A1: WBSMT
A2: =NOW() -> 2016-05-05T16:47:43.720
A3: Project Information: | C3: ='2- Watershed Characteristics'!D4 -> Route 66 Widening My Watershed ( John Smith )
A5: Load Reduction Targets
C6: Volume (ft3) | D6: TSS (lbs) | E6: TP (lbs) | F6: TN (lbs)
B7: Project loads | C7: ='Hide-Calculations'!W44 -> 1060329.113 | D7: ='Hide-Calculations'!X44 -> 2912.5441 | E7: ='Hide-Calculations'!Y44 -> 7.94330209 | F7: ='Hide-Calculations'!Z44 -> 68.18000961
A8: Target load reductions | C8: ='Hide-Calculations'!W39 -> 212065.8226 | D8: ='Hide-Calculations'!X39 -> 2330.03528 | E8: ='Hide-Calculations'!Y39 -> 3.177320836 | F8: ='Hide-Calculations'!Z39 -> 13.63600192
A9: Watershed loads | C9: ='Hide-Calculations'!W41 -> 1388050667 | D9: ='Hide-Calculations'!X41 -> 11013829.62 | E9: ='Hide-Calculations'!Y41 -> 34564.73993 | F9: ='Hide-Calculations'!Z41 -> 262069.2832
A10: ='Hide-Calculations'!V42 -> Watershed Estimated Load / imperv area (cu ft/ac or lbs/ac) | C10: ='Hide-Calculations'!W42 -> 116873.8112 | D10: ='Hide-Calculations'!X42 -> 1006.45977 | E10: ='Hide-Calculations'!Y42 -> 3.250384767 | F10: ='Hide-Calculations'!Z42 -> 23.83192563
A11: ='Hide-Calculations'!V43 -> Watershed Estimated Load / total area (cu ft/ac or lbs/ac) | C11: ='Hide-Calculations'!W43 -> 53093.75919 | D11: ='Hide-Calculations'!X43 -> 421.2854987 | E11: ='Hide-Calculations'!Y43 -> 1.322121751 | F11: ='Hide-Calculations'!Z43 -> 10.02430512
A13: On-site In-Kind Mitigation Load Reductions
A14: Onsite BMP type | G14: Ensure design basis (Tab 4) consistent with selected BMP
A15: Effective % of Area Draining to On-site, In-Kind BMP | F15: 1 | G15: Percentage must not exceed 100%
A16: BMP Characteristics | C16: ='Hide-Calculations'!W62 -> Swale | D16: ='Hide-Calculations'!X62 -> Wetland | E16: ='Hide-Calculations'!Y62 -> Dry Pond | F16: ='Hide-Calculations'!Z62 -> Bioretention | G16: ='Hide-Calculations'!AA62 -> Media Filter
A17: BMP footprint area (ac) | C17: ='Hide-Calculations'!W63 -> 0.72 | D17: ='Hide-Calculations'!X63 -> 0.72 | E17: ='Hide-Calculations'!Y63 -> 0.72 | F17: ='Hide-Calculations'!Z63 -> 0.72 | G17: ='Hide-Calculations'!AA63 -> 0.72
A18: BMP footprint area ratio | C18: ='Hide-Calculations'!W64 -> 0.08 | D18: ='Hide-Calculations'!X64 -> 0.08 | E18: ='Hide-Calculations'!Y64 -> 0.08 | F18: ='Hide-Calculations'!Z64 -> 0.08 | G18: ='Hide-Calculations'!AA64 -> 0.08
A19: % Capture | C19: ='Hide-Calculations'!W65 -> 0.8 | D19: ='Hide-Calculations'!X65 -> 0.8 | E19: ='Hide-Calculations'!Y65 -> 0.8 | F19: ='Hide-Calculations'!Z65 -> 0.8 | G19: ='Hide-Calculations'!AA65 -> 0.8
A20: Volume Reduction (ft3) | C20: ='Hide-Calculations'!W66 -> 212065.8226 | D20: ='Hide-Calculations'!X66 -> 212065.8226 | E20: ='Hide-Calculations'!Y66 -> 212065.8226 | F20: ='Hide-Calculations'!Z66 -> 212065.8226 | G20: ='Hide-Calculations'!AA66 -> 212065.8226
A21: TSS Load Reduction (lbs) | C21: ='Hide-Calculations'!W67 -> 1472.158654 | D21: ='Hide-Calculations'!X67 -> 1897.125316 | E21: ='Hide-Calculations'!Y67 -> 1404.640586 | F21: ='Hide-Calculations'!Z67 -> 1936.841826 | G21: ='Hide-Calculations'!AA67 -> 1996.416592
A22: TP Load Reduction (lbs) | C22: ='Hide-Calculations'!W68 -> 1.588660418 | D22: ='Hide-Calculations'!X68 -> 2.740439221 | E22: ='Hide-Calculations'!Y68 -> 1.588660418 | F22: ='Hide-Calculations'!Z68 -> 1.588660418 | G22: ='Hide-Calculations'!AA68 -> 2.819872242
A23: TN Load Reduction (lbs) | C23: ='Hide-Calculations'!W69 -> 19.99064359 | D23: ='Hide-Calculations'!X69 -> 13.63600192 | E23: ='Hide-Calculations'!Y69 -> 13.63600192 | F23: ='Hide-Calculations'!Z69 -> 18.00481807 | G23: ='Hide-Calculations'!AA69 -> 13.63600192
A24: Load Removal Rank (High better) | C24: ='Hide-Calculations'!W70 -> 1.198658429 | D24: ='Hide-Calculations'!X70 -> 1.396363636 | E24: ='Hide-Calculations'!Y70 -> 1.082272727 | F24: ='Hide-Calculations'!Z70 -> 1.32907767 | G24: ='Hide-Calculations'!AA70 -> 1.440454545
A34: Off-site In-Kind Mitigation Load Reductions
A35: Off-site BMP type | G35: Ensure design basis (Tab 5) consistent with selected BMP
A36: Effective % of Area Draining to Off-site, In-Kind BMP | F36: 1 | G36: Percentage must not exceed 100%
A37: BMP Characteristics | C37: ='Hide-Calculations'!W76 -> Swale | D37: ='Hide-Calculations'!X76 -> Wetland | E37: ='Hide-Calculations'!Y76 -> Dry Pond | F37: ='Hide-Calculations'!Z76 -> Bioretention | G37: ='Hide-Calculations'!AA76 -> Media Filter
A38: BMP footprint area (ac) | C38: ='Hide-Calculations'!W77 -> 0.8 | D38: ='Hide-Calculations'!X77 -> 0.8 | E38: ='Hide-Calculations'!Y77 -> 0.8 | F38: ='Hide-Calculations'!Z77 -> 0.8 | G38: ='Hide-Calculations'!AA77 -> 0.8
A39: BMP footprint area ratio | C39: ='Hide-Calculations'!W78 -> 0.08 | D39: ='Hide-Calculations'!X78 -> 0.08 | E39: ='Hide-Calculations'!Y78 -> 0.08 | F39: ='Hide-Calculations'!Z78 -> 0.08 | G39: ='Hide-Calculations'!AA78 -> 0.08
A40: % Capture | C40: ='Hide-Calculations'!W79 -> 0.8 | D40: ='Hide-Calculations'!X79 -> 0.8 | E40: ='Hide-Calculations'!Y79 -> 0.8 | F40: ='Hide-Calculations'!Z79 -> 0.8 | G40: ='Hide-Calculations'!AA79 -> 0.8
A41: Volume Reduction | C41: ='Hide-Calculations'!W80 -> 21729.65354 | D41: ='Hide-Calculations'!X80 -> 21729.65354 | E41: ='Hide-Calculations'!Y80 -> 21729.65354 | F41: ='Hide-Calculations'!Z80 -> 21729.65354 | G41: ='Hide-Calculations'!AA80 -> 21729.65354
A42: TSS Load Reduction | C42: ='Hide-Calculations'!W81 -> 601.7769031 | D42: ='Hide-Calculations'!X81 -> 645.3217715 | E42: ='Hide-Calculations'!Y81 -> 594.8585596 | F42: ='Hide-Calculations'!Z81 -> 649.3913853 | G42: ='Hide-Calculations'!AA81 -> 655.4958061
A43: TP Load Reduction | C43: ='Hide-Calculations'!W82 -> 1.4685399 | D43: ='Hide-Calculations'!X82 -> 1.794109009 | E43: ='Hide-Calculations'!Y82 -> 1.362729939 | F43: ='Hide-Calculations'!Z82 -> 1.187736543 | G43: ='Hide-Calculations'!AA82 -> 1.802248237
A44: TN Load Reduction | C44: ='Hide-Calculations'!W83 -> 12.87007047 | D44: ='Hide-Calculations'!X83 -> 12.21893225 | E44: ='Hide-Calculations'!Y83 -> 9.89925235 | F44: ='Hide-Calculations'!Z83 -> 12.66658978 | G44: ='Hide-Calculations'!AA83 -> 12.17823611
A45: Load Removal Rank (High better) | C45: ='Hide-Calculations'!W84 -> 2.068223953 | D45: ='Hide-Calculations'!X84 -> 2.207325468 | E45: ='Hide-Calculations'!Y84 -> 1.876266509 | F45: ='Hide-Calculations'!Z84 -> 2.009747548 | G45: ='Hide-Calculations'!AA84 -> 2.220151362
A54: Progress Towards Meeting Load Reduction Targets
C55: Volume (ft3) | D55: TSS (lbs) | E55: TP (lbs) | F55: TN (lbs)
A56: Target load reductions | C56: ='Hide-Calculations'!W39 -> 212065.8226 | D56: ='Hide-Calculations'!X39 -> 2330.03528 | E56: ='Hide-Calculations'!Y39 -> 3.177320836 | F56: ='Hide-Calculations'!Z39 -> 13.63600192
A57: Onsite load reductions | C57: ='Hide-Calculations'!W49 -> 212065.8226 | D57: ='Hide-Calculations'!X49 -> 1936.841826 | E57: ='Hide-Calculations'!Y49 -> 1.588660418 | F57: ='Hide-Calculations'!Z49 -> 18.00481807
A58: Remaining target load reductions (post-onsite) | C58: ='Hide-Calculations'!W50 -> 0 | D58: ='Hide-Calculations'!X50 -> 393.1934535 | E58: ='Hide-Calculations'!Y50 -> 1.588660418 | F58: ='Hide-Calculations'!Z50 -> -4.36881615
A59: Offiste load reductions | C59: ='Hide-Calculations'!W55 -> 21729.65354 | D59: ='Hide-Calculations'!X55 -> 649.3913853 | E59: ='Hide-Calculations'!Y55 -> 1.187736543 | F59: ='Hide-Calculations'!Z55 -> 12.66658978
A60: Outstanding load reductions | C60: ='Hide-Calculations'!W56 -> 0 | D60: ='Hide-Calculations'!X56 -> 0 | E60: ='Hide-Calculations'!Y56 -> 0.4009238749 | F60: ='Hide-Calculations'!Z56 -> 0
A61: Outstanding equivalent impervious area for out-of-kind mitigation | E61: =MAX('Hide-Calculations'!W57:Z57) -> 0.1233465893 | F61: ac
A63: Recommended Out-of-Kind Mitigation Approaches
A65: Mitigation Measure Footprint Targets | C65: Mitigation Measure Ratio | D65: Estimated Footprint (ac) | E65: In-Lieu Multiplier | F65: In-Lieu Estimated Footprint (ac)
A66: ='Hide-Calculations'!V91 -> Stream Improvement Techniques | C66: ='6-Out-of-Kind Options'!F35 -> 0.1 | D66: =C66*$E$61 -> 0.01233465893 | E66: 1.1 | F66: =E66*D66 -> 0.01356812482
A67: ='Hide-Calculations'!V92 -> Upland Stabilization | C67: ='6-Out-of-Kind Options'!F36 -> 0 | D67: =C67*$E$61 -> 0 | E67: 1.1 | F67: =E67*D67 -> 0
A68: ='Hide-Calculations'!V93 -> Reducing Impervious Surface Connectivity | C68: ='6-Out-of-Kind Options'!F37 -> 1 | D68: 0.1233465893 | E68: 1.1 | F68: 0.1356812482
A69: ='Hide-Calculations'!V94 -> Wetland restoration/ creation | C69: ='6-Out-of-Kind Options'!F38 -> 0.05 | D69: 0.006167329465 | E69: 1.1 | F69: 0.006784062411
A71: Note: H - Highly recommended, L - moderately Recommended | E71: Self-Implementation | G71: In-Lieu-Implementation
A72: Mitigation Measure Implementation | C72: Final Score | D72: Rank | E72: % Implementation | F72: Actual Footprint (ac) | G72: % Implementation | H72: Actual Footprint (ac) | I72: Combined Implementation
A73: ='Hide-Calculations'!A137 -> Stream Improvement Techniques | C73: ='Hide-Calculations'!B137 -> 0.3481706971 | D73: =IF(C73=0,"L",'Hide-Calculations'!G137) -> H | E73: 0.75 | F73: =E73*D66 -> 0.009250994197 | G73: 0 | H73: =G73*F66 -> 0 | I73: =IFERROR(F73/D66,0)+IFERROR(H73/F66,0) -> 0.75
A74: ='Hide-Calculations'!A138 -> Upland Stabilization | C74: ='Hide-Calculations'!B138 -> 0 | D74: =IF(C74=0,"L",'Hide-Calculations'!G138) -> L | E74: 0 | F74: =E74*D67 -> 0 | G74: 0 | H74: =G74*F67 -> 0 | I74: =IFERROR(F74/D67,0)+IFERROR(H74/F67,0) -> 0
A75: ='Hide-Calculations'!A139 -> Reducing Impervious Surface Connectivity | C75: ='Hide-Calculations'!B139 -> 0.1018006712 | D75: ='Hide-Calculations'!G139 -> L | E75: 0 | F75: 0 | G75: 0 | H75: 0 | I75: 0
A76: ='Hide-Calculations'!A140 -> Wetland Restoration / Creation | C76: ='Hide-Calculations'!B140 -> 0.5500286317 | D76: ='Hide-Calculations'!G140 -> H | E76: 0.25 | F76: 0.001541832366 | G76: 0 | H76: 0 | I76: 0.25
F77: Progress Towards Target | I77: =SUM(I73:I76) -> 1

Sheet 8-Report
A1: WBSMT
A2: =NOW() -> 2016-05-05T16:47:43.720
A3: Project Information: | B3: ='2- Watershed Characteristics'!D4 -> Route 66 Widening My Watershed ( John Smith )
A5: Project Location and Watershed Characteristics
A6: Drainage Area Characteristics | B6: Onsite | C6: Offsite | F6: Watershed Characteristics
A7: Area | B7: ='Hide-Calculations'!C12 -> 10 | C7: ='Hide-Calculations'!D80 -> 2 | D7: ='Hide-Calculations'!B12 -> acres | F7: Watershed area | I7: ='Hide-Calculations'!D38 -> 40.8490414 | J7: ='Hide-Calculations'!B38 -> sq. miles
A8: Imperviousness | B8: ='Hide-Calculations'!D15 -> 0.9 | C8: ='Hide-Calculations'!E89 -> 0.3658595858 | D8: % | F8: Average annual precipitation depth | I8: ='Hide-Calculations'!D39 -> 40.9106 | J8: ='Hide-Calculations'!B39 -> in
A9: Average annual precipitation | B9: ='Hide-Calculations'!D39 -> 40.9106 | C9: ='Hide-Calculations'!D39 -> 40.9106 | D9: ='Hide-Calculations'!B39 -> in | F9: Percent impervious area | I9: ='Hide-Calculations'!F41 -> 35.7583192 | J9: ='Hide-Calculations'!B41 -> %
A10: HUC12 watershed ID | B10: ='Hide-Calculations'!D54 -> 171100190304 | C10: ='Hide-Calculations'!D54 -> 171100190304 | F10: Percent urban area | I10: ='Hide-Calculations'!D42 -> 46.986 | J10: ='Hide-Calculations'!B42 -> %
A11: Rain gage ID | B11: ='Hide-Calculations'!D49 -> 456114 | C11: ='Hide-Calculations'!D49 -> 456114 | F11: Percent natural land cover | I11: ='Hide-Calculations'!D43 -> 49.6274 | J11: ='Hide-Calculations'!B43 -> %
A12: Rain gage location | B12: ='Hide-Calculations'!F49 -> PUGET SOUND LOWLANDS - OLYMPIA AP | C12: ='Hide-Calculations'!F49 -> PUGET SOUND LOWLANDS - OLYMPIA AP | F12: Percent cropland | I12: ='Hide-Calculations'!D44 -> 0.3058 | J12: ='Hide-Calculations'!B44 -> %
A13: Dominant hydrologic soil group | B13: ='Hide-Calculations'!E14 -> C | C13: ='Hide-Calculations'!E83 -> C | F13: Percent pasture | I13: ='Hide-Calculations'!D45 -> 0.8273 | J13: ='Hide-Calculations'!B45 -> %
F14: Percent potentially restorable wetlands | I14: ='Hide-Calculations'!D46 -> 1 | J14: ='Hide-Calculations'!B46 -> %
F15: Percent natural land cover in buffer | I15: ='Hide-Calculations'!D47 -> 60.9634 | J15: ='Hide-Calculations'!B47 -> %
A17: Load Reduction Targets
B18: Project Goals
A19: Runoff capture | B19: ='Hide-Calculations'!D68 -> 80 | C19: ='Hide-Calculations'!B68 -> % | F19: Scenario | G19: Volume (ft3) | H19: TSS (lbs) | I19: TP (lbs) | J19: TN (lbs)
A20: Volume reduction | B20: ='Hide-Calculations'!D69 -> 20 | C20: ='Hide-Calculations'!B69 -> % | F20: Watershed loads | G20: ='Hide-Calculations'!W41 -> 1388050667 | H20: ='Hide-Calculations'!X41 -> 11013829.62 | I20: ='Hide-Calculations'!Y41 -> 34564.73993 | J20: ='Hide-Calculations'!Z41 -> 262069.2832
A21: TSS load reduction | B21: ='Hide-Calculations'!D62 -> 80 | C21: ='Hide-Calculations'!B62 -> % | F21: On-site project area loads | G21: ='Hide-Calculations'!W44 -> 1060329.113 | H21: ='Hide-Calculations'!X44 -> 2912.5441 | I21: ='Hide-Calculations'!Y44 -> 7.94330209 | J21: ='Hide-Calculations'!Z44 -> 68.18000961
A22: TP load reduction | B22: ='Hide-Calculations'!D63 -> 40 | C22: ='Hide-Calculations'!B63 -> % | F22: Off-site mitigation area loads | G22: ='Hide-Calculations'!W51 -> 108648.2677 | H22: ='Hide-Calculations'!X51 -> 862.1007032 | I22: ='Hide-Calculations'!Y51 -> 2.705554838 | J22: ='Hide-Calculations'!Z51 -> 20.51329317
A23: TN load reduction | B23: ='Hide-Calculations'!D64 -> 20 | C23: ='Hide-Calculations'!B64 -> % | F23: Target load reductions | G23: ='Hide-Calculations'!W39 -> 212065.8226 | H23: ='Hide-Calculations'!X39 -> 2330.03528 | I23: ='Hide-Calculations'!Y39 -> 3.177320836 | J23: ='Hide-Calculations'!Z39 -> 13.63600192
A25: Mitigation Measure and Banking Status Summary
A27: Mitigation Category | B27: ='Hide-Calculations'!AM61 -> Vol (cu ft) | C27: ='Hide-Calculations'!AN61 -> TSS (lbs) | D27: ='Hide-Calculations'!AO61 -> TP (lbs) | E27: ='Hide-Calculations'!AP61 -> TN (lbs)
A28: % TLR provided by on-site in-kind BMPs | B28: ='Hide-Calculations'!AM62 -> 1 | C28: ='Hide-Calculations'!AN62 -> 0.83125 | D28: ='Hide-Calculations'!AO62 -> 0.5 | E28: ='Hide-Calculations'!AP62 -> 1.32038835
A29: % TLR provided by off-site in-kind BMPs | B29: ='Hide-Calculations'!AM63 -> 0.1024665515 | C29: ='Hide-Calculations'!AN63 -> 0.2787045291 | D29: ='Hide-Calculations'!AO63 -> 0.373817 | E29: ='Hide-Calculations'!AP63 -> 0.9289078904
A30: % TLR Outstanding | B30: ='Hide-Calculations'!AM64 -> 0 | C30: ='Hide-Calculations'!AN64 -> 0 | D30: ='Hide-Calculations'!AO64 -> 0.126183 | E30: ='Hide-Calculations'!AP64 -> 0
A31: Check Sum | B31: ='Hide-Calculations'!AM65 -> 1.102466552 | C31: ='Hide-Calculations'!AN65 -> 1.109954529 | D31: ='Hide-Calculations'!AO65 -> 1 | E31: ='Hide-Calculations'!AP65 -> 2.24929624
A33: Note: TLR - Total load reduction
G40: In-Kind Combined Reductions | I40: VALUE
G41: Runoff Vol (ft3) | I41: ='Hide-Calculations'!AM75 -> 233795.4761
G42: TSS (lbs) | I42: ='Hide-Calculations'!AM76 -> 2586.233212
G43: TN (lbs) | I43: ='Hide-Calculations'!AM77 -> 2.776396961
G44: TP (lbs) | I44: ='Hide-Calculations'!AM78 -> 30.67140785
B46: Mitigation Measure Footprint Area (ac)
A47: Mitigation Measure Footprint Area Summary | B47: In-kind on-site | C47: In-kind off-site | D47: Self-Implemented Out-of-kind | E47: In-Lieu Out-of-kind
A48: ='Hide-Calculations'!C73 -> Bioretention | B48: =HLOOKUP('Hide-Calculations'!$D$73,'Hide-Calculations'!$W$61:$AA$63,3,FALSE) -> 0.72
A49: ='Hide-Calculations'!C97 -> Swale | C49: =HLOOKUP('Hide-Calculations'!$D$97,'Hide-Calculations'!$W$75:$AA$77,3,FALSE) -> 0.8
A50: ='Hide-Calculations'!A137 -> Stream Improvement Techniques | D50: ='7-Analysis'!F73 -> 0.009250994197 | E50: ='7-Analysis'!H73 -> 0
A51: ='Hide-Calculations'!A138 -> Upland Stabilization | D51: ='7-Analysis'!F74 -> 0 | E51: ='7-Analysis'!H74 -> 0
A52: ='Hide-Calculations'!A139 -> Reducing Impervious Surface Connectivity | D52: ='7-Analysis'!F75 -> 0 | E52: ='7-Analysis'!H75 -> 0
A53: ='Hide-Calculations'!A140 -> Wetland Restoration / Creation | D53: ='7-Analysis'!F76 -> 0.001541832366 | E53: ='7-Analysis'!H76 -> 0

Sheet 9-Advanced
A1: WBSMT
A2: =NOW() -> 2016-05-05T16:47:43.720
A3: Advanced Options
A4: 1 | B4: PROJECT INFO | C4: Project Information: | D4: ='2- Watershed Characteristics'!D4 -> Route 66 Widening My Watershed ( John Smith )
A6: 2 | B6: PROJECT GOALS & PRIORITIES | C6: STORMWATER MANAGEMENT GOALS & PRIORITIES* | D6: ='Hide-Calculations'!J81 -> Decrease TSS | F6: ='Hide-Calculations'!L81 -> Decrease Nutrients | H6: ='Hide-Calculations'!N81 -> Decrease Runoff Volume | J6: ='Hide-Calculations'!P81 -> Decrease Stream Power / Energy
D7: DEFAULT | E7: VALUE | F7: DEFAULT | G7: VALUE | H7: DEFAULT | I7: VALUE | J7: DEFAULT | K7: VALUE
C8: ='Hide-Calculations'!I83 -> Reduce downstream flooding | D8: ='Hide-Calculations'!J83 -> 0 | E8: 0 | F8: ='Hide-Calculations'!L83 -> 0 | G8: 0 | H8: ='Hide-Calculations'!N83 -> 1 | I8: 1 | J8: ='Hide-Calculations'!P83 -> 1 | K8: 1
C9: ='Hide-Calculations'!I84 -> Reduce hydromodification impacts | D9: ='Hide-Calculations'!J84 -> 0 | E9: 0 | F9: ='Hide-Calculations'!L84 -> 0 | G9: 0 | H9: ='Hide-Calculations'!N84 -> 1 | I9: 1 | J9: ='Hide-Calculations'!P84 -> 1 | K9: 1
C10: ='Hide-Calculations'!I85 -> Reduce downstream TSS and particulate bound pollutant loads and concentrations | D10: ='Hide-Calculations'!J85 -> 1 | E10: 1 | F10: ='Hide-Calculations'!L85 -> 0 | G10: 0 | H10: ='Hide-Calculations'!N85 -> 1 | I10: 1 | J10: ='Hide-Calculations'!P85 -> 0 | K10: 0
C11: ='Hide-Calculations'!I86 -> Reduce downstream nutrient impacts | D11: 1 | E11: 1 | F11: ='Hide-Calculations'!L86 -> 1 | G11: 1 | H11: ='Hide-Calculations'!N86 -> 1 | I11: 1 | J11: ='Hide-Calculations'!P86 -> 0 | K11: 0
C12: ='Hide-Calculations'!I87 -> Improve/minimize downstream temperature impact | D12: ='Hide-Calculations'!J87 -> 0 | E12: 0 | F12: ='Hide-Calculations'!L87 -> 0 | G12: 0 | H12: ='Hide-Calculations'!N87 -> 1 | I12: 1 | J12: ='Hide-Calculations'!P87 -> 0 | K12: 0
C13: *Acceptable values are 0 or 1
A15: 3 | B15: POST-DEV QUALITY | C15: CHARACTERISTIC CONSTITUENT CONCS (MG/L) | D15: TSS | F15: TP | H15: TN | J15: % IMPERV
D16: DEFAULT | E16: VALUE | F16: DEFAULT | G16: VALUE | H16: DEFAULT | I16: VALUE | J16: DEFAULT | K16: VALUE
C17: Highway (ADT 0-30K) | D17: ='Hide-Calculations'!J16 -> 44 | E17: 44 | F17: ='Hide-Calculations'!L16 -> 0.12 | G17: 0.12 | H17: ='Hide-Calculations'!N16 -> 1.03 | I17: 1.03 | J17: ='Hide-Calculations'!P16 -> 90 | K17: 90
C18: Highway (ADT 30-90K) | D18: ='Hide-Calculations'!J17 -> 63.5 | E18: 63.5 | F18: ='Hide-Calculations'!L17 -> 0.18 | G18: 0.18 | H18: ='Hide-Calculations'!N17 -> 1.66 | I18: 1.66 | J18: ='Hide-Calculations'!P17 -> 90 | K18: 90
C19: Highway (ADT 90K +) | D19: ='Hide-Calculations'!J18 -> 100 | E19: 100 | F19: ='Hide-Calculations'!L18 -> 0.24 | G19: 0.24 | H19: ='Hide-Calculations'!N18 -> 2.15 | I19: 2.15 | J19: ='Hide-Calculations'!P18 -> 90 | K19: 90
C20: ='Hide-Calculations'!I19 -> Highway | D20: ='Hide-Calculations'!J19 -> 139 | E20: 139 | F20: ='Hide-Calculations'!L19 -> 0.44 | G20: 0.44 | H20: ='Hide-Calculations'!N19 -> 3.38 | I20: 3.38 | J20: ='Hide-Calculations'!P19 -> 90 | K20: 90
C21: ='Hide-Calculations'!I20 -> Urban area | D21: ='Hide-Calculations'!J20 -> 139 | E21: 139 | F21: ='Hide-Calculations'!L20 -> 0.45 | G21: 0.45 | H21: ='Hide-Calculations'!N20 -> 3.29 | I21: 3.29 | J21: ='Hide-Calculations'!P20 -> 75 | K21: 75
C22: ='Hide-Calculations'!I21 -> Natural land cover | D22: ='Hide-Calculations'!J21 -> 62.5 | E22: 62.5 | F22: ='Hide-Calculations'!L21 -> 0.12 | G22: 0.12 | H22: ='Hide-Calculations'!N21 -> 1.581666667 | I22: 1.581666667 | J22: ='Hide-Calculations'!P21 -> 1 | K22: 1
C23: ='Hide-Calculations'!I22 -> *Natural land cover (Disturbed - RUSLE for TSS) | D23: ='Hide-Calculations'!J22 -> 189.770203 | E23: 189.783198 | F23: ='Hide-Calculations'!L22 -> 1.138621218 | G23: 1.138699188 | H23: ='Hide-Calculations'!N22 -> 15.18161624 | I23: 15.18265584 | J23: ='Hide-Calculations'!P22 -> 1 | K23: 1
C24: ='Hide-Calculations'!I23 -> Cropland | D24: ='Hide-Calculations'!J23 -> 206.3875 | E24: 206.3875 | F24: ='Hide-Calculations'!L23 -> 0.8857142857 | G24: 0.8857142857 | H24: ='Hide-Calculations'!N23 -> 4.151666667 | I24: 4.151666667 | J24: ='Hide-Calculations'!P23 -> 3 | K24: 3
C25: ='Hide-Calculations'!I24 -> Pasture | D25: ='Hide-Calculations'!J24 -> 112.1314286 | E25: 112.1314286 | F25: ='Hide-Calculations'!L24 -> 0.362 | G25: 0.362 | H25: ='Hide-Calculations'!N24 -> 2.94 | I25: 2.94 | J25: ='Hide-Calculations'!P24 -> 2 | K25: 2
C26: * TSS value calculated from RUSLE parameters, TN and TP values are for disturbed land
A28: 4 | B28: BMP EFLLUENT QUALITY | C28: REFERENCE BMP EFFLUENT QUALITY | D28: SWALES | F28: WETLANDS | H28: DRY PONDS | J28: BIORETENTION | L28: MEDIA FILTER
D29: DEFAULT | E29: VALUE | F29: DEFAULT | G29: VALUE | H29: DEFAULT | I29: VALUE | J29: DEFAULT | K29: VALUE | L29: DEFAULT | M29: VALUE
C30: ='Hide-Calculations'!I35 -> Total Suspended Solids (TSS) | D30: ='Hide-Calculations'!J35 -> 21.6 | E30: 21.6 | F30: ='Hide-Calculations'!L35 -> 10.9 | G30: 10.9 | H30: ='Hide-Calculations'!N35 -> 23.3 | I30: 23.3 | J30: ='Hide-Calculations'!P35 -> 9.9 | K30: 9.9 | L30: ='Hide-Calculations'!R35 -> 8.4 | M30: 8.4
C31: ='Hide-Calculations'!I36 -> Total Phosphorus (TP) | D31: ='Hide-Calculations'!J36 -> 0.171 | E31: 0.171 | F31: ='Hide-Calculations'!L36 -> 0.091 | G31: 0.091 | H31: ='Hide-Calculations'!N36 -> 0.197 | I31: 0.197 | J31: ='Hide-Calculations'!P36 -> 0.24 | K31: 0.24 | L31: ='Hide-Calculations'!R36 -> 0.089 | M31: 0.089
C32: ='Hide-Calculations'!I37 -> Total Nitrogen (TN) | D32: ='Hide-Calculations'!J37 -> 0.87 | E32: 0.87 | F32: ='Hide-Calculations'!L37 -> 1.2 | G32: 1.2 | H32: ='Hide-Calculations'!N37 -> 1.6 | I32: 1.6 | J32: ='Hide-Calculations'!P37 -> 0.92 | K32: 0.92 | L32: ='Hide-Calculations'!R37 -> 1.04 | M32: 1.04
A34: 5 | B34: BMP CHARACTERISTICS | C34: BMP Type | D34: Swales | E34: Wetlands | F34: Dry Ponds | G34: Bioretention | H34: Media Filter
C35: Default BMP footprint area ratio | D35: 0.05 | E35: 0.1 | F35: 0.07 | G35: 0.08 | H35: 0.065
A38: 6 | B38: UPLAND RUSLE & WATER QUALITY PARAMETERS | E38: R | F38: K | G38: LS | H38: C | I38: P | J38: A | L38: RUSLE SEDIMENT MASS LOADING FRACTIONS FOR CONSTITUENTS
C39: Download RUSLE2 Calculator | E39: R | F39: K | G39: LS | H39: C | I39: P | J39: (tons/ac/yr) | L39: TSS Mass (%) | N39: TP Mass (%) | P39: TN Mass (%)
C40: Revised Universal Soil Loss Equation (RUSLE) Parameters for Disturbed Land | D40: DEFAULTS | E40: 100 | F40: 0.34 | G40: 0.37 | H40: 0.5 | I40: 0.5 | J40: =E40*F40*G40*H40*I40 -> 3.145 | L40: DEFAULT | M40: VALUE | N40: DEFAULT | O40: VALUE | P40: DEFAULT | Q40: VALUE
D41: USER VALUES | E41: 100 | F41: 0.34 | G41: 0.37 | H41: 0.5 | I41: 0.5 | J41: =E41*F41*G41*H41*I41 -> 3.145 | L41: 10 | M41: 10 | N41: 0.06 | O41: 0.06 | P41: 0.8 | Q41: 0.8
C42: A = R x K x LS x C x P where A = ave. soil loss (tons/acre/yr), R = rainfall-runoff erosivity factor, K = soil erodibility factor, LS = slope length and steepness factor, C = cover-management factor, P = support practice factor

Sheet 10-Advanced Out-of-Kind Calcs
A1: Watershed Conditions Assessment
A2: User Inputs | E2: Default Relationship Tables (Note: Defaults on this sheet cannot be restored. Please make a back up of the Tool before making changes) | N2: Computations
A3: Land Uses | E3: Land Use versus Ecosystem Services
A4: Land Use | B4: Percent Land Use | E4: Data Layer Title | F4: Biodiversity Conservation | G4: Clean and Plentiful Water | H4: Food, Fuel, and Materials | I4: Natural Hazard Mitigation | J4: Recreation, Culture & Aesthetics
A5: ='Hide-Calculations'!A42 -> Percent urban area | B5: ='Hide-Calculations'!F42 -> 0.4698217494 | E5: Percent urban area | F5: 0 | G5: 0 | H5: 0 | I5: 0 | J5: 0
A6: ='Hide-Calculations'!A43 -> Percent natural land cover | B6: ='Hide-Calculations'!F43 -> 0.4962357494 | E6: Percent natural land cover | F6: 2 | G6: 2 | H6: 1 | I6: 2 | J6: 2
A7: ='Hide-Calculations'!A44 -> Percent cropland | B7: ='Hide-Calculations'!F44 -> 0.003019749408 | E7: Percent cropland | F7: 0 | G7: 0 | H7: 2 | I7: 1 | J7: 1
A8: ='Hide-Calculations'!A45 -> Percent pasture | B8: ='Hide-Calculations'!F45 -> 0.008196498817 | E8: Percent pasture | F8: 0 | G8: 0 | H8: 2 | I8: 1 | J8: 1
E9: 0 - no significant relationship, 1 - minor or indirect relationship, 2 - significant or direct relationship
A10: Beneficial Uses | E10: Beneficial Uses vs. Ecosystem Services | M10: Ecosystem Services Score
A11: Beneficial Use | B11: User Value | E11: Beneficial Uses | F11: Biodiversity Conservation | G11: Clean and Plentiful Water | H11: Food, Fuel, and Materials | I11: Natural Hazard Mitigation | J11: Recreation, Culture & Aesthetics | M11: Condition / Scenario | N11: Biodiversity Conservation | O11: Clean and Plentiful Water | P11: Food, Fuel, and Materials | Q11: Natural Hazard Mitigation | R11: Recreation, Culture & Aesthetics
A12: Aquatic life / warm and cold habitats | B12: ='Hide-Calculations'!C108 -> 1 | E12: Aquatic life / warm and cold habitats | F12: 2 | G12: 2 | H12: 1 | I12: 0 | J12: 1 | M12: Baseline+project (land use vs ES) | N12: =SUMPRODUCT($B$5:$B$8,F$5:F$8) -> 0.9924714988 | O12: =SUMPRODUCT($B$5:$B$8,G$5:G$8) -> 0.9924714988 | P12: =SUMPRODUCT($B$5:$B$8,H$5:H$8) -> 0.5186682459 | Q12: =SUMPRODUCT($B$5:$B$8,I$5:I$8) -> 1.003687747 | R12: =SUMPRODUCT($B$5:$B$8,J$5:J$8) -> 1.003687747
A13: Drinking water supply | B13: ='Hide-Calculations'!C109 -> 1 | E13: Drinking water supply | F13: 0 | G13: 2 | H13: 0 | I13: 0 | J13: 0 | M13: Normalized LUvsES | N13: =N12/SUM($N$12:$R$12) -> 0.2200120631 | O13: =O12/SUM($N$12:$R$12) -> 0.2200120631 | P13: 0.1149788895 | Q13: 0.2224984921 | R13: 0.2224984921
A14: Primary and secondary contact recreation | B14: ='Hide-Calculations'!C110 -> 1 | E14: Primary and secondary contact recreation | F14: 0 | G14: 2 | H14: 0 | I14: 0 | J14: 1 | M14: Inverse LUvsES | N14: =1-N13 -> 0.7799879369 | O14: =1-O13 -> 0.7799879369 | P14: 0.8850211105 | Q14: 0.7775015079 | R14: 0.7775015079
A15: Fish consumption (edible seafood) | B15: ='Hide-Calculations'!C111 -> 1 | E15: Fish consumption (edible seafood) | F15: 0 | G15: 2 | H15: 1 | I15: 0 | J15: 1 | M15: Normalized inverse LUvsES | N15: =N14/SUM($N$14:$R$14) -> 0.1949969842 | O15: =O14/SUM($N$14:$R$14) -> 0.1949969842 | P15: 0.2212552776 | Q15: 0.194375377 | R15: 0.194375377
A16: Aesthetics | B16: ='Hide-Calculations'!C112 -> 1 | E16: Aesthetics | F16: 1 | G16: 0 | H16: 0 | I16: 0 | J16: 2 | M16: Generic (BU vs ES) | N16: =SUMPRODUCT($B$12:$B$20,F$12:F$20) -> 9 | O16: =SUMPRODUCT($B$12:$B$20,G$12:G$20) -> 16 | P16: =SUMPRODUCT($B$12:$B$20,H$12:H$20) -> 3 | Q16: =SUMPRODUCT($B$12:$B$20,I$12:I$20) -> 3 | R16: =SUMPRODUCT($B$12:$B$20,J$12:J$20) -> 8
A17: Industrial uses | B17: ='Hide-Calculations'!C113 -> 1 | E17: Industrial uses | F17: 0 | G17: 2 | H17: 0 | I17: 2 | J17: 0 | M17: Normalized BUvsES | N17: =N16/SUM($N$16:$R$16) -> 0.2307692308 | O17: =O16/SUM($N$16:$R$16) -> 0.4102564103 | P17: =P16/SUM($N$16:$R$16) -> 0.07692307692 | Q17: =Q16/SUM($N$16:$R$16) -> 0.07692307692 | R17: =R16/SUM($N$16:$R$16) -> 0.2051282051
A18: Wildlife / terrestrial life | B18: ='Hide-Calculations'!C114 -> 1 | E18: Wildlife / terrestrial life | F18: 2 | G18: 2 | H18: 1 | I18: 0 | J18: 1 | M18: Ecosystem services score (BU vs ES)+(Inverse LU vs ES) | N18: =N17+N15 -> 0.425766215 | O18: =O17+O15 -> 0.6052533945 | P18: 0.2981783545 | Q18: 0.2712984539 | R18: 0.3995035821
A19: Rare and endangered species | B19: ='Hide-Calculations'!C115 -> 1 | E19: Rare and endangered species | F19: 2 | G19: 2 | H19: 0 | I19: 0 | J19: 1 | M19: Normalized ESS | N19: =N18/SUM($N$18:$R$18) -> 0.2128831075 | O19: =O18/SUM($N$18:$R$18) -> 0.3026266972 | P19: =P18/SUM($N$18:$R$18) -> 0.1490891773 | Q19: =Q18/SUM($N$18:$R$18) -> 0.1356492269 | R19: =R18/SUM($N$18:$R$18) -> 0.1997517911
A20: Wetland Habitat | B20: ='Hide-Calculations'!C116 -> 1 | E20: Wetland Habitat | F20: 2 | G20: 2 | H20: 0 | I20: 1 | J20: 1 | M20: User ESS | N20: ='6-Out-of-Kind Options'!E18 -> 0.2128831075 | O20: ='6-Out-of-Kind Options'!E19 -> 0.3026266972 | P20: ='6-Out-of-Kind Options'!E20 -> 0.1490891773 | Q20: ='6-Out-of-Kind Options'!E21 -> 0.1356492269 | R20: ='6-Out-of-Kind Options'!E22 -> 0.1997517911
E21: 0 - no significant relationship, 1 - minor or indirect relationship, 2 - significant or direct relationship
E22: Watershed Processes vs. Ecosystem Services | M22: Watershed Processes Score Based on ESS | P22: Watershed Processes vs. Beneficial Uses
E23: Watershed Processes | F23: Biodiversity Conservation | G23: Clean and Plentiful Water | H23: Food, Fuel, and Materials | I23: Natural Hazard Mitigation | J23: Recreation, Culture & Aesthetics | M23: Watershed Processes | N23: Score | O23: Normalized Score | P23: Aquatic life / warm and cold habitats | Q23: Drinking water supply | R23: Primary and Secondary Contact recreation | S23: Fish Consumption (edible seafood) | T23: Aesthetics | U23: Industrial Uses | V23: Wildlife / terrestrial life | W23: Rare and endangered species | X23: Wetland Habitat
E24: Increases interception | F24: 1 | G24: 1 | H24: 2 | I24: 2 | J24: 1 | M24: Increases interception | N24: =SUMPRODUCT($N$20:$R$20,F24:J24) -> 1.284738404 | O24: =N24/SUM($N$24:$N$38) -> 0.0824529157 | P24: =$B$12*SUMPRODUCT($F$12:$J$12,$F24:$J24) -> 7 | Q24: =$B$13*SUMPRODUCT($F$13:$J$13,$F24:$J24) -> 2 | R24: =$B$14*SUMPRODUCT($F$14:$J$14,$F24:$J24) -> 3 | S24: =$B$15*SUMPRODUCT($F$15:$J$15,$F24:$J24) -> 5 | T24: =$B$16*SUMPRODUCT($F$16:$J$16,$F24:$J24) -> 3 | U24: =$B$17*SUMPRODUCT($F$17:$J$17,$F24:$J24) -> 6 | V24: =$B$18*SUMPRODUCT($F$18:$J$18,$F24:$J24) -> 7 | W24: =$B$19*SUMPRODUCT($F$19:$J$19,$F24:$J24) -> 5 | X24: =$B$20*SUMPRODUCT($F$20:$J$20,$F24:$J24) -> 7
E25: Increases infiltration | F25: 1 | G25: 2 | H25: 2 | I25: 2 | J25: 1 | M25: Increases infiltration | N25: =SUMPRODUCT($N$20:$R$20,F25:J25) -> 1.587365101 | O25: =N25/SUM($N$24:$N$38) -> 0.1018751214 | P25: =$B$12*SUMPRODUCT($F$12:$J$12,$F25:$J25) -> 9 | Q25: =$B$13*SUMPRODUCT($F$13:$J$13,$F25:$J25) -> 4 | R25: =$B$14*SUMPRODUCT($F$14:$J$14,$F25:$J25) -> 5 | S25: =$B$15*SUMPRODUCT($F$15:$J$15,$F25:$J25) -> 7 | T25: =$B$16*SUMPRODUCT($F$16:$J$16,$F25:$J25) -> 3 | U25: =$B$17*SUMPRODUCT($F$17:$J$17,$F25:$J25) -> 8 | V25: =$B$18*SUMPRODUCT($F$18:$J$18,$F25:$J25) -> 9 | W25: =$B$19*SUMPRODUCT($F$19:$J$19,$F25:$J25) -> 7 | X25: =$B$20*SUMPRODUCT($F$20:$J$20,$F25:$J25) -> 9
E26: Enhances evapotranspiration | F26: 1 | G26: 1 | H26: 1 | I26: 0 | J26: 1 | M26: Enhances evapotranspiration | N26: 0.8643507731 | O26: 0.05547295947 | P26: =$B$12*SUMPRODUCT($F$12:$J$12,$F26:$J26) -> 6 | Q26: 2 | R26: 3 | S26: 4 | T26: 3 | U26: 2 | V26: 6 | W26: 5 | X26: 5
E27: Enhances pollutant uptake and retention by upland vegetation | F27: 1 | G27: 2 | H27: 1 | I27: 0 | J27: 0 | M27: Enhances pollutant uptake and retention by upland vegetation | N27: 0.9672256792 | O27: 0.06207534322 | P27: 7 | Q27: 4 | R27: 4 | S27: 5 | T27: 1 | U27: 4 | V27: 7 | W27: 6 | X27: 6
E28: Builds soil quality | F28: 1 | G28: 1 | H28: 1 | I28: 0 | J28: 1 | M28: Builds soil quality | N28: 0.8643507731 | O28: 0.05547295947 | P28: 6 | Q28: 2 | R28: 3 | S28: 4 | T28: 3 | U28: 2 | V28: 6 | W28: 5 | X28: 5
E29: Reduces upland erosion | F29: 1 | G29: 2 | H29: 1 | I29: 0 | J29: 1 | M29: Reduces upland erosion | N29: 1.16697747 | O29: 0.07489516517 | P29: 8 | Q29: 4 | R29: 5 | S29: 6 | T29: 3 | U29: 4 | V29: 8 | W29: 7 | X29: 7
E30: Reduces overland flow | F30: 0 | G30: 2 | H30: 0 | I30: 2 | J30: 0 | M30: Reduces overland flow | N30: 0.8765518484 | O30: 0.05625600934 | P30: 4 | Q30: 4 | R30: 4 | S30: 4 | T30: 0 | U30: 8 | V30: 4 | W30: 4 | X30: 6
E31: Increases surface/subsurface storage | F31: 1 | G31: 1 | H31: 0 | I31: 2 | J31: 0 | M31: Increases surface/subsurface storage | N31: 0.7868082586 | O31: 0.05049637717 | P31: 4 | Q31: 2 | R31: 2 | S31: 2 | T31: 1 | U31: 6 | V31: 4 | W31: 4 | X31: 6
E32: Creates channel and floodplain storage | F32: 2 | G32: 1 | H32: 0 | I32: 2 | J32: 1 | M32: Creates channel and floodplain storage | N32: 1.199443157 | O32: 0.07697877265 | P32: 7 | Q32: 2 | R32: 3 | S32: 3 | T32: 4 | U32: 6 | V32: 7 | W32: 7 | X32: 9
E33: Increases filtration | F33: 1 | G33: 2 | H33: 1 | I33: 0 | J33: 1 | M33: Increases filtration | N33: 1.16697747 | O33: 0.07489516517 | P33: 8 | Q33: 4 | R33: 5 | S33: 6 | T33: 3 | U33: 4 | V33: 8 | W33: 7 | X33: 7
E34: Increases sedimentation | F34: 0 | G34: 2 | H34: 0 | I34: 0 | J34: 0 | M34: Increases sedimentation | N34: 0.6052533945 | O34: 0.0388444114 | P34: 4 | Q34: 4 | R34: 4 | S34: 4 | T34: 0 | U34: 4 | V34: 4 | W34: 4 | X34: 4
E35: Increases aeration | F35: 1 | G35: 2 | H35: 1 | I35: 0 | J35: 1 | M35: Increases aeration | N35: 1.16697747 | O35: 0.07489516517 | P35: 8 | Q35: 4 | R35: 5 | S35: 6 | T35: 3 | U35: 4 | V35: 8 | W35: 7 | X35: 7
E36: Reduces in-stream erosion and sediment transport | F36: 1 | G36: 2 | H36: 1 | I36: 1 | J36: 1 | M36: Reduces in-stream erosion and sediment transport | N36: 1.302626697 | O36: 0.08360096414 | P36: 8 | Q36: 4 | R36: 5 | S36: 6 | T36: 3 | U36: 6 | V36: 8 | W36: 7 | X36: 8
E37: Increases shading | F37: 2 | G37: 0 | H37: 1 | I37: 0 | J37: 1 | M37: Increases shading | N37: 0.7746071833 | O37: 0.0497133273 | P37: 6 | Q37: 0 | R37: 1 | S37: 2 | T37: 4 | U37: 0 | V37: 6 | W37: 5 | X37: 5
E38: Enhances pollutant uptake and retention by riparian vegetation | F38: 1 | G38: 2 | H38: 1 | I38: 0 | J38: 0 | M38: Enhances pollutant uptake and retention by riparian vegetation | N38: 0.9672256792 | O38: 0.06207534322 | P38: 7 | Q38: 4 | R38: 4 | S38: 5 | T38: 1 | U38: 4 | V38: 7 | W38: 6 | X38: 6
E39: 0 - no significant relationship, 1 - minor or indirect relationship, 2 - significant or direct relationship
A40: Impacts Assessment
A41: User Inputs | E41: Default Relationship Tables | M41: Computations
A42: Outstanding Loads to be Mitigated with Out-of-Kind Options | E42: Watershed Processes vs. Stormwater Loads | M42: Watershed Processes Score Based on Impacts
A43: ='Hide-Calculations'!V37 -> Ave. Annual Loads | B43: ='Hide-Calculations'!V56 -> Remaining/Outstanding target load reduction (cu ft or lbs) | C43: ='Hide-Calculations'!V57 -> Outstanding equiv. urban area for out-of-kind (ac) | E43: Watershed Processes | F43: Volume Reduction | G43: TSS Reduction | H43: TP Reduction | I43: TN Reduction | M43: Watershed Processes | N43: Score | O43: Normalized Score
A44: ='Hide-Calculations'!W37 -> Volume | B44: ='Hide-Calculations'!W56 -> 0 | C44: ='Hide-Calculations'!W57 -> 0 | E44: Increases interception | F44: 1 | G44: 0 | H44: 0 | I44: 0 | M44: Increases interception | N44: =$C$44*F44+$C$45*G44+$C$46*H44+$C$47*I44 -> 0 | O44: =N44/SUM($N$44:$N$58) -> 0
A45: ='Hide-Calculations'!X37 -> TSS | B45: ='Hide-Calculations'!X56 -> 0 | C45: ='Hide-Calculations'!X57 -> 0 | E45: Increases infiltration | F45: 2 | G45: 2 | H45: 2 | I45: 1 | M45: Increases infiltration | N45: =$C$44*F45+$C$45*G45+$C$46*H45+$C$47*I45 -> 0.2466931786 | O45: =N45/SUM($N$44:$N$58) -> 0.1428571429
A46: ='Hide-Calculations'!Y37 -> TP | B46: ='Hide-Calculations'!Y56 -> 0.4009238749 | C46: ='Hide-Calculations'!Y57 -> 0.1233465893 | E46: Enhances evapotranspiration | F46: 1 | G46: 0 | H46: 0 | I46: 0 | M46: Enhances evapotranspiration | N46: 0 | O46: 0
A47: ='Hide-Calculations'!Z37 -> TN | B47: ='Hide-Calculations'!Z56 -> 0 | C47: ='Hide-Calculations'!Z57 -> 0 | E47: Enhances pollutant uptake and retention by upland vegetation | F47: 0 | G47: 0 | H47: 2 | I47: 2 | M47: Enhances pollutant uptake and retention by upland vegetation | N47: 0.2466931786 | O47: 0.1428571429
E48: Builds soil quality | F48: 0 | G48: 0 | H48: 1 | I48: 1 | M48: Builds soil quality | N48: 0.1233465893 | O48: 0.07142857143
E49: Reduces upland erosion | F49: 0 | G49: 2 | H49: 1 | I49: 1 | M49: Reduces upland erosion | N49: 0.1233465893 | O49: 0.07142857143
E50: Reduces overland flow | F50: 2 | G50: 2 | H50: 1 | I50: 1 | M50: Reduces overland flow | N50: 0.1233465893 | O50: 0.07142857143
E51: Increases surface/subsurface storage | F51: 2 | G51: 1 | H51: 1 | I51: 1 | M51: Increases surface/subsurface storage | N51: 0.1233465893 | O51: 0.07142857143
E52: Creates channel and floodplain storage | F52: 0 | G52: 1 | H52: 1 | I52: 0 | M52: Creates channel and floodplain storage | N52: 0.1233465893 | O52: 0.07142857143
E53: Increases filtration | F53: 0 | G53: 2 | H53: 1 | I53: 0 | M53: Increases filtration | N53: 0.1233465893 | O53: 0.07142857143
E54: Increases sedimentation | F54: 0 | G54: 2 | H54: 1 | I54: 0 | M54: Increases sedimentation | N54: 0.1233465893 | O54: 0.07142857143
E55: Increases aeration | F55: 0 | G55: 0 | H55: 0 | I55: 1 | M55: Increases aeration | N55: 0 | O55: 0
E56: Reduces in-stream erosion and sediment transport | F56: 0 | G56: 1 | H56: 1 | I56: 1 | M56: Reduces in-stream erosion and sediment transport | N56: 0.1233465893 | O56: 0.07142857143
E57: Increases shading | F57: 0 | G57: 0 | H57: 0 | I57: 0 | M57: Increases shading | N57: 0 | O57: 0
E58: Enhances pollutant uptake and retention by riparian vegetation | F58: 0 | G58: 0 | H58: 2 | I58: 2 | M58: Enhances pollutant uptake and retention by riparian vegetation | N58: 0.2466931786 | O58: 0.1428571429
E59: 0 - no significant relationship, 1 - minor or indirect relationship, 2 - significant or direct relationship
A60: Priorities Assessment
A61: User Inputs | E61: Default Relationship Tables | M61: Computations
A62: Stormwater Management Goals | E62: Watershed Processes vs. Management Goals | M62: Watershed Processes Score Based on Goals
A63: ='Hide-Calculations'!A22 -> STORMWATER MANAGEMENT GOALS | B63: User Value | E63: Watershed Process | F63: Reduce downstream flooding | G63: Reduce hydromodification impacts | H63: Reduce downstream TSS and particulate bound pollutant loads and concentrations | I63: Reduce downstream nutrient impacts | J63: Improve/minimize downstream temperature impact | M63: Watershed Processes | N63: Score | O63: Normalized Score
A64: ='Hide-Calculations'!A23 -> Reduce downstream flooding | B64: ='Hide-Calculations'!E23 -> 0 | E64: Increases interception | F64: 1 | G64: 2 | H64: 0 | I64: 0 | J64: 2 | M64: Increases interception | N64: =$B$64*F64+$B$65*G64+$B$66*H64+$B$67*I64+$B$68*J64 -> 0 | O64: =N64/SUM($N$64:$N$78) -> 0
A65: ='Hide-Calculations'!A24 -> Reduce hydromodification impacts | B65: ='Hide-Calculations'!E24 -> 0 | E65: Increases infiltration | F65: 2 | G65: 2 | H65: 2 | I65: 1 | J65: 2 | M65: Increases infiltration | N65: =$B$64*F65+$B$65*G65+$B$66*H65+$B$67*I65+$B$68*J65 -> 1 | O65: =N65/SUM($N$64:$N$78) -> 0.07142857143
A66: ='Hide-Calculations'!A25 -> Reduce downstream TSS and particulate bound pollutant loads and concentrations | B66: ='Hide-Calculations'!E25 -> 0 | E66: Enhances evapotranspiration | F66: 1 | G66: 1 | H66: 0 | I66: 0 | J66: 2 | M66: Enhances evapotranspiration | N66: 0 | O66: 0
A67: ='Hide-Calculations'!A26 -> Reduce downstream nutrient impacts | B67: ='Hide-Calculations'!E26 -> 1 | E67: Enhances pollutant uptake and retention by upland vegetation | F67: 0 | G67: 0 | H67: 0 | I67: 2 | J67: 0 | M67: Enhances pollutant uptake and retention by upland vegetation | N67: 2 | O67: 0.1428571429
A68: ='Hide-Calculations'!A27 -> Improve/minimize downstream temperature impact | B68: ='Hide-Calculations'!E27 -> 0 | E68: Builds soil quality | F68: 0 | G68: 0 | H68: 0 | I68: 1 | J68: 0 | M68: Builds soil quality | N68: 1 | O68: 0.07142857143
E69: Reduces upland erosion | F69: 0 | G69: 0 | H69: 2 | I69: 1 | J69: 0 | M69: Reduces upland erosion | N69: 1 | O69: 0.07142857143
E70: Reduces overland flow | F70: 2 | G70: 2 | H70: 1 | I70: 0 | J70: 0 | M70: Reduces overland flow | N70: 0 | O70: 0
E71: Increases surface/subsurface storage | F71: 2 | G71: 2 | H71: 1 | I71: 1 | J71: 1 | M71: Increases surface/subsurface storage | N71: 1 | O71: 0.07142857143
E72: Creates channel and floodplain storage | F72: 2 | G72: 2 | H72: 1 | I72: 1 | J72: 1 | M72: Creates channel and floodplain storage | N72: 1 | O72: 0.07142857143
E73: Increases filtration | F73: 0 | G73: 0 | H73: 2 | I73: 1 | J73: 0 | M73: Increases filtration | N73: 1 | O73: 0.07142857143
E74: Increases sedimentation | F74: 0 | G74: 0 | H74: 2 | I74: 1 | J74: 0 | M74: Increases sedimentation | N74: 1 | O74: 0.07142857143
E75: Increases aeration | F75: 0 | G75: 0 | H75: 0 | I75: 2 | J75: 1 | M75: Increases aeration | N75: 2 | O75: 0.1428571429
E76: Reduces in-stream erosion and sediment transport | F76: 0 | G76: 2 | H76: 2 | I76: 1 | J76: 0 | M76: Reduces in-stream erosion and sediment transport | N76: 1 | O76: 0.07142857143
E77: Increases shading | F77: 0 | G77: 0 | H77: 0 | I77: 0 | J77: 2 | M77: Increases shading | N77: 0 | O77: 0
E78: Enhances pollutant uptake and retention by riparian vegetation | F78: 0 | G78: 0 | H78: 0 | I78: 2 | J78: 0 | M78: Enhances pollutant uptake and retention by riparian vegetation | N78: 2 | O78: 0.1428571429
E79: 0 - no significant relationship, 1 - minor or indirect relationship, 2 - significant or direct relationship
A80: Out-of-Kind Mitigation Needs Assessment
A81: User Inputs | E81: Default Relationship Tables | M81: Computations
A82: Priority Factor Weighting | E82: Watershed Processes vs. Mitigation Options | M82: Watershed Processes Score Based on Conditions, Impacts, and Priorities
A83: Priority Factor | B83: User Value | E83: Watershed Process | F83: Stream Improvement Techniques | G83: Upland Stabilization | H83: Reducing Impervious Surface Connectivity | I83: Wetland Restoration/ Creation | M83: Watershed Process | N83: Stream Improvement Techniques | O83: Upland Stabilization | P83: Reducing Impervious Surface Connectivity | Q83: Wetland Restoration/ Creation
A84: Ecosystem services | B84: 1 | E84: Increases interception | F84: 0 | G84: 1 | H84: 0 | I84: 0 | M84: Increases interception | N84: =F84*($B$84*$O24+$B$85*$O44+$B$86*$O64) -> 0 | O84: =G84*($B$84*$O24+$B$85*$O44+$B$86*$O64) -> 0.0824529157 | P84: 0 | Q84: 0
A85: Outstanding loads | B85: 1 | E85: Increases infiltration | F85: 1 | G85: 1 | H85: 2 | I85: 1 | M85: Increases infiltration | N85: =F85*($B$84*$O25+$B$85*$O45+$B$86*$O65) -> 0.3161608357 | O85: =G85*($B$84*$O25+$B$85*$O45+$B$86*$O65) -> 0.3161608357 | P85: =H85*($B$84*$O25+$B$85*$O45+$B$86*$O65) -> 0.6323216714 | Q85: =I85*($B$84*$O25+$B$85*$O45+$B$86*$O65) -> 0.3161608357
A86: Stormwater management goals | B86: 1 | E86: Enhances evapotranspiration | F86: 1 | G86: 1 | H86: 2 | I86: 2 | M86: Enhances evapotranspiration | N86: 0.05547295947 | O86: 0.05547295947 | P86: 0.1109459189 | Q86: 0.1109459189
E87: Enhances pollutant uptake and retention by upland vegetation | F87: 0 | G87: 1 | H87: 2 | I87: 2 | M87: Enhances pollutant uptake and retention by upland vegetation | N87: 0 | O87: 0.3477896289 | P87: 0.6955792579 | Q87: 0.6955792579
E88: Builds soil quality | F88: 0 | G88: 2 | H88: 1 | I88: 0 | M88: Builds soil quality | N88: 0 | O88: 0.3966602047 | P88: 0.1983301023 | Q88: 0
E89: Reduces upland erosion | F89: 0 | G89: 2 | H89: 1 | I89: 0 | M89: Reduces upland erosion | N89: 0 | O89: 0.4355046161 | P89: 0.217752308 | Q89: 0
E90: Reduces overland flow | F90: 0 | G90: 1 | H90: 2 | I90: 0 | M90: Reduces overland flow | N90: 0 | O90: 0.1276845808 | P90: 0.2553691615 | Q90: 0
E91: Increases surface/subsurface storage | F91: 0 | G91: 1 | H91: 2 | I91: 2 | M91: Increase surface/subsurface storage | N91: 0 | O91: 0.19335352 | P91: 0.3867070401 | Q91: 0.3867070401
E92: Creates channel and floodplain storage | F92: 2 | G92: 0 | H92: 0 | I92: 2 | M92: Channel and floodplain storage | N92: 0.439671831 | O92: 0 | P92: 0 | Q92: 0.439671831
E93: Increases filtration | F93: 1 | G93: 0 | H93: 0 | I93: 1 | M93: Increases filtration | N93: 0.217752308 | O93: 0 | P93: 0 | Q93: 0.217752308
E94: Increases sedimentation | F94: 1 | G94: 0 | H94: 0 | I94: 2 | M94: Increases sedimentation | N94: 0.1817015543 | O94: 0 | P94: 0 | Q94: 0.3634031085
E95: Increases aeration | F95: 1 | G95: 0 | H95: 0 | I95: 0 | M95: Increases aeration | N95: 0.217752308 | O95: 0 | P95: 0 | Q95: 0
E96: Reduces in-stream erosion and sediment transport | F96: 2 | G96: 1 | H96: 1 | I96: 2 | M96: Reduces in-stream erosion and sediment transport | N96: 0.452916214 | O96: 0.226458107 | P96: 0.226458107 | Q96: 0.452916214
E97: Increases shading | F97: 2 | G97: 0 | H97: 0 | I97: 0 | M97: Increases shading | N97: 0.09942665461 | O97: 0 | P97: 0 | Q97: 0
E98: Enhances pollutant uptake and retention by riparian vegetation | F98: 1 | G98: 0 | H98: 0 | I98: 2 | M98: Enhances pollutant uptake and retention by riparian vegetation | N98: 0.3477896289 | O98: 0 | P98: 0 | Q98: 0.6955792579
E99: 0 - no significant relationship, 1 - minor or indirect relationship, 2 - significant or direct relationship | M99: TOTAL | N99: =SUM(N84:N98) -> 2.328644294 | O99: =SUM(O84:O98) -> 2.181537368 | P99: 2.723463567 | Q99: 3.678715772
M100: Normalized Mitigation Options Score (Default Priority Score) | N100: =N99/SUM($N$99:$Q$99) -> 0.2133950933 | O100: =O99/SUM($N$99:$Q$99) -> 0.1999143327 | P100: =P99/SUM($N$99:$Q$99) -> 0.2495760145 | Q100: =Q99/SUM($N$99:$Q$99) -> 0.3371145595
M101: Normalized User Priority Score | N101: ='6-Out-of-Kind Options'!E27 -> 0.2133950933 | O101: ='6-Out-of-Kind Options'!E28 -> 0.1999143327 | P101: ='6-Out-of-Kind Options'!E29 -> 0.2495760145 | Q101: ='6-Out-of-Kind Options'!E30 -> 0.3371145595
A102: Out-of-Kind Mitigation Opportunity Assessment
A103: User Inputs | E103: Default Relationship Tables | M103: Computations
A104: Mitigation Options and Surrogate Land Use Values | E104: Surrogate Land Use vs. Percent Thresholds | M104: Weighted Mitigation Options (Needs and Opportunities)
A105: Mitigation Option | B105: Surrogate Land Use | C105: Percent | E105: Surrogate Land Use | F105: 10th Percentile Threshold (%) | G105: Weight | H105: 50th Percentile Threshold (%) | I105: Weight | J105: 90th Percentile Threshold (%) | K105: Weight | M105: MITIGATION MEASURES | N105: Priority Score | O105: Normalized Priority Score | P105: Opportunity Score | Q105: Normalized Opportunity Score (Default) | R105: Normalized User Opportunity Score | S105: Weighted Default Score | T105: Normalized Default Final Score | U105: Weighted User Score | V105: Normalized User Final Score
A106: Stream improvement techniques | B106: Natural land cover in 30 m stream buffer | C106: ='Hide-Calculations'!D47 -> 60.9634 | E106: Natural land cover in 30 m stream buffer | F106: ='Hide-HUC-Stats-Lookup'!V4 -> 86.24925 | G106: 0.6 | H106: ='Hide-HUC-Stats-Lookup'!W4 -> 95.5674 | I106: 0.4 | J106: ='Hide-HUC-Stats-Lookup'!X4 -> 98.73165 | K106: 0.2 | M106: Stream improvement techniques | N106: =N99 -> 2.328644294 | O106: =N100 -> 0.2133950933 | P106: =IF(C106=0,0, IF(C106/100>J106,K106, IF(AND(C106/100<J106,C106/100>H106),I106, IF(AND(C106/100<H106,C106/100>F106),G106,0.8)))) -> 0.8 | Q106: =P106/SUM($P$106:$P$109) -> 0.4444444444 | R106: ='6-Out-of-Kind Options'!G27 -> 0.4444444444 | S106: =P106*N100 -> 0.1707160746 | T106: =S106/SUM($S$106:$S$109) -> 0.3481706971 | U106: =N101*R106 -> 0.09484226369 | V106: =U106/SUM($U$106:$U$109) -> 0.3481706971
A107: Upland stabilization | B107: Natural land cover that is disturbed | C107: ='Hide-Calculations'!D48 -> 0 | E107: Natural land cover that is disturbed | F107: =(C110/100)*'Hide-HUC-Stats-Lookup'!V7 -> 2.8306275 | G107: 0.4 | H107: =(C110/100)*'Hide-HUC-Stats-Lookup'!W7 -> 3.565495 | I107: 0.6 | J107: =(C110/100)*'Hide-HUC-Stats-Lookup'!X7 -> 4.0007775 | K107: 0.8 | M107: Upland stabilization | N107: =O99 -> 2.181537368 | O107: =O100 -> 0.1999143327 | P107: =IF(C107=0,0, IF(C107/100>J107,K107, IF(AND(C107/100<J107,C107/100>H107),I107, IF(AND(C107/100<H107,C107/100>F107),G107,0.2)))) -> 0 | Q107: =P107/SUM($P$106:$P$109) -> 0 | R107: ='6-Out-of-Kind Options'!G28 -> 0 | S107: =P107*O100 -> 0 | T107: =S107/SUM($S$106:$S$109) -> 0 | U107: =O101*R107 -> 0 | V107: =U107/SUM($U$106:$U$109) -> 0
A108: Reducing impervious surface connectivity | B108: Imperviousness | C108: ='Hide-Calculations'!C41 -> 17.7139 | E108: Imperviousness | F108: ='Hide-HUC-Stats-Lookup'!V10 -> 0.19155 | G108: 0.4 | H108: ='Hide-HUC-Stats-Lookup'!W10 -> 0.7189 | I108: 0.6 | J108: ='Hide-HUC-Stats-Lookup'!X10 -> 2.4445 | K108: 0.8 | M108: Reducing impervious surface connectivity | N108: =P99 -> 2.723463567 | O108: =P100 -> 0.2495760145 | P108: =IF(C108=0,0, IF(C108/100>J108,K108, IF(AND(C108/100<J108,C108/100>H108),I108, IF(AND(C108/100<H108,C108/100>F108),G108,0.2)))) -> 0.2 | Q108: =P108/SUM($P$106:$P$109) -> 0.1111111111 | R108: ='6-Out-of-Kind Options'!G29 -> 0.1111111111 | S108: =P108*P100 -> 0.04991520289 | T108: =S108/SUM($S$106:$S$109) -> 0.1018006712 | U108: =P101*R108 -> 0.02773066827 | V108: =U108/SUM($U$106:$U$109) -> 0.1018006712
A109: Wetland restoration/ creation | B109: Potentially restorable wetlands | C109: ='Hide-Calculations'!D46 -> 1 | E109: Potentially restorable wetlands | F109: ='Hide-HUC-Stats-Lookup'!V13 -> 0 | G109: 0.4 | H109: ='Hide-HUC-Stats-Lookup'!W13 -> 0 | I109: 0.6 | J109: ='Hide-HUC-Stats-Lookup'!X13 -> 0 | K109: 0.8 | M109: Wetland restoration/ creation | N109: =Q99 -> 3.678715772 | O109: =Q100 -> 0.3371145595 | P109: =IF(C109=0,0, IF(C109/100>J109,K109, IF(AND(C109/100<J109,C109/100>H109),I109, IF(AND(C109/100<H109,C109/100>F109),G109,0.2)))) -> 0.8 | Q109: =P109/SUM($P$106:$P$109) -> 0.4444444444 | R109: ='6-Out-of-Kind Options'!G30 -> 0.4444444444 | S109: =P109*Q100 -> 0.2696916476 | T109: =S109/SUM($S$106:$S$109) -> 0.5500286317 | U109: =Q101*R109 -> 0.1498286931 | V109: =U109/SUM($U$106:$U$109) -> 0.5500286317
A110: Natural land cover disturbance threshold | B110: n/a | C110: 5 | E110: Threshold percentile values are calculated from the 10th, 50th, and 90th surrogate land use distributions of all HUC12 watersheds within their parent HUC4 watershed. Natural land cover that is disturbed is based on the percent disturbance threshold times the natural area percentiles, as there is not a national disturbed area data set to utilize for this calculation. The priority value is the relative importance (weight) of the surrogate land use value from the user's HUC12 watershed when this value lies between thresholds.
E112: Out-of-Kind Mitigation Reporting | L112: Out-of-Kind Mitigation Reporting
E114: Mitigation Measures by Ecosystem Services | M114: Mitigation Measure Scores by Ecosystem Services - Normalized
E115: ECOSYSTEM SERVICE | F115: MITIGATION MEASURE | M115: ECOSYSTEM SERVICE | N115: MITIGATION MEASURE
F116: Stream Improvement Techniques | G116: Upland Stabilization | H116: Reducing Impervious Surface Connectivity | I116: Wetland Restoration / Creation | N116: Stream Improvement Techniques | O116: Upland Stabilization | P116: Reducing Impervious Surface Connectivity | Q116: Wetland Restoration / Creation
E117: Biodiversity Conservation | F117: =SUMPRODUCT(F$24:F$38,$F$84:$F$98,$O$24:$O$38) -> 1.043184083 | G117: =SUMPRODUCT(F$24:F$38,$G$84:$G$98,$O$24:$O$38) -> 0.6967099304 | H117: =SUMPRODUCT(F$24:F$38,$H$84:$H$98,$O$24:$O$38) -> 0.7538086913 | I117: =SUMPRODUCT(F$24:F$38,$I$84:$I$98,$O$24:$O$38) -> 1.112127352 | M117: Biodiversity Conservation | N117: =F117/SUM($F117:$I117) -> 0.2893048387 | O117: =G117/SUM($F117:$I117) -> 0.193217628 | P117: 0.2090527506 | Q117: 0.3084247828
E118: Clean and Plentiful Water | F118: =SUMPRODUCT(G$24:G$38,$F$84:$F$98,$O$24:$O$38) -> 1.249004774 | G118: =SUMPRODUCT(G$24:G$38,$G$84:$G$98,$O$24:$O$38) -> 1.206563708 | H118: =SUMPRODUCT(G$24:G$38,$H$84:$H$98,$O$24:$O$38) -> 1.465229787 | I118: =SUMPRODUCT(G$24:G$38,$I$84:$I$98,$O$24:$O$38) -> 1.70582104 | M118: Clean and Plentiful Water | N118: =F118/SUM($F118:$I118) -> 0.2219813898 | O118: 0.2144384828 | P118: =H118/SUM($F118:$I118) -> 0.2604103293 | Q118: 0.3031697981
E119: Food, Fuel, and Materials | F119: =SUMPRODUCT(H$24:H$38,$F$84:$F$98,$O$24:$O$38) -> 0.7377174587 | G119: =SUMPRODUCT(H$24:H$38,$G$84:$G$98,$O$24:$O$38) -> 0.8305415903 | H119: =SUMPRODUCT(H$24:H$38,$H$84:$H$98,$O$24:$O$38) -> 0.8565661798 | I119: =SUMPRODUCT(H$24:H$38,$I$84:$I$98,$O$24:$O$38) -> 0.8050946281 | M119: Food, Fuel, and Materials | N119: 0.2284011652 | O119: 0.2571399995 | P119: 0.2651973478 | Q119: 0.2492614875
E120: Natural Hazard Mitigation | F120: =SUMPRODUCT(I$24:I$38,$F$84:$F$98,$O$24:$O$38) -> 0.6788672617 | G120: =SUMPRODUCT(I$24:I$38,$G$84:$G$98,$O$24:$O$38) -> 0.6657618114 | H120: =SUMPRODUCT(I$24:I$38,$H$84:$H$98,$O$24:$O$38) -> 0.9181109958 | I120: =SUMPRODUCT(I$24:I$38,$I$84:$I$98,$O$24:$O$38) -> 0.8808527703 | M120: Natural Hazard Mitigation | N120: 0.2159526683 | O120: 0.2117837282 | P120: 0.2920578595 | Q120: 0.280205744
E121: Recreation, Culture & Aesthetics | F121: =SUMPRODUCT(J$24:J$38,$F$84:$F$98,$O$24:$O$38) -> 0.7277245394 | G121: =SUMPRODUCT(J$24:J$38,$G$84:$G$98,$O$24:$O$38) -> 0.58413821 | H121: =SUMPRODUCT(J$24:J$38,$H$84:$H$98,$O$24:$O$38) -> 0.5286652505 | I121: =SUMPRODUCT(J$24:J$38,$I$84:$I$98,$O$24:$O$38) -> 0.6088756791 | M121: Recreation, Culture & Aesthetics | N121: 0.297102738 | O121: 0.2384818048 | P121: 0.2158342682 | Q121: 0.2485811891
E124: Mitigation Measures by Beneficial Uses | M124: Mitigation Measure Scores by Beneficial Uses - Normalized
E125: BENEFICIAL USE | F125: MITIGATION MEASURE | M125: BENEFICIAL USE | N125: MITIGATION MEASURE
F126: Stream Improvement Techniques | G126: Upland Stabilization | H126: Reducing Impervious Surface Connectivity | I126: Wetland Restoration / Creation | N126: Stream Improvement Techniques | O126: Upland Stabilization | P126: Reducing Impervious Surface Connectivity | Q126: Wetland Restoration / Creation
E127: Aquatic life / warm and cold habitats | F127: =SUMPRODUCT(F$84:F$98,$P$24:$P$38) -> 84 | G127: =SUMPRODUCT(G$84:G$98,$P$24:$P$38) -> 73 | H127: 82 | I127: 103 | M127: Aquatic life / warm and cold habitats | N127: =IF(F127=0,"n/a",F127/SUM($F127:$I127)) -> 0.2456140351 | O127: =IF(G127=0,"n/a",G127/SUM($F127:$I127)) -> 0.2134502924 | P127: 0.2397660819 | Q127: 0.3011695906
E128: Drinking water supply | F128: =SUMPRODUCT(F$84:F$98,$Q$24:$Q$38) -> 34 | G128: =SUMPRODUCT(G$84:G$98,$Q$24:$Q$38) -> 34 | H128: 42 | I128: 52 | M128: Drinking water supply | N128: =IF(F128=0,"n/a",F128/SUM($F128:$I128)) -> 0.2098765432 | O128: 0.2098765432 | P128: 0.2592592593 | Q128: 0.3209876543
E129: Primary and secondary contact recreation | F129: =SUMPRODUCT(F$84:F$98,$R$24:$R$38) -> 44 | G129: =SUMPRODUCT(G$84:G$98,$R$24:$R$38) -> 42 | H129: 49 | I129: 60 | M129: Primary and secondary contact recreation | N129: 0.2256410256 | O129: 0.2153846154 | P129: 0.2512820513 | Q129: 0.3076923077
E130: Fish consumption (edible seafood) | F130: =SUMPRODUCT(F$84:F$98,$S$24:$S$38) -> 54 | G130: =SUMPRODUCT(G$84:G$98,$S$24:$S$38) -> 53 | H130: 60 | I130: 71 | M130: Fish consumption (edible seafood) | N130: 0.2268907563 | O130: 0.2226890756 | P130: 0.2521008403 | Q130: 0.2983193277
E131: Aesthetics | F131: =SUMPRODUCT(F$84:F$98,$T$24:$T$38) -> 35 | G131: =SUMPRODUCT(G$84:G$98,$T$24:$T$38) -> 26 | H131: 25 | I131: 32 | M131: Aesthetics | N131: 0.2966101695 | O131: 0.2203389831 | P131: 0.2118644068 | Q131: 0.2711864407
E132: Industrial uses | F132: =SUMPRODUCT(F$84:F$98,$U$24:$U$38) -> 50 | G132: =SUMPRODUCT(G$84:G$98,$U$24:$U$38) -> 52 | H132: 68 | I132: 76 | M132: Industrial uses | N132: 0.2032520325 | O132: 0.2113821138 | P132: 0.2764227642 | Q132: 0.3089430894
E133: Wildlife / terrestrial life | F133: =SUMPRODUCT(F$84:F$98,$V$24:$V$38) -> 84 | G133: =SUMPRODUCT(G$84:G$98,$V$24:$V$38) -> 73 | H133: 82 | I133: 103 | M133: Wildlife / terrestrial life | N133: 0.2456140351 | O133: 0.2134502924 | P133: 0.2397660819 | Q133: 0.3011695906
E134: Rare and endangered species | F134: =SUMPRODUCT(F$84:F$98,$W$24:$W$38) -> 74 | G134: =SUMPRODUCT(G$84:G$98,$W$24:$W$38) -> 62 | H134: 71 | I134: 92 | M134: Rare and endangered species | N134: 0.2474916388 | O134: 0.2073578595 | P134: 0.237458194 | Q134: 0.3076923077
E135: Wetland Habitat | F135: =SUMPRODUCT(F$84:F$98,$X$24:$X$38) -> 82 | G135: =SUMPRODUCT(G$84:G$98,$X$24:$X$38) -> 71 | H135: 84 | I135: 104 | M135: Wetland Habitat | N135: 0.2404692082 | O135: 0.2082111437 | P135: 0.2463343109 | Q135: 0.3049853372
M136: n/a indicates beneficial use not identified as a designated use for the receiving water
E138: Mitigation Measures by Impact Offset | M138: Mitigation Measure Scores by Impact Offset - Normalized
E139: OUTSTANDING IMPACTS TO BE ADDRESSED | F139: MITIGATION MEASURE | M139: OUTSTANDING IMPACTS TO BE ADDRESSED | N139: MITIGATION MEASURE
F140: Stream Improvement Techniques | G140: Upland Stabilization | H140: Reducing Impervious Surface Connectivity | I140: Wetland Restoration / Creation | N140: Stream Improvement Techniques | O140: Upland Stabilization | P140: Reducing Impervious Surface Connectivity | Q140: Wetland Restoration / Creation
E141: Runoff volume | F141: =$C$44*SUMPRODUCT($F$44:$F$58,F$84:F$98) -> 0 | G141: =$C$44*SUMPRODUCT($F$44:$F$58,G$84:G$98) -> 0 | H141: 0 | I141: 0 | M141: =E141 -> Runoff volume | N141: =IF(F141=0,"n/a",F141/SUM($F141:$I141)) -> n/a | O141: =IF(G141=0,"n/a",G141/SUM($F141:$I141)) -> n/a | P141: n/a | Q141: n/a
E142: Total suspended solids | F142: =$C$45*SUMPRODUCT($G$44:$G$58,F$84:F$98) -> 0 | G142: =$C$45*SUMPRODUCT($G$44:$G$58,G$84:G$98) -> 0 | H142: 0 | I142: 0 | M142: =E142 -> Total suspended solids | N142: =IF(F142=0,"n/a",F142/SUM($F142:$I142)) -> n/a | O142: n/a | P142: n/a | Q142: n/a
E143: Total phosphorus | F143: =$C$46*SUMPRODUCT($H$44:$H$58,F$84:F$98) -> 1.233465893 | G143: =$C$46*SUMPRODUCT($H$44:$H$58,G$84:G$98) -> 1.356812482 | H143: 1.850198839 | I143: 2.343585197 | M143: Total phosphorus | N143: 0.1818181818 | O143: 0.2 | P143: 0.2727272727 | Q143: 0.3454545455
E144: Total nitrogen | F144: =$C$47*SUMPRODUCT($I$44:$I$58,F$84:F$98) -> 0 | G144: =$C$47*SUMPRODUCT($I$44:$I$58,G$84:G$98) -> 0 | H144: 0 | I144: 0 | M144: Total nitrogen | N144: n/a | O144: n/a | P144: n/a | Q144: n/a
M145: n/a indicates no outstanding impact from runoff volume or pollutant to be mitigated
E147: Mitigation Measures by Management Goals | M147: Mitigation Measure Scores by Management Goals - Normalized
E148: STORMWATER MANAGEMENT GOALS | F148: MITIGATION MEASURE | M148: STORMWATER MANAGEMENT GOALS | N148: MITIGATION MEASURE
F149: Stream Improvement Techniques | G149: Upland Stabilization | H149: Reducing Impervious Surface Connectivity | I149: Wetland Restoration / Creation | N149: Stream Improvement Techniques | O149: Upland Stabilization | P149: Reducing Impervious Surface Connectivity | Q149: Wetland Restoration / Creation
E150: Reduce downstream flooding | F150: =$B$64*SUMPRODUCT($F$64:$F$78,F$84:F$98) -> 0 | G150: =$B$64*SUMPRODUCT($F$64:$F$78,G$84:G$98) -> 0 | H150: 0 | I150: 0 | M150: =E150 -> Reduce downstream flooding | N150: =IF(F150=0,"n/a",F150/SUM($F150:$I150)) -> n/a | O150: n/a | P150: n/a | Q150: n/a
E151: Reduce hydromodification impacts | F151: =$B$65*SUMPRODUCT($G$64:$G$78,F$84:F$98) -> 0 | G151: =$B$65*SUMPRODUCT($G$64:$G$78,G$84:G$98) -> 0 | H151: 0 | I151: 0 | M151: =E151 -> Reduce hydromodification impacts | N151: n/a | O151: n/a | P151: n/a | Q151: n/a
E152: Reduce downstream TSS and particulate bound pollutant loads and concentrations | F152: =$B$66*SUMPRODUCT($H$64:$H$78,F$84:F$98) -> 0 | G152: =$B$66*SUMPRODUCT($H$64:$H$78,G$84:G$98) -> 0 | H152: 0 | I152: 0 | M152: =E152 -> Reduce downstream TSS and particulate bound pollutant loads and concentrations | N152: n/a | O152: n/a | P152: n/a | Q152: n/a
E153: Reduce downstream nutrient impacts | F153: =$B$67*SUMPRODUCT($I$64:$I$78,F$84:F$98) -> 11 | G153: =$B$67*SUMPRODUCT($I$64:$I$78,G$84:G$98) -> 9 | H153: 11 | I153: 18 | M153: =E153 -> Reduce downstream nutrient impacts | N153: 0.2244897959 | O153: 0.1836734694 | P153: 0.2244897959 | Q153: 0.3673469388
E154: Improve/minimize downstream temperature impact | F154: =$B$68*SUMPRODUCT($J$64:$J$78,F$84:F$98) -> 0 | G154: =$B$68*SUMPRODUCT($J$64:$J$78,G$84:G$98) -> 0 | H154: 0 | I154: 0 | M154: =E154 -> Improve/minimize downstream temperature impact | N154: n/a | O154: n/a | P154: n/a | Q154: n/a
M155: n/a indicates stormwater management goal was not indicated as a priority by the user

Sheet Hide-Calculations (hidden)
A1: INPUTS | I1: Lookups | V1: Computations
A2: 0-ToolOverview&Applicability-T0 | I2: L1: Rank Labels | M2: Unit conversions | AJ2: Impervious Area Runoff Coefficient: | AK2: =INDEX($M$47:$P$56,MATCH(100,$L$47:$L$56,-1),MATCH($D$40,$M$45:$P$45,-1)) -> 0.787
A3: Q1a. Is there regulatory, institutional or political acceptance for offsite mitigation in this watershed? | B3: 2 | C3: 1 | D3: A | I3: Rank | J3: Label 1 (H-L) | K3: Label 1 (H-L) | M3: 1 acre | N3: 43560 | O3: sq.ft | V3: STEP 1a - Compute Watershed Pre-BMP Loads | AJ3: Unit Loads per Impervious Acre by Land Use | AO3: Watershed Impervious Acre Loads by Land Use | AT3: Watershed Loads per Impervious Acre
A4: Q2a. Are there related ongoing regional opportunities (e.g., existing regional stormwater treatment facilities) or existing watershed planning efforts that have identified regional stormwater treatment priority locations downgradient of the project? | B4: 2 | C4: 0.75 | D4: B | M4: 1 mg/L | N4: 1 | O4: g/m3 | V4: Project Landuses and Areas | W4: Imperv % | X4: Area | Y4: Ann. Precip | Z4: Long-Term Average Runoff Coeff | AB4: Runoff Vol | AC4: Pre-BMP Loads (lbs) | AF4: Pre-BMP Concs (mg/l) | AJ4: Runoff Vol | AK4: Pre-BMP Loads (lbs/ac) | AO4: Runoff Vol | AP4: Pre-BMP Loads (lbs) | AT4: Runoff Vol | AU4: Pre-BMP Loads (lbs/ac)
A5: Q2b. Is there physical site constraints to BMP implementation within the project ROW (e.g., limited space, steep slopes, shallow water table, etc.)? | B5: 2 | C5: 0.5 | D5: C | I5: 1 | J5: H | K5: H | M5: 1 in | N5: 0.0254 | O5: m | X5: sq.ft | Y5: in | AB5: cu ft | AC5: TSS | AD5: TP | AE5: TN | AF5: TSS | AG5: TP | AH5: TN | AJ5: cu ft/ac | AK5: TSS | AL5: TP | AM5: TN | AO5: cu ft | AP5: TSS | AQ5: TP | AR5: TN | AT5: cu ft/ac | AU5: TSS | AV5: TP | AW5: TN
C6: 0.25 | D6: D | I6: 2 | J6: H | K6: H | M6: 1 sq.mile | N6: 640 | O6: acres | V6: Highway | W6: =Q19 -> 90 | X6: 0 | Y6: =VLOOKUP($D$49,$I$47:$P$56,3,FALSE) -> 40.9106 | Z6: =INDEX($M$47:$P$56,MATCH(ROUND(W6,-1),$L$47:$L$56,-1),MATCH($D$40,$M$45:$P$45,-1)) -> 0.714 | AB6: =X6*Y6*Z6/$N$7 -> 0 | AC6: =$AB6*K26*$N$8 -> 0 | AD6: =$AB6*M26*$N$8 -> 0 | AE6: =$AB6*O26*$N$8 -> 0 | AJ6: =43560*Y6*$AK$2/$N$7 -> 116873.8112 | AK6: =$AJ6*K26*$N$8 -> 321.0325219 | AL6: =$AJ6*M26*$N$8 -> 0.8755432416 | AM6: =$AJ6*O26*$N$8 -> 7.51507949 | AO6: =AJ6*($X6/43560)*($W6/100) -> 0 | AP6: =AK6*($X6/43560)*($W6/100) -> 0 | AQ6: 0 | AR6: 0 | AT6: =AO12*43560/($X$12*$W$12/100) -> 116873.8112 | AU6: =AP12*43560/($X$12*$W$12/100) -> 1006.45977 | AV6: =AQ12*43560/($X$12*$W$12/100) -> 3.250384767 | AW6: =AR12*43560/($X$12*$W$12/100) -> 23.83192563
D7: E | I7: 3 | J7: M | K7: M | M7: 1 ft | N7: 12 | O7: in | V7: Urban area | W7: =VLOOKUP(V7,$I$19:$Q$25,9,FALSE) -> 75 | X7: =$D$38*$N$6*$N$3*F42 -> 535035787.6 | Y7: 40.9106 | Z7: =INDEX($M$47:$P$56,MATCH(ROUND(W7,-1),$L$47:$L$56,-1),MATCH($D$40,$M$45:$P$45,-1)) -> 0.64 | AB7: 1167393872 | AC7: =$AB7*K20*$N$8 -> 10130044.59 | AD7: =$AB7*M20*$N$8 -> 32795.10838 | AE7: =$AB7*O20*$N$8 -> 239768.6813 | AJ7: 116873.8112 | AK7: =$AJ7*K20*$N$8 -> 1014.170922 | AL7: =$AJ7*M20*$N$8 -> 3.283287156 | AM7: =$AJ7*O20*$N$8 -> 24.00447721 | AO7: =AJ7*($X7/43560)*($W7/100) -> 1076647239 | AP7: =AK7*($X7/43560)*($W7/100) -> 9342591.904 | AQ7: =AL7*($X7/43560)*($W7/100) -> 30245.80113 | AR7: =AM7*($X7/43560)*($W7/100) -> 221130.4127
A8: Q2c. Is access for BMP operation and maintenance a potential obstacle to BMP implementation? | B8: 2 | C8: 0.1 | D8: F | I8: 4 | J8: L | K8: L | M8: 1 mg/L | N8: =0.0000624279606 -> 6.24279606e-05 | O8: lbs/ft3 | V8: Natural land cover | W8: =VLOOKUP(V8,$I$19:$Q$25,9,FALSE) -> 1 | X8: =$D$38*$N$6*$N$3*(F43-F48) -> 565116207.1 | Y8: 40.9106 | Z8: =INDEX($M$47:$P$56,MATCH(W8,$L$47:$L$56,-1),MATCH($D$40,$M$45:$P$45,-1)) -> 0.112 | AB8: 215779602.3 | AC8: =$AB8*K21*$N$8 -> 841917.5319 | AD8: =$AB8*M21*$N$8 -> 1616.481661 | AE8: =$AB8*O21*$N$8 -> 21306.12634 | AJ8: 116873.8112 | AK8: =$AJ8*K21*$N$8 -> 456.012105 | AL8: =$AJ8*M21*$N$8 -> 0.8755432416 | AM8: =$AJ8*O21*$N$8 -> 11.54014634 | AO8: 15162370.27 | AP8: 59159.74086 | AQ8: 113.5867024 | AR8: 1497.135842
A9: % Applicability | B9: =IF(((SUM(B3:B8)-4)/4) = 0, 0.1, (SUM(B3:B8)-4)/4) -> 1 | C9: Grade | D9: =INDEX(C3:D8,MATCH(B9,C3:C8,-1),2) -> A | M9: 1 ton | N9: 2000 | O9: lbs | V9: *Natural land cover (Disturbed - RUSLE for TSS) | W9: =VLOOKUP(V9,$I$19:$Q$25,9,FALSE) -> 1 | X9: =$D$38*$N$6*$N$3*F48 -> 0 | Y9: 40.9106 | Z9: =INDEX($M$47:$P$56,MATCH(W9,$L$47:$L$56,-1),MATCH($D$40,$M$45:$P$45,-1)) -> 0.112 | AB9: 0 | AC9: =$AB9*K22*$N$8 -> 0 | AD9: =$AB9*M22*$N$8 -> 0 | AE9: =$AB9*O22*$N$8 -> 0 | AJ9: 116873.8112 | AK9: 1384.694969 | AL9: 8.308169817 | AM9: 110.7755976 | AO9: 0 | AP9: 0 | AQ9: 0 | AR9: 0
A10: 1-ProjectDetails-T1 | V10: Cropland | W10: =VLOOKUP(V10,$I$19:$Q$25,9,FALSE) -> 3 | X10: =$D$38*$N$6*$N$3*F44 -> 3438908.491 | Y10: 40.9106 | Z10: =INDEX($M$47:$P$56,MATCH(W10,$L$47:$L$56,-1),MATCH($D$40,$M$45:$P$45,-1)) -> 0.112 | AB10: 1313086.224 | AC10: =$AB10*K23*$N$8 -> 16918.26343 | AD10: =$AB10*M23*$N$8 -> 72.60491847 | AE10: =$AB10*O23*$N$8 -> 340.3257966 | AJ10: 116873.8112 | AK10: 1505.843173 | AL10: 6.462342974 | AM10: 30.29136409 | AO10: 276803.2656 | AP10: 3566.430354 | AQ10: 15.30537612 | AR10: 71.74189338
A11: PROJECT CHARACTERISTICS & VARIABLES | B11: UNITS | C11: VALUE | D11: ='5-In-Kind Off-Site Options'!G6 -> % IMPERV | V11: Pasture | W11: =VLOOKUP(V11,$I$19:$Q$25,9,FALSE) -> 2 | X11: =$D$38*$N$6*$N$3*F45 -> 9334221.342 | Y11: 40.9106 | Z11: =INDEX($M$47:$P$56,MATCH(W11,$L$47:$L$56,-1),MATCH($D$40,$M$45:$P$45,-1)) -> 0.112 | AB11: 3564106.893 | AC11: =$AB11*K24*$N$8 -> 24949.23441 | AD11: =$AB11*M24*$N$8 -> 80.54497273 | AE11: =$AB11*O24*$N$8 -> 654.1497785 | AJ11: 116873.8112 | AK11: 818.1326205 | AL11: 2.641222112 | AM11: 21.45080942 | AO11: 500884.308 | AP11: 3506.258479 | AQ11: 11.31944527 | AR11: 91.93140638
A12: Project area | B12: acres | C12: ='1-Project Details'!J9 -> 10 | D12: ='1-Project Details'!K9 -> NA | V12: Combined | W12: =SUMPRODUCT(W6:W11,X6:X11)/SUM(X6:X11) -> 36.58986984 | X12: =SUM(X6:X11) -> 1112925125 | Y12: 40.9106 | AB12: =SUM(AB6:AB11) -> 1388050667 | AC12: =SUM(AC6:AC11) -> 11013829.62 | AD12: =SUM(AD6:AD11) -> 34564.73993 | AE12: =SUM(AE6:AE11) -> 262069.2832 | AF12: =IF(AB12=0,0,(AC12/AB12)/$N$8) -> 127.1024398 | AG12: =IF(AB12=0,0,AD12/AB12/$N$8) -> 0.3988860303 | AH12: =IF(AB12=0,0,AE12/AB12/$N$8) -> 3.024347246 | AO12: =SUM(AO6:AO11) -> 1092587297 | AP12: =SUM(AP6:AP11) -> 9408824.334 | AQ12: =SUM(AQ6:AQ11) -> 30386.01265 | AR12: =SUM(AR6:AR11) -> 222791.2218
A13: Annual average daily traffic (AADT) | B13: NA | C13: ='1-Project Details'!J10 -> 1 | D13: ='1-Project Details'!K10 -> NA | I13: L2: Default Drainage Area Land Use Concentrations
A14: Project area average hydrologic soil group | B14: NA | C14: ='1-Project Details'!J11 -> 3 | D14: ='1-Project Details'!K11 -> NA | E14: =VLOOKUP(C14,'Hide-DropDownLists'!N4:O8,2,FALSE) -> C | I14: CHARACTERISTIC CONSTITUENT CONCS (mg/L) | J14: TSS | L14: TP | N14: TN | P14: % IMPERV
A15: Highway replaced by project (includes existing highway) | B15: acres | C15: ='1-Project Details'!J12 -> 5 | D15: ='1-Project Details'!K12 -> 0.9 | J15: DEFAULT | K15: VALUE | L15: DEFAULT | M15: VALUE | N15: DEFAULT | O15: VALUE | P15: DEFAULT | Q15: VALUE
A16: Urban area replaced by project | B16: acres | C16: ='1-Project Details'!J13 -> 1 | D16: ='1-Project Details'!K13 -> 0.75 | E16: =C16/$C$12 -> 0.1 | I16: Highway (ADT 0-30K) | J16: 44 | K16: ='9-Advanced'!E17 -> 44 | L16: 0.12 | M16: ='9-Advanced'!G17 -> 0.12 | N16: 1.03 | O16: ='9-Advanced'!I17 -> 1.03 | P16: 90 | Q16: ='9-Advanced'!K17 -> 90 | R16: =IF(C13=1,Q16,IF(C13=2,Q17,Q18)) -> 90 | V16: STEP 1b - Compute Onsite Pre- and Post-BMP Loads | AL16: BMP Effluent Loads (cu ft or lbs) | BF16: Post-BMP Loads (cu ft or lbs)
A17: Natural land cover replaced by project | B17: acres | C17: ='1-Project Details'!J14 -> 1 | D17: ='1-Project Details'!K14 -> 0.01 | E17: =C17/$C$12 -> 0.1 | I17: Highway (ADT 30-90K) | J17: 63.5 | K17: ='9-Advanced'!E18 -> 63.5 | L17: 0.18 | M17: ='9-Advanced'!G18 -> 0.18 | N17: 1.66 | O17: ='9-Advanced'!I18 -> 1.66 | P17: 90 | Q17: ='9-Advanced'!K18 -> 90 | V17: Project Landuses and Areas | W17: Imperv % | X17: Area | Y17: Ann. Precip | Z17: Long Term Average Runoff Coeff | AB17: Runoff Vol | AC17: Pre-BMP Loads (lbs) | AF17: Pre-BMP Concs (mg/l) | AI17: Lost Runoff Volume (cu ft) | AJ17: Treated Effluent Vol (cu ft) | AK17: ByPassed Runoff Vol (cu ft) | AL17: Swales | AP17: Wetlands | AT17: Dry Ponds | AX17: Bioretention | BB17: Media Filtration | BF17: Swales | BJ17: Wetlands | BN17: Dry Ponds | BR17: Bioretention | BV17: Media Filtration
A18: Cropland replaced by project | B18: acres | C18: ='1-Project Details'!J15 -> 1 | D18: ='1-Project Details'!K15 -> 0.03 | E18: =C18/$C$12 -> 0.1 | I18: Highway (ADT 90K +) | J18: 100 | K18: ='9-Advanced'!E19 -> 100 | L18: 0.24 | M18: ='9-Advanced'!G19 -> 0.24 | N18: 2.15 | O18: ='9-Advanced'!I19 -> 2.15 | P18: 90 | Q18: ='9-Advanced'!K19 -> 90 | X18: sq.ft | Y18: in | AB18: cu ft | AC18: TSS | AD18: TP | AE18: TN | AF18: TSS | AG18: TP | AH18: TN | AL18: VOL | AM18: TSS | AN18: TP | AO18: TN | AP18: VOL | AQ18: TSS | AR18: TP | AS18: TN | AT18: VOL | AU18: TSS | AV18: TP | AW18: TN | AX18: VOL | AY18: TSS | AZ18: TP | BA18: TN | BB18: VOL | BC18: TSS | BD18: TP | BE18: TN | BF18: VOL | BG18: TSS | BH18: TP | BI18: TN | BJ18: VOL | BK18: TSS | BL18: TP | BM18: TN | BN18: VOL | BO18: TSS | BP18: TP | BQ18: TN | BR18: VOL | BS18: TSS | BT18: TP | BU18: TN | BV18: VOL | BW18: TSS | BX18: TP | BY18: TN
A19: Pasture replaced by project | B19: acres | C19: ='1-Project Details'!J16 -> 2 | D19: ='1-Project Details'!K16 -> 0.02 | E19: =C19/$C$12 -> 0.2 | I19: Highway | J19: 139 | K19: ='9-Advanced'!E20 -> 139 | L19: 0.44 | M19: ='9-Advanced'!G20 -> 0.44 | N19: 3.38 | O19: ='9-Advanced'!I20 -> 3.38 | P19: 90 | Q19: ='9-Advanced'!K20 -> 90 | V19: Highway | W19: =D15 -> 0.9 | X19: =C20*N3 -> 435600 | Y19: =VLOOKUP($D$49,$I$46:$R$56,3,FALSE) -> 40.9106 | Z19: =INDEX($M$47:$P$56,MATCH(ROUND(W19*100,-1),$L$47:$L$56,-1),MATCH($C$14,$M$45:$P$45,-1)) -> 0.714 | AB19: =X19*Y19*Z19/$N$7 -> 1060329.113 | AC19: =$AB19*K26*$N$8 -> 2912.5441 | AD19: =$AB19*M26*$N$8 -> 7.94330209 | AE19: =$AB19*O26*$N$8 -> 68.18000961 | AI19: =AB19*$D$69/100 -> 212065.8226 | AJ19: =AB19*($D$68-$D$69)/100 -> 636197.4678 | AK19: =AB19-AJ19-AI19 -> 212065.8226
C20: =SUM(C15:C19) -> 10 | D20: =(C15*D15+C16*D16+C17*D17+C18*D18+C19*D19)/C20 -> 0.533 | E20: =IF(C20>C12,"error","ok") -> ok | F20: <- checks to see if areas add to more than total | I20: Urban area | J20: 139 | K20: ='9-Advanced'!E21 -> 139 | L20: 0.45 | M20: ='9-Advanced'!G21 -> 0.45 | N20: 3.29 | O20: ='9-Advanced'!I21 -> 3.29 | P20: 75 | Q20: ='9-Advanced'!K21 -> 75 | V20: Urban area | W20: =D16 -> 0.75 | X20: =(C12-C20)*N3 -> 0 | Y20: 40.9106 | Z20: =INDEX($M$47:$P$56,MATCH(ROUND(W20*100,-1),$L$47:$L$56,-1),MATCH($C$14,$M$45:$P$45,-1)) -> 0.64 | AB20: =X20*Y20*Z20/$N$7 -> 0 | AC20: =$AB20*K20*$N$8 -> 0 | AD20: =$AB20*M20*$N$8 -> 0 | AE20: =$AB20*O20*$N$8 -> 0 | AI20: =AB20*$D$69/100 -> 0 | AJ20: =AB20*($D$68-$D$69)/100 -> 0 | AK20: =AB20-AJ20-AI20 -> 0
A21: 1-ProjectDetails -T2 | I21: Natural land cover | J21: 62.5 | K21: ='9-Advanced'!E22 -> 62.5 | L21: 0.12 | M21: ='9-Advanced'!G22 -> 0.12 | N21: 1.581666667 | O21: ='9-Advanced'!I22 -> 1.581666667 | P21: 1 | Q21: ='9-Advanced'!K22 -> 1 | V21: Natural land cover | W21: 0.01 | Y21: 40.9106 | Z21: =INDEX($M$47:$P$56,MATCH(ROUND(W21*100,-1),$L$47:$L$56,-1),MATCH($C$14,$M$45:$P$45,-1)) -> 0.112 | AB21: =X21*Y21*Z21/$N$7 -> 0 | AC21: =$AB21*K21*$N$8 -> 0 | AD21: =$AB21*M21*$N$8 -> 0 | AE21: =$AB21*O21*$N$8 -> 0 | AI21: 0 | AJ21: 0 | AK21: 0
A22: STORMWATER MANAGEMENT GOALS | B22: CAT. | C22: DEFAULT | D22: VALUE | E22: CalcValue | I22: *Natural land cover (Disturbed - RUSLE for TSS) | J22: =('9-Advanced'!L41/100)*'Hide-Calculations'!R22 -> 189.770203 | K22: ='9-Advanced'!E23 -> 189.783198 | L22: =('9-Advanced'!N41/100)*'Hide-Calculations'!R22 -> 1.138621218 | M22: ='9-Advanced'!G23 -> 1.138699188 | N22: =('9-Advanced'!P41/100)*'Hide-Calculations'!R22 -> 15.18161624 | O22: ='9-Advanced'!I23 -> 15.18265584 | P22: 1 | Q22: ='9-Advanced'!K23 -> 1 | R22: =(('9-Advanced'!J41*N9)/(W43))/N8 -> 1897.70203 | S22: =((X122*N9)/(1*N3*D39/$N$7)*INDEX($M$47:$P$56,MATCH(Q22,$L$47:$L$56,-1),MATCH($D$40,$M$45:$P$45,-1)))/N8 -> 0 | V22: Cropland | W22: 0.03 | Y22: 40.9106 | Z22: =INDEX($M$47:$P$56,MATCH(ROUND(W22*100,-1),$L$47:$L$56,-1),MATCH($C$14,$M$45:$P$45,-1)) -> 0.112 | AB22: =X22*Y22*Z22/$N$7 -> 0 | AC22: =$AB22*K23*$N$8 -> 0 | AD22: =$AB22*M23*$N$8 -> 0 | AE22: =$AB22*O23*$N$8 -> 0 | AI22: 0 | AJ22: 0 | AK22: 0
A23: Reduce downstream flooding | B23: Hydraulics | C23: 2 | D23: 1 | E23: =D23-1 -> 0 | I23: Cropland | J23: 206.3875 | K23: ='9-Advanced'!E24 -> 206.3875 | L23: 0.8857142857 | M23: ='9-Advanced'!G24 -> 0.8857142857 | N23: 4.151666667 | O23: ='9-Advanced'!I24 -> 4.151666667 | P23: 3 | Q23: ='9-Advanced'!K24 -> 3 | V23: Pasture | W23: 0.02 | Y23: 40.9106 | Z23: =INDEX($M$47:$P$56,MATCH(ROUND(W23*100,-1),$L$47:$L$56,-1),MATCH($C$14,$M$45:$P$45,-1)) -> 0.112 | AB23: =X23*Y23*Z23/$N$7 -> 0 | AC23: =$AB23*K24*$N$8 -> 0 | AD23: =$AB23*M24*$N$8 -> 0 | AE23: =$AB23*O24*$N$8 -> 0 | AI23: 0 | AJ23: 0 | AK23: 0
A24: Reduce hydromodification impacts | B24: Hydrology | C24: 2 | D24: 1 | E24: =D24-1 -> 0 | I24: Pasture | J24: 112.1314286 | K24: ='9-Advanced'!E25 -> 112.1314286 | L24: 0.362 | M24: ='9-Advanced'!G25 -> 0.362 | N24: 2.94 | O24: ='9-Advanced'!I25 -> 2.94 | P24: 2 | Q24: ='9-Advanced'!K25 -> 2 | V24: Combined | W24: - | X24: =SUM(X19:X23) -> 435600 | Y24: 40.9106 | AB24: =SUM(AB19:AB23) -> 1060329.113 | AC24: =SUM(AC19:AC23) -> 2912.5441 | AD24: =SUM(AD19:AD23) -> 7.94330209 | AE24: =SUM(AE19:AE23) -> 68.18000961 | AF24: =IF(AB24=0,0,(AC24/AB24)/$N$8) -> 44 | AG24: =IF(AB24=0,0,AD24/AB24/$N$8) -> 0.12 | AH24: =IF(AB24=0,0,AE24/AB24/$N$8) -> 1.03 | AI24: =SUM(AI19:AI23) -> 212065.8226 | AJ24: =SUM(AJ19:AJ23) -> 636197.4678 | AK24: =SUM(AK19:AK23) -> 212065.8226 | AL24: =$AJ24 -> 636197.4678 | AM24: =IF($K$35<AF24,AJ24*$K$35*$N$8,AJ24*AF24*$N$8) -> 857.8766257 | AN24: =IF($K$36<AG24,AJ24*$K$36*$N$8,AJ24*AG24*$N$8) -> 4.765981254 | AO24: =IF($K$37<AH24,AJ24*$K$37*$N$8,AJ24*AH24*$N$8) -> 34.55336409 | AP24: =$AJ24 -> 636197.4678 | AQ24: =IF($M$35<AF24,AJ24*$M$35*$N$8,AJ24*AF24*$N$8) -> 432.9099639 | AR24: =IF($M$36<AG24,AJ24*$M$36*$N$8,AJ24*AG24*$N$8) -> 3.614202451 | AS24: =IF($M$37<AH$24,AJ24*1*$M$37*$N$8,AJ24*1*AH$24*$N$8) -> 40.90800576 | AT24: =$AJ24 -> 636197.4678 | AU24: =IF($O$35<AF24,AJ24*1*$O$35*$N$8,AJ24*1*AF24*$N$8) -> 925.3946935 | AV24: =IF($O$36<AG24,AJ24*1*$O$36*$N$8,AJ24*1*AG24*$N$8) -> 4.765981254 | AW24: =IF($O$37<AH24,AJ24*1*$O$37*$N$8,AJ24*1*AH24*$N$8) -> 40.90800576 | AX24: =$AJ24 -> 636197.4678 | AY24: =IF($Q$35<AF24,AJ24*1*$Q$35*$N$8,AJ24*1*AF24*$N$8) -> 393.1934535 | AZ24: =IF($Q$36<AG24,AJ24*1*$Q$36*$N$8,AJ24*1*AG24*$N$8) -> 4.765981254 | BA24: =IF($Q$37<AH24,AJ24*1*$Q$37*$N$8,AJ24*1*AH24*$N$8) -> 36.53918961 | BB24: =$AJ24 -> 636197.4678 | BC24: =IF($S$35<AF24,AJ24*1*$S$35*$N$8,AJ24*1*AF24*$N$8) -> 333.6186878 | BD24: =IF($S$36<AG24,AJ24*1*$S$36*$N$8,AJ24*1*AG24*$N$8) -> 3.53476943 | BE24: =IF($S$37<AH24,AJ24*1*$S$37*$N$8,AJ24*1*AH24*$N$8) -> 40.90800576 | BF24: =$AK$24+AL24 -> 848263.2903 | BG24: =IF($AB24=0,0,AM24+($AK24/$AB24*$AC24)) -> 1440.385446 | BH24: =IF($AB24=0,0,AN24+($AK24/$AB24*$AD24)) -> 6.354641672 | BI24: =IF($AB24=0,0,AO24+($AK24/$AB24*$AE24)) -> 48.18936601 | BJ24: =$AK$24+AP24 -> 848263.2903 | BK24: =IF($AB24=0,0,AQ24+($AK24/$AB24*$AC24)) -> 1015.418784 | BL24: =IF($AB24=0,0,AR24+($AK24/$AB24*$AD24)) -> 5.202862869 | BM24: =IF($AB24=0,0,AS24+($AK24/$AB24*$AE24)) -> 54.54400769 | BN24: =$AK$24+AT24 -> 848263.2903 | BO24: =IF($AB24=0,0,AU24+($AK24/$AB24*$AC24)) -> 1507.903513 | BP24: =IF($AB24=0,0,AV24+($AK24/$AB24*$AD24)) -> 6.354641672 | BQ24: =IF($AB24=0,0,AW24+($AK24/$AB24*$AE24)) -> 54.54400769 | BR24: =$AK$24+AX24 -> 848263.2903 | BS24: =IF($AB24=0,0,AY24+($AK24/$AB24*$AC24)) -> 975.7022734 | BT24: =IF($AB24=0,0,AZ24+($AK24/$AB24*$AD24)) -> 6.354641672 | BU24: =IF($AB24=0,0,BA24+($AK24/$AB24*$AE24)) -> 50.17519154 | BV24: =$AK$24+BB24 -> 848263.2903 | BW24: =IF($AB24=0,0,BC24+($AK24/$AB24*$AC24)) -> 916.1275077 | BX24: =IF($AB24=0,0,BD24+($AK24/$AB24*$AD24)) -> 5.123429848 | BY24: =IF($AB24=0,0,BE24+($AK24/$AB24*$AE24)) -> 54.54400769
A25: Reduce downstream TSS and particulate bound pollutant loads and concentrations | B25: Water Quality | C25: 2 | D25: 1 | E25: 0 | I25: Pollutant Priority | J25: 1 | K25: ='9-Advanced'!#REF! ->  | L25: 1 | M25: ='9-Advanced'!#REF! ->  | N25: 1 | O25: ='9-Advanced'!#REF! ->  | P25: - | Q25: -
A26: Reduce downstream nutrient impacts | C26: 2 | D26: 2 | E26: 1 | I26: Selected Project Highway Concs | J26: =IF($C$13=1,J16,IF($C$13=2,J17,J18)) -> 44 | K26: =IF($C$13=1,K16,IF($C$13=2,K17,K18)) -> 44 | L26: 0.12 | M26: 0.12 | N26: 1.03 | O26: 1.03 | P26: 90 | Q26: 90 | V26: STEP 1c - Compute Offsite Pre- and Post BMP Loads | AL26: BMP Effluent Loads (cu ft or lbs) | BF26: Post-BMP Loads (cu ft or lbs)
A27: Improve/minimize downstream temperature impact | C27: 2 | D27: 1 | E27: 0 | I27: Selected Off-Site Highway Concs | J27: =IF($D$81=1,J16,IF($D$81=2,J17,J18)) -> 44 | K27: =IF($D$81=1,K16,IF($D$81=2,K17,K18)) -> 44 | L27: =IF($D$81=1,L16,IF($D$81=2,L17,L18)) -> 0.12 | M27: 0.12 | N27: 1.03 | O27: 1.03 | P27: 90 | Q27: 90 | V27: Project Landuses and Areas | W27: Imperv % | X27: Area | Y27: Ann. Precip | Z27: Long Term Average Runoff Coeff | AB27: Runoff Vol | AC27: Pre-BMP Loads (lbs) | AF27: Pre-BMP Concs (mg/l) | AI27: Lost Runoff Volume (cu ft) | AJ27: Treated Effluent Vol (cu ft) | AK27: ByPassed Runoff Vol (cu ft) | AL27: Swales | AP27: Wetlands | AT27: Dry Ponds | AX27: Bioretention | BB27: Media Filtration | BF27: Swales | BJ27: Wetlands | BN27: Dry Ponds | BR27: Bioretention | BV27: Media Filtration
I28: * TSS value calculated from RUSLE parameters, TN and TP values are for disturbed land | X28: sq.ft | Y28: in | AB28: cu ft | AC28: TSS | AD28: TP | AE28: TN | AF28: TSS | AG28: TP | AH28: TN | AL28: VOL | AM28: TSS | AN28: TP | AO28: TN | AP28: VOL | AQ28: TSS | AR28: TP | AS28: TN | AT28: VOL | AU28: TSS | AV28: TP | AW28: TN | AX28: VOL | AY28: TSS | AZ28: TP | BA28: TN | BB28: VOL | BC28: TSS | BD28: TP | BE28: TN | BF28: VOL | BG28: TSS | BH28: TP | BI28: TN | BJ28: VOL | BK28: TSS | BL28: TP | BM28: TN | BN28: VOL | BO28: TSS | BP28: TP | BQ28: TN | BR28: VOL | BS28: TSS | BT28: TP | BU28: TN | BV28: VOL | BW28: TSS | BX28: TP | BY28: TN
A29: 1-ProjectDetails-T3 | V29: Highway | W29: =E84 -> 0.9 | X29: =D84*N3 -> 0 | Y29: =VLOOKUP($D$49,$I$46:$R$56,3,FALSE) -> 40.9106 | Z29: =INDEX($M$47:$P$56,MATCH(ROUND(W29*100,-1),$L$47:$L$56,-1),MATCH($D$83,$M$45:$P$45,-1)) -> 0.714 | AB29: =X29*Y29*Z29/$N$7 -> 0 | AC29: =$AB29*K27*$N$8 -> 0 | AD29: =$AB29*M27*$N$8 -> 0 | AE29: =$AB29*O27*$N$8 -> 0 | AI29: =AB29*$D$93/100 -> 0 | AJ29: =AB29*($D$92-$D$93)/100 -> 0 | AK29: =(AB29-AI29)-AJ29 -> 0
A30: STORMWATER IMPACT MITIGATION PRIORITIES | B30: DEFAULT | D30: Influence on Impact Priorities (from L9) | V30: Urban area | W30: =E85 -> 0.75 | X30: =D85*$N$3 -> 41877.92218 | Y30: 40.9106 | Z30: =INDEX($M$47:$P$56,MATCH(ROUND(W30*100,-1),$L$47:$L$56,-1),MATCH($D$83,$M$45:$P$45,-1)) -> 0.64 | AB30: =X30*Y30*Z30/$N$7 -> 91373.38256 | AC30: =$AB30*K20*$N$8 -> 792.8912958 | AD30: =$AB30*M20*$N$8 -> 2.566914267 | AE30: =$AB30*O20*$N$8 -> 18.76699542 | AI30: =AB30*$D$93/100 -> 18274.67651 | AJ30: =AB30*($D$92-$D$93)/100 -> 54824.02954 | AK30: =AB30-AJ30-AI30 -> 18274.67651
A31: Decrease TSS | B31: =RANK(D31,$D$31:$D$34) -> 1 | D31: =K88 -> 1 | V31: Natural land cover | W31: 0.01 | X31: =D86*$N$3 -> 44232.16267 | Y31: 40.9106 | Z31: =INDEX($M$47:$P$56,MATCH(ROUND(W31*100,-1),$L$47:$L$56,-1),MATCH($D$83,$M$45:$P$45,-1)) -> 0.112 | AB31: =X31*Y31*Z31/$N$7 -> 16889.26693 | AC31: =$AB31*K21*$N$8 -> 65.89765566 | AD31: =$AB31*M21*$N$8 -> 0.1265234989 | AE31: =$AB31*O21*$N$8 -> 1.667650006 | AI31: 3377.853386 | AJ31: 10133.56016 | AK31: =AB31-AJ31-AI31 -> 3377.853386
A32: Descrease Nutrients | B32: =RANK(D32,$D$31:$D$34) -> 1 | D32: =M88 -> 1 | I32: L3: BMP Performance Characteristics | V32: Cropland | W32: =E87 -> 0.03 | X32: 272.5549866 | Y32: 40.9106 | Z32: =INDEX($M$47:$P$56,MATCH(ROUND(W32*100,-1),$L$47:$L$56,-1),MATCH($D$83,$M$45:$P$45,-1)) -> 0.112 | AB32: =X32*Y32*Z32/$N$7 -> 104.0702883 | AC32: =$AB32*K23*$N$8 -> 1.340878094 | AD32: =$AB32*M23*$N$8 -> 0.005754393476 | AE32: =$AB32*O23*$N$8 -> 0.02697294598 | AI32: 20.81405767 | AJ32: 62.442173 | AK32: =AB32-AJ32-AI32 -> 20.81405767
A33: Decrease Runoff Volume | B33: =RANK(D33,$D$31:$D$34) -> 1 | D33: =O88 -> 1 | I33: REFERENCE BMP EFFLUENT QUALITY (mg/L) | J33: SWALES | L33: WETLANDS | N33: DRY PONDS | P33: BIORETENTION | R33: MEDIA FILTER | V33: Pasture | W33: =E88 -> 0.02 | X33: =D88*$N$3 -> 737.3601715 | Y33: 40.9106 | Z33: =INDEX($M$47:$P$56,MATCH(ROUND(W33*100,-1),$L$47:$L$56,-1),MATCH($D$83,$M$45:$P$45,-1)) -> 0.112 | AB33: =X33*Y33*Z33/$N$7 -> 281.5479056 | AC33: =$AB33*K24*$N$8 -> 1.970873744 | AD33: =$AB33*M24*$N$8 -> 0.006362679084 | AE33: =$AB33*O24*$N$8 -> 0.05167479698 | AI33: 56.30958112 | AJ33: 168.9287434 | AK33: =AB33-AJ33-AI33 -> 56.30958112
A34: Decrease Stream Power / Energy | B34: =RANK(D34,$D$31:$D$34) -> 4 | D34: =Q88 -> 0 | J34: DEFAULT | K34: VALUE | L34: DEFAULT | M34: VALUE | N34: DEFAULT | O34: VALUE | P34: DEFAULT | Q34: VALUE | R34: DEFAULT | S34: VALUE | V34: Combined | W34: - | X34: =SUM(X29:X33) -> 87120 | Y34: 40.9106 | AB34: =SUM(AB29:AB33) -> 108648.2677 | AC34: =SUM(AC29:AC33) -> 862.1007032 | AD34: =SUM(AD29:AD33) -> 2.705554838 | AE34: =SUM(AE29:AE33) -> 20.51329317 | AF34: =IF(AB34=0,0,(AC34/AB34)/$N$8) -> 127.1030715 | AG34: =IF(AB34=0,0,(AD34/AB34)/$N$8) -> 0.3988911373 | AH34: =IF(AB34=0,0,(AE34/AB34)/$N$8) -> 3.024359634 | AI34: =SUM(AI29:AI33) -> 21729.65354 | AJ34: =SUM(AJ29:AJ33) -> 65188.96061 | AK34: =SUM(AK29:AK33) -> 21729.65354 | AL34: =$AJ34 -> 65188.96061 | AM34: =IF($K$35<AF34,AJ34*1*$K$35*$N$8,AJ34*1*AF34*$N$8) -> 87.90365947 | AN34: =IF($K$36<AG34,AJ34*1*$K$36*$N$8,AJ34*1*AG34*$N$8) -> 0.6959039708 | AO34: =IF($K$37<AH34,AJ34*1*$K$37*$N$8,AJ34*1*AH34*$N$8) -> 3.540564062 | AP34: =$AJ34*1 -> 65188.96061 | AQ34: =IF($M$35<AF34,AJ34*1*$M$35*$N$8,AJ34*1*AF34*$N$8) -> 44.35879112 | AR34: =IF($M$36<AG34,AJ34*1*$M$36*$N$8,AJ34*1*AG34*$N$8) -> 0.3703348617 | AS34: =IF($M$37<AH$24,AJ34*1*$M$37*$N$8,AJ34*1*AH$24*$N$8) -> 4.19170228 | AT34: =$AJ34*1 -> 65188.96061 | AU34: =IF($O$35<AF34,AJ34*1*$O$35*$N$8,AJ34*1*AF34*$N$8) -> 94.82200304 | AV34: =IF($O$36<AG34,AJ34*1*$O$36*$N$8,AJ34*1*AG34*$N$8) -> 0.8017139313 | AW34: =IF($O$37<AH34,AJ34*1*$O$37*$N$8,AJ34*1*AH34*$N$8) -> 6.511382183 | AX34: =$AJ34*1 -> 65188.96061 | AY34: =IF($Q$35<AF34,AJ34*1*$Q$35*$N$8,AJ34*1*AF34*$N$8) -> 40.28917726 | AZ34: =IF($Q$36<AG34,AJ34*1*$Q$36*$N$8,AJ34*1*AG34*$N$8) -> 0.9767073275 | BA34: =IF($Q$37<AH34,AJ34*1*$Q$37*$N$8,AJ34*1*AH34*$N$8) -> 3.744044755 | BB34: =$AJ34*1 -> 65188.96061 | BC34: =IF($S$35<AF34,AJ34*1*$S$35*$N$8,AJ34*1*AF34*$N$8) -> 34.18475646 | BD34: =IF($S$36<AG34,AJ34*1*$S$36*$N$8,AJ34*1*AG34*$N$8) -> 0.3621956339 | BE34: =IF($S$37<AH34,AJ34*1*$S$37*$N$8,AJ34*1*AH34*$N$8) -> 4.232398419 | BF34: =$AK$34+AL34 -> 86918.61415 | BG34: =IF($AB34=0,0,AM34+($AK34/$AB34*$AC34)) -> 260.3238001 | BH34: =IF($AB34=0,0,AN34+($AK34/$AB34*$AD34)) -> 1.237014938 | BI34: =IF($AB34=0,0,AO34+($AK34/$AB34*$AE34)) -> 7.643222695 | BJ34: =$AK$34+AP34 -> 86918.61415 | BK34: =IF($AB34=0,0,AQ34+($AK34/$AB34*$AC34)) -> 216.7789318 | BL34: =IF($AB34=0,0,AR34+($AK34/$AB34*$AD34)) -> 0.9114458293 | BM34: =IF($AB34=0,0,AS34+($AK34/$AB34*$AE34)) -> 8.294360914 | BN34: =$AK$34+AT34 -> 86918.61415 | BO34: =IF($AB34=0,0,AU34+($AK34/$AB34*$AC34)) -> 267.2421437 | BP34: =IF($AB34=0,0,AV34+($AK34/$AB34*$AD34)) -> 1.342824899 | BQ34: =IF($AB34=0,0,AW34+($AK34/$AB34*$AE34)) -> 10.61404082 | BR34: =$AK$34+AX34 -> 86918.61415 | BS34: =IF($AB34=0,0,AY34+($AK34/$AB34*$AC34)) -> 212.7093179 | BT34: =IF($AB34=0,0,AZ34+($AK34/$AB34*$AD34)) -> 1.517818295 | BU34: =IF($AB34=0,0,BA34+($AK34/$AB34*$AE34)) -> 7.846703389 | BV34: =$AK$34+BB34 -> 86918.61415 | BW34: =IF($AB34=0,0,BC34+($AK34/$AB34*$AC34)) -> 206.6048971 | BX34: =IF($AB34=0,0,BD34+($AK34/$AB34*$AD34)) -> 0.9033066016 | BY34: =IF($AB34=0,0,BE34+($AK34/$AB34*$AE34)) -> 8.335057052
I35: Total Suspended Solids (TSS) | J35: 21.6 | K35: ='9-Advanced'!E30 -> 21.6 | L35: 10.9 | M35: ='9-Advanced'!G30 -> 10.9 | N35: 23.3 | O35: ='9-Advanced'!I30 -> 23.3 | P35: 9.9 | Q35: ='9-Advanced'!K30 -> 9.9 | R35: 8.4 | S35: ='9-Advanced'!M30 -> 8.4
A36: 2-Watershed Characteristics-T4 | I36: Total Phosphorus (TP) | J36: 0.171 | K36: ='9-Advanced'!E31 -> 0.171 | L36: 0.091 | M36: ='9-Advanced'!G31 -> 0.091 | N36: 0.197 | O36: ='9-Advanced'!I31 -> 0.197 | P36: 0.24 | Q36: ='9-Advanced'!K31 -> 0.24 | R36: 0.089 | S36: ='9-Advanced'!M31 -> 0.089 | V36: STEP 2 - Watershed, Onsite, Offsite Load Summary | AB36: U1: Utility Lookup Table for Appropriate Reference BMP Column For Onsite Post-BMP Quantities
A37: VARIABLE | B37: UNITS | C37: DEFAULT | D37: VALUE | I37: Total Nitrogen (TN) | J37: 0.87 | K37: ='9-Advanced'!E32 -> 0.87 | L37: 1.2 | M37: ='9-Advanced'!G32 -> 1.2 | N37: 1.6 | O37: ='9-Advanced'!I32 -> 1.6 | P37: 0.92 | Q37: ='9-Advanced'!K32 -> 0.92 | R37: 1.04 | S37: ='9-Advanced'!M32 -> 1.04 | V37: Ave. Annual Loads | W37: Volume | X37: TSS | Y37: TP | Z37: TN | AC37: 1 | AD37: 2 | AE37: 3 | AF37: 4 | AG37: 5
A38: Watershed area | B38: sq. miles | C38: 40.8490414 | D38: ='2- Watershed Characteristics'!F16 -> 40.8490414 | E38: NA | I38: Vol Reduction % | AB38: Pollutant | AC38: Swale | AD38: Wetland | AE38: Dry Pond | AF38: Bioretention | AG38: Media Filter
A39: Average annual precipitation depth (HUC) | B39: in | C39: 40.9106 | D39: ='2- Watershed Characteristics'!F17 -> 40.9106 | E39: Link | I39: Foot print area ratio | J39: 0.05 | K39: ='4-In-Kind On-Site Options'!F16 -> 0.08 | L39: 0.1 | M39: ='4-In-Kind On-Site Options'!F16 -> 0.08 | N39: 0.07 | O39: ='4-In-Kind On-Site Options'!F16 -> 0.08 | P39: 0.08 | Q39: ='4-In-Kind On-Site Options'!F16 -> 0.08 | R39: 0.07 | S39: ='4-In-Kind On-Site Options'!F16 -> 0.08 | V39: Target Load Reductions (lbs) | W39: =W44*D61/100 -> 212065.8226 | X39: =X44*D62/100 -> 2330.03528 | Y39: =Y44*D63/100 -> 3.177320836 | Z39: =Z44*D64/100 -> 13.63600192 | AB39: Vol | AC39: =BF24 -> 848263.2903 | AD39: =BJ24 -> 848263.2903 | AE39: =BN24 -> 848263.2903 | AF39: =BR24 -> 848263.2903 | AG39: =BV24 -> 848263.2903
A40: Watershed area dominant or average hydrologic soil group | B40: NA | C40: - | D40: 3 | E40: Link | F40: =VLOOKUP(D40,'Hide-DropDownLists'!$N$5:$O$8,2,FALSE) -> C | V40: TLR / unit impervious area project area (lbs/ac) of (cu ft/ac) | W40: =W39/$C$12 -> 21206.58226 | X40: =X39/$C$12 -> 233.003528 | Y40: =Y39/$C$12 -> 0.3177320836 | Z40: 1.363600192 | AB40: TSS | AC40: =BG24 -> 1440.385446 | AD40: =BK24 -> 1015.418784 | AE40: =BO24 -> 1507.903513 | AF40: =BS24 -> 975.7022734 | AG40: =BW24 -> 916.1275077
A41: Calculated Percent Impervious Area | B41: % | C41: 17.7139 | F41: =F42*P20+F43*P21+F44*P23+F45*P24 -> 35.7583192 | I41: L4: Hydrologic Soil Group Column Numbers (Represents column number in L8 below) | V41: Watershed Total Pre-BMP Estimated Load (cu ft or lbs) | W41: =AB12 -> 1388050667 | X41: =AC12 -> 11013829.62 | Y41: =AD12 -> 34564.73993 | Z41: =AE12 -> 262069.2832 | AB41: TP | AC41: =BH24 -> 6.354641672 | AD41: =BL24 -> 5.202862869 | AE41: =BP24 -> 6.354641672 | AF41: =BT24 -> 6.354641672 | AG41: =BX24 -> 5.123429848
A42: Percent urban area | B42: % | C42: 46.986 | D42: ='2- Watershed Characteristics'!F20 -> 46.986 | E42: Link | F42: =((D42*$D$38*640/100)-C16)/($D$38*640/100)/100 -> 0.4698217494 | I42: A | J42: B | K42: C | L42: D | V42: Watershed Estimated Load / imperv area (cu ft/ac or lbs/ac) | W42: =AT6 -> 116873.8112 | X42: =AU6 -> 1006.45977 | Y42: 3.250384767 | Z42: 23.83192563 | AB42: TN | AC42: =BI24 -> 48.18936601 | AD42: =BM24 -> 54.54400769 | AE42: =BQ24 -> 54.54400769 | AF42: =BU24 -> 50.17519154 | AG42: =BY24 -> 54.54400769
A43: Percent natural land cover | B43: % | C43: 49.6274 | D43: ='2- Watershed Characteristics'!F21 -> 49.6274 | E43: Link | F43: =((D43*$D$38*640/100)-C17)/($D$38*640/100)/100 -> 0.4962357494 | I43: 7 | J43: 6 | K43: 5 | L43: 4 | V43: Watershed Estimated Load / total area (cu ft/ac or lbs/ac) | W43: =W41/($D$38*$N$6) -> 53093.75919 | X43: =X41/($D$38*$N$6) -> 421.2854987 | Y43: =Y41/($D$38*$N$6) -> 1.322121751 | Z43: =Z41/($D$38*$N$6) -> 10.02430512
A44: Percent cropland | B44: % | C44: 0.3058 | D44: ='2- Watershed Characteristics'!F22 -> 0.3058 | E44: Link | F44: =((D44*$D$38*640/100)-C18)/($D$38*640/100)/100 -> 0.003019749408 | M44: Runoff Coefficients by Hydrologic Soil Group | V44: Onsite Total Pre-BMP Project Estimated Load(cu ft or lbs) | W44: =AB24 -> 1060329.113 | X44: =AC24 -> 2912.5441 | Y44: =AD24 -> 7.94330209 | Z44: =AE24 -> 68.18000961 | AB44: U2: Utility Lookup Table for Appropriate Reference BMP Column For Offsite Post-BMP Quantities
A45: Percent pasture | B45: % | C45: 0.8273 | D45: ='2- Watershed Characteristics'!F23 -> 0.8273 | E45: Link | F45: =((D45*$D$38*640/100)-C19)/($D$38*640/100)/100 -> 0.008196498817 | I45: L5: Hydrology Lookup | M45: 4 | N45: 3 | O45: 2 | P45: 1 | V45: Project Runoff Load / unit impervious area (cu ft/ac or lbs/ac) | W45: =W44/$C$12 -> 106032.9113 | X45: =X44/$C$12 -> 291.25441 | Y45: =Y44/$C$12 -> 0.794330209 | Z45: 6.818000961 | AC45: 1 | AD45: 2 | AE45: 3 | AF45: 4 | AG45: 5
A46: Percent potentially restorable wetlands | B46: % | C46: 1 | D46: ='2- Watershed Characteristics'!F24 -> 1 | E46: Link | I46: Station ID | J46: Lookup String | K46: Ave Ann. Precip (in) | L46: Imperv % | M46: D | N46: C | O46: B | P46: A | V46: Onsite Total Post-BMP Project Estimated Load (cu ft or lbs) | W46: =HLOOKUP($D$73,$AC$37:$AG$42,3,FALSE) -> 848263.2903 | X46: =HLOOKUP($D$73,$AC$37:$AG$42,4,FALSE) -> 975.7022734 | Y46: =HLOOKUP($D$73,$AC$37:$AG$42,5,FALSE) -> 6.354641672 | Z46: =HLOOKUP($D$73,$AC$37:$AG$42,6,FALSE) -> 50.17519154 | AB46: Pollutant | AC46: Swale | AD46: Wetland | AE46: Dry Pond | AF46: Bioretention | AG46: Media Filter
A47: Percent natural land cover in buffer | B47: % | C47: 60.9634 | D47: ='2- Watershed Characteristics'!F25 -> 60.9634 | E47: Link | I47: =$D$49 -> 456114 | J47: =I47&"-1-"&L47 -> 456114-1-100 | K47: =$D$39 -> 40.9106 | L47: 100 | M47: =VLOOKUP($J47&"-D",RunoffCoeffLkUpData,18,FALSE) -> 0.787 | N47: =VLOOKUP($J47&"-C",RunoffCoeffLkUpData,18,FALSE) -> 0.787 | O47: =VLOOKUP($J47&"-B",RunoffCoeffLkUpData,18,FALSE) -> 0.787 | P47: =VLOOKUP($J47&"-A",RunoffCoeffLkUpData,18,FALSE) -> 0.787 | V47: Onsite Total Post-BMP Load Reductions (cu ft or lbs) | W47: =W44-W46 -> 212065.8226 | X47: =X44-X46 -> 1936.841826 | Y47: =Y44-Y46 -> 1.588660418 | Z47: =Z44-Z46 -> 18.00481807 | AB47: Vol | AC47: =BF34 -> 86918.61415 | AD47: =BJ34 -> 86918.61415 | AE47: =BN34 -> 86918.61415 | AF47: =BR34 -> 86918.61415 | AG47: =BV34 -> 86918.61415
A48: Percent of natural land cover that is disturbed (i.e., actively eroding areas in the watershed not associated with construction) | B48: % | C48: - | D48: ='2- Watershed Characteristics'!F26 -> 0 | F48: =(F43*D48/100) -> 0 | I48: 456114 | J48: 456114-1-90 | K48: 40.9106 | L48: 90 | M48: =VLOOKUP($J48&"-D",RunoffCoeffLkUpData,18,FALSE) -> 0.733 | N48: 0.714 | O48: 0.709 | P48: 0.709 | V48: Onsite Total Adj. Post-BMP Load Reductions (cu ft or lbs) | W48: =W47*$D$76 -> 212065.8226 | X48: =X47*$D$76 -> 1936.841826 | Y48: =Y47*$D$76 -> 1.588660418 | Z48: =Z47*$D$76 -> 18.00481807 | AB48: TSS | AC48: =BG34 -> 260.3238001 | AD48: =BK34 -> 216.7789318 | AE48: =BO34 -> 267.2421437 | AF48: =BS34 -> 212.7093179 | AG48: =BW34 -> 206.6048971
A49: Watershed Gage ID | B49: NA | C49: - | D49: 456114 | E49: [3] PUGET SOUND LOWLANDS - OLYMPIA AP | F49: =MID(E49,4,100) -> PUGET SOUND LOWLANDS - OLYMPIA AP | I49: 456114 | J49: 456114-1-80 | K49: 40.9106 | L49: 80 | M49: 0.678 | N49: 0.64 | O49: 0.632 | P49: 0.631 | V49: Onsite Actual Load Reductions (cu ft or lbs) | W49: =$AA$60*W48 -> 212065.8226 | X49: =$AA$60*X48 -> 1936.841826 | Y49: =$AA$60*Y48 -> 1.588660418 | Z49: =$AA$60*Z48 -> 18.00481807 | AB49: TP | AC49: =BH34 -> 1.237014938 | AD49: =BL34 -> 0.9114458293 | AE49: =BP34 -> 1.342824899 | AF49: =BT34 -> 1.517818295 | AG49: =BX34 -> 0.9033066016
I50: 456114 | J50: 456114-1-70 | K50: 40.9106 | L50: 70 | M50: 0.621 | N50: 0.565 | O50: 0.553 | P50: 0.553 | V50: Post-Onsite Remaining target load reduction (cu ft or lbs) | W50: =W39-W49 -> 0 | X50: =X39-X49 -> 393.1934535 | Y50: =Y39-Y49 -> 1.588660418 | Z50: =Z39-Z49 -> -4.36881615 | AB50: TN | AC50: =BI34 -> 7.643222695 | AD50: =BM34 -> 8.294360914 | AE50: =BQ34 -> 10.61404082 | AF50: =BU34 -> 7.846703389 | AG50: =BY34 -> 8.335057052
A51: Region | B51: NA | C51: - | D51: =VLOOKUP(E51,'Hide-DropDownLists'!$J$5:$L$15,2,FALSE) -> Northwest | E51: 1 | I51: 456114 | J51: 456114-1-60 | K51: 40.9106 | L51: 60 | M51: 0.564 | N51: 0.49 | O51: 0.475 | P51: 0.475 | V51: Offsite Total Pre-BMP Project Estimated Load (cu ft or lbs) | W51: =AB34 -> 108648.2677 | X51: =AC34 -> 862.1007032 | Y51: =AD34 -> 2.705554838 | Z51: =AE34 -> 20.51329317
A52: State | B52: NA | C52: - | D52: Washington | E52: =VLOOKUP(D52,'Hide-DropDownLists'!F5:G52,2,FALSE) -> WA | I52: 456114 | J52: 456114-1-50 | K52: 40.9106 | L52: 50 | M52: 0.506 | N52: 0.415 | O52: 0.397 | P52: 0.397 | V52: Offsite Total Post-BMP Project Estimated Load(cu ft or lbs) | W52: =HLOOKUP($D$97,$AC$45:$AG$50,3,FALSE) -> 86918.61415 | X52: =HLOOKUP($D$73,$AC$45:$AG$50,4,FALSE) -> 212.7093179 | Y52: =HLOOKUP($D$73,$AC$45:$AG$50,5,FALSE) -> 1.517818295 | Z52: =HLOOKUP($D$73,$AC$45:$AG$50,6,FALSE) -> 7.846703389
A53: County | B53: NA | C53: - | D53: Pierce | I53: 456114 | J53: 456114-1-40 | K53: 40.9106 | L53: 40 | M53: 0.448 | N53: 0.34 | O53: 0.318 | P53: 0.318 | V53: Offsite Total Load Reductions (cu ft or lbs) | W53: =W51-W52 -> 21729.65354 | X53: =X51-X52 -> 649.3913853 | Y53: =Y51-Y52 -> 1.187736543 | Z53: =Z51-Z52 -> 12.66658978
A54: HUC 12 ID | B54: NA | C54: 16.10654413 | D54: 171100190304 | I54: 456114 | J54: 456114-1-30 | K54: 40.9106 | L54: 30 | M54: 0.389 | N54: 0.264 | O54: 0.239 | P54: 0.239 | V54: Offsite Total Adj. Post-BMP Load Reductions(cu ft or lbs) | W54: =W53/$D$100 -> 21729.65354 | X54: =X53/$D$100 -> 649.3913853 | Y54: =Y53/$D$100 -> 1.187736543 | Z54: =Z53/$D$100 -> 12.66658978
A55: Average annual precipitation depth (Rain Gage) | B55: in | C55: - | D55: ='2- Watershed Characteristics'!F34 -> 0 | E55: Link | I55: 456114 | J55: 456114-1-20 | K55: 40.9106 | L55: 20 | M55: 0.33 | N55: 0.188 | O55: 0.16 | P55: 0.16 | V55: Offsite Actual Load Reductions (cu ft or lbs) | W55: =$AA$74*W54 -> 21729.65354 | X55: =$AA$74*X54 -> 649.3913853 | Y55: =$AA$74*Y54 -> 1.187736543 | Z55: =$AA$74*Z54 -> 12.66658978 | AE55: GRAPH & CHART TABLES
D56: =SUM(D42:D45) -> 97.7465 | E56: =IF(D56>100.01,"error","ok") -> ok | F56: <- checks to see if areas add to more than total | I56: 456114 | J56: 456114-1-10 | K56: 40.9106 | L56: 10 | M56: 0.269 | N56: 0.112 | O56: 0.08 | P56: 0.08 | V56: Remaining/Outstanding target load reduction (cu ft or lbs) | W56: =IF((W50-W55)<0,0,W50-W55) -> 0 | X56: =IF((X50-X55)<0,0,X50-X55) -> 0 | Y56: =IF((Y50-Y55)<0,0,Y50-Y55) -> 0.4009238749 | Z56: =IF((Z50-Z55)<0,0,Z50-Z55) -> 0
I57: Selected Coeff (Project) = | J57: =INDEX(M47:P56,MATCH(C15,L47:L56,-1),MATCH(C14,M45:P45,-1)) -> 0.112 | K57: =VLOOKUP(J47&"-A",RunoffCoeffLkUpData,19,FALSE) -> 46.16369212 | V57: Outstanding equiv. urban area for out-of-kind (ac) | W57: =IF(W56<=0,0,W56/W42) -> 0 | X57: =IF(X56<=0,0,X56/X42) -> 0 | Y57: 0.1233465893 | Z57: 0
I58: Selected Coeff (Wshed) = | J58: =INDEX(M47:P56,MATCH(D41,L47:L56,-1),MATCH(D40,M45:P45,-1)) -> 0.112
A59: 3-Targets-T5
A60: STORMWATER DESIGN TARGETS | B60: UNITS | C60: DEFAULT | D60: VALUE | I60: L6: Mitigation Measure Opportunity Threshold Lookup | V60: STEP 3a - Onsite Calculate BMP Alternative Scores | Z60: % Implementation | AA60: ='7-Analysis'!F15 -> 1 | AC60: G1: Onsite Load Reduction Percentages (Used by charts on 7-Analysis) | AL60: G4: Loads per unit area
A61: ='3-Targets'!C7 -> Volume reduction | B61: ='3-Targets'!D7 -> % | C61: 20 | D61: ='3-Targets'!F7 -> 20 | I61: MITIGATION MEASURES | J61: INDICATOR | K61: LEVEL 1 | M61: LEVEL 2 | O61: LEVEL 3 | V61: BMP ALTERNATIVE CHARACTERISTICS | W61: 1 | X61: 2 | Y61: 3 | Z61: 4 | AA61: 5 | AC61: Variable | AD61: 1 | AE61: 2 | AF61: 3 | AG61: 4 | AH61: 5 | AM61: Vol (cu ft) | AN61: TSS (lbs) | AO61: TP (lbs) | AP61: TN (lbs)
A62: ='3-Targets'!C8 -> TSS load reduction | B62: ='3-Targets'!D8 -> % | C62: 80 | D62: ='3-Targets'!F8 -> 80 | K62: Default Percentile | L62: Default Value (%) | M62: Default Percentile | N62: Default Value (%) | O62: Default Percentile | P62: Default Value (%) | V62: BMP Type | W62: Swale | X62: Wetland | Y62: Dry Pond | Z62: Bioretention | AA62: Media Filter | AC62: BMP Type | AD62: Swale | AE62: Wetland | AF62: Dry Pond | AG62: Bioretention | AH62: Media Filter | AL62: % TLR - onsite-in-kind | AM62: =IF(W49=0,0,IF(W39=0,"-",W49/W39)) -> 1 | AN62: =IF(X39=0,"-",X49/X39) -> 0.83125 | AO62: =IF(Y39=0,"-",Y49/Y39) -> 0.5 | AP62: =IF(Z39=0,"-",Z49/Z39) -> 1.32038835
A63: ='3-Targets'!C9 -> TP load reduction | B63: ='3-Targets'!D9 -> % | C63: 40 | D63: ='3-Targets'!F9 -> 40 | I63: Stream Improvement Techniques | J63: Natural land cover in 30 m stream buffer | L63: ='Hide-HUC-Stats-Lookup'!V4 -> 86.24925 | N63: ='Hide-HUC-Stats-Lookup'!W4 -> 95.5674 | P63: ='Hide-HUC-Stats-Lookup'!X4 -> 98.73165 | V63: BMP footprint area | W63: =W64*$C$12*($R$16/100)*$AA$60 -> 0.72 | X63: 0.72 | Y63: =Y64*$C$12*($R$16/100)*$AA$60 -> 0.72 | Z63: =Z64*$C$12*($R$16/100)*$AA$60 -> 0.72 | AA63: 0.72 | AC63: % Vol Reduction | AD63: =W66/$W$39 -> 1 | AE63: =X66/$W$39 -> 1 | AF63: =Y66/$W$39 -> 1 | AG63: =Z66/$W$39 -> 1 | AH63: =AA66/$W$39 -> 1 | AL63: % TLR offsite-in-kind | AM63: =IF(W55=0,0,IF(W39=0,"-",W55/W39)) -> 0.1024665515 | AN63: =IF(X39=0,"-",X55/X39) -> 0.2787045291 | AO63: =IF(Y39=0,"-",Y55/Y39) -> 0.373817 | AP63: =IF(Z39=0,"-",Z55/Z39) -> 0.9289078904
A64: ='3-Targets'!C10 -> TN load reduction | B64: ='3-Targets'!D10 -> % | C64: 20 | D64: ='3-Targets'!F10 -> 20 | I64: Upland Stabilization | J64: Natural land cover that is disturbed | L64: ='Hide-HUC-Stats-Lookup'!V8 -> 1.132251 | N64: ='Hide-HUC-Stats-Lookup'!W8 -> 3.565495 | P64: ='Hide-HUC-Stats-Lookup'!X8 -> 8.001555 | V64: BMP footprint area ratio | W64: =K39 -> 0.08 | X64: =M39 -> 0.08 | Y64: =O39 -> 0.08 | Z64: =Q39 -> 0.08 | AA64: =S39 -> 0.08 | AC64: % TSS Load Reduction | AD64: =IF($X$39=0,0,W67/$X$39) -> 0.6318181818 | AE64: =IF($X$39=0,0,X67/$X$39) -> 0.8142045455 | AF64: =IF($X$39=0,0,Y67/$X$39) -> 0.6028409091 | AG64: =IF($X$39=0,0,Z67/$X$39) -> 0.83125 | AH64: =IF($X$39=0,0,AA67/$X$39) -> 0.8568181818 | AL64: % TLR Outstanding | AM64: =IF(W39=0,"-",IF(SUM(AM62:AM63)>1,0,1-SUM(AM62:AM63))) -> 0 | AN64: =IF(X39=0,"-",IF(SUM(AN62:AN63)>1,0,1-SUM(AN62:AN63))) -> 0 | AO64: =IF(Y39=0,"-",IF(SUM(AO62:AO63)>1,0,1-SUM(AO62:AO63))) -> 0.126183 | AP64: =IF(Z39=0,"-",IF(SUM(AP62:AP63)>1,0,1-SUM(AP62:AP63))) -> 0
I65: Reducing Impervious Surface Connectivity | J65: Imperviousness | L65: ='Hide-HUC-Stats-Lookup'!V10 -> 0.19155 | N65: ='Hide-HUC-Stats-Lookup'!W10 -> 0.7189 | P65: ='Hide-HUC-Stats-Lookup'!X10 -> 2.4445 | V65: % Capture | W65: =$D$68/100 -> 0.8 | X65: =$D$68/100 -> 0.8 | Y65: =$D$68/100 -> 0.8 | Z65: =$D$68/100 -> 0.8 | AA65: =$D$68/100 -> 0.8 | AC65: % TP Load Reduction | AD65: =IF($Y$39=0,0,W68/$Y$39) -> 0.5 | AE65: =IF($Y$39=0,0,X68/$Y$39) -> 0.8625 | AF65: =IF($Y$39=0,0,Y68/$Y$39) -> 0.5 | AG65: =IF($Y$39=0,0,Z68/$Y$39) -> 0.5 | AH65: =IF($Y$39=0,0,AA68/$Y$39) -> 0.8875 | AL65: Total | AM65: =SUM(AM62:AM64) -> 1.102466552 | AN65: =SUM(AN62:AN64) -> 1.109954529 | AO65: =SUM(AO62:AO64) -> 1 | AP65: =SUM(AP62:AP64) -> 2.24929624
A66: 4-In Kind On-Site Options-T6 | I66: Wetland restoration/ creation | J66: Potentially restorable wetlands | L66: ='Hide-HUC-Stats-Lookup'!V13 -> 0 | N66: ='Hide-HUC-Stats-Lookup'!W13 -> 0 | P66: ='Hide-HUC-Stats-Lookup'!X13 -> 0 | V66: Volume Reduction | W66: =$AA$60*($W$44-AC39) -> 212065.8226 | X66: =$AA$60*($W$44-AD39) -> 212065.8226 | Y66: =$AA$60*($W$44-AE39) -> 212065.8226 | Z66: =$AA$60*($W$44-AF39) -> 212065.8226 | AA66: =$AA$60*($W$44-AG39) -> 212065.8226 | AC66: % TN Load Reduction | AD66: =IF($Z$39=0,0,W69/$Z$39) -> 1.466019417 | AE66: =IF($Z$39=0,0,X69/$Z$39) -> 1 | AF66: =IF($Z$39=0,0,Y69/$Z$39) -> 1 | AG66: =IF($Z$39=0,0,Z69/$Z$39) -> 1.32038835 | AH66: =IF($Z$39=0,0,AA69/$Z$39) -> 1
A67: STORMWATER DESIGN BASIS | B67: UNITS | C67: DEFAULT | D67: VALUE | V67: TSS Load Reduction | W67: =$AA$60*($X$44-AC40) -> 1472.158654 | X67: =$AA$60*($X$44-AD40) -> 1897.125316 | Y67: =$AA$60*($X$44-AE40) -> 1404.640586 | Z67: =$AA$60*($X$44-AF40) -> 1936.841826 | AA67: =$AA$60*($X$44-AG40) -> 1996.416592
A68: ='4-In-Kind On-Site Options'!C11 -> Average annual runoff capture | B68: ='4-In-Kind On-Site Options'!D11 -> % | C68: 80 | D68: ='4-In-Kind On-Site Options'!F11 -> 80 | V68: TP Load Reduction | W68: =$AA$60*($Y$44-AC41) -> 1.588660418 | X68: =$AA$60*($Y$44-AD41) -> 2.740439221 | Y68: =$AA$60*($Y$44-AE41) -> 1.588660418 | Z68: =$AA$60*($Y$44-AF41) -> 1.588660418 | AA68: =$AA$60*($Y$44-AG41) -> 2.819872242
A69: ='4-In-Kind On-Site Options'!C12 -> Average annual volume reduced | B69: ='4-In-Kind On-Site Options'!D12 -> % | C69: 20 | D69: ='4-In-Kind On-Site Options'!F12 -> 20 | V69: TN Load Reduction | W69: =$AA$60*($Z$44-AC42) -> 19.99064359 | X69: =$AA$60*($Z$44-AD42) -> 13.63600192 | Y69: =$AA$60*($Z$44-AE42) -> 13.63600192 | Z69: =$AA$60*($Z$44-AF42) -> 18.00481807 | AA69: =$AA$60*($Z$44-AG42) -> 13.63600192
V70: Load Removal Rank (High better) | W70: =W66/$W$44+W67/$X$44+W68/$Y$44+W69/$Z$44 -> 1.198658429 | X70: =X66/$W$44+X67/$X$44+X68/$Y$44+X69/$Z$44 -> 1.396363636 | Y70: =Y66/$W$44+Y67/$X$44+Y68/$Y$44+Y69/$Z$44 -> 1.082272727 | Z70: =Z66/$W$44+Z67/$X$44+Z68/$Y$44+Z69/$Z$44 -> 1.32907767 | AA70: =AA66/$W$44+AA67/$X$44+AA68/$Y$44+AA69/$Z$44 -> 1.440454545
A71: 4-In Kind On-Site Options-T7
A72: PREFERRED ONSITE BMP CHARACTERISTICS | B72: UNITS | C72: DEFAULT | D72: VALUE
A73: ='4-In-Kind On-Site Options'!C15 -> BMP type | B73: ='4-In-Kind On-Site Options'!D15 -> NA | C73: =HLOOKUP(D73,$AC$37:$AG$38,2,FALSE) -> Bioretention | D73: 4 | E73: <- 1 - Swale, 2-Wetland, 3-Bioretention etc. Filled in automatically by dropdown
A74: ='4-In-Kind On-Site Options'!C16 -> BMP footprint to effective drainage area ratio | B74: ='4-In-Kind On-Site Options'!D16 -> NA | C74: =IF(D73=1,$J$39,IF(D73=2,$L$39,IF(D73=3,$N$39,IF(D73=4,$P$39,IF(D73=5,$R$39))))) -> 0.08 | D74: ='4-In-Kind On-Site Options'!F16 -> 0.08 | V74: STEP 3b - Offsite Calculate BMP Alternative Scores | Z74: % Implementation | AA74: ='7-Analysis'!F36 -> 1 | AC74: G2: Offsite Load Reduction Percentages (Used by charts on 7-Analysis) | AL74: G5: Final Combined Load Reductions
A75: ='4-In-Kind On-Site Options'!C17 -> BMP footprint area | B75: acres | C75: =C74*C12*C15/100 -> 0.04 | D75: =D74*C12*(R16/100) -> 0.72 | V75: BMP ALTERNATIVE CHARACTERISTICS | W75: 1 | X75: 2 | Y75: 3 | Z75: 4 | AA75: 5 | AC75: Variable | AD75: 1 | AE75: 2 | AF75: 3 | AG75: 4 | AH75: 5 | AL75: Volume (cu ft) | AM75: =W49+W55 -> 233795.4761
A76: Unreferenced On-site Target Load Reductions(Future) | D76: 1 | V76: BMP Type | W76: Swale | X76: Wetland | Y76: Dry Pond | Z76: Bioretention | AA76: Media Filter | AC76: BMP Type | AD76: Swale | AE76: Wetland | AF76: Dry Pond | AG76: Bioretention | AH76: Media Filter | AL76: TSS (g) | AM76: =X49+X55 -> 2586.233212
V77: BMP footprint area (m2) | W77: =W78*$C$12*$AA$74 -> 0.8 | X77: =X78*$C$12*$AA$74 -> 0.8 | Y77: =Y78*$C$12*$AA$74 -> 0.8 | Z77: =Z78*$C$12*$AA$74 -> 0.8 | AA77: =AA78*$C$12*$AA$74 -> 0.8 | AC77: % Volume Red | AD77: =W80/$W$39 -> 0.1024665515 | AE77: =X80/$W$39 -> 0.1024665515 | AF77: =Y80/$W$39 -> 0.1024665515 | AG77: =Z80/$W$39 -> 0.1024665515 | AH77: =AA80/$W$39 -> 0.1024665515 | AL77: TP (g) | AM77: =Y49+Y55 -> 2.776396961
A78: 5-In Kind Off-Site Options-T8 | V78: BMP footprint area ratio | W78: =K39 -> 0.08 | X78: =M39 -> 0.08 | Y78: =O39 -> 0.08 | Z78: =Q39 -> 0.08 | AA78: =S39 -> 0.08 | AC78: % TSS Load Red | AD78: =W81/$X$39 -> 0.2582694384 | AE78: =X81/$X$39 -> 0.2769579401 | AF78: =Y81/$X$39 -> 0.2553002372 | AG78: =Z81/$X$39 -> 0.2787045291 | AH78: =AA81/$X$39 -> 0.2813244125 | AL78: TN (g) | AM78: =Z49+Z55 -> 30.67140785
A79: OFFSITE PROJECT CHARACTERISTICS | B79: UNITS | C79: DEFAULT | D79: VALUE | V79: % Capture | W79: =$D$92/100 -> 0.8 | X79: =$D$92/100 -> 0.8 | Y79: 0.8 | Z79: 0.8 | AA79: 0.8 | AC79: % TP Red | AD79: =W82/$Y$39 -> 0.4621944007 | AE79: =X82/$Y$39 -> 0.5646609523 | AF79: =Y82/$Y$39 -> 0.4288927715 | AG79: =Z82/$Y$39 -> 0.373817 | AH79: =AA82/$Y$39 -> 0.5672226161
A80: Drainage area to proposed offsite BMP | B80: acres | C80: NA | D80: ='5-In-Kind Off-Site Options'!F7 -> 2 | I80: L6: PRIORITY EVALUATION - Influence of Project Goals on Impact Priority | V80: Volume Reduction | W80: =$AA$74*($W$51-AC47) -> 21729.65354 | X80: =$AA$74*($W$51-AD47) -> 21729.65354 | Y80: =$AA$74*($W$51-AE47) -> 21729.65354 | Z80: =$AA$74*($W$51-AF47) -> 21729.65354 | AA80: =$AA$74*($W$51-AG47) -> 21729.65354 | AC80: % TN Reduction | AD80: =W83/$Z$39 -> 0.9438302037 | AE80: =X83/$Z$39 -> 0.896078801 | AF80: =Y83/$Z$39 -> 0.7259644291 | AG80: =Z83/$Z$39 -> 0.9289078904 | AH80: =AA83/$Z$39 -> 0.8930943384
A81: Annual average daily traffic (AADT) | B81: NA | C81: 3 | D81: ='5-In-Kind Off-Site Options'!$F$8 -> 1 | I81: STORMWATER MANAGEMENT GOALS & PRIORITIES | J81: Decrease TSS | L81: Decrease Nutrients | N81: Decrease Runoff Volume | P81: Decrease Stream Power / Energy | V81: TSS Load Reduction | W81: =$AA$74*($X$51-AC48) -> 601.7769031 | X81: =$AA$74*($X$51-AD48) -> 645.3217715 | Y81: =$AA$74*($X$51-AE48) -> 594.8585596 | Z81: =$AA$74*($X$51-AF48) -> 649.3913853 | AA81: =$AA$74*($X$51-AG48) -> 655.4958061
A82: Percent imperviousness of drainage area | B82: % | C82: 75 | D82: ='5-In-Kind Off-Site Options'!G15 -> 0.3658595858 | J82: DEFAULT | K82: VALUE | L82: DEFAULT | M82: VALUE | N82: DEFAULT | O82: VALUE | P82: DEFAULT | Q82: VALUE | V82: TP Reduction | W82: =$AA$74*($Y$51-AC49) -> 1.4685399 | X82: =$AA$74*($Y$51-AD49) -> 1.794109009 | Y82: =$AA$74*($Y$51-AE49) -> 1.362729939 | Z82: =$AA$74*($Y$51-AF49) -> 1.187736543 | AA82: =$AA$74*($Y$51-AG49) -> 1.802248237
A83: Drainage area hydrologic soil group | B83: NA | C83: C | D83: ='5-In-Kind Off-Site Options'!F9 -> 3 | E83: =VLOOKUP(D83,'Hide-DropDownLists'!$N$5:$O$8,2,FALSE) -> C | I83: Reduce downstream flooding | J83: 0 | K83: ='[4]9-Advanced'!E8 -> 0 | L83: 0 | M83: ='[4]9-Advanced'!G8 -> 0 | N83: 1 | O83: ='[4]9-Advanced'!I8 -> 1 | P83: 1 | Q83: ='[4]9-Advanced'!K8 -> 1 | V83: TN Reduction | W83: =$AA$74*($Z$51-AC50) -> 12.87007047 | X83: =$AA$74*($Z$51-AD50) -> 12.21893225 | Y83: =$AA$74*($Z$51-AE50) -> 9.89925235 | Z83: =$AA$74*($Z$51-AF50) -> 12.66658978 | AA83: =$AA$74*($Z$51-AG50) -> 12.17823611
A84: Highway | B84: ac | C84: 0 | D84: ='5-In-Kind Off-Site Options'!F10 -> 0 | E84: ='5-In-Kind Off-Site Options'!G10 -> 0.9 | I84: Reduce hydromodification impacts | J84: 0 | K84: ='[4]9-Advanced'!E9 -> 0 | L84: 0 | M84: ='[4]9-Advanced'!G9 -> 0 | N84: 1 | O84: ='[4]9-Advanced'!I9 -> 1 | P84: 1 | Q84: ='[4]9-Advanced'!K9 -> 1 | V84: Load Removal Rank (High better) | W84: =W80/$W$51+W81/$X$51+W82/$Y$51+W83/$Z$51 -> 2.068223953 | X84: =X80/$W$51+X81/$X$51+X82/$Y$51+X83/$Z$51 -> 2.207325468 | Y84: =Y80/$W$51+Y81/$X$51+Y82/$Y$51+Y83/$Z$51 -> 1.876266509 | Z84: =Z80/$W$51+Z81/$X$51+Z82/$Y$51+Z83/$Z$51 -> 2.009747548 | AA84: =AA80/$W$51+AA81/$X$51+AA82/$Y$51+AA83/$Z$51 -> 2.220151362
A85: Urban area | B85: ac | C85: =$D$80*C42/SUM($C$42:$C$45) -> 0.9613848066 | D85: ='5-In-Kind Off-Site Options'!F11 -> 0.9613848066 | E85: ='5-In-Kind Off-Site Options'!G11 -> 0.75 | I85: Reduce downstream TSS and particulate bound pollutant loads and concentrations | J85: 1 | K85: ='[4]9-Advanced'!E10 -> 1 | L85: 0 | M85: ='[4]9-Advanced'!G10 -> 0 | N85: 1 | O85: ='[4]9-Advanced'!I10 -> 1 | P85: 0 | Q85: ='[4]9-Advanced'!K10 -> 0
A86: Natural land cover | B86: ac | C86: =$D$80*C43/SUM($C$42:$C$45) -> 1.015430732 | D86: ='5-In-Kind Off-Site Options'!F12 -> 1.015430732 | E86: ='5-In-Kind Off-Site Options'!G12 -> 0.01 | I86: Reduce downstream nutrient impacts | J86: 1 | K86: ='[4]9-Advanced'!E11 -> 1 | L86: 1 | M86: ='[4]9-Advanced'!G11 -> 1 | N86: 1 | O86: ='[4]9-Advanced'!I11 -> 1 | P86: 0 | Q86: ='[4]9-Advanced'!K11 -> 0
A87: Cropland | B87: ac | C87: =$D$80*C44/SUM($C$42:$C$45) -> 0.006257001529 | D87: ='5-In-Kind Off-Site Options'!F13 -> 0.006257001529 | E87: ='5-In-Kind Off-Site Options'!G13 -> 0.03 | I87: Improve/minimize downstream temperature impact | J87: 0 | K87: ='[4]9-Advanced'!E12 -> 0 | L87: 0 | M87: ='[4]9-Advanced'!G12 -> 0 | N87: 1 | O87: ='[4]9-Advanced'!I12 -> 1 | P87: 0 | Q87: ='[4]9-Advanced'!K12 -> 0
A88: Pasture | B88: ac | C88: =$D$80*C45/SUM($C$42:$C$45) -> 0.01692746032 | D88: ='5-In-Kind Off-Site Options'!F14 -> 0.01692746032 | E88: ='5-In-Kind Off-Site Options'!G14 -> 0.02 | I88: Total | J88: =SUMPRODUCT(J83:J87,$E$23:$E$27) -> 1 | K88: =SUMPRODUCT(K83:K87,$E$23:$E$27) -> 1 | L88: 1 | M88: 1 | N88: 1 | O88: 1 | P88: 0 | Q88: 0
A89: Replaced project area sum check | B89: ac | C89: =SUM(C84:C88) -> 2 | D89: =SUM(D84:D88) -> 2 | E89: =IF(D80>0,SUMPRODUCT(D84:D88,E84:E88)/D89,0) -> 0.3658595858 | V89: STEP 4a - Mitigation Measure Ratios
A90: 5-In Kind Off-Site Options-T7 | V90: Mitigation Measure | W90: Default Mitigation Ratio | X90: Relevant Parameter 1 | Y90: Relevant Parameter Units 1 | Z90: Relevant Parameter 2 | AA90: Relevant Parameter Units 2
A91: STORMWATER DESIGN BASIS | B91: UNITS | C91: DEFAULT | D91: VALUE | V91: Stream Improvement Techniques | W91: 0.1
A92: Runoff capture | B92: % | C92: 80 | D92: ='5-In-Kind Off-Site Options'!F25 -> 80 | V92: Upland Stabilization | W92: =IF(Z92>0,Z92/X57,0) -> 0 | X92: ='9-Advanced'!J41 -> 3.145 | Y92: tons/ac/yr | Z92: =IF($X$56>0,$X$56/(X92*$N$9),0) -> 0 | AA92: BMP Footprint in acres
A93: Volume reduction | B93: % | C93: 20 | D93: ='5-In-Kind Off-Site Options'!F26 -> 20 | V93: Reducing Impervious Surface Connectivity | W93: 1
V94: Wetland restoration/ creation | W94: 0.05
A95: 5-In Kind Off-Site Options-T8
A96: PREFERRED OFFSITE BMP CHARACTERISTICS | B96: UNITS | C96: DEFAULT | D96: VALUE
A97: BMP type | B97: NA | C97: =HLOOKUP(D97,$AC$37:$AG$38,2,FALSE) -> Swale | D97: 1 | E97: <- 1 - Swale, 2-Wetland, 3-Bioretention etc. Filled in automatically by dropdown
A98: BMP footprint to effective drainage area ratio | B98: NA | C98: =IF(D97=1,$J$39,IF(D97=2,$L$39,IF(D97=3,$N$39,IF(D97=4,$P$39,IF(D97=5,$R$39))))) -> 0.05 | D98: ='5-In-Kind Off-Site Options'!F20 -> 0.05
A99: BMP footprint area | B99: ac | C99: =C98*D80*C100 -> 0.1 | D99: =D98*D80*D100 -> 0.1
A100: Off-site Load Reduction Adjustment Factor | B100: - | C100: 1 | D100: ='5-In-Kind Off-Site Options'!F22 -> 1
A101: BMP footprint area check | B101: acres | C101: =D98*D100*D80*E89/100 -> 0.0003658595858
A106: 6-Out of Kind Options-T10
A107: BENEFICIAL USE APPLICABILITY | B107: DEFAULT | C107: VALUE
A108: Aquatic life / warm and cold habitats | B108: 1 | C108: ='6-Out-of-Kind Options'!E7 -> 1
A109: Drinking water supply | B109: 1 | C109: ='6-Out-of-Kind Options'!E8 -> 1
A110: Primary and Secondary Contact recreation | B110: 1 | C110: ='6-Out-of-Kind Options'!E9 -> 1
A111: Fish Consumption (edible seafood) | B111: 1 | C111: ='6-Out-of-Kind Options'!E10 -> 1
A112: Aesthetics | B112: 1 | C112: ='6-Out-of-Kind Options'!E11 -> 1
A113: Industrial Uses | B113: 1 | C113: ='6-Out-of-Kind Options'!E12 -> 1
A114: Wildlife / terrestrial life | B114: 1 | C114: ='6-Out-of-Kind Options'!E13 -> 1
A115: Rare and endangered species | B115: 1 | C115: ='6-Out-of-Kind Options'!E14 -> 1
A116: Wetland Habitat | B116: 1 | C116: ='6-Out-of-Kind Options'!E15 -> 1
A117: Note: 0 - Beneficial use not applicable or important, 1 - Beneficial use applicable or important, 2-Benefical use applicable and impaired
A118: 6-Out of Kind Options-T11
A119: WATERSHED ECOSYSTEM SERVICE | B119: WS Score | C119: USER VALUE
A120: ='6-Out-of-Kind Options'!C18 -> Biodiversity Conservation | B120: ='10-Advanced Out-of-Kind Calcs'!T106 -> 0.3481706971 | C120: ='6-Out-of-Kind Options'!E18 -> 0.2128831075
A121: ='6-Out-of-Kind Options'!C19 -> Clean and Plentiful Water | B121: ='10-Advanced Out-of-Kind Calcs'!T107 -> 0 | C121: ='6-Out-of-Kind Options'!E19 -> 0.3026266972
A122: ='6-Out-of-Kind Options'!C20 -> Food, Fuel, and Materials | B122: ='10-Advanced Out-of-Kind Calcs'!T108 -> 0.1018006712 | C122: ='6-Out-of-Kind Options'!E20 -> 0.1490891773
A123: ='6-Out-of-Kind Options'!C21 -> Natural Hazard Mitigation | B123: ='10-Advanced Out-of-Kind Calcs'!T109 -> 0.5500286317 | C123: ='6-Out-of-Kind Options'!E21 -> 0.1356492269
A124: ='6-Out-of-Kind Options'!C22 -> Recreation, Culture, and Aesthetics | B124: ='10-Advanced Out-of-Kind Calcs'!Q110 -> 0 | C124: ='6-Out-of-Kind Options'!E22 -> 0.1997517911
A125: Note: Score range is 0 - 10
A127: 6-Out of Kind Options-T12
A128: MITIGATION MEASURES | B128: DP SCORE | C128: UP-SCORE | D128: DO-SCORE | E128: UO-SCORE
A129: Stream Improvement Techniques | B129: ='10-Advanced Out-of-Kind Calcs'!O106 -> 0.2133950933 | C129: ='6-Out-of-Kind Options'!E27 -> 0.2133950933 | D129: ='10-Advanced Out-of-Kind Calcs'!Q106 -> 0.4444444444 | E129: ='6-Out-of-Kind Options'!G27 -> 0.4444444444
A130: Upland Stabilization | B130: ='10-Advanced Out-of-Kind Calcs'!O107 -> 0.1999143327 | C130: ='6-Out-of-Kind Options'!E28 -> 0.1999143327 | D130: ='10-Advanced Out-of-Kind Calcs'!Q107 -> 0 | E130: ='6-Out-of-Kind Options'!G28 -> 0
A131: Reducing Impervious Surface Connectivity | B131: ='10-Advanced Out-of-Kind Calcs'!O108 -> 0.2495760145 | C131: ='6-Out-of-Kind Options'!E29 -> 0.2495760145 | D131: ='10-Advanced Out-of-Kind Calcs'!Q108 -> 0.1111111111 | E131: ='6-Out-of-Kind Options'!G29 -> 0.1111111111
A132: Wetland Restoration / Creation | B132: ='10-Advanced Out-of-Kind Calcs'!O109 -> 0.3371145595 | C132: ='6-Out-of-Kind Options'!E30 -> 0.3371145595 | D132: ='10-Advanced Out-of-Kind Calcs'!Q109 -> 0.4444444444 | E132: ='6-Out-of-Kind Options'!G30 -> 0.4444444444
A133: Note: Score range is 0 - 1 | B133: =SUM(B129:B132) -> 1 | C133: =SUM(C129:C132) -> 1 | D133: =SUM(D129:D132) -> 1 | E133: 1
A135: 6-Out of Kind Options-T13
A136: MITIGATION MEASURES | B136: FINAL SCORE | C136: DEFAULT RATIO | D136: USER RATIO | E136: APPROX. FOOTPRINT (ac) | F136: Rank | G136: Rank
A137: ='6-Out-of-Kind Options'!C35 -> Stream Improvement Techniques | B137: ='10-Advanced Out-of-Kind Calcs'!V106 -> 0.3481706971 | C137: ='6-Out-of-Kind Options'!E35 -> 0.1 | D137: ='6-Out-of-Kind Options'!F35 -> 0.1 | E137: ='6-Out-of-Kind Options'!G35 -> 0 | F137: =IF(B137<0.2,4,IF(AND(B137>=0.2,B137<0.3),3,IF(AND(B137>=0.3,B137<0.4),2,1))) -> 2 | G137: =VLOOKUP(F137,$I$5:$J$8,2,FALSE) -> H
A138: ='6-Out-of-Kind Options'!C36 -> Upland Stabilization | B138: ='10-Advanced Out-of-Kind Calcs'!V107 -> 0 | C138: ='6-Out-of-Kind Options'!E36 -> 0 | D138: ='6-Out-of-Kind Options'!F36 -> 0 | E138: ='6-Out-of-Kind Options'!G36 -> 0 | F138: =IF(B138<0.2,4,IF(AND(B138>=0.2,B138<0.3),3,IF(AND(B138>=0.3,B138<0.4),2,1))) -> 4 | G138: =VLOOKUP(F138,$I$5:$J$8,2,FALSE) -> L
A139: ='6-Out-of-Kind Options'!C37 -> Reducing Impervious Surface Connectivity | B139: ='10-Advanced Out-of-Kind Calcs'!V108 -> 0.1018006712 | C139: ='6-Out-of-Kind Options'!E37 -> 1 | D139: ='6-Out-of-Kind Options'!F37 -> 1 | E139: ='6-Out-of-Kind Options'!G37 -> 0 | F139: 4 | G139: L
A140: ='6-Out-of-Kind Options'!C38 -> Wetland Restoration / Creation | B140: ='10-Advanced Out-of-Kind Calcs'!V109 -> 0.5500286317 | C140: ='6-Out-of-Kind Options'!E38 -> 0.05 | D140: ='6-Out-of-Kind Options'!F38 -> 0.05 | E140: ='6-Out-of-Kind Options'!G38 -> 0 | F140: 1 | G140: H
A143: Saved User Input / Settings
A144: Variable | B144: Units | C144: Value | D144: Name
A145: Region | B145: NA | C145: 1 | D145: 1
A146: Watershed Gage ID | B146: NA | C146: [3] PUGET SOUND LOWLANDS - OLYMPIA AP | D146: [3] PUGET SOUND LOWLANDS - OLYMPIA AP
A147: State | B147: NA | C147: Washington | D147: Washington
A148: County | B148: NA | C148: Pierce | D148: Pierce
A149: HUC 12 ID | B149: NA | C149: 171100190304 | D149: 171100190304
A151: User HUC12 ID | B151: NA

Sheet HideUSCounties (hidden)
B1: U.S. FIPS County Codes
A2: StateNumber | B2: State | C2: County Name | D2: FIPS State | E2: FIPS County
A3: =1*D3 -> 1 | B3: Alabama | C3: Autauga | D3: 01 | E3: 001
A4: =1*D4 -> 1 | B4: Alabama | C4: Baldwin | D4: 01 | E4: 003
A5: 1 | B5: Alabama | C5: Barbour | D5: 01 | E5: 005
A6: 1 | B6: Alabama | C6: Bibb | D6: 01 | E6: 007
A7: 1 | B7: Alabama | C7: Blount | D7: 01 | E7: 009
A8: 1 | B8: Alabama | C8: Bullock | D8: 01 | E8: 011
A9: 1 | B9: Alabama | C9: Butler | D9: 01 | E9: 013
A10: 1 | B10: Alabama | C10: Calhoun | D10: 01 | E10: 015
A11: 1 | B11: Alabama | C11: Chambers | D11: 01 | E11: 017
A12: 1 | B12: Alabama | C12: Cherokee | D12: 01 | E12: 019
A13: 1 | B13: Alabama | C13: Chilton | D13: 01 | E13: 021
A14: 1 | B14: Alabama | C14: Choctaw | D14: 01 | E14: 023
A15: 1 | B15: Alabama | C15: Clarke | D15: 01 | E15: 025
A16: 1 | B16: Alabama | C16: Clay | D16: 01 | E16: 027
A17: 1 | B17: Alabama | C17: Cleburne | D17: 01 | E17: 029
A18: 1 | B18: Alabama | C18: Coffee | D18: 01 | E18: 031
A19: 1 | B19: Alabama | C19: Colbert | D19: 01 | E19: 033
A20: 1 | B20: Alabama | C20: Conecuh | D20: 01 | E20: 035
A21: 1 | B21: Alabama | C21: Coosa | D21: 01 | E21: 037
A22: 1 | B22: Alabama | C22: Covington | D22: 01 | E22: 039
A23: 1 | B23: Alabama | C23: Crenshaw | D23: 01 | E23: 041
A24: 1 | B24: Alabama | C24: Cullman | D24: 01 | E24: 043
A25: 1 | B25: Alabama | C25: Dale | D25: 01 | E25: 045
A26: 1 | B26: Alabama | C26: Dallas | D26: 01 | E26: 047
A27: 1 | B27: Alabama | C27: De Kalb | D27: 01 | E27: 049
A28: 1 | B28: Alabama | C28: Elmore | D28: 01 | E28: 051
A29: 1 | B29: Alabama | C29: Escambia | D29: 01 | E29: 053
A30: 1 | B30: Alabama | C30: Etowah | D30: 01 | E30: 055
A31: 1 | B31: Alabama | C31: Fayette | D31: 01 | E31: 057
A32: 1 | B32: Alabama | C32: Franklin | D32: 01 | E32: 059
A33: 1 | B33: Alabama | C33: Geneva | D33: 01 | E33: 061
A34: 1 | B34: Alabama | C34: Greene | D34: 01 | E34: 063
A35: 1 | B35: Alabama | C35: Hale | D35: 01 | E35: 065
A36: 1 | B36: Alabama | C36: Henry | D36: 01 | E36: 067
A37: 1 | B37: Alabama | C37: Houston | D37: 01 | E37: 069
A38: 1 | B38: Alabama | C38: Jackson | D38: 01 | E38: 071
A39: 1 | B39: Alabama | C39: Jefferson | D39: 01 | E39: 073
A40: 1 | B40: Alabama | C40: Lamar | D40: 01 | E40: 075
A41: 1 | B41: Alabama | C41: Lauderdale | D41: 01 | E41: 077
A42: 1 | B42: Alabama | C42: Lawrence | D42: 01 | E42: 079
A43: 1 | B43: Alabama | C43: Lee | D43: 01 | E43: 081
A44: 1 | B44: Alabama | C44: Limestone | D44: 01 | E44: 083
A45: 1 | B45: Alabama | C45: Lowndes | D45: 01 | E45: 085
A46: 1 | B46: Alabama | C46: Macon | D46: 01 | E46: 087
A47: 1 | B47: Alabama | C47: Madison | D47: 01 | E47: 089
A48: 1 | B48: Alabama | C48: Marengo | D48: 01 | E48: 091
A49: 1 | B49: Alabama | C49: Marion | D49: 01 | E49: 093
A50: 1 | B50: Alabama | C50: Marshall | D50: 01 | E50: 095
A51: 1 | B51: Alabama | C51: Mobile | D51: 01 | E51: 097
A52: 1 | B52: Alabama | C52: Monroe | D52: 01 | E52: 099
A53: 1 | B53: Alabama | C53: Montgomery | D53: 01 | E53: 101
A54: 1 | B54: Alabama | C54: Morgan | D54: 01 | E54: 103
A55: 1 | B55: Alabama | C55: Perry | D55: 01 | E55: 105
A56: 1 | B56: Alabama | C56: Pickens | D56: 01 | E56: 107
A57: 1 | B57: Alabama | C57: Pike | D57: 01 | E57: 109
A58: 1 | B58: Alabama | C58: Randolph | D58: 01 | E58: 111
A59: 1 | B59: Alabama | C59: Russell | D59: 01 | E59: 113
A60: 1 | B60: Alabama | C60: St Clair | D60: 01 | E60: 115
A61: 1 | B61: Alabama | C61: Shelby | D61: 01 | E61: 117
A62: 1 | B62: Alabama | C62: Sumter | D62: 01 | E62: 119
A63: 1 | B63: Alabama | C63: Talladega | D63: 01 | E63: 121
A64: 1 | B64: Alabama | C64: Tallapoosa | D64: 01 | E64: 123
A65: 1 | B65: Alabama | C65: Tuscaloosa | D65: 01 | E65: 125
A66: 1 | B66: Alabama | C66: Walker | D66: 01 | E66: 127
A67: 1 | B67: Alabama | C67: Washington | D67: 01 | E67: 129
A68: =1*D68 -> 1 | B68: Alabama | C68: Wilcox | D68: 01 | E68: 131
A69: 1 | B69: Alabama | C69: Winston | D69: 01 | E69: 133
A70: 4 | B70: Arizona | C70: Apache | D70: 04 | E70: 001
A71: 4 | B71: Arizona | C71: Cochise | D71: 04 | E71: 003
A72: 4 | B72: Arizona | C72: Coconino | D72: 04 | E72: 005
A73: 4 | B73: Arizona | C73: Gila | D73: 04 | E73: 007
A74: 4 | B74: Arizona | C74: Graham | D74: 04 | E74: 009
A75: 4 | B75: Arizona | C75: Greenlee | D75: 04 | E75: 011
A76: 4 | B76: Arizona | C76: La Paz | D76: 04 | E76: 012
A77: 4 | B77: Arizona | C77: Maricopa | D77: 04 | E77: 013
A78: 4 | B78: Arizona | C78: Mohave | D78: 04 | E78: 015
A79: 4 | B79: Arizona | C79: Navajo | D79: 04 | E79: 017
A80: 4 | B80: Arizona | C80: Pima | D80: 04 | E80: 019
A81: 4 | B81: Arizona | C81: Pinal | D81: 04 | E81: 021
A82: 4 | B82: Arizona | C82: Santa Cruz | D82: 04 | E82: 023
A83: 4 | B83: Arizona | C83: Yavapai | D83: 04 | E83: 025
A84: 4 | B84: Arizona | C84: Yuma | D84: 04 | E84: 027
A85: 5 | B85: Arkansas | C85: Arkansas | D85: 05 | E85: 001
A86: 5 | B86: Arkansas | C86: Ashley | D86: 05 | E86: 003
A87: 5 | B87: Arkansas | C87: Baxter | D87: 05 | E87: 005
A88: 5 | B88: Arkansas | C88: Benton | D88: 05 | E88: 007
A89: 5 | B89: Arkansas | C89: Boone | D89: 05 | E89: 009
A90: 5 | B90: Arkansas | C90: Bradley | D90: 05 | E90: 011
A91: 5 | B91: Arkansas | C91: Calhoun | D91: 05 | E91: 013
A92: 5 | B92: Arkansas | C92: Carroll | D92: 05 | E92: 015
A93: 5 | B93: Arkansas | C93: Chicot | D93: 05 | E93: 017
A94: 5 | B94: Arkansas | C94: Clark | D94: 05 | E94: 019
A95: 5 | B95: Arkansas | C95: Clay | D95: 05 | E95: 021
A96: 5 | B96: Arkansas | C96: Cleburne | D96: 05 | E96: 023
A97: 5 | B97: Arkansas | C97: Cleveland | D97: 05 | E97: 025
A98: 5 | B98: Arkansas | C98: Columbia | D98: 05 | E98: 027
A99: 5 | B99: Arkansas | C99: Conway | D99: 05 | E99: 029
A100: 5 | B100: Arkansas | C100: Craighead | D100: 05 | E100: 031
A101: 5 | B101: Arkansas | C101: Crawford | D101: 05 | E101: 033
A102: 5 | B102: Arkansas | C102: Crittenden | D102: 05 | E102: 035
A103: 5 | B103: Arkansas | C103: Cross | D103: 05 | E103: 037
A104: 5 | B104: Arkansas | C104: Dallas | D104: 05 | E104: 039
A105: =1*D105 -> 5 | B105: Arkansas | C105: Desha | D105: 05 | E105: 041
A106: 5 | B106: Arkansas | C106: Drew | D106: 05 | E106: 043
A107: 5 | B107: Arkansas | C107: Faulkner | D107: 05 | E107: 045
A108: 5 | B108: Arkansas | C108: Franklin | D108: 05 | E108: 047
A109: 5 | B109: Arkansas | C109: Fulton | D109: 05 | E109: 049
A110: 5 | B110: Arkansas | C110: Garland | D110: 05 | E110: 051
A111: 5 | B111: Arkansas | C111: Grant | D111: 05 | E111: 053
A112: 5 | B112: Arkansas | C112: Greene | D112: 05 | E112: 055
A113: 5 | B113: Arkansas | C113: Hempstead | D113: 05 | E113: 057
A114: 5 | B114: Arkansas | C114: Hot Spring | D114: 05 | E114: 059
A115: 5 | B115: Arkansas | C115: Howard | D115: 05 | E115: 061
A116: 5 | B116: Arkansas | C116: Independence | D116: 05 | E116: 063
A117: 5 | B117: Arkansas | C117: Izard | D117: 05 | E117: 065
A118: 5 | B118: Arkansas | C118: Jackson | D118: 05 | E118: 067
A119: 5 | B119: Arkansas | C119: Jefferson | D119: 05 | E119: 069
A120: 5 | B120: Arkansas | C120: Johnson | D120: 05 | E120: 071
A121: 5 | B121: Arkansas | C121: Lafayette | D121: 05 | E121: 073
A122: 5 | B122: Arkansas | C122: Lawrence | D122: 05 | E122: 075
A123: 5 | B123: Arkansas | C123: Lee | D123: 05 | E123: 077
A124: 5 | B124: Arkansas | C124: Lincoln | D124: 05 | E124: 079
A125: 5 | B125: Arkansas | C125: Little River | D125: 05 | E125: 081
A126: 5 | B126: Arkansas | C126: Logan | D126: 05 | E126: 083
A127: 5 | B127: Arkansas | C127: Lonoke | D127: 05 | E127: 085
A128: 5 | B128: Arkansas | C128: Madison | D128: 05 | E128: 087
A129: 5 | B129: Arkansas | C129: Marion | D129: 05 | E129: 089
A130: 5 | B130: Arkansas | C130: Miller | D130: 05 | E130: 091
A131: 5 | B131: Arkansas | C131: Mississippi | D131: 05 | E131: 093
A132: 5 | B132: Arkansas | C132: Monroe | D132: 05 | E132: 095
A133: 5 | B133: Arkansas | C133: Nevada | D133: 05 | E133: 099
A134: 5 | B134: Arkansas | C134: Newton | D134: 05 | E134: 101
A135: 5 | B135: Arkansas | C135: Ouachita | D135: 05 | E135: 103
A136: 5 | B136: Arkansas | C136: Perry | D136: 05 | E136: 105
A137: 5 | B137: Arkansas | C137: Phillips | D137: 05 | E137: 107
A138: 5 | B138: Arkansas | C138: Pike | D138: 05 | E138: 109
A139: 5 | B139: Arkansas | C139: Poinsett | D139: 05 | E139: 111
A140: 5 | B140: Arkansas | C140: Polk | D140: 05 | E140: 113
A141: 5 | B141: Arkansas | C141: Pope | D141: 05 | E141: 115
A142: 5 | B142: Arkansas | C142: Prairie | D142: 05 | E142: 117
A143: 5 | B143: Arkansas | C143: Pulaski | D143: 05 | E143: 119
A144: 5 | B144: Arkansas | C144: Randolph | D144: 05 | E144: 121
A145: 5 | B145: Arkansas | C145: St Francis | D145: 05 | E145: 123
A146: 5 | B146: Arkansas | C146: Saline | D146: 05 | E146: 125
A147: 5 | B147: Arkansas | C147: Scott | D147: 05 | E147: 127
A148: 5 | B148: Arkansas | C148: Searcy | D148: 05 | E148: 129
A149: 5 | B149: Arkansas | C149: Sebastian | D149: 05 | E149: 131
A150: 5 | B150: Arkansas | C150: Sevier | D150: 05 | E150: 133
A151: 5 | B151: Arkansas | C151: Sharp | D151: 05 | E151: 135
A152: 5 | B152: Arkansas | C152: Stone | D152: 05 | E152: 137
A153: 5 | B153: Arkansas | C153: Union | D153: 05 | E153: 139
A154: 5 | B154: Arkansas | C154: Van Buren | D154: 05 | E154: 141
A155: 5 | B155: Arkansas | C155: Washington | D155: 05 | E155: 143
A156: 5 | B156: Arkansas | C156: White | D156: 05 | E156: 145
A157: 5 | B157: Arkansas | C157: Woodruff | D157: 05 | E157: 147
A158: 5 | B158: Arkansas | C158: Yell | D158: 05 | E158: 149
A159: 6 | B159: California | C159: Alameda | D159: 06 | E159: 001
A160: 6 | B160: California | C160: Alpine | D160: 06 | E160: 003
A161: 6 | B161: California | C161: Amador | D161: 06 | E161: 005
A162: 6 | B162: California | C162: Butte | D162: 06 | E162: 007
A163: 6 | B163: California | C163: Calaveras | D163: 06 | E163: 009
A164: 6 | B164: California | C164: Colusa | D164: 06 | E164: 011
A165: 6 | B165: California | C165: Contra Costa | D165: 06 | E165: 013
A166: 6 | B166: California | C166: Del Norte | D166: 06 | E166: 015
A167: 6 | B167: California | C167: El Dorado | D167: 06 | E167: 017
A168: 6 | B168: California | C168: Fresno | D168: 06 | E168: 019
A169: =1*D169 -> 6 | B169: California | C169: Glenn | D169: 06 | E169: 021
A170: 6 | B170: California | C170: Humboldt | D170: 06 | E170: 023
A171: 6 | B171: California | C171: Imperial | D171: 06 | E171: 025
A172: 6 | B172: California | C172: Inyo | D172: 06 | E172: 027
A173: 6 | B173: California | C173: Kern | D173: 06 | E173: 029
A174: 6 | B174: California | C174: Kings | D174: 06 | E174: 031
A175: 6 | B175: California | C175: Lake | D175: 06 | E175: 033
A176: 6 | B176: California | C176: Lassen | D176: 06 | E176: 035
A177: 6 | B177: California | C177: Los Angeles | D177: 06 | E177: 037
A178: 6 | B178: California | C178: Madera | D178: 06 | E178: 039
A179: 6 | B179: California | C179: Marin | D179: 06 | E179: 041
A180: 6 | B180: California | C180: Mariposa | D180: 06 | E180: 043
A181: 6 | B181: California | C181: Mendocino | D181: 06 | E181: 045
A182: 6 | B182: California | C182: Merced | D182: 06 | E182: 047
A183: 6 | B183: California | C183: Modoc | D183: 06 | E183: 049
A184: 6 | B184: California | C184: Mono | D184: 06 | E184: 051
A185: 6 | B185: California | C185: Monterey | D185: 06 | E185: 053
A186: 6 | B186: California | C186: Napa | D186: 06 | E186: 055
A187: 6 | B187: California | C187: Nevada | D187: 06 | E187: 057
A188: 6 | B188: California | C188: Orange | D188: 06 | E188: 059
A189: 6 | B189: California | C189: Placer | D189: 06 | E189: 061
A190: 6 | B190: California | C190: Plumas | D190: 06 | E190: 063
A191: 6 | B191: California | C191: Riverside | D191: 06 | E191: 065
A192: 6 | B192: California | C192: Sacramento | D192: 06 | E192: 067
A193: 6 | B193: California | C193: San Benito | D193: 06 | E193: 069
A194: 6 | B194: California | C194: San Bernardino | D194: 06 | E194: 071
A195: 6 | B195: California | C195: San Diego | D195: 06 | E195: 073
A196: 6 | B196: California | C196: San Francisco | D196: 06 | E196: 075
A197: 6 | B197: California | C197: San Joaquin | D197: 06 | E197: 077
A198: 6 | B198: California | C198: San Luis Obispo | D198: 06 | E198: 079
A199: 6 | B199: California | C199: San Mateo | D199: 06 | E199: 081
A200: 6 | B200: California | C200: Santa Barbara | D200: 06 | E200: 083
... 2911 more rows

Sheet Hide-DropDownLists (hidden)
A2: M0 - Tool Applicability Drop Down Lists | F2: M1 - Watershed Characteristics Drop Down Lists | O2: M2 | T2: M3
A4: Tier I Q1a & Tier II | D4: RegionCode | E4: StateName & Code | F4: StateName | G4: State Abbrv | J4: Region ID | K4: Region Name | L4: Region Lookup | N4: # | O4: Hydrologic soil groups | P4: Ksat | Q4: BMP Types | T4: ECOSYSTEM RANK | V4: Chart Labels 1 | X4: Chart Labels 2 | AA4: # | AB4: AADT Range | AC4: # | AF4: Default Percentile | AG4: Lookup Column #
A5: NO | D5: 7 | E5: Alabama,AL | F5: Alabama | G5: AL | J5: 1 | K5: Northwest | L5: 1 | N5: 1 | O5: A | P5: 1.2 | Q5: Swale | R5: 1 | T5: 0 - NA | V5: On-site in-kind | X5: TSS | AA5: 1 | AB5: 0 - 30K | AC5: 1 | AF5: 0.01 | AG5: Northwest
A6: YES | D6: 2 | E6: Arizona,AZ | F6: Arizona | G6: AZ | J6: 2 | K6: Southwest | L6: 2 | N6: 2 | O6: B | P6: 0.33 | Q6: Wetland | R6: 2 | T6: 1 - LOW | V6: Off-site in-kind | X6: TP | AA6: 2 | AB6: 30 - 90K | AC6: 2 | AF6: 0.05 | AG6: Southwest
D7: 6 | E7: Arkansas,AR | F7: Arkansas | G7: AR | J7: 3 | K7: North Central | L7: 3 | N7: 3 | O7: C | P7: 0.11 | Q7: Dry Pond | R7: 3 | T7: 2 - MEDIUM | V7: Outstanding | X7: TN | AA7: 3 | AB7: 90K+ | AC7: 3 | AF7: 0.1 | AG7: North Central
A8: Tier I Q1a | D8: 2 | E8: California,CA | F8: California | G8: CA | J8: 4 | K8: South Central | L8: 4 | N8: 4 | O8: D | P8: 0.03 | Q8: Bioretention | R8: 4 | T8: 3 - HIGH | V8: Out-of-kind | X8: Volume | AF8: 0.25 | AG8: South Central
A9: YES | D9: 4 | E9: Colorado,CO | F9: Colorado | G9: CO | J9: 5 | K9: Great Lakes | L9: 5 | Q9: Media Filter | R9: 5 | AF9: 0.3 | AG9: Great Lakes
A10: NO | D10: 10 | E10: Connecticut,CT | F10: Connecticut | G10: CT | J10: 6 | K10: South Atlantic | L10: 6 | AF10: 0.5 | AG10: South Atlantic
D11: 9 | E11: Delaware,DE | F11: Delaware | G11: DE | J11: 7 | K11: Southeast | L11: 7 | AF11: 0.6 | AG11: Southeast
D12: 7 | E12: Florida,FL | F12: Florida | G12: FL | J12: 8 | K12: Mid-Atlantic | L12: 8 | AF12: 0.75 | AG12: Mid-Atlantic
D13: 7 | E13: Georgia,GA | F13: Georgia | G13: GA | J13: 9 | K13: North Atlantic | L13: 9 | AF13: 0.9 | AG13: North Atlantic
D14: 1 | E14: Idaho,ID | F14: Idaho | G14: ID | J14: 10 | K14: New England | L14: 10 | AF14: 0.95 | AG14: New England
D15: 5 | E15: Illinois,IL | F15: Illinois | G15: IL | J15: X | K15: Omitted | L15: X | AF15: 0.99 | AG15: Omitted
D16: 5 | E16: Indiana,IN | F16: Indiana | G16: IN
D17: 3 | E17: Iowa,IA | F17: Iowa | G17: IA
D18: 4 | E18: Kansas,KS | F18: Kansas | G18: KS
D19: 8 | E19: Kentucky,KY | F19: Kentucky | G19: KY
D20: 7 | E20: Louisiana,LA | F20: Louisiana | G20: LA
D21: 10 | E21: Maine,ME | F21: Maine | G21: ME
D22: 8 | E22: Maryland,MD | F22: Maryland | G22: MD
D23: 10 | E23: Massachusetts,MA | F23: Massachusetts | G23: MA
D24: 5 | E24: Michigan,MI | F24: Michigan | G24: MI
D25: 3 | E25: Minnesota,MN | F25: Minnesota | G25: MN
D26: 7 | E26: Mississippi,MS | F26: Mississippi | G26: MS
D27: 5 | E27: Missouri,MO | F27: Missouri | G27: MO
D28: 1 | E28: Montana,MT | F28: Montana | G28: MT
D29: 3 | E29: Nebraska,NE | F29: Nebraska | G29: NE
D30: 2 | E30: Nevada,NV | F30: Nevada | G30: NV
D31: 10 | E31: New Hampshire,NH | F31: New Hampshire | G31: NH
D32: 9 | E32: New Jersey,NJ | F32: New Jersey | G32: NJ
D33: 4 | E33: New Mexico,NM | F33: New Mexico | G33: NM
D34: 9 | E34: New York,NY | F34: New York | G34: NY
D35: 6 | E35: North Carolina,NC | F35: North Carolina | G35: NC
D36: 3 | E36: North Dakota,ND | F36: North Dakota | G36: ND
D37: 8 | E37: Ohio,OH | F37: Ohio | G37: OH
D38: 4 | E38: Oklahoma,OK | F38: Oklahoma | G38: OK
D39: 1 | E39: Oregon,OR | F39: Oregon | G39: OR
D40: 9 | E40: Pennsylvania,PA | F40: Pennsylvania | G40: PA
D41: 10 | E41: Rhode Island,RI | F41: Rhode Island | G41: RI
D42: 6 | E42: South Carolina,SC | F42: South Carolina | G42: SC
D43: 3 | E43: South Dakota,SD | F43: South Dakota | G43: SD
D44: 6 | E44: Tennessee,TN | F44: Tennessee | G44: TN
D45: 4 | E45: Texas,TX | F45: Texas | G45: TX
D46: 2 | E46: Utah,UT | F46: Utah | G46: UT
D47: 10 | E47: Vermont,VT | F47: Vermont | G47: VT
D48: 8 | E48: Virginia,VA | F48: Virginia | G48: VA
D49: 1 | E49: Washington,WA | F49: Washington | G49: WA
D50: 8 | E50: West Virginia,WV | F50: West Virginia | G50: WV
D51: 5 | E51: Wisconsin,WI | F51: Wisconsin | G51: WI
D52: 1 | E52: Wyoming,WY | F52: Wyoming | G52: WY
E56: The following are not supported
D57: X | E57: Alaska,AK | F57: Alaska | G57: AK
D58: X | E58: Hawaii,HI | F58: Hawaii | G58: HI

Sheet Hide-HUC-Lookup (hidden)
A1: Index | B1: EnviroAtlas HUC_12 | C1: 2014 HUC12 | D1: PIMPV_impervious | E1: N_INDEX_landcover | F1: PAGC_landcover | G1: PAGP_landcover | H1: PctPRW_PctPRW | I1: PURB_Percent_Urban_Land_Cover | J1: RNAT30_riparian | K1: area_sqkm | L1: HUC_12AvgAnnualPrecip | M1: CountyName | N1: StateCode | P1: RainGageID | T1: Data Dictionary
A2: =C2&"|"&M2 & "|" & N2 -> 10100060101|Somerset|ME | B2: 10100010101 | C2: 10100060101 | D2: 0 | E2: 100 | F2: 0 | G2: 0 | H2: 0 | I2: 0 | J2: 100 | K2: 56.548483 | L2: 47.0645 | M2: Somerset | N2: ME | O2: Fourth St. John Pond | P2: =VLOOKUP(N2,'Hide-RainGages'!$C$1:$K$344,9,FALSE) -> 171175 | T2: Field Name | U2: Description
A3: =C3&"|"&M3 & "|" & N3 -> 10100060102|Somerset|ME | B3: 10100010102 | C3: 10100060102 | D3: 0 | E3: 100 | F3: 0 | G3: 0 | H3: 0 | I3: 0 | J3: 100 | K3: 61.201603 | L3: 45.5915 | M3: Somerset | N3: ME | O3: Fifth St. John Pond | P3: =VLOOKUP(N3,'Hide-RainGages'!$C$1:$K$344,9,FALSE) -> 171175 | T3: OBJECTID | U3: Unique identifier for watershed shapefile
A4: 10100060103|Somerset|ME | B4: 10100010103 | C4: 10100060103 | D4: 0 | E4: 100 | F4: 0 | G4: 0 | H4: 0 | I4: 0 | J4: 100 | K4: 94.964429 | L4: 44.9455 | M4: Somerset | N4: ME | O4: Sweeney Brook | P4: =VLOOKUP(N4,'Hide-RainGages'!$C$1:$K$344,9,FALSE) -> 171175 | T4: HUC_12 | U4: USGS watershed identifier
A5: 10100060104|Piscataquis|ME | B5: 10100010104 | C5: 10100060104 | D5: 0.0055 | E5: 99.8954 | F5: 0 | G5: 0 | H5: 0 | I5: 0.102 | J5: 100 | K5: 233.503934 | L5: 45.0112 | M5: Piscataquis | N5: ME | O5: Baker Lake | P5: =VLOOKUP(N5,'Hide-RainGages'!$C$1:$K$344,9,FALSE) -> 171175 | T5: Shape_Length | U5: Perimeter length in meters
A6: 10100060108|Somerset|ME | B6: 10100010105 | C6: 10100060108 | D6: 0.0346 | E6: 99.6276 | F6: 0 | G6: 0 | H6: 0 | I6: 0.372 | J6: 99.8102 | K6: 131.475767 | L6: 46 | M6: Somerset | N6: ME | O6: Brailey Brook | P6: =VLOOKUP(N6,'Hide-RainGages'!$C$1:$K$344,9,FALSE) -> 171175 | T6: Shape_Area | U6: Watershed area in square meters
A7: 10100060105|Piscataquis|ME | B7: 10100010106 | C7: 10100060105 | D7: 0 | E7: 100 | F7: 0 | G7: 0 | H7: 0 | I7: 0 | J7: 100 | K7: 54.404928 | L7: 44.9508 | M7: Piscataquis | N7: ME | O7: Desolation Brook | P7: =VLOOKUP(N7,'Hide-RainGages'!$C$1:$K$344,9,FALSE) -> 171175 | T7: Area_km2 | U7: Watershed area in square kilometers
A8: 10100060106|Piscataquis|ME | B8: 10100010107 | C8: 10100060106 | D8: 0.0502 | E8: 99.3135 | F8: 0 | G8: 0 | H8: 0 | I8: 0.662 | J8: 98.7204 | K8: 40.664457 | L8: 44.9216 | M8: Piscataquis | N8: ME | O8: St. Francis Brook | P8: =VLOOKUP(N8,'Hide-RainGages'!$C$1:$K$344,9,FALSE) -> 171175 | T8: PIMPV | U8: Percent impervious area
A9: 10100060107|Piscataquis|ME | B9: 10100010108 | C9: 10100060107 | D9: 0.0189 | E9: 99.7595 | F9: 0 | G9: 0 | H9: 0 | I9: 0.239 | J9: 99.8967 | K9: 65.188889 | L9: 44.5571 | M9: Piscataquis | N9: ME | O9: Turner Brook | P9: =VLOOKUP(N9,'Hide-RainGages'!$C$1:$K$344,9,FALSE) -> 171175 | T9: LC_OVERLAP
A10: 10100060109|Somerset|ME | B10: 10100010109 | C10: 10100060109 | D10: 0.0035 | E10: 99.9522 | F10: 0 | G10: 0 | H10: 0 | I10: 0.048 | J10: 99.9601 | K10: 181.201214 | L10: 45.078 | M10: Somerset | N10: ME | O10: Baker Branch St. John River | P10: =VLOOKUP(N10,'Hide-RainGages'!$C$1:$K$344,9,FALSE) -> 171175 | T10: N_INDEX | U10: Percent natural land cover
A11: 10100060204|Somerset|ME | B11: 10100010201 | C11: 10100060204 | D11: 0.0513 | E11: 99.6564 | F11: 0 | G11: 0 | H11: 0 | I11: 0.344 | J11: 99.8521 | K11: 133.870061 | L11: 46.2792 | M11: Somerset | N11: ME | O11: Upper Little Southwest Branch Saint John River | P11: =VLOOKUP(N11,'Hide-RainGages'!$C$1:$K$344,9,FALSE) -> 171175 | T11: PFOR | U11: Percent forested area
A12: 10100060205|Somerset|ME | B12: 10100010202 | C12: 10100060205 | D12: 0.0166 | E12: 99.7583 | F12: 0 | G12: 0 | H12: 0 | I12: 0.242 | J12: 99.9028 | K12: 80.417777 | L12: 46.0109 | M12: Somerset | N12: ME | O12: Lower Little Southwest Branch Saint John River | P12: =VLOOKUP(N12,'Hide-RainGages'!$C$1:$K$344,9,FALSE) -> 171175 | T12: PWETL | U12: Percent wetland area
A13: 10100060201|Somerset|ME | B13: 10100010203 | C13: 10100060201 | D13: 0.589 | E13: 99.7345 | F13: 0 | G13: 0 | H13: 0 | I13: 0.268 | J13: 99.469 | K13: 90.805733 | L13: 46.8224 | M13: Somerset | N13: ME | O13: Little St. John Lake-Southwest Branch St. John River | P13: =VLOOKUP(N13,'Hide-RainGages'!$C$1:$K$344,9,FALSE) -> 171175 | T13: PAGT
A14: 10100060202|Somerset|ME | B14: 10100010204 | C14: 10100060202 | D14: 0.5083 | E14: 99.9286 | F14: 0 | G14: 0 | H14: 0 | I14: 0.071 | J14: 100 | K14: 128.289295 | L14: 46.1575 | M14: Somerset | N14: ME | O14: South Morning Brook-Southwest Branch St. John River | P14: =VLOOKUP(N14,'Hide-RainGages'!$C$1:$K$344,9,FALSE) -> 171175 | T14: PAGP | U14: Percent pasture
A15: 10100060203|Somerset|ME | B15: 10100010205 | C15: 10100060203 | D15: 0.5039 | E15: 99.4864 | F15: 0 | G15: 0 | H15: 0 | I15: 0.506 | J15: 99.5025 | K15: 125.40508 | L15: 46.7882 | M15: Somerset | N15: ME | O15: Doucet Stream-Southwest Branch St. John River | P15: =VLOOKUP(N15,'Hide-RainGages'!$C$1:$K$344,9,FALSE) -> 171175 | T15: PAGC | U15: Percent cropland
A16: 10100060206|Somerset|ME | B16: 10100010206 | C16: 10100060206 | D16: 0.1202 | E16: 99.4482 | F16: 0 | G16: 0 | H16: 0 | I16: 0.552 | J16: 99.8366 | K16: 54.803575 | L16: 44.0615 | M16: Somerset | N16: ME | O16: Doucie Brook | P16: =VLOOKUP(N16,'Hide-RainGages'!$C$1:$K$344,9,FALSE) -> 171175 | T16: PFOR90 | U16: Percent forest and woody wetlands
A17: 10100060207|Piscataquis|ME | B17: 10100010207 | C17: 10100060207 | D17: 0.024 | E17: 99.8016 | F17: 0 | G17: 0 | H17: 0 | I17: 0.198 | J17: 99.9324 | K17: 92.563904 | L17: 44.0481 | M17: Piscataquis | N17: ME | O17: Knowles Brook | P17: =VLOOKUP(N17,'Hide-RainGages'!$C$1:$K$344,9,FALSE) -> 171175 | T17: PWETL95 | U17: Percent emergent herbaceous wetlands
A18: 10100060208|Somerset|ME | B18: 10100010208 | C18: 10100060208 | D18: 0.0861 | E18: 99.5913 | F18: 0 | G18: 0 | H18: 0 | I18: 0.406 | J18: 99.7278 | K18: 210.258062 | L18: 45.2366 | M18: Somerset | N18: ME | O18: Southwest Branch St. John River | P18: =VLOOKUP(N18,'Hide-RainGages'!$C$1:$K$344,9,FALSE) -> 171175 | T18: RLA_30
A19: 10100060305|Aroostook|ME | B19: 10100010305 | C19: 10100060305 | D19: 0.1083 | E19: 100 | F19: 0 | G19: 0 | H19: 0 | I19: 0 | J19: 100 | K19: 62.866788 | L19: 46.9565 | M19: Aroostook | N19: ME | O19: Riviere Leverrier | P19: =VLOOKUP(N19,'Hide-RainGages'!$C$1:$K$344,9,FALSE) -> 171175 | T19: RO_30
A20: 10100060307|Aroostook|ME | B20: 10100010307 | C20: 10100060307 | D20: 2.2663 | E20: 100 | F20: 0 | G20: 0 | H20: 0 | I20: 0 | J20: 100 | K20: 63.059512 | L20: 46.1944 | M20: Aroostook | N20: ME | O20: Riviere a la Loutre | P20: =VLOOKUP(N20,'Hide-RainGages'!$C$1:$K$344,9,FALSE) -> 171175 | T20: RNAT30 | U20: Percent natural land cover in buffer
A21: 10100060312|Aroostook|ME | B21: 10100010312 | C21: 10100060312 | D21: 0.6012 | E21: 99.452 | F21: 0 | G21: 0 | H21: 0 | I21: 0.547 | J21: 100 | K21: 207.275455 | L21: 46.037 | M21: Aroostook | N21: ME | O21: Lower Daaquam River | P21: =VLOOKUP(N21,'Hide-RainGages'!$C$1:$K$344,9,FALSE) -> 171175 | T21: RFOR30 | U21: Percent forest land in buffer
A22: 10100060313|Aroostook|ME | B22: 10100010313 | C22: 10100060313 | D22: 0.1174 | E22: 99.7738 | F22: 0 | G22: 0 | H22: 0 | I22: 0.224 | J22: 99.9221 | K22: 140.333013 | L22: 45.55 | M22: Aroostook | N22: ME | O22: Northwest Branch St. John River | P22: =VLOOKUP(N22,'Hide-RainGages'!$C$1:$K$344,9,FALSE) -> 171175 | T22: RFOR9030 | U22: Percent forest and woody wetlands in buffer
A23: 10100070101|Aroostook|ME | B23: 10100010401 | C23: 10100070101 | D23: 0 | E23: 100 | F23: 0 | G23: 0 | H23: 0 | I23: 0 | J23: 100 | K23: 91.250775 | L23: 42.9091 | M23: Aroostook | N23: ME | O23: Moody Bridge-St. John River | P23: =VLOOKUP(N23,'Hide-RainGages'!$C$1:$K$344,9,FALSE) -> 171175 | T23: BioImpLen | U23: Stream length impaired for biota (km)
A24: 10100070102|Aroostook|ME | B24: 10100010402 | C24: 10100070102 | D24: 0 | E24: 100 | F24: 0 | G24: 0 | H24: 0 | I24: 0 | J24: 100 | K24: 59.242594 | L24: 45.0448 | M24: Aroostook | N24: ME | O24: Burntland Brook | P24: =VLOOKUP(N24,'Hide-RainGages'!$C$1:$K$344,9,FALSE) -> 171175 | T24: MetImpLen | U24: Stream length impaired by metals (km)
A25: 10100070103|Aroostook|ME | B25: 10100010403 | C25: 10100070103 | D25: 0 | E25: 100 | F25: 0 | G25: 0 | H25: 0 | I25: 0 | J25: 100 | K25: 122.380523 | L25: 41.9058 | M25: Aroostook | N25: ME | O25: Mary L Pond-St. John River | P25: =VLOOKUP(N25,'Hide-RainGages'!$C$1:$K$344,9,FALSE) -> 171175 | T25: NutImpLen | U25: Stream length impaired by nutrients (km)
A26: 10100070204|Aroostook|ME | B26: 10100010504 | C26: 10100070204 | D26: 0.8095 | E26: 100 | F26: 0 | G26: 0 | H26: 0 | I26: 0 | J26: 100 | K26: 44.962939 | L26: 42 | M26: Aroostook | N26: ME | O26: Riviere Gobeil | P26: =VLOOKUP(N26,'Hide-RainGages'!$C$1:$K$344,9,FALSE) -> 171175 | T26: TotalLength | U26: Stream length (km)
A27: 10100070205|Aroostook|ME | B27: 10100010505 | C27: 10100070205 | D27: 0.4597 | E27: 99.7411 | F27: 0.2589 | G27: 0 | H27: 0 | I27: 0 | J27: 100 | K27: 138.764116 | L27: 42.3846 | M27: Aroostook | N27: ME | O27: Dead Stream-Big Black River | P27: =VLOOKUP(N27,'Hide-RainGages'!$C$1:$K$344,9,FALSE) -> 171175 | T27: StreamDensity | U27: Stream density (km/km2)
A28: 10100070206|Aroostook|ME | B28: 10100010506 | C28: 10100070206 | D28: 0 | E28: 100 | F28: 0 | G28: 0 | H28: 0 | I28: 0 | J28: 100 | K28: 64.578029 | L28: 44.9079 | M28: Aroostook | N28: ME | O28: Upper Depot Stream | P28: =VLOOKUP(N28,'Hide-RainGages'!$C$1:$K$344,9,FALSE) -> 171175 | T28: FishImpLen
A29: 10100070207|Aroostook|ME | B29: 10100010507 | C29: 10100070207 | D29: 0.0116 | E29: 100 | F29: 0 | G29: 0 | H29: 0 | I29: 0 | J29: 100 | K29: 93.514002 | L29: 45.033 | M29: Aroostook | N29: ME | O29: Middle Depot Stream | P29: =VLOOKUP(N29,'Hide-RainGages'!$C$1:$K$344,9,FALSE) -> 171175 | T29: HabImpLen | U29: Stream length impaired for habitat (km)
A30: 10100070208|Aroostook|ME | B30: 10100010508 | C30: 10100070208 | D30: 0.0592 | E30: 100 | F30: 0 | G30: 0 | H30: 0 | I30: 0 | J30: 100 | K30: 124.373492 | L30: 42.8456 | M30: Aroostook | N30: ME | O30: Lower Depot Stream | P30: =VLOOKUP(N30,'Hide-RainGages'!$C$1:$K$344,9,FALSE) -> 171175 | T30: TempImpLen | U30: Stream length impaired for temperature (km)
A31: 10100070209|Aroostook|ME | B31: 10100010509 | C31: 10100070209 | D31: 0.0581 | E31: 99.7155 | F31: 0 | G31: 0 | H31: 0 | I31: 0.283 | J31: 99.7578 | K31: 91.01741 | L31: 41.9709 | M31: Aroostook | N31: ME | O31: Charles Pond-Big Black River | P31: =VLOOKUP(N31,'Hide-RainGages'!$C$1:$K$344,9,FALSE) -> 171175 | T31: PolImpLen
A32: 10100070301|Aroostook|ME | B32: 10100010601 | C32: 10100070301 | D32: 0 | E32: 100 | F32: 0 | G32: 0 | H32: 0 | I32: 0 | J32: 100 | K32: 100.906948 | L32: 42 | M32: Aroostook | N32: ME | O32: Riviere Gagnon | P32: =VLOOKUP(N32,'Hide-RainGages'!$C$1:$K$344,9,FALSE) -> 171175 | T32: OtherLen
A33: 10100070302|Aroostook|ME | B33: 10100010602 | C33: 10100070302 | D33: 0 | E33: 100 | F33: 0 | G33: 0 | H33: 0 | I33: 0 | J33: 100 | K33: 135.589776 | L33: 43.8305 | M33: Aroostook | N33: ME | O33: Little St. Rock River | P33: =VLOOKUP(N33,'Hide-RainGages'!$C$1:$K$344,9,FALSE) -> 171175 | T33: TotImpLen | U33: Total stream length impaired (km)
A34: 10100070303|Aroostook|ME | B34: 10100010603 | C34: 10100070303 | D34: 0 | E34: 100 | F34: 0 | G34: 0 | H34: 0 | I34: 0 | J34: 100 | K34: 188.179643 | L34: 42.0606 | M34: Aroostook | N34: ME | O34: Shields Branch | P34: =VLOOKUP(N34,'Hide-RainGages'!$C$1:$K$344,9,FALSE) -> 171175 | T34: MEAN | U34: Average annual precipitation (inches/yr)
A35: 10100070304|Aroostook|ME | B35: 10100010604 | C35: 10100070304 | D35: 0 | E35: 100 | F35: 0 | G35: 0 | H35: 0 | I35: 0 | J35: 100 | K35: 113.984874 | L35: 44.2521 | M35: Aroostook | N35: ME | O35: Fivemile Brook | P35: =VLOOKUP(N35,'Hide-RainGages'!$C$1:$K$344,9,FALSE) -> 171175 | T35: PctPRW | U35: Percent potentially restorable wetlands
A36: 10100070305|Aroostook|ME | B36: 10100010605 | C36: 10100070305 | D36: 0 | E36: 100 | F36: 0 | G36: 0 | H36: 0 | I36: 0 | J36: 100 | K36: 110.53531 | L36: 44.7244 | M36: Aroostook | N36: ME | O36: Twomile Brook | P36: =VLOOKUP(N36,'Hide-RainGages'!$C$1:$K$344,9,FALSE) -> 171175 | T36: WET_AG | U36: Percent agriculture on wet areas (wetness index > 550)
A37: 10100070306|Aroostook|ME | B37: 10100010606 | C37: 10100070306 | D37: 0 | E37: 100 | F37: 0 | G37: 0 | H37: 0 | I37: 0 | J37: 100 | K37: 94.579159 | L37: 41.8349 | M37: Aroostook | N37: ME | O37: Big Black River | P37: =VLOOKUP(N37,'Hide-RainGages'!$C$1:$K$344,9,FALSE) -> 171175 | T37: WET_URB | U37: Percent developed land on wet areas (wetness index > 550)
A38: 10100070401|Aroostook|ME | B38: 10100010701 | C38: 10100070401 | D38: 0 | E38: 100 | F38: 0 | G38: 0 | H38: 0 | I38: 0 | J38: 100 | K38: 56.593604 | L38: 42.1343 | M38: Aroostook | N38: ME | O38: Ninemile Brook | P38: =VLOOKUP(N38,'Hide-RainGages'!$C$1:$K$344,9,FALSE) -> 171175 | T38: WET_FOR
A39: 10100070402|Aroostook|ME | B39: 10100010702 | C39: 10100070402 | D39: 0 | E39: 100 | F39: 0 | G39: 0 | H39: 0 | I39: 0 | J39: 100 | K39: 55.947896 | L39: 39.7778 | M39: Aroostook | N39: ME | O39: Sixmile Brook-St. John River | P39: =VLOOKUP(N39,'Hide-RainGages'!$C$1:$K$344,9,FALSE) -> 171175 | T39: WET_WETL
A40: 10100070403|Aroostook|ME | B40: 10100010703 | C40: 10100070403 | D40: 0.0113 | E40: 99.9442 | F40: 0 | G40: 0 | H40: 0 | I40: 0.056 | J40: 100 | K40: 138.287632 | L40: 41.0189 | M40: Aroostook | N40: ME | O40: White Brook-St. John River | P40: =VLOOKUP(N40,'Hide-RainGages'!$C$1:$K$344,9,FALSE) -> 171175 | T40: WET_RNG | U40: Percent range on wet areas (wetness index > 550)
A41: 10100070404|Aroostook|ME | B41: 10100010704 | C41: 10100070404 | D41: 0.0033 | E41: 99.9875 | F41: 0 | G41: 0 | H41: 0 | I41: 0.013 | J41: 100 | K41: 95.226825 | L41: 41.3738 | M41: Aroostook | N41: ME | O41: Priestly Brook-St. John River | P41: =VLOOKUP(N41,'Hide-RainGages'!$C$1:$K$344,9,FALSE) -> 171175 | T41: PURB | U41: Percent urban area
A42: 10100070405|Aroostook|ME | B42: 10100010705 | C42: 10100070405 | D42: 0 | E42: 100 | F42: 0 | G42: 0 | H42: 0 | I42: 0 | J42: 100 | K42: 101.090493 | L42: 42.2627 | M42: Aroostook | N42: ME | O42: Sweeney Brook-St. John River | P42: =VLOOKUP(N42,'Hide-RainGages'!$C$1:$K$344,9,FALSE) -> 171175
A43: 10100070502|Aroostook|ME | B43: 10100010802 | C43: 10100070502 | D43: 1.0855 | E43: 100 | F43: 0 | G43: 0 | H43: 0 | I43: 0 | J43: 100 | K43: 101.209863 | L43: 47.6 | M43: Aroostook | N43: ME | O43: East Lake | P43: =VLOOKUP(N43,'Hide-RainGages'!$C$1:$K$344,9,FALSE) -> 171175
A44: 10100070503|Aroostook|ME | B44: 10100010803 | C44: 10100070503 | D44: 0.0127 | E44: 100 | F44: 0 | G44: 0 | H44: 0 | I44: 0 | J44: 100 | K44: 108.826692 | L44: 43.5748 | M44: Aroostook | N44: ME | O44: Chimenticook Stream | P44: =VLOOKUP(N44,'Hide-RainGages'!$C$1:$K$344,9,FALSE) -> 171175
A45: 10100070504|Aroostook|ME | B45: 10100010804 | C45: 10100070504 | D45: 0 | E45: 100 | F45: 0 | G45: 0 | H45: 0 | I45: 0 | J45: 100 | K45: 42.950031 | L45: 46.6304 | M45: Aroostook | N45: ME | O45: West Branch Pocwock Stream | P45: =VLOOKUP(N45,'Hide-RainGages'!$C$1:$K$344,9,FALSE) -> 171175
A46: 10100070505|Aroostook|ME | B46: 10100010805 | C46: 10100070505 | D46: 0 | E46: 100 | F46: 0 | G46: 0 | H46: 0 | I46: 0 | J46: 100 | K46: 65.123216 | L46: 43.2838 | M46: Aroostook | N46: ME | O46: East Branch Pocwock Stream | P46: =VLOOKUP(N46,'Hide-RainGages'!$C$1:$K$344,9,FALSE) -> 171175
A47: 10100070506|Aroostook|ME | B47: 10100010806 | C47: 10100070506 | D47: 0 | E47: 100 | F47: 0 | G47: 0 | H47: 0 | I47: 0 | J47: 100 | K47: 69.01608 | L47: 42.7722 | M47: Aroostook | N47: ME | O47: Pocwock Stream | P47: =VLOOKUP(N47,'Hide-RainGages'!$C$1:$K$344,9,FALSE) -> 171175
A48: 10100070507|Aroostook|ME | B48: 10100010807 | C48: 10100070507 | D48: 0 | E48: 100 | F48: 0 | G48: 0 | H48: 0 | I48: 0 | J48: 100 | K48: 162.053649 | L48: 42.0111 | M48: Aroostook | N48: ME | O48: Schoolhouse Rapids-St. John River | P48: =VLOOKUP(N48,'Hide-RainGages'!$C$1:$K$344,9,FALSE) -> 171175
A49: 10100070601|Aroostook|ME | B49: 10100010901 | C49: 10100070601 | D49: 0 | E49: 100 | F49: 0 | G49: 0 | H49: 0 | I49: 0 | J49: 100 | K49: 54.505163 | L49: 50.2381 | M49: Aroostook | N49: ME | O49: Beaver Branch | P49: =VLOOKUP(N49,'Hide-RainGages'!$C$1:$K$344,9,FALSE) -> 171175
A50: 10100070602|Aroostook|ME | B50: 10100010902 | C50: 10100070602 | D50: 0 | E50: 100 | F50: 0 | G50: 0 | H50: 0 | I50: 0 | J50: 100 | K50: 149.475025 | L50: 46.8333 | M50: Aroostook | N50: ME | O50: West Branch Little Black River | P50: =VLOOKUP(N50,'Hide-RainGages'!$C$1:$K$344,9,FALSE) -> 171175
A51: 10100070603|Aroostook|ME | B51: 10100010903 | C51: 10100070603 | D51: 0 | E51: 100 | F51: 0 | G51: 0 | H51: 0 | I51: 0 | J51: 100 | K51: 59.897385 | L51: 46.4306 | M51: Aroostook | N51: ME | O51: Campbell Branch | P51: =VLOOKUP(N51,'Hide-RainGages'!$C$1:$K$344,9,FALSE) -> 171175
A52: 10100070604|Aroostook|ME | B52: 10100010904 | C52: 10100070604 | D52: 0 | E52: 100 | F52: 0 | G52: 0 | H52: 0 | I52: 0 | J52: 100 | K52: 31.060526 | L52: 43.9118 | M52: Aroostook | N52: ME | O52: Whitney Brook | P52: =VLOOKUP(N52,'Hide-RainGages'!$C$1:$K$344,9,FALSE) -> 171175
A53: 10100070605|Aroostook|ME | B53: 10100010905 | C53: 10100070605 | D53: 0 | E53: 100 | F53: 0 | G53: 0 | H53: 0 | I53: 0 | J53: 100 | K53: 69.247126 | L53: 46.1139 | M53: Aroostook | N53: ME | O53: Rocky Brook | P53: =VLOOKUP(N53,'Hide-RainGages'!$C$1:$K$344,9,FALSE) -> 171175
A54: 10100070606|Aroostook|ME | B54: 10100010906 | C54: 10100070606 | D54: 0 | E54: 100 | F54: 0 | G54: 0 | H54: 0 | I54: 0 | J54: 100 | K54: 156.557008 | L54: 44.2151 | M54: Aroostook | N54: ME | O54: Upper Little Black River | P54: =VLOOKUP(N54,'Hide-RainGages'!$C$1:$K$344,9,FALSE) -> 171175
A55: 10100070607|Aroostook|ME | B55: 10100010907 | C55: 10100070607 | D55: 0.0165 | E55: 99.9144 | F55: 0 | G55: 0 | H55: 0 | I55: 0.086 | J55: 99.7732 | K55: 160.12626 | L55: 42.5135 | M55: Aroostook | N55: ME | O55: Lower Little Black River | P55: =VLOOKUP(N55,'Hide-RainGages'!$C$1:$K$344,9,FALSE) -> 171175
A56: 10100070701|Aroostook|ME | B56: 10100011001 | C56: 10100070701 | D56: 0 | E56: 100 | F56: 0 | G56: 0 | H56: 0 | I56: 0 | J56: 100 | K56: 50.772081 | L56: 43.4386 | M56: Aroostook | N56: ME | O56: Fox Brook | P56: =VLOOKUP(N56,'Hide-RainGages'!$C$1:$K$344,9,FALSE) -> 171175
A57: 10100070702|Aroostook|ME | B57: 10100011002 | C57: 10100070702 | D57: 0 | E57: 100 | F57: 0 | G57: 0 | H57: 0 | I57: 0 | J57: 100 | K57: 50.894086 | L57: 41.85 | M57: Aroostook | N57: ME | O57: Brown Brook | P57: =VLOOKUP(N57,'Hide-RainGages'!$C$1:$K$344,9,FALSE) -> 171175
A58: 10100070703|Aroostook|ME | B58: 10100011003 | C58: 10100070703 | D58: 0.0023 | E58: 99.9635 | F58: 0 | G58: 0 | H58: 0 | I58: 0.035 | J58: 99.7236 | K58: 91.729436 | L58: 40.451 | M58: Aroostook | N58: ME | O58: Walker Brook-St. John River | P58: =VLOOKUP(N58,'Hide-RainGages'!$C$1:$K$344,9,FALSE) -> 171175
A59: 10100080101|Aroostook|ME | B59: 10100011004 | C59: 10100080101 | D59: 0.0092 | E59: 99.719 | F59: 0 | G59: 0 | H59: 0 | I59: 0.279 | J59: 99.252 | K59: 111.015818 | L59: 39.8661 | M59: Aroostook | N59: ME | O59: Pelletier Brook | P59: =VLOOKUP(N59,'Hide-RainGages'!$C$1:$K$344,9,FALSE) -> 171175
A60: 10100080102|Aroostook|ME | B60: 10100011005 | C60: 10100080102 | D60: 0.2411 | E60: 97.0562 | F60: 0.9997 | G60: 0.5553 | H60: 0 | I60: 1.352 | J60: 92.3525 | K60: 176.121103 | L60: 38.804 | M60: Aroostook | N60: ME | O60: Bran Lake-St. John River | P60: =VLOOKUP(N60,'Hide-RainGages'!$C$1:$K$344,9,FALSE) -> 171175
A61: 10100080401|Aroostook|ME | B61: 10100011301 | C61: 10100080401 | D61: 0.0936 | E61: 97.0155 | F61: 2.6329 | G61: 0.2126 | H61: 2 | I61: 0.138 | J61: 93.0147 | K61: 65.757896 | L61: 49.1429 | M61: Aroostook | N61: ME | O61: Wildcat Stream | P61: =VLOOKUP(N61,'Hide-RainGages'!$C$1:$K$344,9,FALSE) -> 171175
A62: 10100080403|Aroostook|ME | B62: 10100011303 | C62: 10100080403 | D62: 0.0112 | E62: 99.9404 | F62: 0 | G62: 0.0265 | H62: 0 | I62: 0.032 | J62: 99.9425 | K62: 122.384747 | L62: 46.5571 | M62: Aroostook | N62: ME | O62: Dead Brook | P62: =VLOOKUP(N62,'Hide-RainGages'!$C$1:$K$344,9,FALSE) -> 171175
A63: 10100080404|Aroostook|ME | B63: 10100011304 | C63: 10100080404 | D63: 0 | E63: 100 | F63: 0 | G63: 0 | H63: 0 | I63: 0 | J63: 100 | K63: 44.307972 | L63: 45.4038 | M63: Aroostook | N63: ME | O63: Jones Brook | P63: =VLOOKUP(N63,'Hide-RainGages'!$C$1:$K$344,9,FALSE) -> 171175
A64: 10100080405|Aroostook|ME | B64: 10100011305 | C64: 10100080405 | D64: 1.6468 | E64: 98.8007 | F64: 0.4382 | G64: 0.2392 | H64: 0 | I64: 0.519 | J64: 99.0571 | K64: 121.77951 | L64: 43.7394 | M64: Aroostook | N64: ME | O64: Beau Lake-St. Francis River | P64: =VLOOKUP(N64,'Hide-RainGages'!$C$1:$K$344,9,FALSE) -> 171175
A65: 10100080406|Aroostook|ME | B65: 10100011306 | C65: 10100080406 | D65: 0 | E65: 100 | F65: 0 | G65: 0 | H65: 0 | I65: 0 | J65: 100 | K65: 69.479851 | L65: 45.075 | M65: Aroostook | N65: ME | O65: Yankeetuladi Brook | P65: =VLOOKUP(N65,'Hide-RainGages'!$C$1:$K$344,9,FALSE) -> 171175
A66: 10100080407|Aroostook|ME | B66: 10100011307 | C66: 10100080407 | D66: 0 | E66: 100 | F66: 0 | G66: 0 | H66: 0 | I66: 0 | J66: 100 | K66: 101.418337 | L66: 40.7368 | M66: Aroostook | N66: ME | O66: Falls Brook | P66: =VLOOKUP(N66,'Hide-RainGages'!$C$1:$K$344,9,FALSE) -> 171175
A67: =C67&"|"&M67 & "|" & N67 -> 10100080408|Aroostook|ME | B67: 10100011308 | C67: 10100080408 | D67: 1.8286 | E67: 100 | F67: 0 | G67: 0 | H67: 0 | I67: 0 | J67: 100 | K67: 100.6064 | L67: 43.4211 | M67: Aroostook | N67: ME | O67: St. Francis River | P67: =VLOOKUP(N67,'Hide-RainGages'!$C$1:$K$344,9,FALSE) -> 171175
A68: 10100080503|Aroostook|ME | B68: 10100011403 | C68: 10100080503 | D68: 1.4895 | E68: 94.5281 | F68: 2.9428 | G68: 0.5024 | H68: 0 | I68: 1.948 | J68: 88.8915 | K68: 170.551375 | L68: 42.1421 | M68: Aroostook | N68: ME | O68: Hunnewell Island-St. John River | P68: =VLOOKUP(N68,'Hide-RainGages'!$C$1:$K$344,9,FALSE) -> 171175
A69: 10100080504|Aroostook|ME | B69: 10100011404 | C69: 10100080504 | D69: 2.9313 | E69: 80.9076 | F69: 10.6301 | G69: 1.0762 | H69: 2 | I69: 7.056 | J69: 71.5939 | K69: 100.158605 | L69: 41.1442 | M69: Aroostook | N69: ME | O69: Vasseur Stream-St. John River | P69: =VLOOKUP(N69,'Hide-RainGages'!$C$1:$K$344,9,FALSE) -> 171175
A70: 10100081107|Aroostook|ME | B70: 10100011507 | C70: 10100081107 | D70: 4.5265 | E70: 71.2848 | F70: 15.1362 | G70: 3.1465 | H70: 2 | I70: 9.961 | J70: 67.6568 | K70: 147.141287 | L70: 42.037 | M70: Aroostook | N70: ME | O70: Patrick Brook-St. John River | P70: =VLOOKUP(N70,'Hide-RainGages'!$C$1:$K$344,9,FALSE) -> 171175
A71: 10100081108|Aroostook|ME | B71: 10100011508 | C71: 10100081108 | D71: 4.4888 | E71: 67.7809 | F71: 13.3307 | G71: 5.6315 | H71: 2 | I71: 12.838 | J71: 69.5372 | K71: 124.5758 | L71: 44.413 | M71: Aroostook | N71: ME | O71: Gagnon Brook-St. John River | P71: =VLOOKUP(N71,'Hide-RainGages'!$C$1:$K$344,9,FALSE) -> 171175
A72: 10100090601|Aroostook|ME | B72: 10100012601 | C72: 10100090601 | D72: 2.2987 | E72: 72.2889 | F72: 15.0759 | G72: 5.403 | H72: 2 | I72: 7.025 | J72: 68.3315 | K72: 193.837387 | L72: 42.3213 | M72: Aroostook | N72: ME | O72: Thibodeau Brook-St. John River | P72: =VLOOKUP(N72,'Hide-RainGages'!$C$1:$K$344,9,FALSE) -> 171175
A73: 10100090603|Aroostook|ME | B73: 10100012603 | C73: 10100090603 | D73: 0.3008 | E73: 90.3474 | F73: 5.731 | G73: 2.5279 | H73: 1 | I73: 1.393 | J73: 96.0797 | K73: 168.398484 | L73: 41.5885 | M73: Aroostook | N73: ME | O73: Violette Stream | P73: =VLOOKUP(N73,'Hide-RainGages'!$C$1:$K$344,9,FALSE) -> 171175
A74: 10100090604|Aroostook|ME | B74: 10100012604 | C74: 10100090604 | D74: 4.258 | E74: 61.2778 | F74: 16.4499 | G74: 10.0539 | H74: 4 | I74: 11.033 | J74: 65.2748 | K74: 52.037621 | L74: 40.8833 | M74: Aroostook | N74: ME | O74: La Septieme Island-St. John River | P74: =VLOOKUP(N74,'Hide-RainGages'!$C$1:$K$344,9,FALSE) -> 171175
A75: 10100090605|Aroostook|ME | B75: 10100012605 | C75: 10100090605 | D75: 0.6412 | E75: 77.4373 | F75: 15.8576 | G75: 3.3954 | H75: 1 | I75: 3.309 | J75: 88.039 | K75: 73.503556 | L75: 41.6353 | M75: Aroostook | N75: ME | O75: Hammond Brook | P75: =VLOOKUP(N75,'Hide-RainGages'!$C$1:$K$344,9,FALSE) -> 171175
A76: 10100090607|Aroostook|ME | B76: 10100012607 | C76: 10100090607 | D76: 2.0224 | E76: 74.6655 | F76: 15.9299 | G76: 4.1572 | H76: 1 | I76: 5.06 | J76: 84.4497 | K76: 163.715822 | L76: 42.3333 | M76: Aroostook | N76: ME | O76: Boney Brook-St. John River | P76: =VLOOKUP(N76,'Hide-RainGages'!$C$1:$K$344,9,FALSE) -> 171175
A77: 10100090608|Aroostook|ME | B77: 10100012608 | C77: 10100090608 | D77: 2.425 | E77: 75.3223 | F77: 16.6338 | G77: 2.387 | H77: 3 | I77: 5.642 | J77: 94.3498 | K77: 33.450812 | L77: 42.75 | M77: Aroostook | N77: ME | O77: Rapid Woman Stream | P77: =VLOOKUP(N77,'Hide-RainGages'!$C$1:$K$344,9,FALSE) -> 171175
A78: 10100100101|Aroostook|ME | B78: 10100012701 | C78: 10100100101 | D78: 0.5693 | E78: 62.5839 | F78: 22.2914 | G78: 10.9112 | H78: 1 | I78: 4.199 | J78: 84.5627 | K78: 67.646475 | L78: 41.2051 | M78: Aroostook | N78: ME | O78: Chute River | P78: =VLOOKUP(N78,'Hide-RainGages'!$C$1:$K$344,9,FALSE) -> 171175
A79: 10100100102|Aroostook|ME | B79: 10100012702 | C79: 10100100102 | D79: 0.2622 | E79: 70.0896 | F79: 23.6155 | G79: 2.7165 | H79: 2 | I79: 3.569 | J79: 75.3618 | K79: 40.292914 | L79: 41.102 | M79: Aroostook | N79: ME | O79: Guizigutt River | P79: =VLOOKUP(N79,'Hide-RainGages'!$C$1:$K$344,9,FALSE) -> 171175
A80: 10100110103|Aroostook|ME | B80: 10100012803 | C80: 10100110103 | D80: 1.0914 | E80: 84.4265 | F80: 9.4851 | G80: 3.9371 | H80: 1 | I80: 2.151 | J80: 91.0465 | K80: 123.382691 | L80: 41.4214 | M80: Aroostook | N80: ME | O80: Greens Lake-Bull Creek | P80: =VLOOKUP(N80,'Hide-RainGages'!$C$1:$K$344,9,FALSE) -> 171175
A81: 10100020101|Piscataquis|ME | B81: 10100020101 | C81: 10100020101 | D81: 0 | E81: 100 | F81: 0 | G81: 0 | H81: 0 | I81: 0 | J81: 100 | K81: 69.543069 | L81: 41.6795 | M81: Piscataquis | N81: ME | O81: Smith Brook | P81: =VLOOKUP(N81,'Hide-RainGages'!$C$1:$K$344,9,FALSE) -> 171175
A82: 10100020102|Piscataquis|ME | B82: 10100020102 | C82: 10100020102 | D82: 0 | E82: 100 | F82: 0 | G82: 0 | H82: 0 | I82: 0 | J82: 100 | K82: 81.154634 | L82: 40.9891 | M82: Piscataquis | N82: ME | O82: Russell Brook | P82: =VLOOKUP(N82,'Hide-RainGages'!$C$1:$K$344,9,FALSE) -> 171175
A83: 10100020103|Piscataquis|ME | B83: 10100020103 | C83: 10100020103 | D83: 0 | E83: 100 | F83: 0 | G83: 0 | H83: 0 | I83: 0 | J83: 100 | K83: 75.085125 | L83: 41.2674 | M83: Piscataquis | N83: ME | O83: Soper Brook | P83: =VLOOKUP(N83,'Hide-RainGages'!$C$1:$K$344,9,FALSE) -> 171175
A84: 10100020104|Piscataquis|ME | B84: 10100020104 | C84: 10100020104 | D84: 0 | E84: 100 | F84: 0 | G84: 0 | H84: 0 | I84: 0 | J84: 100 | K84: 57.656097 | L84: 40.3433 | M84: Piscataquis | N84: ME | O84: Snare Brook | P84: =VLOOKUP(N84,'Hide-RainGages'!$C$1:$K$344,9,FALSE) -> 171175
A85: 10100020105|Piscataquis|ME | B85: 10100020105 | C85: 10100020105 | D85: 0 | E85: 100 | F85: 0 | G85: 0 | H85: 0 | I85: 0 | J85: 100 | K85: 154.47527 | L85: 40.904 | M85: Piscataquis | N85: ME | O85: Woodman Brook-Eagle Lake | P85: =VLOOKUP(N85,'Hide-RainGages'!$C$1:$K$344,9,FALSE) -> 171175
A86: 10100020201|Piscataquis|ME | B86: 10100020201 | C86: 10100020201 | D86: 0.0135 | E86: 99.8491 | F86: 0 | G86: 0 | H86: 0 | I86: 0.151 | J86: 99.8851 | K86: 109.180951 | L86: 40.0726 | M86: Piscataquis | N86: ME | O86: Priestly Brook | P86: =VLOOKUP(N86,'Hide-RainGages'!$C$1:$K$344,9,FALSE) -> 171175
A87: 10100020202|Piscataquis|ME | B87: 10100020202 | C87: 10100020202 | D87: 0 | E87: 100 | F87: 0 | G87: 0 | H87: 0 | I87: 0 | J87: 100 | K87: 50.579366 | L87: 40.8644 | M87: Piscataquis | N87: ME | O87: North Twin Brook | P87: =VLOOKUP(N87,'Hide-RainGages'!$C$1:$K$344,9,FALSE) -> 171175
A88: 10100020203|Piscataquis|ME | B88: 10100020203 | C88: 10100020203 | D88: 0 | E88: 100 | F88: 0 | G88: 0 | H88: 0 | I88: 0 | J88: 100 | K88: 49.281907 | L88: 41.4912 | M88: Piscataquis | N88: ME | O88: Pleasant Stream | P88: =VLOOKUP(N88,'Hide-RainGages'!$C$1:$K$344,9,FALSE) -> 171175
A89: 10100020204|Piscataquis|ME | B89: 10100020204 | C89: 10100020204 | D89: 0 | E89: 100 | F89: 0 | G89: 0 | H89: 0 | I89: 0 | J89: 100 | K89: 126.514463 | L89: 40.2071 | M89: Piscataquis | N89: ME | O89: Churchill Lake | P89: =VLOOKUP(N89,'Hide-RainGages'!$C$1:$K$344,9,FALSE) -> 171175
A90: 10100020301|Piscataquis|ME | B90: 10100020301 | C90: 10100020301 | D90: 0.0132 | E90: 99.8184 | F90: 0 | G90: 0 | H90: 0 | I90: 0.182 | J90: 100 | K90: 40.652246 | L90: 43.2292 | M90: Piscataquis | N90: ME | O90: Ross Inlet | P90: =VLOOKUP(N90,'Hide-RainGages'!$C$1:$K$344,9,FALSE) -> 171175
A91: 10100020302|Piscataquis|ME | B91: 10100020302 | C91: 10100020302 | D91: 0 | E91: 100 | F91: 0 | G91: 0 | H91: 0 | I91: 0 | J91: 100 | K91: 41.047995 | L91: 42.9574 | M91: Piscataquis | N91: ME | O91: Fool Brook | P91: =VLOOKUP(N91,'Hide-RainGages'!$C$1:$K$344,9,FALSE) -> 171175
A92: 10100020303|Aroostook|ME | B92: 10100020303 | C92: 10100020303 | D92: 0.0058 | E92: 99.8841 | F92: 0 | G92: 0 | H92: 0 | I92: 0.097 | J92: 100 | K92: 69.894876 | L92: 40.6506 | M92: Aroostook | N92: ME | O92: Chemquasabamticook Lake | P92: =VLOOKUP(N92,'Hide-RainGages'!$C$1:$K$344,9,FALSE) -> 171175
A93: 10100020304|Aroostook|ME | B93: 10100020304 | C93: 10100020304 | D93: 0 | E93: 100 | F93: 0 | G93: 0 | H93: 0 | I93: 0 | J93: 100 | K93: 158.64551 | L93: 38.9218 | M93: Aroostook | N93: ME | O93: Clayton Lake | P93: =VLOOKUP(N93,'Hide-RainGages'!$C$1:$K$344,9,FALSE) -> 171175
A94: 10100020305|Aroostook|ME | B94: 10100020305 | C94: 10100020305 | D94: 0 | E94: 100 | F94: 0 | G94: 0 | H94: 0 | I94: 0 | J94: 100 | K94: 64.222204 | L94: 38.3421 | M94: Aroostook | N94: ME | O94: Priestly Brook | P94: =VLOOKUP(N94,'Hide-RainGages'!$C$1:$K$344,9,FALSE) -> 171175
A95: 10100020306|Aroostook|ME | B95: 10100020306 | C95: 10100020306 | D95: 0 | E95: 100 | F95: 0 | G95: 0 | H95: 0 | I95: 0 | J95: 100 | K95: 45.967348 | L95: 39 | M95: Aroostook | N95: ME | O95: Holmes Brook | P95: =VLOOKUP(N95,'Hide-RainGages'!$C$1:$K$344,9,FALSE) -> 171175
A96: 10100020307|Aroostook|ME | B96: 10100020307 | C96: 10100020307 | D96: 0 | E96: 100 | F96: 0 | G96: 0 | H96: 0 | I96: 0 | J96: 100 | K96: 53.294045 | L96: 39.6613 | M96: Aroostook | N96: ME | O96: Cunliffe Brook | P96: =VLOOKUP(N96,'Hide-RainGages'!$C$1:$K$344,9,FALSE) -> 171175
A97: 10100020308|Aroostook|ME | B97: 10100020308 | C97: 10100020308 | D97: 0.0013 | E97: 99.9802 | F97: 0 | G97: 0 | H97: 0 | I97: 0.02 | J97: 100 | K97: 81.765573 | L97: 38.0632 | M97: Aroostook | N97: ME | O97: Chemquasabamticook Stream | P97: =VLOOKUP(N97,'Hide-RainGages'!$C$1:$K$344,9,FALSE) -> 171175
A98: 10100020401|Aroostook|ME | B98: 10100020401 | C98: 10100020401 | D98: 0 | E98: 100 | F98: 0 | G98: 0 | H98: 0 | I98: 0 | J98: 100 | K98: 65.931619 | L98: 40.92 | M98: Aroostook | N98: ME | O98: Harrow Lake-Harrow Brook | P98: =VLOOKUP(N98,'Hide-RainGages'!$C$1:$K$344,9,FALSE) -> 171175
A99: 10100020402|Aroostook|ME | B99: 10100020402 | C99: 10100020402 | D99: 0 | E99: 100 | F99: 0 | G99: 0 | H99: 0 | I99: 0 | J99: 100 | K99: 47.254484 | L99: 38.9455 | M99: Aroostook | N99: ME | O99: Priestly Lale-Drake Brook | P99: =VLOOKUP(N99,'Hide-RainGages'!$C$1:$K$344,9,FALSE) -> 171175
A100: 10100020403|Aroostook|ME | B100: 10100020403 | C100: 10100020403 | D100: 0 | E100: 100 | F100: 0 | G100: 0 | H100: 0 | I100: 0 | J100: 100 | K100: 113.393614 | L100: 39.363 | M100: Aroostook | N100: ME | O100: Upper Allagash River-Umsaskis Lake | P100: =VLOOKUP(N100,'Hide-RainGages'!$C$1:$K$344,9,FALSE) -> 171175
A101: 10100020404|Aroostook|ME | B101: 10100020404 | C101: 10100020404 | D101: 0 | E101: 100 | F101: 0 | G101: 0 | H101: 0 | I101: 0 | J101: 100 | K101: 58.899266 | L101: 41.0758 | M101: Aroostook | N101: ME | O101: Glazier Brook | P101: =VLOOKUP(N101,'Hide-RainGages'!$C$1:$K$344,9,FALSE) -> 171175
A102: 10100020405|Aroostook|ME | B102: 10100020405 | C102: 10100020405 | D102: 0 | E102: 100 | F102: 0 | G102: 0 | H102: 0 | I102: 0 | J102: 100 | K102: 44.865638 | L102: 41.0577 | M102: Aroostook | N102: ME | O102: Shepherd Brook | P102: =VLOOKUP(N102,'Hide-RainGages'!$C$1:$K$344,9,FALSE) -> 171175
A103: 10100020406|Aroostook|ME | B103: 10100020406 | C103: 10100020406 | D103: 0 | E103: 100 | F103: 0 | G103: 0 | H103: 0 | I103: 0 | J103: 100 | K103: 41.822567 | L103: 38.1591 | M103: Aroostook | N103: ME | O103: Grey Brook-Long Lake | P103: =VLOOKUP(N103,'Hide-RainGages'!$C$1:$K$344,9,FALSE) -> 171175
A104: 10100020501|Aroostook|ME | B104: 10100020501 | C104: 10100020501 | D104: 0 | E104: 100 | F104: 0 | G104: 0 | H104: 0 | I104: 0 | J104: 100 | K104: 91.660312 | L104: 42.1111 | M104: Aroostook | N104: ME | O104: Third Musquacook Lake | P104: =VLOOKUP(N104,'Hide-RainGages'!$C$1:$K$344,9,FALSE) -> 171175
A105: 10100020502|Aroostook|ME | B105: 10100020502 | C105: 10100020502 | D105: 0 | E105: 100 | F105: 0 | G105: 0 | H105: 0 | I105: 0 | J105: 100 | K105: 104.154479 | L105: 42.425 | M105: Aroostook | N105: ME | O105: First Musquacook Lake | P105: =VLOOKUP(N105,'Hide-RainGages'!$C$1:$K$344,9,FALSE) -> 171175
A106: 10100020503|Aroostook|ME | B106: 10100020503 | C106: 10100020503 | D106: 0 | E106: 100 | F106: 0 | G106: 0 | H106: 0 | I106: 0 | J106: 100 | K106: 47.325572 | L106: 43.1053 | M106: Aroostook | N106: ME | O106: Little Musquacook Stream | P106: =VLOOKUP(N106,'Hide-RainGages'!$C$1:$K$344,9,FALSE) -> 171175
A107: 10100020504|Aroostook|ME | B107: 10100020504 | C107: 10100020504 | D107: 0 | E107: 100 | F107: 0 | G107: 0 | H107: 0 | I107: 0 | J107: 100 | K107: 77.203175 | L107: 43.2921 | M107: Aroostook | N107: ME | O107: Robbins Brook | P107: =VLOOKUP(N107,'Hide-RainGages'!$C$1:$K$344,9,FALSE) -> 171175
A108: 10100020505|Aroostook|ME | B108: 10100020505 | C108: 10100020505 | D108: 0 | E108: 100 | F108: 0 | G108: 0 | H108: 0 | I108: 0 | J108: 100 | K108: 81.47113 | L108: 41.5914 | M108: Aroostook | N108: ME | O108: Musquacook Stream | P108: =VLOOKUP(N108,'Hide-RainGages'!$C$1:$K$344,9,FALSE) -> 171175
A109: 10100020601|Aroostook|ME | B109: 10100020601 | C109: 10100020601 | D109: 0 | E109: 100 | F109: 0 | G109: 0 | H109: 0 | I109: 0 | J109: 100 | K109: 42.298951 | L109: 41.62 | M109: Aroostook | N109: ME | O109: Conners Brook | P109: =VLOOKUP(N109,'Hide-RainGages'!$C$1:$K$344,9,FALSE) -> 171175
A110: 10100020602|Aroostook|ME | B110: 10100020602 | C110: 10100020602 | D110: 0 | E110: 100 | F110: 0 | G110: 0 | H110: 0 | I110: 0 | J110: 100 | K110: 220.810484 | L110: 42.6531 | M110: Aroostook | N110: ME | O110: Big Brook | P110: =VLOOKUP(N110,'Hide-RainGages'!$C$1:$K$344,9,FALSE) -> 171175
A111: 10100020701|Aroostook|ME | B111: 10100020701 | C111: 10100020701 | D111: 0 | E111: 100 | F111: 0 | G111: 0 | H111: 0 | I111: 0 | J111: 100 | K111: 36.805548 | L111: 40.875 | M111: Aroostook | N111: ME | O111: Harding Brook | P111: =VLOOKUP(N111,'Hide-RainGages'!$C$1:$K$344,9,FALSE) -> 171175
A112: 10100020702|Aroostook|ME | B112: 10100020702 | C112: 10100020702 | D112: 0 | E112: 100 | F112: 0 | G112: 0 | H112: 0 | I112: 0 | J112: 100 | K112: 42.268867 | L112: 41.2727 | M112: Aroostook | N112: ME | O112: Whittaker Brook | P112: =VLOOKUP(N112,'Hide-RainGages'!$C$1:$K$344,9,FALSE) -> 171175
A113: 10100020703|Aroostook|ME | B113: 10100020703 | C113: 10100020703 | D113: 0.0029 | E113: 99.8736 | F113: 0 | G113: 0 | H113: 0 | I113: 0.126 | J113: 99.8235 | K113: 66.224935 | L113: 42.5 | M113: Aroostook | N113: ME | O113: Schedule Brook | P113: =VLOOKUP(N113,'Hide-RainGages'!$C$1:$K$344,9,FALSE) -> 171175
A114: 10100020704|Aroostook|ME | B114: 10100020704 | C114: 10100020704 | D114: 0 | E114: 100 | F114: 0 | G114: 0 | H114: 0 | I114: 0 | J114: 100 | K114: 152.314734 | L114: 40.4171 | M114: Aroostook | N114: ME | O114: Middle Allagash River | P114: =VLOOKUP(N114,'Hide-RainGages'!$C$1:$K$344,9,FALSE) -> 171175
A115: 10100020705|Aroostook|ME | B115: 10100020705 | C115: 10100020705 | D115: 0 | E115: 100 | F115: 0 | G115: 0 | H115: 0 | I115: 0 | J115: 100 | K115: 80.973771 | L115: 42.9231 | M115: Aroostook | N115: ME | O115: Five Finger Brook | P115: =VLOOKUP(N115,'Hide-RainGages'!$C$1:$K$344,9,FALSE) -> 171175
A116: 10100020706|Aroostook|ME | B116: 10100020706 | C116: 10100020706 | D116: 0.0003 | E116: 99.9686 | F116: 0 | G116: 0 | H116: 0 | I116: 0.031 | J116: 99.7232 | K116: 45.904002 | L116: 42.8235 | M116: Aroostook | N116: ME | O116: Ben Glazier Brook | P116: =VLOOKUP(N116,'Hide-RainGages'!$C$1:$K$344,9,FALSE) -> 171175
A117: 10100020707|Aroostook|ME | B117: 10100020707 | C117: 10100020707 | D117: 0 | E117: 100 | F117: 0 | G117: 0 | H117: 0 | I117: 0 | J117: 100 | K117: 30.337447 | L117: 41.7429 | M117: Aroostook | N117: ME | O117: Ramsay Brook | P117: =VLOOKUP(N117,'Hide-RainGages'!$C$1:$K$344,9,FALSE) -> 171175
A118: 10100020708|Aroostook|ME | B118: 10100020708 | C118: 10100020708 | D118: 0 | E118: 100 | F118: 0 | G118: 0 | H118: 0 | I118: 0 | J118: 100 | K118: 43.632152 | L118: 42.0588 | M118: Aroostook | N118: ME | O118: Farm Brook | P118: =VLOOKUP(N118,'Hide-RainGages'!$C$1:$K$344,9,FALSE) -> 171175
A119: 10100020709|Aroostook|ME | B119: 10100020709 | C119: 10100020709 | D119: 0 | E119: 100 | F119: 0 | G119: 0 | H119: 0 | I119: 0 | J119: 100 | K119: 58.348544 | L119: 41.8714 | M119: Aroostook | N119: ME | O119: McKeen Brook | P119: =VLOOKUP(N119,'Hide-RainGages'!$C$1:$K$344,9,FALSE) -> 171175
A120: 10100020710|Aroostook|ME | B120: 10100020710 | C120: 10100020710 | D120: 0.0604 | E120: 99.092 | F120: 0 | G120: 0 | H120: 0 | I120: 0.908 | J120: 98.9686 | K120: 45.209329 | L120: 41.0769 | M120: Aroostook | N120: ME | O120: West Twin Brook | P120: =VLOOKUP(N120,'Hide-RainGages'!$C$1:$K$344,9,FALSE) -> 171175
A121: 10100020711|Aroostook|ME | B121: 10100020711 | C121: 10100020711 | D121: 0.0406 | E121: 99.42 | F121: 0.0112 | G121: 0.071 | H121: 0 | I121: 0.489 | J121: 97.6456 | K121: 230.025903 | L121: 40.4242 | M121: Aroostook | N121: ME | O121: Lower Allagash River | P121: =VLOOKUP(N121,'Hide-RainGages'!$C$1:$K$344,9,FALSE) -> 171175
A122: 10100030101|Aroostook|ME | B122: 10100030101 | C122: 10100030101 | D122: 0 | E122: 100 | F122: 0 | G122: 0 | H122: 0 | I122: 0 | J122: 100 | K122: 79.184375 | L122: 43.5591 | M122: Aroostook | N122: ME | O122: Fox Brook | P122: =VLOOKUP(N122,'Hide-RainGages'!$C$1:$K$344,9,FALSE) -> 171175
A123: 10100030102|Aroostook|ME | B123: 10100030102 | C123: 10100030102 | D123: 0 | E123: 100 | F123: 0 | G123: 0 | H123: 0 | I123: 0 | J123: 100 | K123: 98.107793 | L123: 41.4865 | M123: Aroostook | N123: ME | O123: Clayton Lake-Fish River Headwaters | P123: =VLOOKUP(N123,'Hide-RainGages'!$C$1:$K$344,9,FALSE) -> 171175
A124: 10100030103|Aroostook|ME | B124: 10100030103 | C124: 10100030103 | D124: 0 | E124: 100 | F124: 0 | G124: 0 | H124: 0 | I124: 0 | J124: 100 | K124: 45.510003 | L124: 43.4182 | M124: Aroostook | N124: ME | O124: Smith Brook | P124: =VLOOKUP(N124,'Hide-RainGages'!$C$1:$K$344,9,FALSE) -> 171175
A125: 10100030104|Aroostook|ME | B125: 10100030104 | C125: 10100030104 | D125: 0 | E125: 100 | F125: 0 | G125: 0 | H125: 0 | I125: 0 | J125: 100 | K125: 64.846712 | L125: 42.8889 | M125: Aroostook | N125: ME | O125: Chase Brook | P125: =VLOOKUP(N125,'Hide-RainGages'!$C$1:$K$344,9,FALSE) -> 171175
A126: 10100030105|Aroostook|ME | B126: 10100030105 | C126: 10100030105 | D126: 0 | E126: 99.5976 | F126: 0.1025 | G126: 0.2999 | H126: 0 | I126: 0 | J126: 100 | K126: 45.441186 | L126: 41.0588 | M126: Aroostook | N126: ME | O126: Fish River Lake | P126: =VLOOKUP(N126,'Hide-RainGages'!$C$1:$K$344,9,FALSE) -> 171175
A127: 10100030201|Aroostook|ME | B127: 10100030201 | C127: 10100030201 | D127: 0 | E127: 100 | F127: 0 | G127: 0 | H127: 0 | I127: 0 | J127: 100 | K127: 40.331863 | L127: 40.7021 | M127: Aroostook | N127: ME | O127: Chase Brook | P127: =VLOOKUP(N127,'Hide-RainGages'!$C$1:$K$344,9,FALSE) -> 171175
A128: 10100030202|Aroostook|ME | B128: 10100030202 | C128: 10100030202 | D128: 0 | E128: 100 | F128: 0 | G128: 0 | H128: 0 | I128: 0 | J128: 100 | K128: 41.130732 | L128: 40.766 | M128: Aroostook | N128: ME | O128: Mosquito Brook | P128: =VLOOKUP(N128,'Hide-RainGages'!$C$1:$K$344,9,FALSE) -> 171175
A129: 10100030203|Aroostook|ME | B129: 10100030203 | C129: 10100030203 | D129: 0.1484 | E129: 98.5053 | F129: 0.161 | G129: 0.466 | H129: 0 | I129: 0.817 | J129: 99.184 | K129: 158.092658 | L129: 40.6201 | M129: Aroostook | N129: ME | O129: Upper Fish River-Portage Lake | P129: =VLOOKUP(N129,'Hide-RainGages'!$C$1:$K$344,9,FALSE) -> 171175
A130: 10100030204|Aroostook|ME | B130: 10100030204 | C130: 10100030204 | D130: 0.0012 | E130: 99.7485 | F130: 0 | G130: 0.1441 | H130: 0 | I130: 0.107 | J130: 100 | K130: 76.258166 | L130: 42.625 | M130: Aroostook | N130: ME | O130: Rocky Brook | P130: =VLOOKUP(N130,'Hide-RainGages'!$C$1:$K$344,9,FALSE) -> 171175
A131: =C131&"|"&M131 & "|" & N131 -> 10100030205|Aroostook|ME | B131: 10100030205 | C131: 10100030205 | D131: 0.0091 | E131: 99.8864 | F131: 0 | G131: 0.04 | H131: 0 | I131: 0.072 | J131: 99.9923 | K131: 159.035087 | L131: 41.7901 | M131: Aroostook | N131: ME | O131: Red River | P131: =VLOOKUP(N131,'Hide-RainGages'!$C$1:$K$344,9,FALSE) -> 171175
A132: 10100030206|Aroostook|ME | B132: 10100030206 | C132: 10100030206 | D132: 0.0044 | E132: 99.6582 | F132: 0 | G132: 0.0134 | H132: 0 | I132: 0.328 | J132: 99.1252 | K132: 114.027885 | L132: 42.8682 | M132: Aroostook | N132: ME | O132: Birch River | P132: =VLOOKUP(N132,'Hide-RainGages'!$C$1:$K$344,9,FALSE) -> 171175
A133: 10100030207|Aroostook|ME | B133: 10100030207 | C133: 10100030207 | D133: 0.18 | E133: 96.9937 | F133: 0.6478 | G133: 0.7194 | H133: 0 | I133: 1.511 | J133: 98.5485 | K133: 122.866031 | L133: 41.2431 | M133: Aroostook | N133: ME | O133: St. Froid Lake | P133: =VLOOKUP(N133,'Hide-RainGages'!$C$1:$K$344,9,FALSE) -> 171175
A134: 10100030301|Aroostook|ME | B134: 10100030301 | C134: 10100030301 | D134: 0.4744 | E134: 70.1317 | F134: 24.0727 | G134: 3.9612 | H134: 4 | I134: 1.833 | J134: 85.1792 | K134: 33.570639 | L134: 41.775 | M134: Aroostook | N134: ME | O134: McLean Brook | P134: =VLOOKUP(N134,'Hide-RainGages'!$C$1:$K$344,9,FALSE) -> 171175
A135: 10100030302|Aroostook|ME | B135: 10100030302 | C135: 10100030302 | D135: 0.6596 | E135: 72.9787 | F135: 19.3991 | G135: 3.7282 | H135: 3 | I135: 3.339 | J135: 73.156 | K135: 195.633436 | L135: 42.1086 | M135: Aroostook | N135: ME | O135: Long Lake | P135: =VLOOKUP(N135,'Hide-RainGages'!$C$1:$K$344,9,FALSE) -> 171175
A136: 10100030303|Aroostook|ME | B136: 10100030303 | C136: 10100030303 | D136: 0.129 | E136: 96.8089 | F136: 1.8704 | G136: 0.0956 | H136: 0 | I136: 1.084 | J136: 98.1547 | K136: 34.044577 | L136: 41.7 | M136: Aroostook | N136: ME | O136: Mud Lake | P136: =VLOOKUP(N136,'Hide-RainGages'!$C$1:$K$344,9,FALSE) -> 171175
A137: 10100030304|Aroostook|ME | B137: 10100030304 | C137: 10100030304 | D137: 0.6923 | E137: 61.2756 | F137: 26.7203 | G137: 8.4621 | H137: 2 | I137: 3.526 | J137: 77.0952 | K137: 67.762561 | L137: 42.0132 | M137: Aroostook | N137: ME | O137: Dickey Brook | P137: =VLOOKUP(N137,'Hide-RainGages'!$C$1:$K$344,9,FALSE) -> 171175
A138: 10100030305|Aroostook|ME | B138: 10100030305 | C138: 10100030305 | D138: 0.6838 | E138: 72.0192 | F138: 16.0865 | G138: 8.1805 | H138: 2 | I138: 3.703 | J138: 78.6667 | K138: 40.749053 | L138: 41.5106 | M138: Aroostook | N138: ME | O138: Daigle Brook | P138: =VLOOKUP(N138,'Hide-RainGages'!$C$1:$K$344,9,FALSE) -> 171175
A139: 10100030306|Aroostook|ME | B139: 10100030306 | C139: 10100030306 | D139: 0.2342 | E139: 95.1302 | F139: 0.4271 | G139: 2.1056 | H139: 0 | I139: 1.889 | J139: 93.9012 | K139: 52.417215 | L139: 41.1333 | M139: Aroostook | N139: ME | O139: Cross Lake | P139: =VLOOKUP(N139,'Hide-RainGages'!$C$1:$K$344,9,FALSE) -> 171175
A140: 10100030307|Aroostook|ME | B140: 10100030307 | C140: 10100030307 | D140: 0 | E140: 100 | F140: 0 | G140: 0 | H140: 0 | I140: 0 | J140: 100 | K140: 36.987919 | L140: 40.6341 | M140: Aroostook | N140: ME | O140: Little Goddard Brook | P140: =VLOOKUP(N140,'Hide-RainGages'!$C$1:$K$344,9,FALSE) -> 171175
A141: 10100030308|Aroostook|ME | B141: 10100030308 | C141: 10100030308 | D141: 0 | E141: 100 | F141: 0 | G141: 0 | H141: 0 | I141: 0 | J141: 100 | K141: 71.740964 | L141: 41.0123 | M141: Aroostook | N141: ME | O141: Goddard Brook | P141: =VLOOKUP(N141,'Hide-RainGages'!$C$1:$K$344,9,FALSE) -> 171175
A142: 10100030309|Aroostook|ME | B142: 10100030309 | C142: 10100030309 | D142: 0.0002 | E142: 98.9022 | F142: 1.0014 | G142: 0.0767 | H142: 0 | I142: 0.014 | J142: 99.6954 | K142: 120.060468 | L142: 40.8406 | M142: Aroostook | N142: ME | O142: Square Lake | P142: =VLOOKUP(N142,'Hide-RainGages'!$C$1:$K$344,9,FALSE) -> 171175
A143: 10100030310|Aroostook|ME | B143: 10100030310 | C143: 10100030310 | D143: 0.2239 | E143: 98.2846 | F143: 0.3435 | G143: 0.0813 | H143: 0 | I143: 1.174 | J143: 95.7016 | K143: 258.189945 | L143: 41.2776 | M143: Aroostook | N143: ME | O143: Middle Fish River-Eagle Lake | P143: =VLOOKUP(N143,'Hide-RainGages'!$C$1:$K$344,9,FALSE) -> 171175
A144: 10100030401|Aroostook|ME | B144: 10100030401 | C144: 10100030401 | D144: 0.0452 | E144: 97.6245 | F144: 1.9616 | G144: 0.1505 | H144: 0 | I144: 0.261 | J144: 99.1762 | K144: 176.482741 | L144: 42.3737 | M144: Aroostook | N144: ME | O144: Wallagrass Stream | P144: =VLOOKUP(N144,'Hide-RainGages'!$C$1:$K$344,9,FALSE) -> 171175
A145: 10100030402|Aroostook|ME | B145: 10100030402 | C145: 10100030402 | D145: 1.4418 | E145: 64.7777 | F145: 23.4816 | G145: 5.262 | H145: 3 | I145: 6.458 | J145: 74.1327 | K145: 52.616278 | L145: 41.3833 | M145: Aroostook | N145: ME | O145: Perley Brook | P145: =VLOOKUP(N145,'Hide-RainGages'!$C$1:$K$344,9,FALSE) -> 171175
A146: 10100030403|Aroostook|ME | B146: 10100030403 | C146: 10100030403 | D146: 1.576 | E146: 78.5301 | F146: 13.9064 | G146: 1.7928 | H146: 2 | I146: 5.679 | J146: 86.7491 | K146: 118.926519 | L146: 40.5766 | M146: Aroostook | N146: ME | O146: Lower Fish River | P146: =VLOOKUP(N146,'Hide-RainGages'!$C$1:$K$344,9,FALSE) -> 171175
A147: 10100040101|Piscataquis|ME | B147: 10100040101 | C147: 10100040101 | D147: 0.0375 | E147: 99.4793 | F147: 0 | G147: 0 | H147: 0 | I147: 0.512 | J147: 99.5553 | K147: 67.323744 | L147: 42.358 | M147: Piscataquis | N147: ME | O147: Chandler Brook | P147: =VLOOKUP(N147,'Hide-RainGages'!$C$1:$K$344,9,FALSE) -> 171175
A148: 10100040102|Piscataquis|ME | B148: 10100040102 | C148: 10100040102 | D148: 0.0034 | E148: 99.8431 | F148: 0 | G148: 0 | H148: 0 | I148: 0.14 | J148: 100 | K148: 112.239106 | L148: 42 | M148: Piscataquis | N148: ME | O148: Millinocket Lake | P148: =VLOOKUP(N148,'Hide-RainGages'!$C$1:$K$344,9,FALSE) -> 171175
A149: 10100040103|Piscataquis|ME | B149: 10100040103 | C149: 10100040103 | D149: 0.007 | E149: 99.8931 | F149: 0 | G149: 0 | H149: 0 | I149: 0.094 | J149: 100 | K149: 61.229706 | L149: 42 | M149: Piscataquis | N149: ME | O149: Millimagasset Stream | P149: =VLOOKUP(N149,'Hide-RainGages'!$C$1:$K$344,9,FALSE) -> 171175
A150: 10100040104|Piscataquis|ME | B150: 10100040104 | C150: 10100040104 | D150: 0 | E150: 100 | F150: 0 | G150: 0 | H150: 0 | I150: 0 | J150: 100 | K150: 40.364257 | L150: 41.9362 | M150: Piscataquis | N150: ME | O150: Millinocket Stream | P150: =VLOOKUP(N150,'Hide-RainGages'!$C$1:$K$344,9,FALSE) -> 171175
A151: 10100040201|Piscataquis|ME | B151: 10100040201 | C151: 10100040201 | D151: 0 | E151: 99.9977 | F151: 0 | G151: 0 | H151: 0 | I151: 0.002 | J151: 100 | K151: 120.317452 | L151: 43.0515 | M151: Piscataquis | N151: ME | O151: Chase Lake | P151: =VLOOKUP(N151,'Hide-RainGages'!$C$1:$K$344,9,FALSE) -> 171175
A152: 10100040202|Piscataquis|ME | B152: 10100040202 | C152: 10100040202 | D152: 0.0027 | E152: 99.8868 | F152: 0 | G152: 0 | H152: 0 | I152: 0.105 | J152: 100 | K152: 101.821547 | L152: 42.9386 | M152: Piscataquis | N152: ME | O152: Little Munsungan Lake | P152: =VLOOKUP(N152,'Hide-RainGages'!$C$1:$K$344,9,FALSE) -> 171175
A153: 10100040203|Piscataquis|ME | B153: 10100040203 | C153: 10100040203 | D153: 0.011 | E153: 99.5905 | F153: 0 | G153: 0 | H153: 0 | I153: 0.408 | J153: 99.8311 | K153: 89.206596 | L153: 42.6311 | M153: Piscataquis | N153: ME | O153: Munsungan Stream | P153: =VLOOKUP(N153,'Hide-RainGages'!$C$1:$K$344,9,FALSE) -> 171175
A154: 10100040301|Aroostook|ME | B154: 10100040301 | C154: 10100040301 | D154: 0 | E154: 100 | F154: 0 | G154: 0 | H154: 0 | I154: 0 | J154: 100 | K154: 79.618823 | L154: 42.7391 | M154: Aroostook | N154: ME | O154: Bartlett Brook-Spring Brook | P154: =VLOOKUP(N154,'Hide-RainGages'!$C$1:$K$344,9,FALSE) -> 171175
A155: 10100040302|Aroostook|ME | B155: 10100040302 | C155: 10100040302 | D155: 0 | E155: 100 | F155: 0 | G155: 0 | H155: 0 | I155: 0 | J155: 100 | K155: 47.086359 | L155: 42.8148 | M155: Aroostook | N155: ME | O155: Chase Brook | P155: =VLOOKUP(N155,'Hide-RainGages'!$C$1:$K$344,9,FALSE) -> 171175
A156: 10100040303|Aroostook|ME | B156: 10100040303 | C156: 10100040303 | D156: 0.0008 | E156: 99.9233 | F156: 0 | G156: 0 | H156: 0 | I156: 0.074 | J156: 100 | K156: 107.844566 | L156: 43.3223 | M156: Aroostook | N156: ME | O156: Mooseleuk Lake | P156: =VLOOKUP(N156,'Hide-RainGages'!$C$1:$K$344,9,FALSE) -> 171175
A157: 10100040304|Piscataquis|ME | B157: 10100040304 | C157: 10100040304 | D157: 0 | E157: 100 | F157: 0 | G157: 0 | H157: 0 | I157: 0 | J157: 100 | K157: 47.575378 | L157: 43.4906 | M157: Piscataquis | N157: ME | O157: Smith Brook | P157: =VLOOKUP(N157,'Hide-RainGages'!$C$1:$K$344,9,FALSE) -> 171175
A158: 10100040305|Aroostook|ME | B158: 10100040305 | C158: 10100040305 | D158: 0 | E158: 99.6532 | F158: 0 | G158: 0.3468 | H158: 0 | I158: 0 | J158: 100 | K158: 68.951288 | L158: 42.1558 | M158: Aroostook | N158: ME | O158: Chandler Stream | P158: =VLOOKUP(N158,'Hide-RainGages'!$C$1:$K$344,9,FALSE) -> 171175
A159: 10100040306|Aroostook|ME | B159: 10100040306 | C159: 10100040306 | D159: 0.0009 | E159: 99.6931 | F159: 0 | G159: 0.2434 | H159: 0 | I159: 0.063 | J159: 99.9082 | K159: 86.590174 | L159: 42.05 | M159: Aroostook | N159: ME | O159: Mooseleuk Stream | P159: =VLOOKUP(N159,'Hide-RainGages'!$C$1:$K$344,9,FALSE) -> 171175
A160: 10100040401|Aroostook|ME | B160: 10100040401 | C160: 10100040401 | D160: 0 | E160: 100 | F160: 0 | G160: 0 | H160: 0 | I160: 0 | J160: 100 | K160: 105.476795 | L160: 41.4065 | M160: Aroostook | N160: ME | O160: West Branch Umcolcus Stream | P160: =VLOOKUP(N160,'Hide-RainGages'!$C$1:$K$344,9,FALSE) -> 171175
A161: 10100040402|Aroostook|ME | B161: 10100040402 | C161: 10100040402 | D161: 0.0114 | E161: 99.9319 | F161: 0 | G161: 0 | H161: 0 | I161: 0.066 | J161: 99.9258 | K161: 107.812137 | L161: 41.8525 | M161: Aroostook | N161: ME | O161: Umcolcus Stream | P161: =VLOOKUP(N161,'Hide-RainGages'!$C$1:$K$344,9,FALSE) -> 171175
A162: 10100040501|Aroostook|ME | B162: 10100040501 | C162: 10100040501 | D162: 0.0547 | E162: 99.6638 | F162: 0 | G162: 0 | H162: 0 | I162: 0.336 | J162: 99.7554 | K162: 108.782678 | L162: 42.1475 | M162: Aroostook | N162: ME | O162: Tracy Brook | P162: =VLOOKUP(N162,'Hide-RainGages'!$C$1:$K$344,9,FALSE) -> 171175
A163: 10100040502|Aroostook|ME | B163: 10100040502 | C163: 10100040502 | D163: 0.0085 | E163: 99.8572 | F163: 0.039 | G163: 0.0115 | H163: 0 | I163: 0.091 | J163: 99.8868 | K163: 103.329565 | L163: 42.0855 | M163: Aroostook | N163: ME | O163: St. Croix Lake | P163: =VLOOKUP(N163,'Hide-RainGages'!$C$1:$K$344,9,FALSE) -> 171175
A164: 10100040503|Aroostook|ME | B164: 10100040503 | C164: 10100040503 | D164: 0.0133 | E164: 99.8474 | F164: 0 | G164: 0 | H164: 0 | I164: 0.152 | J164: 99.8537 | K164: 76.076896 | L164: 41.5682 | M164: Aroostook | N164: ME | O164: Howe Brook | P164: =VLOOKUP(N164,'Hide-RainGages'!$C$1:$K$344,9,FALSE) -> 171175
A165: 10100040504|Aroostook|ME | B165: 10100040504 | C165: 10100040504 | D165: 0.0077 | E165: 99.7482 | F165: 0 | G165: 0 | H165: 0 | I165: 0.252 | J165: 99.9336 | K165: 43.653107 | L165: 40.84 | M165: Aroostook | N165: ME | O165: Beaver Brook | P165: =VLOOKUP(N165,'Hide-RainGages'!$C$1:$K$344,9,FALSE) -> 171175
A166: 10100040505|Aroostook|ME | B166: 10100040505 | C166: 10100040505 | D166: 0.0434 | E166: 98.8047 | F166: 0.4659 | G166: 0.1487 | H166: 0 | I166: 0.58 | J166: 99.7203 | K166: 104.321329 | L166: 39.5128 | M166: Aroostook | N166: ME | O166: Blackwater River | P166: =VLOOKUP(N166,'Hide-RainGages'!$C$1:$K$344,9,FALSE) -> 171175
A167: 10100040506|Aroostook|ME | B167: 10100040506 | C167: 10100040506 | D167: 0.0793 | E167: 99.3665 | F167: 0.0654 | G167: 0.007 | H167: 0 | I167: 0.557 | J167: 99.5606 | K167: 181.365499 | L167: 40.3238 | M167: Aroostook | N167: ME | O167: St. Croix Stream | P167: =VLOOKUP(N167,'Hide-RainGages'!$C$1:$K$344,9,FALSE) -> 171175
A168: 10100040601|Aroostook|ME | B168: 10100040601 | C168: 10100040601 | D168: 0.0003 | E168: 99.9795 | F168: 0 | G168: 0 | H168: 0 | I168: 0.02 | J168: 100 | K168: 75.828348 | L168: 40.9881 | M168: Aroostook | N168: ME | O168: La Pomkeag Lake-La Pomkeag Stream | P168: =VLOOKUP(N168,'Hide-RainGages'!$C$1:$K$344,9,FALSE) -> 171175
A169: 10100040602|Aroostook|ME | B169: 10100040602 | C169: 10100040602 | D169: 0 | E169: 100 | F169: 0 | G169: 0 | H169: 0 | I169: 0 | J169: 100 | K169: 43.345053 | L169: 40.2653 | M169: Aroostook | N169: ME | O169: Hayden Brook | P169: =VLOOKUP(N169,'Hide-RainGages'!$C$1:$K$344,9,FALSE) -> 171175
A170: 10100040603|Aroostook|ME | B170: 10100040603 | C170: 10100040603 | D170: 0.0156 | E170: 99.5397 | F170: 0 | G170: 0.0359 | H170: 0 | I170: 0.423 | J170: 99.5534 | K170: 133.052771 | L170: 40.8462 | M170: Aroostook | N170: ME | O170: Farm Camp Brook-Aroostook River | P170: =VLOOKUP(N170,'Hide-RainGages'!$C$1:$K$344,9,FALSE) -> 171175
A171: 10100040604|Aroostook|ME | B171: 10100040604 | C171: 10100040604 | D171: 0.0062 | E171: 99.7334 | F171: 0 | G171: 0 | H171: 0 | I171: 0.267 | J171: 99.7507 | K171: 46.950178 | L171: 39.7593 | M171: Aroostook | N171: ME | O171: Otter Brook | P171: =VLOOKUP(N171,'Hide-RainGages'!$C$1:$K$344,9,FALSE) -> 171175
A172: 10100040605|Aroostook|ME | B172: 10100040605 | C172: 10100040605 | D172: 0.0322 | E172: 99.4942 | F172: 0 | G172: 0.0537 | H172: 0 | I172: 0.452 | J172: 99.7883 | K172: 40.242068 | L172: 40.3111 | M172: Aroostook | N172: ME | O172: Trout Brook | P172: =VLOOKUP(N172,'Hide-RainGages'!$C$1:$K$344,9,FALSE) -> 171175
A173: 10100040606|Aroostook|ME | B173: 10100040606 | C173: 10100040606 | D173: 0.2614 | E173: 96.9026 | F173: 1.3117 | G173: 0.1297 | H173: 0 | I173: 1.639 | J173: 98.072 | K173: 117.785413 | L173: 39.2652 | M173: Aroostook | N173: ME | O173: Shields Brook-Aroostook River | P173: =VLOOKUP(N173,'Hide-RainGages'!$C$1:$K$344,9,FALSE) -> 171175
A174: 10100040701|Aroostook|ME | B174: 10100040701 | C174: 10100040701 | D174: 0 | E174: 100 | F174: 0 | G174: 0 | H174: 0 | I174: 0 | J174: 100 | K174: 127.037105 | L174: 43.2168 | M174: Aroostook | N174: ME | O174: Rocky Brook | P174: =VLOOKUP(N174,'Hide-RainGages'!$C$1:$K$344,9,FALSE) -> 171175
A175: 10100040702|Aroostook|ME | B175: 10100040702 | C175: 10100040702 | D175: 0 | E175: 100 | F175: 0 | G175: 0 | H175: 0 | I175: 0 | J175: 100 | K175: 146.808177 | L175: 42.4939 | M175: Aroostook | N175: ME | O175: Pratt Lake Stream | P175: =VLOOKUP(N175,'Hide-RainGages'!$C$1:$K$344,9,FALSE) -> 171175
A176: 10100040703|Aroostook|ME | B176: 10100040703 | C176: 10100040703 | D176: 0 | E176: 100 | F176: 0 | G176: 0 | H176: 0 | I176: 0 | J176: 100 | K176: 105.654984 | L176: 43.1371 | M176: Aroostook | N176: ME | O176: Big Machias Lake | P176: =VLOOKUP(N176,'Hide-RainGages'!$C$1:$K$344,9,FALSE) -> 171175
A177: 10100040801|Aroostook|ME | B177: 10100040801 | C177: 10100040801 | D177: 0 | E177: 100 | F177: 0 | G177: 0 | H177: 0 | I177: 0 | J177: 100 | K177: 89.257507 | L177: 41.2451 | M177: Aroostook | N177: ME | O177: South Branch Machias River | P177: =VLOOKUP(N177,'Hide-RainGages'!$C$1:$K$344,9,FALSE) -> 171175
A178: 10100040802|Aroostook|ME | B178: 10100040802 | C178: 10100040802 | D178: 0 | E178: 100 | F178: 0 | G178: 0 | H178: 0 | I178: 0 | J178: 100 | K178: 44.952779 | L178: 41.38 | M178: Aroostook | N178: ME | O178: McConnell Brook | P178: =VLOOKUP(N178,'Hide-RainGages'!$C$1:$K$344,9,FALSE) -> 171175
A179: 10100040803|Aroostook|ME | B179: 10100040803 | C179: 10100040803 | D179: 0 | E179: 100 | F179: 0 | G179: 0 | H179: 0 | I179: 0 | J179: 100 | K179: 39.11652 | L179: 39.4783 | M179: Aroostook | N179: ME | O179: Carry Brook | P179: =VLOOKUP(N179,'Hide-RainGages'!$C$1:$K$344,9,FALSE) -> 171175
A180: 10100040804|Aroostook|ME | B180: 10100040804 | C180: 10100040804 | D180: 0 | E180: 100 | F180: 0 | G180: 0 | H180: 0 | I180: 0 | J180: 100 | K180: 99.364606 | L180: 40.9391 | M180: Aroostook | N180: ME | O180: Greenlaw Stream | P180: =VLOOKUP(N180,'Hide-RainGages'!$C$1:$K$344,9,FALSE) -> 171175
A181: 10100040805|Aroostook|ME | B181: 10100040805 | C181: 10100040805 | D181: 0.0563 | E181: 98.9064 | F181: 0.7179 | G181: 0.1099 | H181: 0 | I181: 0.266 | J181: 99.8191 | K181: 200.117808 | L181: 40.9437 | M181: Aroostook | N181: ME | O181: Machias River | P181: =VLOOKUP(N181,'Hide-RainGages'!$C$1:$K$344,9,FALSE) -> 171175
A182: 10100040901|Aroostook|ME | B182: 10100040901 | C182: 10100040901 | D182: 0.1635 | E182: 95.47 | F182: 3.0465 | G182: 0.351 | H182: 0 | I182: 1.025 | J182: 98.3881 | K182: 210.225605 | L182: 39.0417 | M182: Aroostook | N182: ME | O182: Squa Pan Lake-Squa Pan Stream | P182: =VLOOKUP(N182,'Hide-RainGages'!$C$1:$K$344,9,FALSE) -> 171175
A183: 10100040902|Aroostook|ME | B183: 10100040902 | C183: 10100040902 | D183: 0 | E183: 99.9389 | F183: 0.0611 | G183: 0 | H183: 0 | I183: 0 | J183: 100 | K183: 82.111598 | L183: 40.3723 | M183: Aroostook | N183: ME | O183: Little Machias Lake | P183: =VLOOKUP(N183,'Hide-RainGages'!$C$1:$K$344,9,FALSE) -> 171175
A184: 10100040903|Aroostook|ME | B184: 10100040903 | C184: 10100040903 | D184: 0.0458 | E184: 99.1058 | F184: 0.5389 | G184: 0.073 | H184: 0 | I184: 0.282 | J184: 99.7402 | K184: 83.843043 | L184: 39.7447 | M184: Aroostook | N184: ME | O184: Little Machias River | P184: =VLOOKUP(N184,'Hide-RainGages'!$C$1:$K$344,9,FALSE) -> 171175
A185: 10100040904|Aroostook|ME | B185: 10100040904 | C185: 10100040904 | D185: 0.6728 | E185: 88.2778 | F185: 6.9257 | G185: 1.4705 | H185: 0 | I185: 3.289 | J185: 93.765 | K185: 205.883931 | L185: 38.9662 | M185: Aroostook | N185: ME | O185: Alder Brook-Aroostook River | P185: =VLOOKUP(N185,'Hide-RainGages'!$C$1:$K$344,9,FALSE) -> 171175
A186: 10100040905|Aroostook|ME | B186: 10100040905 | C186: 10100040905 | D186: 0.024 | E186: 99.3375 | F186: 0.1012 | G186: 0.2736 | H186: 0 | I186: 0.287 | J186: 99.9003 | K186: 96.290929 | L186: 40.9439 | M186: Aroostook | N186: ME | O186: West Branch Beaver Brook | P186: =VLOOKUP(N186,'Hide-RainGages'!$C$1:$K$344,9,FALSE) -> 171175
A187: 10100040906|Aroostook|ME | B187: 10100040906 | C187: 10100040906 | D187: 0 | E187: 99.9767 | F187: 0 | G187: 0.0233 | H187: 0 | I187: 0 | J187: 100 | K187: 57.817345 | L187: 40.3714 | M187: Aroostook | N187: ME | O187: East Branch Beaver Brook | P187: =VLOOKUP(N187,'Hide-RainGages'!$C$1:$K$344,9,FALSE) -> 171175
A188: 10100040907|Aroostook|ME | B188: 10100040907 | C188: 10100040907 | D188: 0.1209 | E188: 98.7556 | F188: 0.5189 | G188: 0.0751 | H188: 0 | I188: 0.65 | J188: 100 | K188: 38.329221 | L188: 39.7561 | M188: Aroostook | N188: ME | O188: Burpee Brook | P188: =VLOOKUP(N188,'Hide-RainGages'!$C$1:$K$344,9,FALSE) -> 171175
A189: 10100040908|Aroostook|ME | B189: 10100040908 | C189: 10100040908 | D189: 0 | E189: 100 | F189: 0 | G189: 0 | H189: 0 | I189: 0 | J189: 100 | K189: 79.151149 | L189: 39.6067 | M189: Aroostook | N189: ME | O189: Beaver Brook | P189: =VLOOKUP(N189,'Hide-RainGages'!$C$1:$K$344,9,FALSE) -> 171175
A190: 10100040909|Aroostook|ME | B190: 10100040909 | C190: 10100040909 | D190: 0.0927 | E190: 92.2835 | F190: 4.0982 | G190: 2.6455 | H190: 0 | I190: 0.962 | J190: 92.9472 | K190: 114.604468 | L190: 39.2612 | M190: Aroostook | N190: ME | O190: Gardner Brook-Aroostook River | P190: =VLOOKUP(N190,'Hide-RainGages'!$C$1:$K$344,9,FALSE) -> 171175
A191: 10100041001|Aroostook|ME | B191: 10100041001 | C191: 10100041001 | D191: 0.7691 | E191: 72.5896 | F191: 15.9079 | G191: 7.6491 | H191: 1 | I191: 3.847 | J191: 90.973 | K191: 143.911001 | L191: 39.5901 | M191: Aroostook | N191: ME | O191: Salmon Brook | P191: =VLOOKUP(N191,'Hide-RainGages'!$C$1:$K$344,9,FALSE) -> 171175
A192: 10100041002|Aroostook|ME | B192: 10100041002 | C192: 10100041002 | D192: 0 | E192: 100 | F192: 0 | G192: 0 | H192: 0 | I192: 0 | J192: 100 | K192: 63.233093 | L192: 40.6933 | M192: Aroostook | N192: ME | O192: West Branch Presque Isle Stream | P192: =VLOOKUP(N192,'Hide-RainGages'!$C$1:$K$344,9,FALSE) -> 171175
A193: 10100041003|Aroostook|ME | B193: 10100041003 | C193: 10100041003 | D193: 0 | E193: 100 | F193: 0 | G193: 0 | H193: 0 | I193: 0 | J193: 100 | K193: 40.621922 | L193: 41.0426 | M193: Aroostook | N193: ME | O193: East Branch Presque Isle Stream | P193: =VLOOKUP(N193,'Hide-RainGages'!$C$1:$K$344,9,FALSE) -> 171175
A194: 10100041004|Aroostook|ME | B194: 10100041004 | C194: 10100041004 | D194: 0 | E194: 99.9633 | F194: 0 | G194: 0.0367 | H194: 0 | I194: 0 | J194: 100 | K194: 61.258888 | L194: 40.087 | M194: Aroostook | N194: ME | O194: Burntland Brook | P194: =VLOOKUP(N194,'Hide-RainGages'!$C$1:$K$344,9,FALSE) -> 171175
A195: =C195&"|"&M195 & "|" & N195 -> 10100041005|Aroostook|ME | B195: 10100041005 | C195: 10100041005 | D195: 0.0091 | E195: 98.6963 | F195: 0.9534 | G195: 0.2469 | H195: 0 | I195: 0.103 | J195: 100 | K195: 76.594054 | L195: 38.6897 | M195: Aroostook | N195: ME | O195: Shields Brook-Upper Presque Isle Stream | P195: =VLOOKUP(N195,'Hide-RainGages'!$C$1:$K$344,9,FALSE) -> 171175
A196: 10100041006|Aroostook|ME | B196: 10100041006 | C196: 10100041006 | D196: 0.182 | E196: 86.8647 | F196: 9.8141 | G196: 1.7614 | H196: 1 | I196: 1.544 | J196: 93.873 | K196: 47.397574 | L196: 38.1818 | M196: Aroostook | N196: ME | O196: Alder Brook | P196: =VLOOKUP(N196,'Hide-RainGages'!$C$1:$K$344,9,FALSE) -> 171175
A197: 10100041007|Aroostook|ME | B197: 10100041007 | C197: 10100041007 | D197: 0.9702 | E197: 71.4598 | F197: 20.2911 | G197: 4.4759 | H197: 2 | I197: 3.773 | J197: 81.2042 | K197: 109.919442 | L197: 38.448 | M197: Aroostook | N197: ME | O197: North Branch Presque Isle Stream | P197: =VLOOKUP(N197,'Hide-RainGages'!$C$1:$K$344,9,FALSE) -> 171175
A198: 10100041008|Aroostook|ME | B198: 10100041008 | C198: 10100041008 | D198: 4.7387 | E198: 66.4996 | F198: 15.8001 | G198: 3.6459 | H198: 1 | I198: 13.771 | J198: 80.6272 | K198: 118.91191 | L198: 37.1852 | M198: Aroostook | N198: ME | O198: Arnold Brook-Lower Presque Isle Stream | P198: =VLOOKUP(N198,'Hide-RainGages'!$C$1:$K$344,9,FALSE) -> 171175
A199: 10100041009|Aroostook|ME | B199: 10100041009 | C199: 10100041009 | D199: 1.6894 | E199: 42.0126 | F199: 45.8124 | G199: 5.2479 | H199: 2 | I199: 6.805 | J199: 71.1583 | K199: 234.825452 | L199: 38.5672 | M199: Aroostook | N199: ME | O199: Pettingill Brook-Aroostook River | P199: =VLOOKUP(N199,'Hide-RainGages'!$C$1:$K$344,9,FALSE) -> 171175
A200: 10100041101|Aroostook|ME | B200: 10100041101 | C200: 10100041101 | D200: 1.7631 | E200: 62.9506 | F200: 21.3766 | G200: 8.6662 | H200: 1 | I200: 6.98 | J200: 87.7387 | K200: 131.835242 | L200: 39.28 | M200: Aroostook | N200: ME | O200: Caribou Stream | P200: =VLOOKUP(N200,'Hide-RainGages'!$C$1:$K$344,9,FALSE) -> 171175
... 4300 more rows

Sheet Sheet2 (hidden)
A3: Average of Runoff Coeff | B3: Column Labels
A4: Row Labels | B4: A | C4: B | D4: C | E4: D | F4: Grand Total
A5: 10 | B5: 0.08609125841 | C5: 0.1075148895 | D5: 0.1757963497 | E5: 0.3138972142 | F5: 0.170824928
A6: 20 | B6: 0.169259366 | C6: 0.1888587896 | D6: 0.250573487 | E6: 0.374443804 | F6: 0.2457838617
A7: 30 | B7: 0.2514841499 | C7: 0.2691354467 | D7: 0.3241604227 | E7: 0.4336003842 | F7: 0.3195951009
A8: 40 | B8: 0.3329836695 | C8: 0.348610951 | D8: 0.3967223823 | E8: 0.4914918348 | F8: 0.3924522094
A9: 50 | B9: 0.4138914505 | C9: 0.4274034582 | D9: 0.4683900096 | E9: 0.5482824207 | F9: 0.4644918348
A10: 60 | B10: 0.4942987512 | C10: 0.5055667627 | D10: 0.5391978866 | E10: 0.6039269933 | F10: 0.5357475985
A11: 70 | B11: 0.5742901057 | C11: 0.5831959654 | D11: 0.6091373679 | E11: 0.6583909702 | F11: 0.6062536023
A12: 80 | B12: 0.6538866475 | C12: 0.660196926 | D12: 0.6781114313 | E12: 0.7115590778 | F12: 0.6759385207
A13: 90 | B13: 0.733117195 | C13: 0.736543708 | D13: 0.7459615754 | E13: 0.7630912584 | F13: 0.7446784342
A14: 100 | B14: 0.8120682037 | C14: 0.8120682037 | D14: 0.8120682037 | E14: 0.8120682037 | F14: 0.8120682037
A15: Grand Total | B15: 0.4521370797 | C15: 0.4639095101 | D15: 0.5000119116 | E15: 0.5710752161 | F15: 0.4967834294
A17: Max of Runoff Coeff | B17: Column Labels
A18: Row Labels | B18: A | C18: B | D18: C | E18: D | F18: Grand Total
A19: 10 | B19: 0.105 | C19: 0.221 | D19: 0.398 | E19: 0.599 | F19: 0.599
A20: 20 | B20: 0.199 | C20: 0.301 | D20: 0.459 | E20: 0.636 | F20: 0.636
A21: 30 | B21: 0.293 | C21: 0.38 | D21: 0.52 | E21: 0.674 | F21: 0.674
A22: 40 | B22: 0.386 | C22: 0.459 | D22: 0.579 | E22: 0.71 | F22: 0.71
A23: 50 | B23: 0.479 | C23: 0.537 | D23: 0.638 | E23: 0.75 | F23: 0.75
A24: 60 | B24: 0.572 | C24: 0.618 | D24: 0.701 | E24: 0.79 | F24: 0.79
A25: 70 | B25: 0.664 | C25: 0.7 | D25: 0.762 | E25: 0.83 | F25: 0.83
A26: 80 | B26: 0.756 | C26: 0.781 | D26: 0.823 | E26: 0.868 | F26: 0.868
A27: 90 | B27: 0.849 | C27: 0.861 | D27: 0.883 | E27: 0.905 | F27: 0.905
A28: 100 | B28: 0.942 | C28: 0.942 | D28: 0.942 | E28: 0.942 | F28: 0.942
A29: Grand Total | B29: 0.942 | C29: 0.942 | D29: 0.942 | E29: 0.942 | F29: 0.942

Sheet Hide-HUC-Stats-Lookup (hidden)
A1: HUC_4 | B1: Data Type | C1: count | D1: mean | E1: std | F1: min | G1: 0.01 | H1: 0.05 | I1: 0.1 | J1: 0.25 | K1: 0.3 | L1: 0.5 | M1: 0.6 | N1: 0.75 | O1: 0.9 | P1: 0.95 | Q1: 0.99 | R1: max | AA1: Field Name | AB1: Description
A2: 0101' | B2: LC_OVERLAP_impervious | C2: 325 | D2: 63.02775385 | E2: 45.67667563 | F2: 0 | G2: 0 | H2: 0 | I2: 0 | J2: 0 | K2: 6.858 | L2: 99.97 | M2: 99.98 | N2: 99.99 | O2: 100 | P2: 100 | Q2: 100 | R2: 100 | T2: Threshold selected based on HUC selection on '2-Watersheds' | AA2: OBJECTID | AB2: Unique identifier for watershed shapefile
A3: 0101' | B3: LC_OVERLAP_landcover | C3: 325 | D3: 63.02775385 | E3: 45.67667563 | F3: 0 | G3: 0 | H3: 0 | I3: 0 | J3: 0 | K3: 6.858 | L3: 99.97 | M3: 99.98 | N3: 99.99 | O3: 100 | P3: 100 | Q3: 100 | R3: 100 | U3: RNAT30_riparian | V3: 0.25 | W3: 0.5 | X3: 0.75 | Y3: 0.6 | AA3: HUC_12 | AB3: USGS watershed identifier
A4: 0101' | B4: N_INDEX_landcover | C4: 232 | D4: 92.91256509 | E4: 14.21508697 | F4: 33.7984 | G4: 43.863579 | H4: 60.48028 | I4: 70.09381 | J4: 96.78125 | K4: 98.80536 | L4: 99.89425 | M4: 100 | N4: 100 | O4: 100 | P4: 100 | Q4: 100 | R4: 100 | T4: Stream Stabilization/ Conservation | U4: Natural land cover in 30 m stream buffer | V4: 86.24925 | W4: 95.5674 | X4: 98.73165 | Y4: 96.69916 | AA4: Shape_Length | AB4: Perimeter length in meters
A5: 0101' | B5: NaturalLand | C5: 325 | D5: 56.12759138 | E5: 36.99831544 | F5: 0 | G5: 0 | H5: 0 | I5: 0 | J5: 0 | K5: 46.54956 | L5: 75.4801 | M5: 80.17812 | N5: 84.3777 | O5: 89.9713 | P5: 93.05216 | Q5: 96.356156 | R5: 98.2646 | AA5: Shape_Area | AB5: Watershed area in square meters
A6: 0101' | B6: PAGC_landcover | C6: 232 | D6: 4.766818966 | E6: 10.2037859 | F6: 0 | G6: 0 | H6: 0 | I6: 0 | J6: 0 | K6: 0 | L6: 0 | M6: 0 | N6: 1.350975 | O6: 20.2019 | P6: 30.46626 | Q6: 41.786161 | R6: 49.2448 | U6: PFOR90_landcover + PWETL95_landcove | V6: 0.25 | W6: 0.5 | X6: 0.75 | Y6: 0.6 | AA6: Area_km2 | AB6: Watershed area in square kilometers
A7: 0101' | B7: PAGP_landcover | C7: 232 | D7: 0.9634849138 | E7: 2.109542021 | F7: 0 | G7: 0 | H7: 0 | I7: 0 | J7: 0 | K7: 0 | L7: 0 | M7: 0 | N7: 0.515625 | O7: 3.66741 | P7: 5.75696 | Q7: 9.511312 | R7: 10.9112 | T7: Upland Stabilization | U7: Natural land cover | V7: 56.61255 | W7: 71.3099 | X7: 80.01555 | Y7: 74.71152 | AA7: PIMPV | AB7: Percent impervious area
A8: 0101' | B8: PAGT_landcover | C8: 232 | D8: 6.524923707 | E8: 13.15202643 | F8: 0 | G8: 0 | H8: 0 | I8: 0 | J8: 0 | K8: 0 | L8: 0.10215 | M8: 0.26464 | N8: 2.875875 | O8: 27.9473 | P8: 38.270285 | Q8: 52.648617 | R8: 61.0719 | U8: Disturbed Natural Land Cover Thresholds | V8: =V7*0.02 -> 1.132251 | W8: =W7*0.05 -> 3.565495 | X8: =X7*0.1 -> 8.001555 | AA8: LC_OVERLAP
A9: 0101' | B9: PFOR90_landcover | C9: 325 | D9: 55.68927662 | E9: 36.75125702 | F9: 0 | G9: 0 | H9: 0 | I9: 0 | J9: 0 | K9: 46.38274 | L9: 74.8713 | M9: 79.59146 | N9: 83.7825 | O9: 89.50854 | P9: 92.23546 | Q9: 96.1636 | R9: 97.5235 | U9: PIMPV_impervious | V9: 0.25 | W9: 0.5 | X9: 0.75 | Y9: 0.6 | AA9: N_INDEX | AB9: Percent natural land cover
A10: 0101' | B10: PFOR_landcover | C10: 232 | D10: 69.20057112 | E10: 14.12901847 | F10: 21.0995 | G10: 32.376801 | H10: 37.87335 | I10: 50.25469 | J10: 62.771275 | K10: 64.53337 | L10: 72.24885 | M10: 74.66056 | N10: 78.62675 | O10: 84.73664 | P10: 86.881385 | Q10: 91.658638 | R10: 94.4699 | T10: Reducing Impervious Surface Connectivity | U10: Imperviousness | V10: 0.19155 | W10: 0.7189 | X10: 2.4445 | Y10: 1.02714 | AA10: PFOR | AB10: Percent forested area
A11: 0101' | B11: PIMPV_impervious | C11: 232 | D11: 0.3762176724 | E11: 0.8414824425 | F11: 0 | G11: 0 | H11: 0 | I11: 0 | J11: 0 | K11: 0 | L11: 0.00735 | M11: 0.03936 | N11: 0.277675 | O11: 1.29254 | P11: 1.968115 | Q11: 4.447136 | R11: 4.7387 | AA11: PWETL | AB11: Percent wetland area
A12: 0101' | B12: PURB_Percent_Urban_Land_Cover | C12: 232 | D12: 1.329616379 | E12: 2.636498572 | F12: 0 | G12: 0 | H12: 0 | I12: 0 | J12: 0 | K12: 0 | L12: 0.0595 | M12: 0.248 | N12: 1.2185 | O12: 5.2553 | P12: 6.8806 | Q12: 12.40914 | R12: 13.771 | U12: PctPRW_PctPRW | V12: 0.25 | W12: 0.5 | X12: 0.75 | Y12: 0.6 | AA12: PAGT
A13: 0101' | B13: PWETL95_landcover | C13: 325 | D13: 0.4383147692 | E13: 0.65258549 | F13: 0 | G13: 0 | H13: 0 | I13: 0 | J13: 0 | K13: 0.03886 | L13: 0.2217 | M13: 0.3079 | N13: 0.5712 | O13: 1.15916 | P13: 1.5924 | Q13: 3.233512 | R13: 4.8103 | T13: Wetland restoration/ creation | U13: Potentially restorable wetlands | V13: 0 | W13: 0 | X13: 0 | Y13: 0 | AA13: PAGP | AB13: Percent pasture
A14: 0101' | B14: PWETL_landcover | C14: 232 | D14: 9.426449569 | E14: 5.854157489 | F14: 0 | G14: 1.383295 | H14: 2.9947 | I14: 3.78942 | J14: 5.152025 | K14: 5.4843 | L14: 8.0279 | M14: 9.35834 | N14: 12.150325 | O14: 17.45531 | P14: 21.45578 | Q14: 27.403088 | R14: 32.0529 | AA14: PAGC | AB14: Percent cropland
A15: 0101' | B15: PctPRW_PctPRW | C15: 232 | D15: 0.474137931 | E15: 1.02320443 | F15: 0 | G15: 0 | H15: 0 | I15: 0 | J15: 0 | K15: 0 | L15: 0 | M15: 0 | N15: 0 | O15: 2 | P15: 3 | Q15: 4 | R15: 5 | AA15: PFOR90 | AB15: Percent forest and woody wetlands
A16: 0101' | B16: RFOR30_riparian | C16: 314 | D16: 63.06711847 | E16: 38.74982574 | F16: 0 | G16: 0 | H16: 0 | I16: 0 | J16: 0 | K16: 65.87139 | L16: 84.28845 | M16: 86.86622 | N16: 91.221775 | O16: 94.47408 | P16: 96.205825 | Q16: 98.409998 | R16: 100 | AA16: PWETL95 | AB16: Percent emergent herbaceous wetlands
A17: 0101' | B17: RFOR9030_riparian | C17: 314 | D17: 63.06711847 | E17: 38.74982574 | F17: 0 | G17: 0 | H17: 0 | I17: 0 | J17: 0 | K17: 65.87139 | L17: 84.28845 | M17: 86.86622 | N17: 91.221775 | O17: 94.47408 | P17: 96.205825 | Q17: 98.409998 | R17: 100 | AA17: RLA_30
A18: 0101' | B18: RLA_30_riparian | C18: 314 | D18: 5139492.994 | E18: 5190525.434 | F18: 0 | G18: 0 | H18: 0 | I18: 0 | J18: 0 | K18: 1141200 | L18: 4335750 | M18: 5313420 | N18: 7829775 | O18: 11957040 | P18: 14028300 | Q18: 21056058 | R18: 28686600 | AA18: RO_30
A19: 0101' | B19: RNAT30_riparian | C19: 314 | D19: 70.43193153 | E19: 42.9335721 | F19: 0 | G19: 0 | H19: 0 | I19: 0 | J19: 0 | K19: 73.17634 | L19: 99.52795 | M19: 99.93336 | N19: 100 | O19: 100 | P19: 100 | Q19: 100 | R19: 100 | T19: Lookup Column Numbers | AA19: RNAT30 | AB19: Percent natural land cover in buffer
A20: 0101' | B20: RO_30_riparian | C20: 325 | D20: 69.33252308 | E20: 44.98785271 | F20: 0 | G20: 0 | H20: 0 | I20: 0 | J20: 0 | K20: 56.788 | L20: 100 | M20: 100 | N20: 100 | O20: 100 | P20: 100 | Q20: 100 | R20: 100 | T20: Stream Stabilization/ Conservation | U20: Natural land cover in 30 m stream buffer | V20: 4 | W20: 6 | X20: 8 | Y20: 7 | AA20: RFOR30 | AB20: Percent forest land in buffer
A21: 0102' | B21: LC_OVERLAP_impervious | C21: 258 | D21: 99.98612403 | E21: 0.02291279623 | F21: 99.79 | G21: 99.8799 | H21: 99.96 | I21: 99.977 | J21: 99.98 | K21: 99.99 | L21: 99.99 | M21: 99.99 | N21: 100 | O21: 100 | P21: 100 | Q21: 100 | R21: 100 | T21: Upland Stabilization | U21: Natural land cover | V21: 4 | W21: 6 | X21: 8 | Y21: 7 | AA21: RFOR9030 | AB21: Percent forest and woody wetlands in buffer
A22: 0102' | B22: LC_OVERLAP_landcover | C22: 258 | D22: 99.98612403 | E22: 0.02291279623 | F22: 99.79 | G22: 99.8799 | H22: 99.96 | I22: 99.977 | J22: 99.98 | K22: 99.99 | L22: 99.99 | M22: 99.99 | N22: 100 | O22: 100 | P22: 100 | Q22: 100 | R22: 100 | T22: Reducing Impervious Surface Connectivity | U22: Imperviousness | V22: 4 | W22: 6 | X22: 8 | Y22: 7 | AA22: BioImpLen | AB22: Stream length impaired for biota (km)
A23: 0102' | B23: N_INDEX_landcover | C23: 258 | D23: 95.69884884 | E23: 6.797138301 | F23: 49.5323 | G23: 71.802873 | H23: 82.396085 | I23: 86.1143 | J23: 94.299075 | K23: 96.04491 | L23: 98.85165 | M23: 99.3582 | N23: 99.757775 | O23: 100 | P23: 100 | Q23: 100 | R23: 100 | T23: Wetland restoration/ creation | U23: Potentially restorable wetlands | V23: 4 | W23: 6 | X23: 8 | Y23: 7 | AA23: MetImpLen | AB23: Stream length impaired by metals (km)
A24: 0102' | B24: NaturalLand | C24: 258 | D24: 85.99346047 | E24: 7.684264523 | F24: 44.3891 | G24: 65.906295 | H24: 71.127505 | I24: 75.98577 | J24: 81.99795 | K24: 83.13224 | L24: 87.1774 | M24: 88.87744 | N24: 91.693275 | O24: 94.39868 | P24: 95.42649 | Q24: 98.717918 | R24: 99.6489 | AA24: NutImpLen | AB24: Stream length impaired by nutrients (km)
A25: 0102' | B25: PAGC_landcover | C25: 258 | D25: 1.011241085 | E25: 2.009508321 | F25: 0 | G25: 0 | H25: 0 | I25: 0 | J25: 0 | K25: 0 | L25: 0.0376 | M25: 0.15926 | N25: 1.04375 | O25: 3.57876 | P25: 5.387825 | Q25: 9.169788 | R25: 12.4905 | AA25: TotalLength | AB25: Stream length (km)
A26: 0102' | B26: PAGP_landcover | C26: 258 | D26: 0.9165399225 | E26: 1.672953398 | F26: 0 | G26: 0 | H26: 0 | I26: 0 | J26: 0 | K26: 0 | L26: 0.05725 | M26: 0.23302 | N26: 1.014125 | O26: 3.71278 | P26: 4.77481 | Q26: 6.455425 | R26: 10.4128 | AA26: StreamDensity | AB26: Stream density (km/km2)
A27: 0102' | B27: PAGT_landcover | C27: 258 | D27: 3.356090698 | E27: 4.931022908 | F27: 0 | G27: 0 | H27: 0 | I27: 0 | J27: 0.168 | K27: 0.28051 | L27: 1.02595 | M27: 1.67024 | N27: 4.00965 | O27: 11.37907 | P27: 13.762515 | Q27: 20.869979 | R27: 22.9717 | T27: Lookup Column Number Defaults | AA27: FishImpLen
A28: 0102' | B28: PFOR90_landcover | C28: 258 | D28: 84.55773333 | E28: 7.816230005 | F28: 42.143 | G28: 64.704464 | H28: 69.113125 | I28: 74.4245 | J28: 80.525425 | K28: 81.92018 | L28: 85.69915 | M28: 87.3383 | N28: 90.356225 | O28: 92.8294 | P28: 94.526275 | Q28: 97.932828 | R28: 98.7932 | T28: Stream Stabilization/ Conservation | U28: Natural land cover in 30 m stream buffer | V28: 4 | W28: 6 | X28: 8 | Y28: 7 | AA28: HabImpLen | AB28: Stream length impaired for habitat (km)
A29: 0102' | B29: PFOR_landcover | C29: 258 | D29: 74.89295853 | E29: 9.589458044 | F29: 37.3536 | G29: 50.512155 | H29: 58.84904 | I29: 62.29049 | J29: 69.987925 | K29: 70.86733 | L29: 75.4505 | M29: 77.57586 | N29: 81.371975 | O29: 87.24082 | P29: 89.505855 | Q29: 93.652838 | R29: 97.4372 | T29: Upland Stabilization | U29: Natural land cover | V29: 4 | W29: 6 | X29: 8 | Y29: 7 | AA29: TempImpLen | AB29: Stream length impaired for temperature (km)
A30: 0102' | B30: PIMPV_impervious | C30: 258 | D30: 0.4806139535 | E30: 1.336086962 | F30: 0 | G30: 0 | H30: 0 | I30: 0 | J30: 0.008925 | K30: 0.0147 | L30: 0.08 | M30: 0.17308 | N30: 0.514675 | O30: 1.07506 | P30: 1.58271 | Q30: 6.745124 | R30: 15.0464 | T30: Reducing Impervious Surface Connectivity | U30: Imperviousness | V30: 4 | W30: 6 | X30: 8 | Y30: 7 | AA30: PolImpLen
A31: 0102' | B31: PURB_Percent_Urban_Land_Cover | C31: 258 | D31: 2.271151163 | E31: 3.98082994 | F31: 0 | G31: 0 | H31: 0 | I31: 0 | J31: 0.18575 | K31: 0.2704 | L31: 0.937 | M31: 1.3054 | N31: 2.974 | O31: 5.5066 | P31: 7.45 | Q31: 20.12529 | R31: 39.919 | T31: Wetland restoration/ creation | U31: Potentially restorable wetlands | V31: 4 | W31: 6 | X31: 8 | Y31: 7 | AA31: OtherLen
A32: 0102' | B32: PWETL95_landcover | C32: 258 | D32: 1.435727132 | E32: 1.266122241 | F32: 0 | G32: 0.10131 | H32: 0.24316 | I32: 0.30687 | J32: 0.593325 | K32: 0.64154 | L32: 1.0441 | M32: 1.39118 | N32: 1.9049 | O32: 3.23739 | P32: 3.873395 | Q32: 6.563506 | R32: 8.1364 | AA32: TotImpLen | AB32: Total stream length impaired (km)
A33: 0102' | B33: PWETL_landcover | C33: 258 | D33: 11.10049922 | E33: 6.774844885 | F33: 1.1301 | G33: 1.811846 | H33: 3.107915 | I33: 3.83685 | J33: 6.16405 | K33: 7.03172 | L33: 9.61295 | M33: 11.36574 | N33: 14.110525 | O33: 20.25876 | P33: 24.64086 | Q33: 32.518042 | R33: 38.192 | AA33: MEAN | AB33: Average annual precipitation (inches/yr)
A34: 0102' | B34: PctPRW_PctPRW | C34: 258 | D34: 0.1976744186 | E34: 0.574823961 | F34: 0 | G34: 0 | H34: 0 | I34: 0 | J34: 0 | K34: 0 | L34: 0 | M34: 0 | N34: 0 | O34: 1 | P34: 1.15 | Q34: 2.43 | R34: 4 | AA34: PctPRW | AB34: Percent potentially restorable wetlands
A35: 0102' | B35: RFOR30_riparian | C35: 258 | D35: 57.57808953 | E35: 14.29744987 | F35: 21.7398 | G35: 26.374675 | H35: 33.645965 | I35: 39.53101 | J35: 47.852625 | K35: 50.22873 | L35: 57.14865 | M35: 62.34066 | N35: 67.944425 | O35: 76.10375 | P35: 79.880765 | Q35: 90.485867 | R35: 92.8148 | AA35: WET_AG | AB35: Percent agriculture on wet areas (wetness index > 550)
A36: 0102' | B36: RFOR9030_riparian | C36: 258 | D36: 85.19516163 | E36: 8.948184922 | F36: 36.5646 | G36: 57.352773 | H36: 67.34156 | I36: 74.25346 | J36: 81.137475 | K36: 82.6034 | L36: 86.80515 | M36: 88.50842 | N36: 91.99075 | O36: 94.29876 | P36: 95.69809 | Q36: 97.569202 | R36: 98.6345 | AA36: WET_URB | AB36: Percent developed land on wet areas (wetness index > 550)
A37: 0102' | B37: RLA_30_riparian | C37: 258 | D37: 9008706.977 | E37: 5660236.988 | F37: 1215000 | G37: 2058228 | H37: 2966490 | I37: 3652920 | J37: 4837725 | K37: 5205060 | L37: 7908750 | M37: 9381960 | N37: 11688525 | O37: 15229440 | P37: 20971980 | Q37: 28065843 | R37: 35747100 | AA37: WET_FOR
A38: 0102' | B38: RNAT30_riparian | C38: 258 | D38: 96.74595659 | E38: 5.675165386 | F38: 51.4754 | G38: 78.346284 | H38: 85.095525 | I38: 89.06237 | J38: 96.445925 | K38: 97.4128 | L38: 99.11995 | M38: 99.43488 | N38: 99.864775 | O38: 100 | P38: 100 | Q38: 100 | R38: 100 | AA38: WET_WETL
A39: 0102' | B39: RO_30_riparian | C39: 258 | D39: 99.9998062 | E39: 0.002564582141 | F39: 99.96 | G39: 100 | H39: 100 | I39: 100 | J39: 100 | K39: 100 | L39: 100 | M39: 100 | N39: 100 | O39: 100 | P39: 100 | Q39: 100 | R39: 100 | AA39: WET_RNG | AB39: Percent range on wet areas (wetness index > 550)
A40: 0103' | B40: LC_OVERLAP_impervious | C40: 180 | D40: 99.98316667 | E40: 0.04249843901 | F40: 99.56 | G40: 99.7937 | H40: 99.9695 | I40: 99.97 | J40: 99.98 | K40: 99.99 | L40: 99.99 | M40: 99.99 | N40: 100 | O40: 100 | P40: 100 | Q40: 100 | R40: 100 | AA40: PURB | AB40: Percent urban area
A41: 0103' | B41: LC_OVERLAP_landcover | C41: 180 | D41: 99.98316667 | E41: 0.04249843901 | F41: 99.56 | G41: 99.7937 | H41: 99.9695 | I41: 99.97 | J41: 99.98 | K41: 99.99 | L41: 99.99 | M41: 99.99 | N41: 100 | O41: 100 | P41: 100 | Q41: 100 | R41: 100
A42: 0103' | B42: N_INDEX_landcover | C42: 180 | D42: 91.37645778 | E42: 11.00520934 | F42: 18.5428 | G42: 58.281269 | H42: 72.508865 | I42: 78.56896 | J42: 86.1555 | K42: 88.41941 | L42: 95.5831 | M42: 98.18028 | N42: 99.32605 | O42: 99.90594 | P42: 100 | Q42: 100 | R42: 100
A43: 0103' | B43: NaturalLand | C43: 180 | D43: 80.24655 | E43: 10.05659879 | F43: 15.8678 | G43: 55.515567 | H43: 64.032485 | I43: 67.7929 | J43: 74.3065 | K43: 76.12521 | L43: 82.2133 | M43: 84.21936 | N43: 87.48685 | O43: 90.64485 | P43: 92.05138 | Q43: 94.499969 | R43: 95.2707
A44: 0103' | B44: PAGC_landcover | C44: 180 | D44: 2.018926111 | E44: 5.726073127 | F44: 0 | G44: 0 | H44: 0 | I44: 0 | J44: 0 | K44: 0 | L44: 0.3571 | M44: 1.0589 | N44: 2.559775 | O44: 5.1698 | P44: 7.18596 | Q44: 11.700732 | R44: 70.8465
A45: 0103' | B45: PAGP_landcover | C45: 180 | D45: 2.76018 | E45: 3.773093613 | F45: 0 | G45: 0 | H45: 0 | I45: 0 | J45: 0 | K45: 0 | L45: 0.8762 | M45: 2.33942 | N45: 4.68575 | O45: 8.46892 | P45: 9.843485 | Q45: 14.78107 | R45: 22.7278
A46: 0103' | B46: PAGT_landcover | C46: 180 | D46: 7.072103333 | E46: 9.261606031 | F46: 0 | G46: 0 | H46: 0 | I46: 0.04897 | J46: 0.472175 | K46: 0.60946 | L46: 3.9514 | M46: 6.78176 | N46: 11.423125 | O46: 17.99269 | P46: 21.902955 | Q46: 29.507022 | R46: 80.6764
A47: 0103' | B47: PFOR90_landcover | C47: 180 | D47: 79.16781611 | E47: 10.14799016 | F47: 15.6776 | G47: 54.746697 | H47: 63.30826 | I47: 66.52204 | J47: 73.031675 | K47: 74.78621 | L47: 80.96105 | M47: 83.62448 | N47: 86.6124 | O47: 89.29749 | P47: 91.73131 | Q47: 94.100729 | R47: 94.5436
A48: 0103' | B48: PFOR_landcover | C48: 180 | D48: 72.40479611 | E48: 10.80413332 | F48: 12.7116 | G48: 48.979755 | H48: 57.226895 | I48: 59.08019 | J48: 65.463725 | K48: 67.72627 | L48: 72.77555 | M48: 75.95564 | N48: 80.732975 | O48: 85.36551 | P48: 88.083035 | Q48: 90.461654 | R48: 91.3304
A49: 0103' | B49: PIMPV_impervious | C49: 180 | D49: 0.7786438889 | E49: 1.303238494 | F49: 0 | G49: 0 | H49: 0 | I49: 0.0129 | J49: 0.08635 | K49: 0.11984 | L49: 0.39485 | M49: 0.5158 | N49: 0.886425 | O49: 1.89182 | P49: 2.64892 | Q49: 7.697118 | R49: 9.5739
A50: 0103' | B50: PURB_Percent_Urban_Land_Cover | C50: 180 | D50: 3.642755556 | E50: 4.188573756 | F50: 0 | G50: 0 | H50: 0 | I50: 0.0708 | J50: 0.57575 | K50: 0.8233 | L50: 2.609 | M50: 3.4932 | N50: 5.20325 | O50: 8.1817 | P50: 9.5215 | Q50: 21.78836 | R50: 28.682
A51: 0103' | B51: PWETL95_landcover | C51: 180 | D51: 1.078733889 | E51: 1.092202784 | F51: 0 | G51: 0.085696 | H51: 0.164515 | I51: 0.19465 | J51: 0.46095 | K51: 0.49909 | L51: 0.7143 | M51: 0.88768 | N51: 1.327175 | O51: 2.46505 | P51: 3.107895 | Q51: 5.853227 | R51: 6.8574
A52: 0103' | B52: PWETL_landcover | C52: 180 | D52: 7.841745 | E52: 4.977972773 | F52: 0.4314 | G52: 1.281215 | H52: 2.237495 | I52: 3.12139 | J52: 4.376525 | K52: 4.75802 | L52: 6.44 | M52: 7.88484 | N52: 10.1151 | O52: 14.85466 | P52: 17.197075 | Q52: 25.562036 | R52: 29.2668
A53: 0103' | B53: PctPRW_PctPRW | C53: 180 | D53: 0.7388888889 | E53: 2.316720589 | F53: 0 | G53: 0 | H53: 0 | I53: 0 | J53: 0 | K53: 0 | L53: 0 | M53: 0 | N53: 1 | O53: 2 | P53: 3 | Q53: 8 | R53: 27
A54: 0103' | B54: RFOR30_riparian | C54: 180 | D54: 64.24231389 | E54: 10.6462254 | F54: 24.3157 | G54: 33.746332 | H54: 47.02362 | I54: 51.97952 | J54: 57.93625 | K54: 59.09314 | L54: 64.72675 | M54: 67.37526 | N54: 71.71645 | O54: 77.15568 | P54: 81.174545 | Q54: 84.654438 | R54: 92.9985
A55: 0103' | B55: RFOR9030_riparian | C55: 180 | D55: 82.72712389 | E55: 8.410945068 | F55: 37.5721 | G55: 51.984048 | H55: 67.04137 | I55: 72.7311 | J55: 79.052075 | K55: 80.12184 | L55: 83.94395 | M55: 85.7073 | N55: 88.189825 | O55: 91.65407 | P55: 93.40116 | Q55: 95.301089 | R55: 98.4137
A56: 0103' | B56: RLA_30_riparian | C56: 180 | D56: 12563480 | E56: 9505529.814 | F56: 2950200 | G56: 3377340 | H56: 4148190 | I56: 4708710 | J56: 6784875 | K56: 7106490 | L56: 9399600 | M56: 11949300 | N56: 14378175 | O56: 22319010 | P56: 32814405 | Q56: 48698667 | R56: 56633400
A57: 0103' | B57: RNAT30_riparian | C57: 180 | D57: 92.72030333 | E57: 8.80432905 | F57: 40.2057 | G57: 65.448409 | H57: 75.63885 | I57: 81.57895 | J57: 89.246725 | K57: 90.27509 | L57: 95.969 | M57: 97.36204 | N57: 99.119125 | O57: 99.98246 | P57: 100 | Q57: 100 | R57: 100
A58: 0103' | B58: RO_30_riparian | C58: 180 | D58: 99.99977778 | E58: 0.002102288275 | F58: 99.98 | G58: 99.9958 | H58: 100 | I58: 100 | J58: 100 | K58: 100 | L58: 100 | M58: 100 | N58: 100 | O58: 100 | P58: 100 | Q58: 100 | R58: 100
A59: 0104' | B59: LC_OVERLAP_impervious | C59: 90 | D59: 99.98244444 | E59: 0.05769565853 | F59: 99.56 | G59: 99.649 | H59: 99.9645 | I59: 99.98 | J59: 99.99 | K59: 99.99 | L59: 99.99 | M59: 99.99 | N59: 100 | O59: 100 | P59: 100 | Q59: 100 | R59: 100
A60: 0104' | B60: LC_OVERLAP_landcover | C60: 90 | D60: 99.98244444 | E60: 0.05769565853 | F60: 99.56 | G60: 99.649 | H60: 99.9645 | I60: 99.98 | J60: 99.99 | K60: 99.99 | L60: 99.99 | M60: 99.99 | N60: 100 | O60: 100 | P60: 100 | Q60: 100 | R60: 100
A61: 0104' | B61: N_INDEX_landcover | C61: 90 | D61: 92.11309111 | E61: 9.056823912 | F61: 56.4349 | G61: 66.149695 | H61: 73.49089 | I61: 80.511 | J61: 88.560525 | K61: 90.05981 | L61: 96.1438 | M61: 97.36466 | N61: 98.902125 | O61: 99.6155 | P61: 99.893165 | Q61: 100 | R61: 100
A62: 0104' | B62: NaturalLand | C62: 90 | D62: 86.05269444 | E62: 8.022959932 | F62: 53.6741 | G62: 62.564755 | H62: 71.13853 | I62: 76.60644 | J62: 81.701375 | K62: 83.39058 | L62: 88.3458 | M62: 89.7378 | N62: 91.602875 | O62: 93.79337 | P62: 95.197105 | Q62: 98.358259 | R62: 99.3345
A63: 0104' | B63: PAGC_landcover | C63: 90 | D63: 0.6803522222 | E63: 0.8915363693 | F63: 0 | G63: 0 | H63: 0 | I63: 0 | J63: 0 | K63: 0 | L63: 0.3752 | M63: 0.58704 | N63: 1.129725 | O63: 1.96681 | P63: 2.30004 | Q63: 3.728325 | R63: 4.0376
A64: 0104' | B64: PAGP_landcover | C64: 90 | D64: 2.601192222 | E64: 3.637400776 | F64: 0 | G64: 0 | H64: 0 | I64: 0 | J64: 0 | K64: 0 | L64: 0.56455 | M64: 1.46962 | N64: 4.233525 | O64: 8.06409 | P64: 10.690945 | Q64: 13.378027 | R64: 14.3087
A65: 0104' | B65: PAGT_landcover | C65: 90 | D65: 5.760447778 | E65: 6.340031826 | F65: 0 | G65: 0 | H65: 0.106835 | I65: 0.33822 | J65: 0.72015 | K65: 0.85014 | L65: 2.63825 | M65: 4.59186 | N65: 9.388575 | O65: 15.54597 | P65: 19.21337 | Q65: 21.168899 | R65: 23.3858
A66: 0104' | B66: PFOR90_landcover | C66: 90 | D66: 85.40554111 | E66: 8.546312818 | F66: 51.6739 | G66: 56.182551 | H66: 70.08254 | I66: 74.96043 | J66: 81.182875 | K66: 82.55457 | L66: 87.785 | M66: 89.22736 | N66: 91.30665 | O66: 93.44169 | P66: 95.050635 | Q66: 97.610721 | R66: 99.2849
A67: 0104' | B67: PFOR_landcover | C67: 90 | D67: 80.82601111 | E67: 9.851377139 | F67: 47.6076 | G67: 48.657088 | H67: 60.82977 | I67: 68.6748 | J67: 76.43685 | K67: 77.92066 | L67: 83.0312 | M67: 85.56718 | N67: 87.35545 | O67: 90.28062 | P67: 92.844245 | Q67: 94.708022 | R67: 98.9802
A68: 0104' | B68: PIMPV_impervious | C68: 90 | D68: 1.103854444 | E68: 1.893851314 | F68: 0 | G68: 0.003471 | H68: 0.013685 | I68: 0.03969 | J68: 0.152825 | K68: 0.25282 | L68: 0.46055 | M68: 0.70572 | N68: 1.114925 | O68: 2.89102 | P68: 4.258285 | Q68: 7.545129 | R68: 14.0723
A69: 0104' | B69: PURB_Percent_Urban_Land_Cover | C69: 90 | D69: 4.3838 | E69: 5.355122576 | F69: 0 | G69: 0 | H69: 0.1056 | I69: 0.3787 | J69: 0.977 | K69: 1.3726 | L69: 2.6345 | M69: 3.9996 | N69: 5.895 | O69: 9.4113 | P69: 13.55405 | Q69: 24.18734 | R69: 34.506
A70: 0104' | B70: PWETL95_landcover | C70: 90 | D70: 0.6471533333 | E70: 0.927572264 | F70: 0 | G70: 0.020737 | H70: 0.03196 | I70: 0.07579 | J70: 0.202275 | K70: 0.23509 | L70: 0.39185 | M70: 0.48996 | N70: 0.741125 | O70: 1.38112 | P70: 1.770385 | Q70: 4.397357 | R70: 6.9238
A71: 0104' | B71: PWETL_landcover | C71: 90 | D71: 5.226677778 | E71: 3.376882805 | F71: 0.2532 | G71: 0.343179 | H71: 0.757805 | I71: 1.15161 | J71: 2.86325 | K71: 3.25235 | L71: 4.94235 | M71: 5.58256 | N71: 7.05395 | O71: 9.2357 | P71: 10.066915 | Q71: 15.318669 | R71: 18.8946
A72: 0104' | B72: PctPRW_PctPRW | C72: 90 | D72: 0.4444444444 | E72: 0.9008249791 | F72: 0 | G72: 0 | H72: 0 | I72: 0 | J72: 0 | K72: 0 | L72: 0 | M72: 0 | N72: 1 | O72: 1.1 | P72: 2 | Q72: 4.11 | R72: 5
A73: 0104' | B73: RFOR30_riparian | C73: 90 | D73: 68.34050111 | E73: 12.00605011 | F73: 39.481 | G73: 42.170847 | H73: 49.18725 | I73: 54.51705 | J73: 60.04065 | K73: 61.93745 | L73: 67.44825 | M73: 70.61864 | N73: 75.859425 | O73: 85.66883 | P73: 88.007405 | Q73: 92.043154 | R73: 96.1562
A74: 0104' | B74: RFOR9030_riparian | C74: 90 | D74: 84.35987333 | E74: 9.145024551 | F74: 51.1693 | G74: 58.031289 | H74: 68.271555 | I74: 73.10301 | J74: 78.514075 | K74: 81.05493 | L74: 86.3612 | M74: 87.88606 | N74: 91.0212 | O74: 93.8941 | P74: 95.52577 | Q74: 97.904748 | R74: 98.3914
A75: 0104' | B75: RLA_30_riparian | C75: 90 | D75: 12351180 | E75: 5212620.922 | F75: 3911400 | G75: 4405617 | H75: 5149305 | I75: 6678540 | J75: 8722575 | K75: 9494280 | L75: 11741850 | M75: 12755160 | N75: 14235075 | O75: 20146320 | P75: 22298715 | Q75: 26130186 | R75: 28143900
A76: 0104' | B76: RNAT30_riparian | C76: 90 | D76: 91.52263 | E76: 7.849212272 | F76: 62.011 | G76: 69.070213 | H76: 78.737405 | I76: 80.13779 | J76: 86.15575 | K76: 88.26036 | L76: 93.0667 | M76: 95.49606 | N76: 98.3805 | O76: 99.42308 | P76: 99.899385 | Q76: 100 | R76: 100
A77: 0104' | B77: RO_30_riparian | C77: 90 | D77: 100 | E77: 0 | F77: 100 | G77: 100 | H77: 100 | I77: 100 | J77: 100 | K77: 100 | L77: 100 | M77: 100 | N77: 100 | O77: 100 | P77: 100 | Q77: 100 | R77: 100
A78: 0105' | B78: LC_OVERLAP_impervious | C78: 226 | D78: 86.87464602 | E78: 31.84595492 | F78: 0 | G78: 0 | H78: 0 | I78: 6.2 | J78: 99.95 | K78: 99.97 | L78: 99.99 | M78: 99.99 | N78: 99.99 | O78: 100 | P78: 100 | Q78: 100 | R78: 100
A79: 0105' | B79: LC_OVERLAP_landcover | C79: 226 | D79: 86.87464602 | E79: 31.84595492 | F79: 0 | G79: 0 | H79: 0 | I79: 6.2 | J79: 99.95 | K79: 99.97 | L79: 99.99 | M79: 99.99 | N79: 99.99 | O79: 100 | P79: 100 | Q79: 100 | R79: 100
A80: 0105' | B80: N_INDEX_landcover | C80: 204 | D80: 93.26866029 | E80: 6.129653113 | F80: 69.9676 | G80: 77.668136 | H80: 80.55242 | I80: 85.31713 | J80: 89.8492 | K80: 91.01326 | L80: 94.69745 | M80: 96.28028 | N80: 98.4266 | O80: 99.65694 | P80: 99.903255 | Q80: 100 | R80: 100
A81: 0105' | B81: NaturalLand | C81: 226 | D81: 73.34105929 | E81: 28.41564083 | F81: 0 | G81: 0 | H81: 0 | I81: 14.6512 | J81: 74.67335 | K81: 77.6343 | L81: 83.5909 | M81: 86.8335 | N81: 89.534575 | O81: 94.7633 | P81: 96.41745 | Q81: 98.163625 | R81: 98.6526
A82: 0105' | B82: PAGC_landcover | C82: 204 | D82: 1.22082549 | E82: 2.663097296 | F82: 0 | G82: 0 | H82: 0 | I82: 0 | J82: 0 | K82: 0.00256 | L82: 0.27475 | M82: 0.59624 | N82: 1.354775 | O82: 2.94973 | P82: 4.395595 | Q82: 16.320742 | R82: 17.6665
A83: 0105' | B83: PAGP_landcover | C83: 204 | D83: 1.267594608 | E83: 2.203097169 | F83: 0 | G83: 0 | H83: 0 | I83: 0 | J83: 0.0575 | K83: 0.11334 | L83: 0.36055 | M83: 0.6306 | N83: 1.507125 | O83: 3.8997 | P83: 5.985505 | Q83: 8.12559 | R83: 17.9843
A84: 0105' | B84: PAGT_landcover | C84: 204 | D84: 4.803991176 | E84: 4.879628237 | F84: 0 | G84: 0 | H84: 0.08843 | I84: 0.23818 | J84: 1.0065 | K84: 1.3252 | L84: 3.2706 | M84: 4.36794 | N84: 7.777525 | O84: 11.91025 | P84: 15.034225 | Q84: 19.234729 | R84: 23.131
A85: 0105' | B85: PFOR90_landcover | C85: 226 | D85: 67.55473982 | E85: 31.13210325 | F85: 0 | G85: 0 | H85: 0 | I85: 1.2931 | J85: 70.1215 | K85: 73.141 | L85: 79.81995 | M85: 82.6074 | N85: 86.9754 | O85: 92.88725 | P85: 94.6409 | Q85: 95.86695 | R85: 97.4443
A86: 0105' | B86: PFOR_landcover | C86: 204 | D86: 65.58166275 | E86: 21.74322976 | F86: 0 | G86: 2.228949 | H86: 8.402115 | I86: 29.17284 | J86: 63.524275 | K86: 65.80085 | L86: 72.6847 | M86: 74.9208 | N86: 78.17985 | O86: 82.85064 | P86: 85.403925 | Q86: 90.709599 | R86: 91.3708
A87: 0105' | B87: PIMPV_impervious | C87: 204 | D87: 0.7771813725 | E87: 0.9805804754 | F87: 0 | G87: 0 | H87: 7.5e-05 | I87: 0.00934 | J87: 0.086 | K87: 0.12603 | L87: 0.44285 | M87: 0.6673 | N87: 1.107975 | O87: 1.9066 | P87: 2.47463 | Q87: 4.635977 | R87: 5.9797
A88: 0105' | B88: PURB_Percent_Urban_Land_Cover | C88: 204 | D88: 3.521848039 | E88: 3.693784852 | F88: 0 | G88: 0 | H88: 0.0009 | I88: 0.0736 | J88: 0.49275 | K88: 0.7785 | L88: 2.629 | M88: 3.4348 | N88: 5.52225 | O88: 8.1434 | P88: 10.2718 | Q88: 16.79626 | R88: 21.232
A89: 0105' | B89: PWETL95_landcover | C89: 226 | D89: 5.786319469 | E89: 9.676474942 | F89: 0 | G89: 0 | H89: 0 | I89: 0.2422 | J89: 1.385925 | K89: 1.6459 | L89: 2.5617 | M89: 3.133 | N89: 4.67055 | O89: 17.997 | P89: 27.9057 | Q89: 46.889725 | R89: 48.8636
A90: 0105' | B90: PWETL_landcover | C90: 204 | D90: 15.66872549 | E90: 10.93046309 | F90: 2.4933 | G90: 3.965034 | H90: 5.219405 | I90: 6.16792 | J90: 8.66405 | K90: 9.42245 | L90: 12.51445 | M90: 14.81282 | N90: 19.46915 | O90: 26.51238 | P90: 35.82819 | Q90: 50.254109 | R90: 77.2727
A91: 0105' | B91: PctPRW_PctPRW | C91: 204 | D91: 0.25 | E91: 0.7436098877 | F91: 0 | G91: 0 | H91: 0 | I91: 0 | J91: 0 | K91: 0 | L91: 0 | M91: 0 | N91: 0 | O91: 1 | P91: 1.85 | Q91: 3 | R91: 5
A92: 0105' | B92: RFOR30_riparian | C92: 208 | D92: 49.32184712 | E92: 20.69081147 | F92: 0 | G92: 0 | H92: 0 | I92: 14.3147 | J92: 39.3317 | K92: 44.19606 | L92: 54.58405 | M92: 58.46276 | N92: 63.016525 | O92: 70.91102 | P92: 75.02539 | Q92: 80.017543 | R92: 100
A93: 0105' | B93: RFOR9030_riparian | C93: 208 | D93: 67.40211587 | E93: 25.36245282 | F93: 0 | G93: 0 | H93: 0 | I93: 25.77117 | J93: 62.098175 | K93: 66.33188 | L93: 74.5384 | M93: 78.48898 | N93: 84.641225 | O93: 90.71358 | P93: 91.736505 | Q93: 96.282982 | R93: 100
A94: 0105' | B94: RLA_30_riparian | C94: 208 | D94: 8380735.096 | E94: 6800943.889 | F94: 0 | G94: 0 | H94: 3915 | I94: 107730 | J94: 3587850 | K94: 4278690 | L94: 7110000 | M94: 8827920 | N94: 11862450 | O94: 16768710 | P94: 19739385 | Q94: 30958218 | R94: 40959000
A95: 0105' | B95: RNAT30_riparian | C95: 208 | D95: 88.90089952 | E95: 21.32600662 | F95: 0 | G95: 0 | H95: 59.893125 | I95: 80.43629 | J95: 89.2157 | K95: 90.96318 | L95: 95.22185 | M95: 96.85774 | N95: 98.900175 | O95: 99.74831 | P95: 99.95858 | Q95: 100 | R95: 100
A96: 0105' | B96: RO_30_riparian | C96: 226 | D96: 85.37429204 | E96: 33.74147052 | F96: 0 | G96: 0 | H96: 0 | I96: 0 | J96: 100 | K96: 100 | L96: 100 | M96: 100 | N96: 100 | O96: 100 | P96: 100 | Q96: 100 | R96: 100
A97: 0106' | B97: LC_OVERLAP_impervious | C97: 150 | D97: 99.95213333 | E97: 0.1885536139 | F97: 98.64 | G97: 98.9192 | H97: 99.95 | I97: 99.97 | J97: 99.98 | K97: 99.98 | L97: 99.99 | M97: 99.99 | N97: 100 | O97: 100 | P97: 100 | Q97: 100 | R97: 100
A98: 0106' | B98: LC_OVERLAP_landcover | C98: 150 | D98: 99.95213333 | E98: 0.1885536139 | F98: 98.64 | G98: 98.9192 | H98: 99.95 | I98: 99.97 | J98: 99.98 | K98: 99.98 | L98: 99.99 | M98: 99.99 | N98: 100 | O98: 100 | P98: 100 | Q98: 100 | R98: 100
A99: 0106' | B99: N_INDEX_landcover | C99: 150 | D99: 82.48363 | E99: 14.0090704 | F99: 25.9156 | G99: 33.405197 | H99: 59.45867 | I99: 62.83789 | J99: 75.72685 | K99: 78.3811 | L99: 87.02305 | M99: 88.98476 | N99: 92.45865 | O99: 96.67739 | P99: 98.54819 | Q99: 100 | R99: 100
A100: 0106' | B100: NaturalLand | C100: 150 | D100: 74.39944067 | E100: 18.39693574 | F100: 12.3967 | G100: 15.693946 | H100: 34.836575 | I100: 53.57823 | J100: 67.280225 | K100: 70.12663 | L100: 79.73445 | M100: 82.5763 | N100: 86.074475 | O100: 92.82037 | P100: 95.810025 | Q100: 97.499778 | R100: 98.8366
A101: 0106' | B101: PAGC_landcover | C101: 150 | D101: 0.8690793333 | E101: 1.873540338 | F101: 0 | G101: 0 | H101: 0 | I101: 0 | J101: 0.16615 | K101: 0.20182 | L101: 0.4525 | M101: 0.68462 | N101: 0.9563 | O101: 1.7005 | P101: 2.44225 | Q101: 5.043204 | R101: 20.8015
A102: 0106' | B102: PAGP_landcover | C102: 150 | D102: 4.553010667 | E102: 4.461288497 | F102: 0 | G102: 0 | H102: 0 | I102: 0.12231 | J102: 1.146175 | K102: 1.62866 | L102: 3.25215 | M102: 4.54104 | N102: 6.434025 | O102: 11.77209 | P102: 13.099275 | Q102: 18.935154 | R102: 21.1044
A103: 0106' | B103: PAGT_landcover | C103: 150 | D103: 11.407334 | E103: 7.573583197 | F103: 0 | G103: 0 | H103: 0.925205 | I103: 2.08185 | J103: 6.214 | K103: 6.76448 | L103: 10.0506 | M103: 11.85464 | N103: 16.235525 | O103: 22.01941 | P103: 25.368485 | Q103: 30.182429 | R103: 33.0388
A104: 0106' | B104: PFOR90_landcover | C104: 150 | D104: 70.61518867 | E104: 23.13072909 | F104: 0 | G104: 0 | H104: 11.353125 | I104: 41.95071 | J104: 62.2093 | K104: 68.06592 | L104: 77.7196 | M104: 81.58418 | N104: 85.271 | O104: 91.83636 | P104: 95.39991 | Q104: 97.456517 | R104: 98.7895
A105: 0106' | B105: PFOR_landcover | C105: 150 | D105: 64.460224 | E105: 23.18491063 | F105: 0 | G105: 0 | H105: 9.267735 | I105: 34.8148 | J105: 54.6079 | K105: 59.44583 | L105: 69.2546 | M105: 74.82468 | N105: 79.8068 | O105: 88.51128 | P105: 94.257525 | Q105: 96.061885 | R105: 98.6777
A106: 0106' | B106: PIMPV_impervious | C106: 150 | D106: 2.884974 | E106: 4.520631204 | F106: 0 | G106: 0 | H106: 0.03392 | I106: 0.12341 | J106: 0.56865 | K106: 0.74613 | L106: 1.2433 | M106: 1.61566 | N106: 3.294025 | O106: 7.11377 | P106: 10.225555 | Q106: 25.859159 | R106: 28.927
A107: 0106' | B107: PURB_Percent_Urban_Land_Cover | C107: 150 | D107: 11.12041333 | E107: 11.64044745 | F107: 0 | G107: 0 | H107: 0.1397 | I107: 1.3842 | J107: 4.47175 | K107: 5.1671 | L107: 7.253 | M107: 8.7544 | N107: 14.28375 | O107: 24.6111 | P107: 33.0327 | Q107: 62.26205 | R107: 69.2
A108: 0106' | B108: PWETL95_landcover | C108: 150 | D108: 3.784252 | E108: 7.375775075 | F108: 0 | G108: 0.011131 | H108: 0.063515 | I108: 0.26396 | J108: 0.664575 | K108: 0.74308 | L108: 1.1734 | M108: 1.53304 | N108: 2.5497 | O108: 11.11406 | P108: 20.136975 | Q108: 34.987424 | R108: 50.7524
A109: 0106' | B109: PWETL_landcover | C109: 150 | D109: 9.93921 | E109: 8.176454778 | F109: 0.0169 | G109: 0.160076 | H109: 1.114405 | I109: 2.93616 | J109: 5.2346 | K109: 5.61586 | L109: 7.7594 | M109: 9.44086 | N109: 12.068125 | O109: 20.15975 | P109: 24.598565 | Q109: 37.523608 | R109: 59.0971
A110: 0106' | B110: PctPRW_PctPRW | C110: 150 | D110: 1.06 | E110: 1.511610546 | F110: 0 | G110: 0 | H110: 0 | I110: 0 | J110: 0 | K110: 0 | L110: 0 | M110: 1 | N110: 1.75 | O110: 3 | P110: 4.55 | Q110: 6 | R110: 6
A111: 0106' | B111: RFOR30_riparian | C111: 150 | D111: 56.53869133 | E111: 22.33427892 | F111: 0 | G111: 0 | H111: 0 | I111: 24.79777 | J111: 50.29435 | K111: 52.61531 | L111: 61.4418 | M111: 64.43192 | N111: 69.8956 | O111: 80.93835 | P111: 88.490445 | Q111: 93.892874 | R111: 97.2877
A112: 0106' | B112: RFOR9030_riparian | C112: 150 | D112: 70.46454667 | E112: 24.10811489 | F112: 0 | G112: 0 | H112: 0 | I112: 37.97636 | J112: 66.2905 | K112: 68.68191 | L112: 79.2587 | M112: 82.23038 | N112: 85.00285 | O112: 89.02272 | P112: 93.58381 | Q112: 96.208944 | R112: 98.1962
A113: 0106' | B113: RLA_30_riparian | C113: 150 | D113: 10569948 | E113: 6280395.462 | F113: 0 | G113: 882 | H113: 40005 | I113: 3359700 | J113: 6695325 | K113: 7371000 | L113: 9504000 | M113: 10693080 | N113: 14336775 | O113: 19533960 | P113: 21726675 | Q113: 26029980 | R113: 31744800
A114: 0106' | B114: RNAT30_riparian | C114: 150 | D114: 85.77795333 | E114: 13.70331662 | F114: 0 | G114: 17.536904 | H114: 68.568955 | I114: 74.29232 | J114: 82.138 | K114: 84.9279 | L114: 88.98685 | M114: 90.77524 | N114: 92.9207 | O114: 96.29229 | P114: 97.628475 | Q114: 100 | R114: 100
A115: 0106' | B115: RO_30_riparian | C115: 150 | D115: 98.66666667 | E115: 11.50819181 | F115: 0 | G115: 49 | H115: 100 | I115: 100 | J115: 100 | K115: 100 | L115: 100 | M115: 100 | N115: 100 | O115: 100 | P115: 100 | Q115: 100 | R115: 100
A116: 0107' | B116: LC_OVERLAP_impervious | C116: 141 | D116: 99.9893617 | E116: 0.009502839078 | F116: 99.96 | G116: 99.96 | H116: 99.97 | I116: 99.98 | J116: 99.99 | K116: 99.99 | L116: 99.99 | M116: 99.99 | N116: 100 | O116: 100 | P116: 100 | Q116: 100 | R116: 100
A117: 0107' | B117: LC_OVERLAP_landcover | C117: 141 | D117: 99.9893617 | E117: 0.009502839078 | F117: 99.96 | G117: 99.96 | H117: 99.97 | I117: 99.98 | J117: 99.99 | K117: 99.99 | L117: 99.99 | M117: 99.99 | N117: 100 | O117: 100 | P117: 100 | Q117: 100 | R117: 100
A118: 0107' | B118: N_INDEX_landcover | C118: 141 | D118: 79.1389844 | E118: 17.88524511 | F118: 25.382 | G118: 26.89228 | H118: 41.4425 | I118: 52.2656 | J118: 66.6344 | K118: 74.9518 | L118: 86.1927 | M118: 89.1194 | N118: 91.7407 | O118: 95.3843 | P118: 97.1338 | Q118: 99.9908 | R118: 100
A119: 0107' | B119: NaturalLand | C119: 141 | D119: 76.70631277 | E119: 17.69194285 | F119: 24.8469 | G119: 26.19598 | H119: 41.2722 | I119: 49.2316 | J119: 64.3422 | K119: 71.9526 | L119: 83.0673 | M119: 85.9923 | N119: 89.3194 | O119: 92.7153 | P119: 94.8532 | Q119: 99.27062 | R119: 99.6863
A120: 0107' | B120: PAGC_landcover | C120: 141 | D120: 0.7556992908 | E120: 0.892518075 | F120: 0 | G120: 0 | H120: 0.0197 | I120: 0.0641 | J120: 0.2557 | K120: 0.3264 | L120: 0.5522 | M120: 0.6512 | N120: 0.9007 | O120: 1.5138 | P120: 2.3605 | Q120: 4.6819 | R120: 5.7538
A121: 0107' | B121: PAGP_landcover | C121: 141 | D121: 4.048622695 | E121: 2.742658778 | F121: 0 | G121: 0 | H121: 0.0355 | I121: 0.77 | J121: 1.7894 | K121: 2.1421 | L121: 3.6007 | M121: 4.6135 | N121: 5.95 | O121: 7.7462 | P121: 8.8934 | Q121: 10.88248 | R121: 13.9391
A122: 0107' | B122: PAGT_landcover | C122: 141 | D122: 10.66383262 | E122: 5.473454002 | F122: 0 | G122: 0.0092 | H122: 1.99 | I122: 3.8184 | J122: 6.6382 | K122: 7.3392 | L122: 10.3153 | M122: 12.1755 | N122: 14.6602 | O122: 18.073 | P122: 19.7542 | Q122: 22.34372 | R122: 24.253
A123: 0107' | B123: PFOR90_landcover | C123: 141 | D123: 75.80089291 | E123: 18.0741615 | F123: 24.115 | G123: 25.97 | H123: 40.2201 | I123: 47.5521 | J123: 63.0235 | K123: 71.1745 | L123: 82.1826 | M123: 84.9945 | N123: 88.6966 | O123: 92.6038 | P123: 94.4886 | Q123: 99.24542 | R123: 99.6797
A124: 0107' | B124: PFOR_landcover | C124: 141 | D124: 71.03010142 | E124: 20.11886892 | F124: 17.012 | G124: 22.44774 | H124: 32.4711 | I124: 39.0946 | J124: 55.4888 | K124: 65.0159 | L124: 78.5037 | M124: 80.9381 | N124: 84.9908 | O124: 90.6346 | P124: 94.3159 | Q124: 99.00982 | R124: 99.5481
A125: 0107' | B125: PIMPV_impervious | C125: 141 | D125: 5.239098582 | E125: 7.200002153 | F125: 0 | G125: 0.00048 | H125: 0.1677 | I125: 0.3705 | J125: 0.7102 | K125: 0.7981 | L125: 1.5145 | M125: 2.202 | N125: 7.8075 | O125: 16.8941 | P125: 20.9385 | Q125: 27.92182 | R125: 31.3666
A126: 0107' | B126: PURB_Percent_Urban_Land_Cover | C126: 141 | D126: 15.36751773 | E126: 16.60792756 | F126: 0 | G126: 0.0092 | H126: 1.545 | I126: 2.767 | J126: 4.382 | K126: 4.959 | L126: 7.307 | M126: 9.492 | N126: 23.97 | O126: 42.397 | P126: 47.22 | Q126: 69.9052 | R126: 72.6
A127: 0107' | B127: PWETL95_landcover | C127: 141 | D127: 0.9054198582 | E127: 0.9789454034 | F127: 0 | G127: 0.00264 | H127: 0.0387 | I127: 0.0876 | J127: 0.2778 | K127: 0.3671 | L127: 0.693 | M127: 0.8951 | N127: 1.2278 | O127: 1.8041 | P127: 2.2142 | Q127: 4.79734 | R127: 7.8062
A128: 0107' | B128: PWETL_landcover | C128: 141 | D128: 5.676216312 | E128: 3.984076503 | F128: 0.0885 | G128: 0.09878 | H128: 0.5647 | I128: 1.0214 | J128: 2.9078 | K128: 3.2724 | L128: 4.6376 | M128: 5.8226 | N128: 7.8102 | O128: 10.7913 | P128: 12.4982 | Q128: 17.09562 | R128: 18.6021
A129: 0107' | B129: PctPRW_PctPRW | C129: 141 | D129: 0.8014184397 | E129: 0.7485210003 | F129: 0 | G129: 0 | H129: 0 | I129: 0 | J129: 0 | K129: 0 | L129: 1 | M129: 1 | N129: 1 | O129: 2 | P129: 2 | Q129: 3 | R129: 4
A130: 0107' | B130: RFOR30_riparian | C130: 141 | D130: 62.97515816 | E130: 18.56530416 | F130: 20.8581 | G130: 22.32116 | H130: 31.0803 | I130: 35.9724 | J130: 50.7978 | K130: 54.2727 | L130: 66.5258 | M130: 70.7561 | N130: 75.9443 | O130: 83.1101 | P130: 89.6668 | Q130: 99.04868 | R130: 99.2567
A131: 0107' | B131: RFOR9030_riparian | C131: 141 | D131: 76.14533121 | E131: 14.62208615 | F131: 30.9783 | G131: 37.72568 | H131: 47.9064 | I131: 51.8567 | J131: 67.6197 | K131: 72.3275 | L131: 79.6329 | M131: 82.9076 | N131: 86.7704 | O131: 90.8875 | P131: 92.7316 | Q131: 99.74248 | R131: 99.95
A132: 0107' | B132: RLA_30_riparian | C132: 141 | D132: 12612044.68 | E132: 5521362.615 | F132: 2630700 | G132: 3452220 | H132: 5656500 | I132: 6282000 | J132: 8433900 | K132: 9096300 | L132: 11557800 | M132: 13030200 | N132: 16377300 | O132: 21007800 | P132: 22844700 | Q132: 26550360 | R132: 29184300
A133: 0107' | B133: RNAT30_riparian | C133: 141 | D133: 81.73873475 | E133: 13.33759997 | F133: 32.2334 | G133: 45.39706 | H133: 54.4749 | I133: 60.8393 | J133: 75.0451 | K133: 79.9673 | L133: 86.5402 | M133: 88.0452 | N133: 91.5132 | O133: 94.3505 | P133: 95.43 | Q133: 99.9208 | R133: 100
A134: 0107' | B134: RO_30_riparian | C134: 141 | D134: 100 | E134: 0 | F134: 100 | G134: 100 | H134: 100 | I134: 100 | J134: 100 | K134: 100 | L134: 100 | M134: 100 | N134: 100 | O134: 100 | P134: 100 | Q134: 100 | R134: 100
A135: 0108' | B135: LC_OVERLAP_impervious | C135: 307 | D135: 99.52687296 | E135: 5.695548026 | F135: 27.61 | G135: 99.7338 | H135: 99.97 | I135: 99.98 | J135: 99.99 | K135: 99.99 | L135: 99.99 | M135: 99.99 | N135: 100 | O135: 100 | P135: 100 | Q135: 100 | R135: 100
A136: 0108' | B136: LC_OVERLAP_landcover | C136: 307 | D136: 99.52687296 | E136: 5.695548026 | F136: 27.61 | G136: 99.7338 | H136: 99.97 | I136: 99.98 | J136: 99.99 | K136: 99.99 | L136: 99.99 | M136: 99.99 | N136: 100 | O136: 100 | P136: 100 | Q136: 100 | R136: 100
A137: 0108' | B137: N_INDEX_landcover | C137: 307 | D137: 83.41874984 | E137: 15.22304236 | F137: 18.6027 | G137: 27.212044 | H137: 47.33487 | I137: 65.6764 | J137: 79.93635 | K137: 81.9248 | L137: 87.2367 | M137: 90.1826 | N137: 93.13545 | O137: 96.78122 | P137: 98.25654 | Q137: 99.528522 | R137: 99.9019
A138: 0108' | B138: NaturalLand | C138: 307 | D138: 81.08155212 | E138: 15.10469521 | F138: 17.7371 | G138: 26.4474 | H138: 45.57515 | I138: 62.70214 | J138: 77.74785 | K138: 79.11864 | L138: 85.736 | M138: 87.56202 | N138: 90.88555 | O138: 93.5211 | P138: 95.20289 | Q138: 97.65116 | R138: 98.7622
A139: 0108' | B139: PAGC_landcover | C139: 307 | D139: 1.697804235 | E139: 3.052825183 | F139: 0 | G139: 0 | H139: 0 | I139: 0.0452 | J139: 0.16245 | K139: 0.20526 | L139: 0.504 | M139: 0.76824 | N139: 2.0722 | O139: 4.84408 | P139: 6.77927 | Q139: 15.43834 | R139: 28.3326
A140: 0108' | B140: PAGP_landcover | C140: 307 | D140: 4.996488274 | E140: 4.005781948 | F140: 0 | G140: 0 | H140: 0.02437 | I140: 0.4355 | J140: 1.79245 | K140: 2.12718 | L140: 4.0705 | M140: 5.42678 | N140: 7.2944 | O140: 10.0661 | P140: 12.36835 | Q140: 17.067584 | R140: 24.758
A141: 0108' | B141: PAGT_landcover | C141: 307 | D141: 11.66414463 | E141: 7.7013301 | F141: 0.0196 | G141: 0.468856 | H141: 1.55854 | I141: 2.7022 | J141: 6.24525 | K141: 6.73738 | L141: 10.4397 | M141: 12.0306 | N141: 15.62545 | O141: 21.55054 | P141: 26.72831 | Q141: 36.057702 | R141: 44.8622
A142: 0108' | B142: PFOR90_landcover | C142: 307 | D142: 80.73858404 | E142: 15.12537321 | F142: 17.6925 | G142: 26.41088 | H142: 45.34502 | I142: 61.8496 | J142: 77.2755 | K142: 78.7504 | L142: 85.5091 | M142: 87.31264 | N142: 90.55925 | O142: 93.18756 | P142: 95.11613 | Q142: 97.639172 | R142: 98.5576
A143: 0108' | B143: PFOR_landcover | C143: 307 | D143: 76.98792573 | E143: 16.32201429 | F143: 13.4995 | G143: 21.482072 | H143: 39.24811 | I143: 57.12314 | J143: 72.46045 | K143: 75.2271 | L143: 81.677 | M143: 84.77402 | N143: 87.94455 | O143: 90.80598 | P143: 92.81406 | Q143: 95.428524 | R143: 98.2766
A144: 0108' | B144: PIMPV_impervious | C144: 307 | D144: 2.523439414 | E144: 4.823932951 | F144: 0.0151 | G144: 0.047462 | H144: 0.12954 | I144: 0.22574 | J144: 0.45625 | K144: 0.49254 | L144: 0.8973 | M144: 1.1671 | N144: 2.0979 | O144: 5.72802 | P144: 14.84465 | Q144: 23.093008 | R144: 36.8755
A145: 0108' | B145: PURB_Percent_Urban_Land_Cover | C145: 307 | D145: 9.642185668 | E145: 12.81980841 | F145: 0.068 | G145: 0.41878 | H145: 1.2571 | I145: 2.0098 | J145: 3.58 | K145: 3.8572 | L145: 5.442 | M145: 6.625 | N145: 9.607 | O145: 19.6836 | P145: 41.5254 | Q145: 63.15922 | R145: 79.16
A146: 0108' | B146: PWETL95_landcover | C146: 307 | D146: 0.3429680782 | E146: 0.7070239529 | F146: 0 | G146: 0 | H146: 0.01876 | I146: 0.03626 | J146: 0.0708 | K146: 0.08842 | L146: 0.2036 | M146: 0.26802 | N146: 0.3939 | O146: 0.751 | P146: 1.02852 | Q146: 1.759506 | R146: 11.1139
A147: 0108' | B147: PWETL_landcover | C147: 307 | D147: 4.093630619 | E147: 3.813441635 | F147: 0.1132 | G147: 0.157892 | H147: 0.45493 | I147: 0.70226 | J147: 1.26195 | K147: 1.4624 | L147: 2.9178 | M147: 3.69864 | N147: 5.6743 | O147: 9.1478 | P147: 12.57437 | Q147: 17.800622 | R147: 19.0681
A148: 0108' | B148: PctPRW_PctPRW | C148: 307 | D148: 1.413680782 | E148: 1.813585749 | F148: 0 | G148: 0 | H148: 0 | I148: 0 | J148: 0 | K148: 0 | L148: 1 | M148: 1 | N148: 2 | O148: 3 | P148: 4 | Q148: 8.94 | R148: 13
A149: 0108' | B149: RFOR30_riparian | C149: 307 | D149: 68.66203681 | E149: 13.53207862 | F149: 16.0427 | G149: 30.272194 | H149: 41.09427 | I149: 48.2108 | J149: 62.135 | K149: 64.1395 | L149: 70.7547 | M149: 74.04754 | N149: 77.7462 | O149: 83.536 | P149: 85.95909 | Q149: 93.810474 | R149: 98.6196
A150: 0108' | B150: RFOR9030_riparian | C150: 307 | D150: 79.30215049 | E150: 11.09927664 | F150: 32.1545 | G150: 49.592396 | H150: 58.56813 | I150: 64.43782 | J150: 73.58655 | K150: 75.71536 | L150: 80.8693 | M150: 83.2742 | N150: 87.11235 | O150: 91.43598 | P150: 94.47563 | Q150: 97.051772 | R150: 99.3098
A151: 0108' | B151: RLA_30_riparian | C151: 307 | D151: 13598756.68 | E151: 5455808.722 | F151: 2553300 | G151: 4208112 | H151: 5517360 | I151: 6961500 | J151: 9472950 | K151: 10116360 | L151: 13034700 | M151: 14700780 | N151: 17666550 | O151: 21115980 | P151: 22317750 | Q151: 26861832 | R151: 30159900
A152: 0108' | B152: RNAT30_riparian | C152: 307 | D152: 82.95066319 | E152: 11.03888228 | F152: 32.8065 | G152: 52.842998 | H152: 60.52585 | I152: 69.06496 | J152: 77.10825 | K152: 79.04912 | L152: 84.7599 | M152: 86.78478 | N152: 90.676 | O152: 95.82618 | P152: 97.06107 | Q152: 99.381476 | R152: 99.8572
A153: 0108' | B153: RO_30_riparian | C153: 307 | D153: 99.83175896 | E153: 2.125078122 | F153: 68.85 | G153: 100 | H153: 100 | I153: 100 | J153: 100 | K153: 100 | L153: 100 | M153: 100 | N153: 100 | O153: 100 | P153: 100 | Q153: 100 | R153: 100
A154: 0109' | B154: LC_OVERLAP_impervious | C154: 121 | D154: 99.98636364 | E154: 0.0153297098 | F154: 99.91 | G154: 99.924 | H154: 99.96 | I154: 99.97 | J154: 99.98 | K154: 99.99 | L154: 99.99 | M154: 99.99 | N154: 100 | O154: 100 | P154: 100 | Q154: 100 | R154: 100
A155: 0109' | B155: LC_OVERLAP_landcover | C155: 121 | D155: 99.98636364 | E155: 0.0153297098 | F155: 99.91 | G155: 99.924 | H155: 99.96 | I155: 99.97 | J155: 99.98 | K155: 99.99 | L155: 99.99 | M155: 99.99 | N155: 100 | O155: 100 | P155: 100 | Q155: 100 | R155: 100
A156: 0109' | B156: N_INDEX_landcover | C156: 121 | D156: 58.5679405 | E156: 20.49354784 | F156: 7.938 | G156: 11.03922 | H156: 19.4458 | I156: 27.7342 | J156: 46.3692 | K156: 52.5682 | L156: 61.6037 | M156: 65.0686 | N156: 74.4072 | O156: 83.3617 | P156: 86.2657 | Q156: 89.77616 | R156: 96.8018
A157: 0109' | B157: NaturalLand | C157: 121 | D157: 54.42424545 | E157: 19.50953901 | F157: 7.1573 | G157: 10.58376 | H157: 15.8052 | I157: 25.4502 | J157: 42.9301 | K157: 47.1287 | L157: 56.9064 | M157: 60.6837 | N157: 67.9058 | O157: 79.7734 | P157: 81.4866 | Q157: 85.22742 | R157: 89.0236
A158: 0109' | B158: PAGC_landcover | C158: 121 | D158: 1.222800826 | E158: 2.563495443 | F158: 0 | G158: 0 | H158: 0 | I158: 0 | J158: 0.0893 | K158: 0.1323 | L158: 0.4001 | M158: 0.7191 | N158: 1.242 | O158: 2.5481 | P158: 4.5797 | Q158: 12.24006 | R158: 19.1197
A159: 0109' | B159: PAGP_landcover | C159: 121 | D159: 3.909919835 | E159: 3.60703624 | F159: 0 | G159: 0 | H159: 0.1071 | I159: 0.4228 | J159: 1.2219 | K159: 1.4626 | L159: 3.1974 | M159: 3.7301 | N159: 5.939 | O159: 8.0946 | P159: 9.7918 | Q159: 18.2563 | R159: 21.0944
A160: 0109' | B160: PAGT_landcover | C160: 121 | D160: 15.06558678 | E160: 5.102599394 | F160: 1.1543 | G160: 3.24022 | H160: 7.3464 | I160: 9.4334 | J160: 11.8729 | K160: 12.3407 | L160: 14.6416 | M160: 16.1029 | N160: 18.4061 | O160: 20.8831 | P160: 22.5873 | Q160: 31.01044 | R160: 31.6354
A161: 0109' | B161: PFOR90_landcover | C161: 121 | D161: 51.47659174 | E161: 19.92255018 | F161: 6.1807 | G161: 8.32874 | H161: 12.7737 | I161: 21.9619 | J161: 38.6687 | K161: 42.3263 | L161: 54.2008 | M161: 58.245 | N161: 64.081 | O161: 78.3915 | P161: 81.2146 | Q161: 84.24782 | R161: 88.0526
A162: 0109' | B162: PFOR_landcover | C162: 121 | D162: 40.16482397 | E162: 17.13821585 | F162: 5.8983 | G162: 6.80108 | H162: 12.0235 | I162: 17.623 | J162: 29.5174 | K162: 31.308 | L162: 39.8895 | M162: 43.0192 | N162: 52.7166 | O162: 65.7307 | P162: 69.9338 | Q162: 73.60448 | R162: 76.0344
A163: 0109' | B163: PIMPV_impervious | C163: 121 | D163: 13.59090413 | E163: 11.81227419 | F163: 0.3433 | G163: 1.33564 | H163: 1.8685 | I163: 2.5132 | J163: 4.6718 | K163: 6.0166 | L163: 10.8511 | M163: 11.8614 | N163: 17.6525 | O163: 31.2906 | P163: 38.7889 | Q163: 49.81024 | R163: 53.4367
A164: 0109' | B164: PURB_Percent_Urban_Land_Cover | C164: 121 | D164: 33.28249587 | E164: 20.75768308 | F164: 2.54 | G164: 6.5468 | H164: 9.143 | I164: 10.209 | J164: 15.696 | K164: 17.898 | L164: 30.65 | M164: 32.999 | N164: 43.25 | O164: 64.388 | P164: 74.343 | Q164: 83.0652 | R164: 89.778
A165: 0109' | B165: PWETL95_landcover | C165: 121 | D165: 2.947653719 | E165: 3.595990148 | F165: 0.0697 | G165: 0.08892 | H165: 0.304 | I165: 0.5077 | J165: 0.8869 | K165: 0.9771 | L165: 1.5583 | M165: 1.8239 | N165: 4.0609 | O165: 7.0266 | P165: 9.5135 | Q165: 14.7983 | R165: 24.3603
A166: 0109' | B166: PWETL_landcover | C166: 121 | D166: 14.2594157 | E166: 7.696808151 | F166: 1.259 | G166: 1.47236 | H166: 2.7019 | I166: 5.3309 | J166: 8.6293 | K166: 9.9462 | L166: 13.0211 | M166: 16.7079 | N166: 18.864 | O166: 23.9809 | P166: 29.1119 | Q166: 35.06916 | R166: 37.711
A167: 0109' | B167: PctPRW_PctPRW | C167: 121 | D167: 1.239669421 | E167: 2.097716192 | F167: 0 | G167: 0 | H167: 0 | I167: 0 | J167: 0 | K167: 0 | L167: 1 | M167: 1 | N167: 2 | O167: 3 | P167: 5 | Q167: 10 | R167: 13
A168: 0109' | B168: RFOR30_riparian | C168: 121 | D168: 31.60407686 | E168: 13.45751335 | F168: 0 | G168: 6.11952 | H168: 12.2594 | I168: 14.9976 | J168: 21.6978 | K168: 23.1746 | L168: 29.8304 | M168: 34.1276 | N168: 40.294 | O168: 51.1161 | P168: 52.845 | Q168: 61.21052 | R168: 63.1001
A169: 0109' | B169: RFOR9030_riparian | C169: 121 | D169: 56.20335537 | E169: 19.67550227 | F169: 2.0652 | G169: 10.17664 | H169: 22.7724 | I169: 27.4802 | J169: 41.634 | K169: 46.3963 | L169: 59.7773 | M169: 65.3414 | N169: 71.077 | O169: 80.6528 | P169: 82.4899 | Q169: 86.60112 | R169: 88.1464
A170: 0109' | B170: RLA_30_riparian | C170: 121 | D170: 12909354.55 | E170: 8726970.669 | F170: 43200 | G170: 936000 | H170: 1814400 | I170: 3285900 | J170: 6341400 | K170: 7819200 | L170: 11595600 | M170: 13871700 | N170: 16958700 | O170: 23412600 | P170: 26509500 | Q170: 47822220 | R170: 51199200
A171: 0109' | B171: RNAT30_riparian | C171: 121 | D171: 70.40191488 | E171: 16.23457199 | F171: 27.7896 | G171: 30.12946 | H171: 38.5609 | I171: 47.4737 | J171: 60.3411 | K171: 63.4644 | L171: 72.8577 | M171: 76.5242 | N171: 84.162 | O171: 89.0635 | P171: 91.5945 | Q171: 93.53286 | R171: 97.7183
A172: 0109' | B172: RO_30_riparian | C172: 121 | D172: 100 | E172: 0 | F172: 100 | G172: 100 | H172: 100 | I172: 100 | J172: 100 | K172: 100 | L172: 100 | M172: 100 | N172: 100 | O172: 100 | P172: 100 | Q172: 100 | R172: 100
A173: 0110' | B173: LC_OVERLAP_impervious | C173: 137 | D173: 99.98788321 | E173: 0.01087567825 | F173: 99.95 | G173: 99.96 | H173: 99.97 | I173: 99.97 | J173: 99.98 | K173: 99.98 | L173: 99.99 | M173: 99.99 | N173: 100 | O173: 100 | P173: 100 | Q173: 100 | R173: 100
A174: 0110' | B174: LC_OVERLAP_landcover | C174: 137 | D174: 99.98788321 | E174: 0.01087567825 | F174: 99.95 | G174: 99.96 | H174: 99.97 | I174: 99.97 | J174: 99.98 | K174: 99.98 | L174: 99.99 | M174: 99.99 | N174: 100 | O174: 100 | P174: 100 | Q174: 100 | R174: 100
A175: 0110' | B175: N_INDEX_landcover | C175: 137 | D175: 70.69775985 | E175: 16.28783986 | F175: 12.263 | G175: 21.835428 | H175: 35.32836 | I175: 48.99794 | J175: 63.5752 | K175: 66.71684 | L175: 75.0569 | M175: 78.28934 | N175: 81.9362 | O175: 86.34256 | P175: 87.90744 | Q175: 91.860056 | R175: 92.5248
A176: 0110' | B176: NaturalLand | C176: 137 | D176: 68.82154088 | E176: 16.23759078 | F176: 11.3311 | G176: 20.666532 | H176: 34.09004 | I176: 47.23182 | J176: 60.8881 | K176: 64.75812 | L176: 72.5057 | M176: 75.96166 | N176: 79.6186 | O176: 84.86058 | P176: 86.6903 | Q176: 90.907716 | R176: 92.0061
A177: 0110' | B177: PAGC_landcover | C177: 137 | D177: 0.8504189781 | E177: 1.19401009 | F177: 0 | G177: 0 | H177: 0 | I177: 0.03042 | J177: 0.1497 | K177: 0.22202 | L177: 0.4351 | M177: 0.63956 | N177: 0.943 | O177: 1.91964 | P177: 3.62562 | Q177: 5.588988 | R177: 6.9064
A178: 0110' | B178: PAGP_landcover | C178: 137 | D178: 7.618789051 | E178: 6.365454817 | F178: 0.2345 | G178: 0.316712 | H178: 1.00562 | I178: 1.41514 | J178: 3.0369 | K178: 3.64454 | L178: 6.2684 | M178: 7.71286 | N178: 10.1014 | O178: 13.76798 | P178: 19.0432 | Q178: 31.760624 | R178: 36.4292
A179: 0110' | B179: PAGT_landcover | C179: 137 | D179: 18.31838029 | E179: 7.040737227 | F179: 6.7034 | G179: 7.408336 | H179: 9.92768 | I179: 10.78154 | J179: 13.3823 | K179: 14.27298 | L179: 17.0705 | M179: 18.25308 | N179: 21.2329 | O179: 26.12536 | P179: 32.03884 | Q179: 42.177724 | R179: 46.5176
A180: 0110' | B180: PFOR90_landcover | C180: 137 | D180: 68.12544891 | E180: 16.40095784 | F180: 10.8561 | G180: 18.056136 | H180: 33.86216 | I180: 45.73724 | J180: 60.2998 | K180: 64.35816 | L180: 72.4401 | M180: 75.30022 | N180: 79.075 | O180: 84.34588 | P180: 85.9657 | Q180: 90.530452 | R180: 91.5723
A181: 0110' | B181: PFOR_landcover | C181: 137 | D181: 61.4693365 | E181: 15.15680915 | F181: 9.6196 | G181: 15.803128 | H181: 31.98848 | I181: 40.98464 | J181: 54.0375 | K181: 56.28232 | L181: 64.9157 | M181: 68.12108 | N181: 71.043 | O181: 77.85682 | P181: 81.46942 | Q181: 84.15666 | R181: 88.8194
A182: 0110' | B182: PIMPV_impervious | C182: 137 | D182: 5.867359854 | E182: 7.26816885 | F182: 0.1545 | G182: 0.2504 | H182: 0.54196 | I182: 0.746 | J182: 1.219 | K182: 1.34762 | L182: 2.7151 | M182: 4.19656 | N182: 8.7691 | O182: 15.51468 | P182: 20.9949 | Q182: 30.259872 | R182: 44.7793
A183: 0110' | B183: PURB_Percent_Urban_Land_Cover | C183: 137 | D183: 20.34960584 | E183: 18.13009707 | F183: 2.191 | G183: 3.68672 | H183: 5.0952 | I183: 5.7994 | J183: 7.675 | K183: 8.1992 | L183: 13.128 | M183: 16.95 | N183: 26.266 | O183: 47.893 | P183: 61.919 | Q183: 76.688 | R183: 86.678
A184: 0110' | B184: PWETL95_landcover | C184: 137 | D184: 0.6960919708 | E184: 0.8779842992 | F184: 0.0091 | G184: 0.018256 | H184: 0.04708 | I184: 0.08462 | J184: 0.2396 | K184: 0.2673 | L184: 0.4624 | M184: 0.55066 | N184: 0.7463 | O184: 1.3744 | P184: 2.34506 | Q184: 4.663612 | R184: 5.4113
A185: 0110' | B185: PWETL_landcover | C185: 137 | D185: 7.352207299 | E185: 4.96795971 | F185: 1.2079 | G185: 1.340888 | H185: 2.05662 | I185: 2.32244 | J185: 3.4527 | K185: 3.91754 | L185: 5.6304 | M185: 7.16676 | N185: 10.4167 | O185: 15.34308 | P185: 16.32844 | Q185: 20.298908 | R185: 24.923
A186: 0110' | B186: PctPRW_PctPRW | C186: 137 | D186: 1.562043796 | E186: 1.397799289 | F186: 0 | G186: 0 | H186: 0 | I186: 0 | J186: 0 | K186: 1 | L186: 1 | M186: 2 | N186: 2 | O186: 3 | P186: 4 | Q186: 5.64 | R186: 7
A187: 0110' | B187: RFOR30_riparian | C187: 137 | D187: 56.38486715 | E187: 11.56139733 | F187: 23.1476 | G187: 24.07006 | H187: 36.71942 | I187: 39.94744 | J187: 50.0955 | K187: 51.72964 | L187: 57.4523 | M187: 59.50032 | N187: 63.9662 | O187: 71.2256 | P187: 73.41632 | Q187: 75.995004 | R187: 77.197
A188: 0110' | B188: RFOR9030_riparian | C188: 137 | D188: 71.76665693 | E188: 12.4620351 | F188: 29.7409 | G188: 31.376248 | H188: 47.31942 | I188: 55.64278 | J188: 66.6061 | K188: 69.02146 | L188: 75.0591 | M188: 78.22918 | N188: 80.6319 | O188: 83.52302 | P188: 85.14066 | Q188: 86.528724 | R188: 91.7483
A189: 0110' | B189: RLA_30_riparian | C189: 137 | D189: 15152156.93 | E189: 6083281.924 | F189: 5120100 | G189: 5694480 | H189: 6793200 | I189: 7978140 | J189: 10390500 | K189: 11245140 | L189: 14441400 | M189: 15580080 | N189: 18496800 | O189: 23337000 | P189: 27564660 | Q189: 31291344 | R189: 32389200
A190: 0110' | B190: RNAT30_riparian | C190: 137 | D190: 76.01651752 | E190: 12.00801153 | F190: 33.2409 | G190: 40.097704 | H190: 50.19112 | I190: 59.22922 | J190: 70.8247 | K190: 73.92178 | L190: 79.4774 | M190: 81.6195 | N190: 84.6576 | O190: 87.68282 | P190: 88.53044 | Q190: 90.655912 | R190: 93.4207
A191: 0110' | B191: RO_30_riparian | C191: 137 | D191: 100 | E191: 0 | F191: 100 | G191: 100 | H191: 100 | I191: 100 | J191: 100 | K191: 100 | L191: 100 | M191: 100 | N191: 100 | O191: 100 | P191: 100 | Q191: 100 | R191: 100
A192: 0202' | B192: LC_OVERLAP_impervious | C192: 389 | D192: 99.98843188 | E192: 0.01039719497 | F192: 99.95 | G192: 99.95 | H192: 99.97 | I192: 99.98 | J192: 99.98 | K192: 99.984 | L192: 99.99 | M192: 99.99 | N192: 100 | O192: 100 | P192: 100 | Q192: 100 | R192: 100
A193: 0202' | B193: LC_OVERLAP_landcover | C193: 389 | D193: 99.98843188 | E193: 0.01039719497 | F193: 99.95 | G193: 99.95 | H193: 99.97 | I193: 99.98 | J193: 99.98 | K193: 99.984 | L193: 99.99 | M193: 99.99 | N193: 100 | O193: 100 | P193: 100 | Q193: 100 | R193: 100
A194: 0202' | B194: N_INDEX_landcover | C194: 389 | D194: 74.67645656 | E194: 20.64956615 | F194: 19.0305 | G194: 30.797988 | H194: 40.30404 | I194: 45.93168 | J194: 58.1251 | K194: 60.91674 | L194: 77.0554 | M194: 85.04684 | N194: 95.4934 | O194: 99.42814 | P194: 99.78052 | Q194: 99.993384 | R194: 100
A195: 0202' | B195: NaturalLand | C195: 389 | D195: 71.31175398 | E195: 22.49259646 | F195: 17.4256 | G195: 26.595056 | H195: 33.644 | I195: 39.50266 | J195: 52.9458 | K195: 56.78182 | L195: 73.7606 | M195: 83.3726 | N195: 93.4651 | O195: 98.3921 | P195: 99.23636 | Q195: 99.949692 | R195: 99.9883
A196: 0202' | B196: PAGC_landcover | C196: 389 | D196: 5.395394344 | E196: 7.485702112 | F196: 0 | G196: 0 | H196: 0 | I196: 0 | J196: 0.1839 | K196: 0.43594 | L196: 2.1132 | M196: 4.16788 | N196: 7.7964 | O196: 15.00754 | P196: 20.90778 | Q196: 30.436908 | R196: 49.3948
A197: 0202' | B197: PAGP_landcover | C197: 389 | D197: 11.64838303 | E197: 11.83338104 | F197: 0 | G197: 0 | H197: 0 | I197: 0 | J197: 0.1928 | K197: 1.08874 | L197: 7.8462 | M197: 12.58434 | N197: 20.5293 | O197: 28.68918 | P197: 34.46828 | Q197: 42.56186 | R197: 46.6157
A198: 0202' | B198: PAGT_landcover | C198: 389 | D198: 22.00157635 | E198: 18.23671635 | F198: 0 | G198: 0.006616 | H198: 0.21948 | I198: 0.52796 | J198: 3.9781 | K198: 6.39726 | L198: 19.987 | M198: 27.91946 | N198: 35.0181 | O198: 47.74916 | P198: 54.87682 | Q198: 65.988776 | R198: 72.9131
A199: 0202' | B199: PFOR90_landcover | C199: 389 | D199: 70.76039075 | E199: 22.48793921 | F199: 16.7901 | G199: 26.253872 | H199: 33.20682 | I199: 38.9816 | J199: 51.8774 | K199: 56.21022 | L199: 73.1967 | M199: 82.61144 | N199: 93.0935 | O199: 97.65958 | P199: 98.74586 | Q199: 99.170156 | R199: 99.7336
A200: 0202' | B200: PFOR_landcover | C200: 389 | D200: 61.45800488 | E200: 23.32101738 | F200: 11.2676 | G200: 15.433784 | H200: 24.80114 | I200: 29.4856 | J200: 40.781 | K200: 45.44406 | L200: 61.2562 | M200: 72.4353 | N200: 83.572 | O200: 90.19616 | P200: 93.75664 | Q200: 97.232036 | R200: 98.0636
... 3639 more rows

Sheet Hide-RunoffCoef-Lookup (hidden)
A1: Lookup String | B1: RainID | C1: Catchment Area | D1: Catchment Imperv | E1: Catchment Slope | F1: Catchment Width | G1: Hyd Group | H1: Ksat | I1: IMD | J1: Suct | K1: Start Date | L1: End Date | M1: Total Precip (in) | N1: Total Evap | O1: Total Infil | P1: Total Runoff (in) | Q1: Peak Runoff (cfs) | R1: Runoff Coeff | S1: Average Ann Precip (in)
A2: =B2&"-"&E2&"-"&D2&"-"&G2 -> 10063-0.1-100-A | B2: 10063 | C2: 1 | D2: 100 | E2: 0.1 | F2: 300.4137931 | G2: A | H2: 1.2 | I2: 2.4 | J2: 0.25 | K2: 1980-01-10 | L2: 2010-10-30 | M2: 1413.1 | N2: 171.02 | O2: 0 | P2: 1260.07 | Q2: 3.01 | R2: 0.892 | S2: =M2/((L2-K2)/365) -> 45.8431695
A3: 10063-0.1-100-B | B3: 10063 | C3: 1 | D3: 100 | E3: 0.1 | F3: 300.4137931 | G3: B | H3: 0.33 | I3: 2.4 | J3: 0.25 | K3: 1980-01-10 | L3: 2010-10-30 | M3: 1413.1 | N3: 171.02 | O3: 0 | P3: 1260.07 | Q3: 3.01 | R3: 0.892 | S3: =M3/((L3-K3)/365) -> 45.8431695
A4: 10063-0.1-100-C | B4: 10063 | C4: 1 | D4: 100 | E4: 0.1 | F4: 300.4137931 | G4: C | H4: 0.11 | I4: 2.4 | J4: 0.25 | K4: 1980-01-10 | L4: 2010-10-30 | M4: 1413.1 | N4: 171.02 | O4: 0 | P4: 1260.07 | Q4: 3.01 | R4: 0.892 | S4: 45.8431695
A5: 10063-0.1-100-D | B5: 10063 | C5: 1 | D5: 100 | E5: 0.1 | F5: 300.4137931 | G5: D | H5: 0.03 | I5: 2.4 | J5: 0.25 | K5: 1980-01-10 | L5: 2010-10-30 | M5: 1413.1 | N5: 171.02 | O5: 0 | P5: 1260.07 | Q5: 3.01 | R5: 0.892 | S5: 45.8431695
A6: 10063-0.1-10-A | B6: 10063 | C6: 1 | D6: 10 | E6: 0.1 | F6: 300.4137931 | G6: A | H6: 1.2 | I6: 2.4 | J6: 0.25 | K6: 1980-01-10 | L6: 2010-10-30 | M6: 1413.1 | N6: 14.18 | O6: 1269.48 | P6: 133.38 | Q6: 0.86 | R6: 0.094 | S6: 45.8431695
A7: 10063-0.1-10-B | B7: 10063 | C7: 1 | D7: 10 | E7: 0.1 | F7: 300.4137931 | G7: B | H7: 0.33 | I7: 2.4 | J7: 0.25 | K7: 1980-01-10 | L7: 2010-10-30 | M7: 1413.1 | N7: 25.66 | O7: 1212.29 | P7: 182.86 | Q7: 1.71 | R7: 0.129 | S7: 45.8431695
A8: 10063-0.1-10-C | B8: 10063 | C8: 1 | D8: 10 | E8: 0.1 | F8: 300.4137931 | G8: C | H8: 0.11 | I8: 2.4 | J8: 0.25 | K8: 1980-01-10 | L8: 2010-10-30 | M8: 1413.1 | N8: 75.33 | O8: 1026.73 | P8: 340.69 | Q8: 2.12 | R8: 0.241 | S8: 45.8431695
A9: 10063-0.1-10-D | B9: 10063 | C9: 1 | D9: 10 | E9: 0.1 | F9: 300.4137931 | G9: D | H9: 0.03 | I9: 2.4 | J9: 0.25 | K9: 1980-01-10 | L9: 2010-10-30 | M9: 1413.1 | N9: 171 | O9: 702.76 | P9: 605.39 | Q9: 2.34 | R9: 0.428 | S9: 45.8431695
A10: 10063-0.1-20-A | B10: 10063 | C10: 1 | D10: 20 | E10: 0.1 | F10: 300.4137931 | G10: A | H10: 1.2 | I10: 2.4 | J10: 0.25 | K10: 1980-01-10 | L10: 2010-10-30 | M10: 1413.1 | N10: 29.19 | O10: 1128.31 | P10: 262.14 | Q10: 1.13 | R10: 0.186 | S10: 45.8431695
A11: 10063-0.1-20-B | B11: 10063 | C11: 1 | D11: 20 | E11: 0.1 | F11: 300.4137931 | G11: B | H11: 0.33 | I11: 2.4 | J11: 0.25 | K11: 1980-01-10 | L11: 2010-10-30 | M11: 1413.1 | N11: 39 | O11: 1075.86 | P11: 307.88 | Q11: 1.91 | R11: 0.218 | S11: 45.8431695
A12: 10063-0.1-20-C | B12: 10063 | C12: 1 | D12: 20 | E12: 0.1 | F12: 300.4137931 | G12: C | H12: 0.11 | I12: 2.4 | J12: 0.25 | K12: 1980-01-10 | L12: 2010-10-30 | M12: 1413.1 | N12: 81.41 | O12: 907.78 | P12: 451.47 | Q12: 2.28 | R12: 0.319 | S12: 45.8431695
A13: 10063-0.1-20-D | B13: 10063 | C13: 1 | D13: 20 | E13: 0.1 | F13: 300.4137931 | G13: D | H13: 0.03 | I13: 2.4 | J13: 0.25 | K13: 1980-01-10 | L13: 2010-10-30 | M13: 1413.1 | N13: 164.59 | O13: 618.08 | P13: 688.78 | Q13: 2.47 | R13: 0.487 | S13: 45.8431695
A14: 10063-0.1-30-A | B14: 10063 | C14: 1 | D14: 30 | E14: 0.1 | F14: 300.4137931 | G14: A | H14: 1.2 | I14: 2.4 | J14: 0.25 | K14: 1980-01-10 | L14: 2010-10-30 | M14: 1413.1 | N14: 45.01 | O14: 987.15 | P14: 389.68 | Q14: 1.4 | R14: 0.276 | S14: 45.8431695
A15: 10063-0.1-30-B | B15: 10063 | C15: 1 | D15: 30 | E15: 0.1 | F15: 300.4137931 | G15: B | H15: 0.33 | I15: 2.4 | J15: 0.25 | K15: 1980-01-10 | L15: 2010-10-30 | M15: 1413.1 | N15: 53.18 | O15: 939.62 | P15: 431.48 | Q15: 2.11 | R15: 0.305 | S15: 45.8431695
A16: 10063-0.1-30-C | B16: 10063 | C16: 1 | D16: 30 | E16: 0.1 | F16: 300.4137931 | G16: C | H16: 0.11 | I16: 2.4 | J16: 0.25 | K16: 1980-01-10 | L16: 2010-10-30 | M16: 1413.1 | N16: 88.76 | O16: 789.75 | P16: 560.21 | Q16: 2.43 | R16: 0.396 | S16: 45.8431695
A17: 10063-0.1-30-D | B17: 10063 | C17: 1 | D17: 30 | E17: 0.1 | F17: 300.4137931 | G17: D | H17: 0.03 | I17: 2.4 | J17: 0.25 | K17: 1980-01-10 | L17: 2010-10-30 | M17: 1413.1 | N17: 160.37 | O17: 534.88 | P17: 769.78 | Q17: 2.59 | R17: 0.545 | S17: 45.8431695
A18: 10063-0.1-40-A | B18: 10063 | C18: 1 | D18: 40 | E18: 0.1 | F18: 300.4137931 | G18: A | H18: 1.2 | I18: 2.4 | J18: 0.25 | K18: 1980-01-10 | L18: 2010-10-30 | M18: 1413.1 | N18: 61.47 | O18: 846.01 | P18: 516.21 | Q18: 1.66 | R18: 0.365 | S18: 45.8431695
A19: 10063-0.1-40-B | B19: 10063 | C19: 1 | D19: 40 | E19: 0.1 | F19: 300.4137931 | G19: B | H19: 0.33 | I19: 2.4 | J19: 0.25 | K19: 1980-01-10 | L19: 2010-10-30 | M19: 1413.1 | N19: 68.09 | O19: 803.69 | P19: 553.76 | Q19: 2.28 | R19: 0.392 | S19: 45.8431695
A20: 10063-0.1-40-C | B20: 10063 | C20: 1 | D20: 40 | E20: 0.1 | F20: 300.4137931 | G20: C | H20: 0.11 | I20: 2.4 | J20: 0.25 | K20: 1980-01-10 | L20: 2010-10-30 | M20: 1413.1 | N20: 97.45 | O20: 672.4 | P20: 667.19 | Q20: 2.56 | R20: 0.472 | S20: 45.8431695
A21: 10063-0.1-40-D | B21: 10063 | C21: 1 | D21: 40 | E21: 0.1 | F21: 300.4137931 | G21: D | H21: 0.03 | I21: 2.4 | J21: 0.25 | K21: 1980-01-10 | L21: 2010-10-30 | M21: 1413.1 | N21: 157.89 | O21: 452.93 | P21: 848.42 | Q21: 2.69 | R21: 0.6 | S21: 45.8431695
A22: 10063-0.1-50-A | B22: 10063 | C22: 1 | D22: 50 | E22: 0.1 | F22: 300.4137931 | G22: A | H22: 1.2 | I22: 2.4 | J22: 0.25 | K22: 1980-01-10 | L22: 2010-10-30 | M22: 1413.1 | N22: 78.59 | O22: 704.89 | P22: 641.92 | Q22: 1.91 | R22: 0.454 | S22: 45.8431695
A23: 10063-0.1-50-B | B23: 10063 | C23: 1 | D23: 50 | E23: 0.1 | F23: 300.4137931 | G23: B | H23: 0.33 | I23: 2.4 | J23: 0.25 | K23: 1980-01-10 | L23: 2010-10-30 | M23: 1413.1 | N23: 83.98 | O23: 668.1 | P23: 674.91 | Q23: 2.46 | R23: 0.478 | S23: 45.8431695
A24: 10063-0.1-50-C | B24: 10063 | C24: 1 | D24: 50 | E24: 0.1 | F24: 300.4137931 | G24: C | H24: 0.11 | I24: 2.4 | J24: 0.25 | K24: 1980-01-10 | L24: 2010-10-30 | M24: 1413.1 | N24: 107.13 | O24: 556 | P24: 772.39 | Q24: 2.67 | R24: 0.547 | S24: 45.8431695
A25: 10063-0.1-50-D | B25: 10063 | C25: 1 | D25: 50 | E25: 0.1 | F25: 300.4137931 | G25: D | H25: 0.03 | I25: 2.4 | J25: 0.25 | K25: 1980-01-10 | L25: 2010-10-30 | M25: 1413.1 | N25: 157.2 | O25: 372.55 | P25: 924.78 | Q25: 2.78 | R25: 0.654 | S25: 45.8431695
A26: 10063-0.1-60-A | B26: 10063 | C26: 1 | D26: 60 | E26: 0.1 | F26: 300.4137931 | G26: A | H26: 1.2 | I26: 2.4 | J26: 0.25 | K26: 1980-01-10 | L26: 2010-10-30 | M26: 1413.1 | N26: 96.19 | O26: 563.78 | P26: 766.84 | Q26: 2.15 | R26: 0.543 | S26: 45.8431695
A27: 10063-0.1-60-B | B27: 10063 | C27: 1 | D27: 60 | E27: 0.1 | F27: 300.4137931 | G27: B | H27: 0.33 | I27: 2.4 | J27: 0.25 | K27: 1980-01-10 | L27: 2010-10-30 | M27: 1413.1 | N27: 100.23 | O27: 532.86 | P27: 794.87 | Q27: 2.62 | R27: 0.562 | S27: 45.8431695
A28: 10063-0.1-60-C | B28: 10063 | C28: 1 | D28: 60 | E28: 0.1 | F28: 300.4137931 | G28: C | H28: 0.11 | I28: 2.4 | J28: 0.25 | K28: 1980-01-10 | L28: 2010-10-30 | M28: 1413.1 | N28: 117.58 | O28: 440.91 | P28: 875.43 | Q28: 2.78 | R28: 0.62 | S28: 45.8431695
A29: 10063-0.1-60-D | B29: 10063 | C29: 1 | D29: 60 | E29: 0.1 | F29: 300.4137931 | G29: D | H29: 0.03 | I29: 2.4 | J29: 0.25 | K29: 1980-01-10 | L29: 2010-10-30 | M29: 1413.1 | N29: 157.54 | O29: 293.58 | P29: 998.61 | Q29: 2.87 | R29: 0.707 | S29: 45.8431695
A30: 10063-0.1-70-A | B30: 10063 | C30: 1 | D30: 70 | E30: 0.1 | F30: 300.4137931 | G30: A | H30: 1.2 | I30: 2.4 | J30: 0.25 | K30: 1980-01-10 | L30: 2010-10-30 | M30: 1413.1 | N30: 114.21 | O30: 422.72 | P30: 891.09 | Q30: 2.39 | R30: 0.631 | S30: 45.8431695
A31: 10063-0.1-70-B | B31: 10063 | C31: 1 | D31: 70 | E31: 0.1 | F31: 300.4137931 | G31: B | H31: 0.33 | I31: 2.4 | J31: 0.25 | K31: 1980-01-10 | L31: 2010-10-30 | M31: 1413.1 | N31: 117.17 | O31: 398.18 | P31: 913.65 | Q31: 2.76 | R31: 0.647 | S31: 45.8431695
A32: 10063-0.1-70-C | B32: 10063 | C32: 1 | D32: 70 | E32: 0.1 | F32: 300.4137931 | G32: C | H32: 0.11 | I32: 2.4 | J32: 0.25 | K32: 1980-01-10 | L32: 2010-10-30 | M32: 1413.1 | N32: 128.88 | O32: 327.15 | P32: 976.36 | Q32: 2.87 | R32: 0.691 | S32: 45.8431695
A33: 10063-0.1-70-D | B33: 10063 | C33: 1 | D33: 70 | E33: 0.1 | F33: 300.4137931 | G33: D | H33: 0.03 | I33: 2.4 | J33: 0.25 | K33: 1980-01-10 | L33: 2010-10-30 | M33: 1413.1 | N33: 158.85 | O33: 216.13 | P33: 1069.83 | Q33: 2.94 | R33: 0.757 | S33: 45.8431695
A34: 10063-0.1-80-A | B34: 10063 | C34: 1 | D34: 80 | E34: 0.1 | F34: 300.4137931 | G34: A | H34: 1.2 | I34: 2.4 | J34: 0.25 | K34: 1980-01-10 | L34: 2010-10-30 | M34: 1413.1 | N34: 132.76 | O34: 281.71 | P34: 1014.7 | Q34: 2.62 | R34: 0.718 | S34: 45.8431695
A35: 10063-0.1-80-B | B35: 10063 | C35: 1 | D35: 80 | E35: 0.1 | F35: 300.4137931 | G35: B | H35: 0.33 | I35: 2.4 | J35: 0.25 | K35: 1980-01-10 | L35: 2010-10-30 | M35: 1413.1 | N35: 134.67 | O35: 264.17 | P35: 1031.1 | Q35: 2.86 | R35: 0.73 | S35: 45.8431695
A36: 10063-0.1-80-C | B36: 10063 | C36: 1 | D36: 80 | E36: 0.1 | F36: 300.4137931 | G36: C | H36: 0.11 | I36: 2.4 | J36: 0.25 | K36: 1980-01-10 | L36: 2010-10-30 | M36: 1413.1 | N36: 141.52 | O36: 215.18 | P36: 1074.81 | Q36: 2.94 | R36: 0.761 | S36: 45.8431695
A37: 10063-0.1-80-D | B37: 10063 | C37: 1 | D37: 80 | E37: 0.1 | F37: 300.4137931 | G37: D | H37: 0.03 | I37: 2.4 | J37: 0.25 | K37: 1980-01-10 | L37: 2010-10-30 | M37: 1413.1 | N37: 161.62 | O37: 140.78 | P37: 1137.94 | Q37: 2.98 | R37: 0.805 | S37: 45.8431695
A38: 10063-0.1-90-A | B38: 10063 | C38: 1 | D38: 90 | E38: 0.1 | F38: 300.4137931 | G38: A | H38: 1.2 | I38: 2.4 | J38: 0.25 | K38: 1980-01-10 | L38: 2010-10-30 | M38: 1413.1 | N38: 151.71 | O38: 140.78 | P38: 1137.74 | Q38: 2.83 | R38: 0.805 | S38: 45.8431695
A39: 10063-0.1-90-B | B39: 10063 | C39: 1 | D39: 90 | E39: 0.1 | F39: 300.4137931 | G39: B | H39: 0.33 | I39: 2.4 | J39: 0.25 | K39: 1980-01-10 | L39: 2010-10-30 | M39: 1413.1 | N39: 152.62 | O39: 131.16 | P39: 1146.97 | Q39: 2.94 | R39: 0.812 | S39: 45.8431695
A40: 10063-0.1-90-C | B40: 10063 | C40: 1 | D40: 90 | E40: 0.1 | F40: 300.4137931 | G40: C | H40: 0.11 | I40: 2.4 | J40: 0.25 | K40: 1980-01-10 | L40: 2010-10-30 | M40: 1413.1 | N40: 155.55 | O40: 105.65 | P40: 1170.1 | Q40: 2.98 | R40: 0.828 | S40: 45.8431695
A41: 10063-0.1-90-D | B41: 10063 | C41: 1 | D41: 90 | E41: 0.1 | F41: 300.4137931 | G41: D | H41: 0.03 | I41: 2.4 | J41: 0.25 | K41: 1980-01-10 | L41: 2010-10-30 | M41: 1413.1 | N41: 165.26 | O41: 68.02 | P41: 1202.19 | Q41: 2.99 | R41: 0.851 | S41: 45.8431695
A42: 10063-10-100-A | B42: 10063 | C42: 1 | D42: 100 | E42: 10 | F42: 300.4137931 | G42: A | H42: 1.2 | I42: 2.4 | J42: 0.25 | K42: 1980-01-10 | L42: 2010-10-30 | M42: 1413.1 | N42: 137.8 | O42: 0 | P42: 1312.35 | Q42: 3.03 | R42: 0.929 | S42: 45.8431695
A43: 10063-10-100-B | B43: 10063 | C43: 1 | D43: 100 | E43: 10 | F43: 300.4137931 | G43: B | H43: 0.33 | I43: 2.4 | J43: 0.25 | K43: 1980-01-10 | L43: 2010-10-30 | M43: 1413.1 | N43: 137.8 | O43: 0 | P43: 1312.35 | Q43: 3.03 | R43: 0.929 | S43: 45.8431695
A44: 10063-10-100-C | B44: 10063 | C44: 1 | D44: 100 | E44: 10 | F44: 300.4137931 | G44: C | H44: 0.11 | I44: 2.4 | J44: 0.25 | K44: 1980-01-10 | L44: 2010-10-30 | M44: 1413.1 | N44: 137.8 | O44: 0 | P44: 1312.35 | Q44: 3.03 | R44: 0.929 | S44: 45.8431695
A45: 10063-10-100-D | B45: 10063 | C45: 1 | D45: 100 | E45: 10 | F45: 300.4137931 | G45: D | H45: 0.03 | I45: 2.4 | J45: 0.25 | K45: 1980-01-10 | L45: 2010-10-30 | M45: 1413.1 | N45: 137.8 | O45: 0 | P45: 1312.35 | Q45: 3.03 | R45: 0.929 | S45: 45.8431695
A46: 10063-10-10-A | B46: 10063 | C46: 1 | D46: 10 | E46: 10 | F46: 300.4137931 | G46: A | H46: 1.2 | I46: 2.4 | J46: 0.25 | K46: 1980-01-10 | L46: 2010-10-30 | M46: 1413.1 | N46: 13.43 | O46: 1266.93 | P46: 138.92 | Q46: 1.57 | R46: 0.098 | S46: 45.8431695
A47: 10063-10-10-B | B47: 10063 | C47: 1 | D47: 10 | E47: 10 | F47: 300.4137931 | G47: B | H47: 0.33 | I47: 2.4 | J47: 0.25 | K47: 1980-01-10 | L47: 2010-10-30 | M47: 1413.1 | N47: 24.41 | O47: 1179.27 | P47: 223.37 | Q47: 2.45 | R47: 0.158 | S47: 45.8431695
A48: 10063-10-10-C | B48: 10063 | C48: 1 | D48: 10 | E48: 10 | F48: 300.4137931 | G48: C | H48: 0.11 | I48: 2.4 | J48: 0.25 | K48: 1980-01-10 | L48: 2010-10-30 | M48: 1413.1 | N48: 67.4 | O48: 951.13 | P48: 433.25 | Q48: 2.76 | R48: 0.307 | S48: 45.8431695
A49: 10063-10-10-D | B49: 10063 | C49: 1 | D49: 10 | E49: 10 | F49: 300.4137931 | G49: D | H49: 0.03 | I49: 2.4 | J49: 0.25 | K49: 1980-01-10 | L49: 2010-10-30 | M49: 1413.1 | N49: 151.82 | O49: 621.43 | P49: 723.37 | Q49: 2.91 | R49: 0.512 | S49: 45.8431695
A50: 10063-10-20-A | B50: 10063 | C50: 1 | D50: 20 | E50: 10 | F50: 300.4137931 | G50: A | H50: 1.2 | I50: 2.4 | J50: 0.25 | K50: 1980-01-10 | L50: 2010-10-30 | M50: 1413.1 | N50: 26.61 | O50: 1126.07 | P50: 271.51 | Q50: 1.73 | R50: 0.192 | S50: 45.8431695
A51: 10063-10-20-B | B51: 10063 | C51: 1 | D51: 20 | E51: 10 | F51: 300.4137931 | G51: B | H51: 0.33 | I51: 2.4 | J51: 0.25 | K51: 1980-01-10 | L51: 2010-10-30 | M51: 1413.1 | N51: 36.14 | O51: 1047.19 | P51: 347.81 | Q51: 2.52 | R51: 0.246 | S51: 45.8431695
A52: 10063-10-20-C | B52: 10063 | C52: 1 | D52: 20 | E52: 10 | F52: 300.4137931 | G52: C | H52: 0.11 | I52: 2.4 | J52: 0.25 | K52: 1980-01-10 | L52: 2010-10-30 | M52: 1413.1 | N52: 74.16 | O52: 843.35 | P52: 535.69 | Q52: 2.79 | R52: 0.379 | S52: 45.8431695
A53: 10063-10-20-D | B53: 10063 | C53: 1 | D53: 20 | E53: 10 | F53: 300.4137931 | G53: D | H53: 0.03 | I53: 2.4 | J53: 0.25 | K53: 1980-01-10 | L53: 2010-10-30 | M53: 1413.1 | N53: 148.88 | O53: 550.15 | P53: 794.19 | Q53: 2.92 | R53: 0.562 | S53: 45.8431695
A54: 10063-10-30-A | B54: 10063 | C54: 1 | D54: 30 | E54: 10 | F54: 300.4137931 | G54: A | H54: 1.2 | I54: 2.4 | J54: 0.25 | K54: 1980-01-10 | L54: 2010-10-30 | M54: 1413.1 | N54: 39.93 | O54: 985.21 | P54: 403.29 | Q54: 1.88 | R54: 0.285 | S54: 45.8431695
A55: 10063-10-30-B | B55: 10063 | C55: 1 | D55: 30 | E55: 10 | F55: 300.4137931 | G55: B | H55: 0.33 | I55: 2.4 | J55: 0.25 | K55: 1980-01-10 | L55: 2010-10-30 | M55: 1413.1 | N55: 47.99 | O55: 915.29 | P55: 471.25 | Q55: 2.58 | R55: 0.333 | S55: 45.8431695
A56: 10063-10-30-C | B56: 10063 | C56: 1 | D56: 30 | E56: 10 | F56: 300.4137931 | G56: C | H56: 0.11 | I56: 2.4 | J56: 0.25 | K56: 1980-01-10 | L56: 2010-10-30 | M56: 1413.1 | N56: 80.81 | O56: 735.81 | P56: 636.98 | Q56: 2.82 | R56: 0.451 | S56: 45.8431695
A57: 10063-10-30-D | B57: 10063 | C57: 1 | D57: 30 | E57: 10 | F57: 300.4137931 | G57: D | H57: 0.03 | I57: 2.4 | J57: 0.25 | K57: 1980-01-10 | L57: 2010-10-30 | M57: 1413.1 | N57: 146.22 | O57: 479.29 | P57: 863.72 | Q57: 2.93 | R57: 0.611 | S57: 45.8431695
A58: 10063-10-40-A | B58: 10063 | C58: 1 | D58: 40 | E58: 10 | F58: 300.4137931 | G58: A | H58: 1.2 | I58: 2.4 | J58: 0.25 | K58: 1980-01-10 | L58: 2010-10-30 | M58: 1413.1 | N58: 53.2 | O58: 844.36 | P58: 534.38 | Q58: 2.03 | R58: 0.378 | S58: 45.8431695
A59: 10063-10-40-B | B59: 10063 | C59: 1 | D59: 40 | E59: 10 | F59: 300.4137931 | G59: B | H59: 0.33 | I59: 2.4 | J59: 0.25 | K59: 1980-01-10 | L59: 2010-10-30 | M59: 1413.1 | N59: 60.04 | O59: 783.62 | P59: 593.77 | Q59: 2.65 | R59: 0.42 | S59: 45.8431695
A60: 10063-10-40-C | B60: 10063 | C60: 1 | D60: 40 | E60: 10 | F60: 300.4137931 | G60: C | H60: 0.11 | I60: 2.4 | J60: 0.25 | K60: 1980-01-10 | L60: 2010-10-30 | M60: 1413.1 | N60: 87.6 | O60: 628.9 | P60: 736.98 | Q60: 2.85 | R60: 0.522 | S60: 45.8431695
A61: 10063-10-40-D | B61: 10063 | C61: 1 | D61: 40 | E61: 10 | F61: 300.4137931 | G61: D | H61: 0.03 | I61: 2.4 | J61: 0.25 | K61: 1980-01-10 | L61: 2010-10-30 | M61: 1413.1 | N61: 143.65 | O61: 408.91 | P61: 931.91 | Q61: 2.94 | R61: 0.659 | S61: 45.8431695
A62: 10063-10-50-A | B62: 10063 | C62: 1 | D62: 50 | E62: 10 | F62: 300.4137931 | G62: A | H62: 1.2 | I62: 2.4 | J62: 0.25 | K62: 1980-01-10 | L62: 2010-10-30 | M62: 1413.1 | N62: 66.91 | O62: 703.57 | P62: 664.87 | Q62: 2.18 | R62: 0.471 | S62: 45.8431695
A63: 10063-10-50-B | B63: 10063 | C63: 1 | D63: 50 | E63: 10 | F63: 300.4137931 | G63: B | H63: 0.33 | I63: 2.4 | J63: 0.25 | K63: 1980-01-10 | L63: 2010-10-30 | M63: 1413.1 | N63: 72.4 | O63: 652.19 | P63: 715.45 | Q63: 2.71 | R63: 0.506 | S63: 45.8431695
A64: 10063-10-50-C | B64: 10063 | C64: 1 | D64: 50 | E64: 10 | F64: 300.4137931 | G64: C | H64: 0.11 | I64: 2.4 | J64: 0.25 | K64: 1980-01-10 | L64: 2010-10-30 | M64: 1413.1 | N64: 94.87 | O64: 522.47 | P64: 835.85 | Q64: 2.87 | R64: 0.592 | S64: 45.8431695
A65: 10063-10-50-D | B65: 10063 | C65: 1 | D65: 50 | E65: 10 | F65: 300.4137931 | G65: D | H65: 0.03 | I65: 2.4 | J65: 0.25 | K65: 1980-01-10 | L65: 2010-10-30 | M65: 1413.1 | N65: 141.73 | O65: 339.03 | P65: 998.85 | Q65: 2.95 | R65: 0.707 | S65: 45.8431695
A66: =B66&"-"&E66&"-"&D66&"-"&G66 -> 10063-10-60-A | B66: 10063 | C66: 1 | D66: 60 | E66: 10 | F66: 300.4137931 | G66: A | H66: 1.2 | I66: 2.4 | J66: 0.25 | K66: 1980-01-10 | L66: 2010-10-30 | M66: 1413.1 | N66: 80.8 | O66: 562.77 | P66: 794.95 | Q66: 2.35 | R66: 0.563 | S66: =M66/((L66-K66)/365) -> 45.8431695
A67: 10063-10-60-B | B67: 10063 | C67: 1 | D67: 60 | E67: 10 | F67: 300.4137931 | G67: B | H67: 0.33 | I67: 2.4 | J67: 0.25 | K67: 1980-01-10 | L67: 2010-10-30 | M67: 1413.1 | N67: 84.41 | O67: 521.05 | P67: 836.39 | Q67: 2.77 | R67: 0.592 | S67: 45.8431695
A68: 10063-10-60-C | B68: 10063 | C68: 1 | D68: 60 | E68: 10 | F68: 300.4137931 | G68: C | H68: 0.11 | I68: 2.4 | J68: 0.25 | K68: 1980-01-10 | L68: 2010-10-30 | M68: 1413.1 | N68: 102.49 | O68: 416.54 | P68: 933.74 | Q68: 2.9 | R68: 0.661 | S68: 45.8431695
A69: 10063-10-60-D | B69: 10063 | C69: 1 | D69: 60 | E69: 10 | F69: 300.4137931 | G69: D | H69: 0.03 | I69: 2.4 | J69: 0.25 | K69: 1980-01-10 | L69: 2010-10-30 | M69: 1413.1 | N69: 140.08 | O69: 269.68 | P69: 1064.63 | Q69: 2.96 | R69: 0.753 | S69: 45.8431695
A70: 10063-10-70-A | B70: 10063 | C70: 1 | D70: 70 | E70: 10 | F70: 300.4137931 | G70: A | H70: 1.2 | I70: 2.4 | J70: 0.25 | K70: 1980-01-10 | L70: 2010-10-30 | M70: 1413.1 | N70: 94.84 | O70: 422 | P70: 924.79 | Q70: 2.52 | R70: 0.654 | S70: 45.8431695
A71: 10063-10-70-B | B71: 10063 | C71: 1 | D71: 70 | E71: 10 | F71: 300.4137931 | G71: B | H71: 0.33 | I71: 2.4 | J71: 0.25 | K71: 1980-01-10 | L71: 2010-10-30 | M71: 1413.1 | N71: 97.41 | O71: 390.17 | P71: 956.79 | Q71: 2.83 | R71: 0.677 | S71: 45.8431695
A72: 10063-10-70-C | B72: 10063 | C72: 1 | D72: 70 | E72: 10 | F72: 300.4137931 | G72: C | H72: 0.11 | I72: 2.4 | J72: 0.25 | K72: 1980-01-10 | L72: 2010-10-30 | M72: 1413.1 | N72: 110.08 | O72: 311.07 | P72: 1030.68 | Q72: 2.93 | R72: 0.729 | S72: 45.8431695
A73: 10063-10-70-D | B73: 10063 | C73: 1 | D73: 70 | E73: 10 | F73: 300.4137931 | G73: D | H73: 0.03 | I73: 2.4 | J73: 0.25 | K73: 1980-01-10 | L73: 2010-10-30 | M73: 1413.1 | N73: 138.79 | O73: 200.86 | P73: 1129.28 | Q73: 2.97 | R73: 0.799 | S73: 45.8431695
A74: 10063-10-80-A | B74: 10063 | C74: 1 | D74: 80 | E74: 10 | F74: 300.4137931 | G74: A | H74: 1.2 | I74: 2.4 | J74: 0.25 | K74: 1980-01-10 | L74: 2010-10-30 | M74: 1413.1 | N74: 108.99 | O74: 281.27 | P74: 1054.11 | Q74: 2.68 | R74: 0.746 | S74: 45.8431695
A75: 10063-10-80-B | B75: 10063 | C75: 1 | D75: 80 | E75: 10 | F75: 300.4137931 | G75: B | H75: 0.33 | I75: 2.4 | J75: 0.25 | K75: 1980-01-10 | L75: 2010-10-30 | M75: 1413.1 | N75: 110.69 | O75: 259.7 | P75: 1076.21 | Q75: 2.89 | R75: 0.762 | S75: 45.8431695
A76: 10063-10-80-C | B76: 10063 | C76: 1 | D76: 80 | E76: 10 | F76: 300.4137931 | G76: C | H76: 0.11 | I76: 2.4 | J76: 0.25 | K76: 1980-01-10 | L76: 2010-10-30 | M76: 1413.1 | N76: 118.53 | O76: 206.37 | P76: 1126.28 | Q76: 2.95 | R76: 0.797 | S76: 45.8431695
A77: 10063-10-80-D | B77: 10063 | C77: 1 | D77: 80 | E77: 10 | F77: 300.4137931 | G77: D | H77: 0.03 | I77: 2.4 | J77: 0.25 | K77: 1980-01-10 | L77: 2010-10-30 | M77: 1413.1 | N77: 137.98 | O77: 132.91 | P77: 1192.34 | Q77: 2.98 | R77: 0.844 | S77: 45.8431695
A78: 10063-10-90-A | B78: 10063 | C78: 1 | D78: 90 | E78: 10 | F78: 300.4137931 | G78: A | H78: 1.2 | I78: 2.4 | J78: 0.25 | K78: 1980-01-10 | L78: 2010-10-30 | M78: 1413.1 | N78: 123.32 | O78: 140.6 | P78: 1183.27 | Q78: 2.84 | R78: 0.837 | S78: 45.8431695
A79: 10063-10-90-B | B79: 10063 | C79: 1 | D79: 90 | E79: 10 | F79: 300.4137931 | G79: B | H79: 0.33 | I79: 2.4 | J79: 0.25 | K79: 1980-01-10 | L79: 2010-10-30 | M79: 1413.1 | N79: 124.15 | O79: 129.53 | P79: 1194.82 | Q79: 2.95 | R79: 0.846 | S79: 45.8431695
A80: 10063-10-90-C | B80: 10063 | C80: 1 | D80: 90 | E80: 10 | F80: 300.4137931 | G80: C | H80: 0.11 | I80: 2.4 | J80: 0.25 | K80: 1980-01-10 | L80: 2010-10-30 | M80: 1413.1 | N80: 127.77 | O80: 102.65 | P80: 1220.46 | Q80: 2.98 | R80: 0.864 | S80: 45.8431695
A81: 10063-10-90-D | B81: 10063 | C81: 1 | D81: 90 | E81: 10 | F81: 300.4137931 | G81: D | H81: 0.03 | I81: 2.4 | J81: 0.25 | K81: 1980-01-10 | L81: 2010-10-30 | M81: 1413.1 | N81: 137.57 | O81: 65.64 | P81: 1253.76 | Q81: 3.01 | R81: 0.887 | S81: 45.8431695
A82: 10063-1-100-A | B82: 10063 | C82: 1 | D82: 100 | E82: 1 | F82: 300.4137931 | G82: A | H82: 1.2 | I82: 2.4 | J82: 0.25 | K82: 1980-01-10 | L82: 2010-10-30 | M82: 1413.1 | N82: 149.58 | O82: 0 | P82: 1291.39 | Q82: 3.01 | R82: 0.914 | S82: 45.8431695
A83: 10063-1-100-B | B83: 10063 | C83: 1 | D83: 100 | E83: 1 | F83: 300.4137931 | G83: B | H83: 0.33 | I83: 2.4 | J83: 0.25 | K83: 1980-01-10 | L83: 2010-10-30 | M83: 1413.1 | N83: 149.58 | O83: 0 | P83: 1291.39 | Q83: 3.01 | R83: 0.914 | S83: 45.8431695
A84: 10063-1-100-C | B84: 10063 | C84: 1 | D84: 100 | E84: 1 | F84: 300.4137931 | G84: C | H84: 0.11 | I84: 2.4 | J84: 0.25 | K84: 1980-01-10 | L84: 2010-10-30 | M84: 1413.1 | N84: 149.58 | O84: 0 | P84: 1291.39 | Q84: 3.01 | R84: 0.914 | S84: 45.8431695
A85: 10063-1-100-D | B85: 10063 | C85: 1 | D85: 100 | E85: 1 | F85: 300.4137931 | G85: D | H85: 0.03 | I85: 2.4 | J85: 0.25 | K85: 1980-01-10 | L85: 2010-10-30 | M85: 1413.1 | N85: 149.58 | O85: 0 | P85: 1291.39 | Q85: 3.01 | R85: 0.914 | S85: 45.8431695
A86: 10063-1-10-A | B86: 10063 | C86: 1 | D86: 10 | E86: 1 | F86: 300.4137931 | G86: A | H86: 1.2 | I86: 2.4 | J86: 0.25 | K86: 1980-01-10 | L86: 2010-10-30 | M86: 1413.1 | N86: 13.67 | O86: 1268.09 | P86: 136.63 | Q86: 1.33 | R86: 0.097 | S86: 45.8431695
A87: 10063-1-10-B | B87: 10063 | C87: 1 | D87: 10 | E87: 1 | F87: 300.4137931 | G87: B | H87: 0.33 | I87: 2.4 | J87: 0.25 | K87: 1980-01-10 | L87: 2010-10-30 | M87: 1413.1 | N87: 25.2 | O87: 1193.69 | P87: 205.17 | Q87: 2.28 | R87: 0.145 | S87: 45.8431695
A88: 10063-1-10-C | B88: 10063 | C88: 1 | D88: 10 | E88: 1 | F88: 300.4137931 | G88: C | H88: 0.11 | I88: 2.4 | J88: 0.25 | K88: 1980-01-10 | L88: 2010-10-30 | M88: 1413.1 | N88: 72.48 | O88: 981.87 | P88: 394.43 | Q88: 2.64 | R88: 0.279 | S88: 45.8431695
A89: 10063-1-10-D | B89: 10063 | C89: 1 | D89: 10 | E89: 1 | F89: 300.4137931 | G89: D | H89: 0.03 | I89: 2.4 | J89: 0.25 | K89: 1980-01-10 | L89: 2010-10-30 | M89: 1413.1 | N89: 160.12 | O89: 653.13 | P89: 675.99 | Q89: 2.81 | R89: 0.478 | S89: 45.8431695
A90: 10063-1-20-A | B90: 10063 | C90: 1 | D90: 20 | E90: 1 | F90: 300.4137931 | G90: A | H90: 1.2 | I90: 2.4 | J90: 0.25 | K90: 1980-01-10 | L90: 2010-10-30 | M90: 1413.1 | N90: 27.28 | O90: 1127.06 | P90: 267.35 | Q90: 1.54 | R90: 0.189 | S90: 45.8431695
A91: 10063-1-20-B | B91: 10063 | C91: 1 | D91: 20 | E91: 1 | F91: 300.4137931 | G91: B | H91: 0.33 | I91: 2.4 | J91: 0.25 | K91: 1980-01-10 | L91: 2010-10-30 | M91: 1413.1 | N91: 36.5 | O91: 1059.53 | P91: 329.88 | Q91: 2.39 | R91: 0.233 | S91: 45.8431695
A92: 10063-1-20-C | B92: 10063 | C92: 1 | D92: 20 | E92: 1 | F92: 300.4137931 | G92: C | H92: 0.11 | I92: 2.4 | J92: 0.25 | K92: 1980-01-10 | L92: 2010-10-30 | M92: 1413.1 | N92: 77.3 | O92: 869.07 | P92: 500.41 | Q92: 2.69 | R92: 0.354 | S92: 45.8431695
A93: 10063-1-20-D | B93: 10063 | C93: 1 | D93: 20 | E93: 1 | F93: 300.4137931 | G93: D | H93: 0.03 | I93: 2.4 | J93: 0.25 | K93: 1980-01-10 | L93: 2010-10-30 | M93: 1413.1 | N93: 155.28 | O93: 576.36 | P93: 751.63 | Q93: 2.85 | R93: 0.532 | S93: 45.8431695
A94: 10063-1-30-A | B94: 10063 | C94: 1 | D94: 30 | E94: 1 | F94: 300.4137931 | G94: A | H94: 1.2 | I94: 2.4 | J94: 0.25 | K94: 1980-01-10 | L94: 2010-10-30 | M94: 1413.1 | N94: 41.51 | O94: 986.07 | P94: 397.14 | Q94: 1.74 | R94: 0.281 | S94: 45.8431695
